Workbook

Sheet Instructions
A1: How to Use
A2: Firstly, make sure that Macros are enabled. Select the required calculator by chosing from the available tabs below (in green). On each tab you can enter details in any commonly used measurement unit, just select from the drop down at the very top. You can choose from, mm, cm, m, feet and inches. All results will automatically update and display. If you have entered the details but get blank results, check what unit of measurement the calculator is set to, and also verify that any mounting heights are within range of the detector type you have selected. Each tab has a basic device field of view graph included. Due to restrictions in Excel this will auto size and lose it's scale on occasion. Please manually resize as required so that X and Y scales are the same.
A3: Field Of View (Calculator)
A4: If you have a device and you want to know what its field of view will be at a specified height, use this tab. Choose the type of device that you have, including lens variant, from the drop-down lists, then enter your height, and the field of view results will be shown. Also, on this tab will be shown the range of mounting options that devices can be installed relative to the door, i.e. the closest, furthest away, and the recommended distance back from the door.
A5: Multi-Unit (Wide opening) Calculator
A6: If you have a wide entrance and you want to know how many devices you will need to cover it, use this tab. Choose the device type that you want to use, including lens variant, from the drop-down lists, then enter the height and the width of the entrance, and the number of devices required will be shown. If you don’t know the device type you need, or simply want the calculator to tell you the best device to use, select ‘Auto’ from the drop-down list instead, and the calculator will select the device type based on the height. As well as displaying the number of devices required, it will also show the maximum separation that devices should be positioned apart from each other, and the total field of view results you will get at that separation.
A7: Multi-Unit (Array) Calc
A8: If you have a large area that you want to track people around (for example, a complete retail store), and you want to know how many devices you will need to cover it, use this tab. Choose the device type that you want to use, including lens variant, from the drop-down lists, then enter the ceiling height and both the width & depth of the entrance, and the number of devices required will be shown. If you don’t know the device type you need, or simply want the calculator to tell you the best device to use, select ‘Auto’ from the drop-down list instead, and the calculator will also specify the device type based on the height. This tab is similar to the Wide Opening variant, but instead of specifying just number of devices in a row, it will tell you how many rows of devices you’ll need to cover the total rectangle area you specify. If you have a non-rectangle area that you need to cover, simply split it into logical rectangle areas and run the calculator multiple times – once for each area. As well as displaying the number of devices required, it will also show the maximum separation that devices should be positioned apart from each other (both left to right separation and front to back), and the total field of view results you will get at those separations.
A9: Compare Devices Calc
A10: This tab is similar to the main Field of View Calc tab, but allows you to show two different devices side by side. This is helpful when choosing a device type for a particular intallation and also allows you to see the field of view changes if you alter the height of the device. You can easily see the Field of View differences between a Vector and a Gazelle mounted at the same height, for example, or you could see the affect on the field of view by raising or lowering the mounting height.
A11: If you have any feedback or questions about this spreadsheet calculator please email: counting.support@irisys.co.uk

Sheet Field Of View Calc
E3: Options
C5: Select Measurement Units: | D5: metres
K6: Height Range of Selected Device/Lens Variant
L8: Absolute Min | M8: Min | N8: Max | O8: Absolute Max
D9: Select Device Type | L9: ='Field Of View Stuff'!U6 ->  | M9: ='Field Of View Stuff'!V6 -> 2m | N9: ='Field Of View Stuff'!W6 -> 4.5m | O9: ='Field Of View Stuff'!X6 -> 
C11: Device: | D11: Vector | F11: Lens: | G11: 75° | K11: =IF('Field Of View Stuff'!$R2,"Field of View","") -> Field of View
K14: =IF('Field Of View Stuff'!$R2,"Note: Field of View scale should be set manually as appropriate" & CHAR(10) & "Use the scale guide square to assist with this","") -> Note: Field of View scale should be set manually as appropriate Use the scale guide square to assist with this
D15: Enter Install Height
C17: Height: | D17: 3.5 | E17: =VLOOKUP($D$5,'Main Calcs'!$I$3:$M$7,5,FALSE) -> m | F17: =IF(D17="","",IF(G11<>"",IF('Field Of View Stuff'!I5,"",IF('Field Of View Stuff'!J5,"Note: in extended mounting height range.", "Outside of mounting height range!")),"")) -> 
D21: Results
C23: Field Of View (Width): | D23: =IF(OR($D$11="",$G$11="",$D$17=""),"",IF('Field Of View Stuff'!$B$13,'Field Of View Stuff'!$B$10,"")) -> 3.69m | E23: by | F23: (Depth): | G23: =IF(OR($D$11="",$G$11="",$D$17=""),"",IF('Field Of View Stuff'!$B$13,'Field Of View Stuff'!$B$11,"")) -> 2.65m
D26: Closest | F26: Recommended | H26: Farthest
A27: Install Distance from Door: | D27: =IF(OR($D$11="",$G$11="",$D$17=""),"",IF('Field Of View Stuff'!$B$13,'Field Of View Stuff'!$B$19,"")) -> 0.1m | F27: =IF(OR($D$11="",$G$11="",$D$17=""),"",IF('Field Of View Stuff'!$B$13,'Field Of View Stuff'!$B$20,"")) -> 1.11m | H27: =IF(OR($D$11="",$G$11="",$D$17=""),"",IF('Field Of View Stuff'!$B$13,'Field Of View Stuff'!$B$21,"")) -> 1.32m
C30: Height Range
C31: Absolute Min | D31: Min | E31: Max | F31: Absolute Max | G31: Max Wide Opening | H31: Notes
A32: ='Main Calcs'!B30 -> Vector | B32: ='Main Calcs'!C30 -> 75° | C32: =IF('Main Calcs'!D30="","",FLOOR('Main Calcs'!D30*VLOOKUP($D$5,'Main Calcs'!$I$3:$L$7,4,FALSE),0.01)& VLOOKUP($D$5,'Main Calcs'!$I$3:$M$7,2,FALSE)) ->  | D32: =IF('Main Calcs'!E30="","",FLOOR('Main Calcs'!E30*VLOOKUP($D$5,'Main Calcs'!$I$3:$L$7,4,FALSE),0.01)& VLOOKUP($D$5,'Main Calcs'!$I$3:$M$7,2,FALSE)) -> 2m | E32: =IF('Main Calcs'!F30="","",FLOOR('Main Calcs'!F30*VLOOKUP($D$5,'Main Calcs'!$I$3:$L$7,4,FALSE),0.01)& VLOOKUP($D$5,'Main Calcs'!$I$3:$M$7,2,FALSE)) -> 4.5m | F32: =IF('Main Calcs'!G30="","",FLOOR('Main Calcs'!G30*VLOOKUP($D$5,'Main Calcs'!$I$3:$L$7,4,FALSE),0.01)& VLOOKUP($D$5,'Main Calcs'!$I$3:$M$7,2,FALSE)) ->  | G32: ='Main Calcs'!H30 -> 4 or 32 | H32: =IF('Main Calcs'!I30="","",'Main Calcs'!I30) -> Count or Analytic
A33: ='Main Calcs'!B31 -> Gazelle | B33: ='Main Calcs'!C31 -> 60° | C33: =IF('Main Calcs'!D31="","",FLOOR('Main Calcs'!D31*VLOOKUP($D$5,'Main Calcs'!$I$3:$L$7,4,FALSE),0.01)& VLOOKUP($D$5,'Main Calcs'!$I$3:$M$7,2,FALSE)) -> 2.2m | D33: =IF('Main Calcs'!E31="","",FLOOR('Main Calcs'!E31*VLOOKUP($D$5,'Main Calcs'!$I$3:$L$7,4,FALSE),0.01)& VLOOKUP($D$5,'Main Calcs'!$I$3:$M$7,2,FALSE)) -> 2.5m | E33: =IF('Main Calcs'!F31="","",FLOOR('Main Calcs'!F31*VLOOKUP($D$5,'Main Calcs'!$I$3:$L$7,4,FALSE),0.01)& VLOOKUP($D$5,'Main Calcs'!$I$3:$M$7,2,FALSE)) -> 4.5m | F33: =IF('Main Calcs'!G31="","",FLOOR('Main Calcs'!G31*VLOOKUP($D$5,'Main Calcs'!$I$3:$L$7,4,FALSE),0.01)& VLOOKUP($D$5,'Main Calcs'!$I$3:$M$7,2,FALSE)) -> 4.8m | G33: ='Main Calcs'!H31 -> 8 | H33: =IF('Main Calcs'!I31="","",'Main Calcs'!I31) -> 
A34: ='Main Calcs'!B32 -> Gazelle | B34: ='Main Calcs'!C32 -> 90° | C34: =IF('Main Calcs'!D32="","",FLOOR('Main Calcs'!D32*VLOOKUP($D$5,'Main Calcs'!$I$3:$L$7,4,FALSE),0.01)& VLOOKUP($D$5,'Main Calcs'!$I$3:$M$7,2,FALSE)) ->  | D34: =IF('Main Calcs'!E32="","",FLOOR('Main Calcs'!E32*VLOOKUP($D$5,'Main Calcs'!$I$3:$L$7,4,FALSE),0.01)& VLOOKUP($D$5,'Main Calcs'!$I$3:$M$7,2,FALSE)) -> 2.5m | E34: =IF('Main Calcs'!F32="","",FLOOR('Main Calcs'!F32*VLOOKUP($D$5,'Main Calcs'!$I$3:$L$7,4,FALSE),0.01)& VLOOKUP($D$5,'Main Calcs'!$I$3:$M$7,2,FALSE)) -> 4.5m | F34: =IF('Main Calcs'!G32="","",FLOOR('Main Calcs'!G32*VLOOKUP($D$5,'Main Calcs'!$I$3:$L$7,4,FALSE),0.01)& VLOOKUP($D$5,'Main Calcs'!$I$3:$M$7,2,FALSE)) ->  | G34: ='Main Calcs'!H32 -> 8 | H34: =IF('Main Calcs'!I32="","",'Main Calcs'!I32) -> 
A35: ='Main Calcs'!B33 -> Gazelle | B35: ='Main Calcs'!C33 -> 40° | C35: =IF('Main Calcs'!D33="","",FLOOR('Main Calcs'!D33*VLOOKUP($D$5,'Main Calcs'!$I$3:$L$7,4,FALSE),0.01)& VLOOKUP($D$5,'Main Calcs'!$I$3:$M$7,2,FALSE)) -> 3.5m | D35: =IF('Main Calcs'!E33="","",FLOOR('Main Calcs'!E33*VLOOKUP($D$5,'Main Calcs'!$I$3:$L$7,4,FALSE),0.01)& VLOOKUP($D$5,'Main Calcs'!$I$3:$M$7,2,FALSE)) -> 4m | E35: =IF('Main Calcs'!F33="","",FLOOR('Main Calcs'!F33*VLOOKUP($D$5,'Main Calcs'!$I$3:$L$7,4,FALSE),0.01)& VLOOKUP($D$5,'Main Calcs'!$I$3:$M$7,2,FALSE)) -> 7m | F35: =IF('Main Calcs'!G33="","",FLOOR('Main Calcs'!G33*VLOOKUP($D$5,'Main Calcs'!$I$3:$L$7,4,FALSE),0.01)& VLOOKUP($D$5,'Main Calcs'!$I$3:$M$7,2,FALSE)) -> 7.5m | G35: ='Main Calcs'!H33 -> 8 | H35: =IF('Main Calcs'!I33="","",'Main Calcs'!I33) -> 
A36: ='Main Calcs'!B34 -> Outdoor | B36: ='Main Calcs'!C34 -> 60° | C36: =IF('Main Calcs'!D34="","",FLOOR('Main Calcs'!D34*VLOOKUP($D$5,'Main Calcs'!$I$3:$L$7,4,FALSE),0.01)& VLOOKUP($D$5,'Main Calcs'!$I$3:$M$7,2,FALSE)) -> 2.2m | D36: =IF('Main Calcs'!E34="","",FLOOR('Main Calcs'!E34*VLOOKUP($D$5,'Main Calcs'!$I$3:$L$7,4,FALSE),0.01)& VLOOKUP($D$5,'Main Calcs'!$I$3:$M$7,2,FALSE)) -> 2.5m | E36: =IF('Main Calcs'!F34="","",FLOOR('Main Calcs'!F34*VLOOKUP($D$5,'Main Calcs'!$I$3:$L$7,4,FALSE),0.01)& VLOOKUP($D$5,'Main Calcs'!$I$3:$M$7,2,FALSE)) -> 4.5m | F36: =IF('Main Calcs'!G34="","",FLOOR('Main Calcs'!G34*VLOOKUP($D$5,'Main Calcs'!$I$3:$L$7,4,FALSE),0.01)& VLOOKUP($D$5,'Main Calcs'!$I$3:$M$7,2,FALSE)) -> 4.8m | G36: ='Main Calcs'!H34 -> 8 | H36: =IF('Main Calcs'!I34="","",'Main Calcs'!I34) -> 
A37: ='Main Calcs'!B35 -> Outdoor | B37: ='Main Calcs'!C35 -> 40° | C37: =IF('Main Calcs'!D35="","",FLOOR('Main Calcs'!D35*VLOOKUP($D$5,'Main Calcs'!$I$3:$L$7,4,FALSE),0.01)& VLOOKUP($D$5,'Main Calcs'!$I$3:$M$7,2,FALSE)) -> 3.5m | D37: =IF('Main Calcs'!E35="","",FLOOR('Main Calcs'!E35*VLOOKUP($D$5,'Main Calcs'!$I$3:$L$7,4,FALSE),0.01)& VLOOKUP($D$5,'Main Calcs'!$I$3:$M$7,2,FALSE)) -> 4m | E37: =IF('Main Calcs'!F35="","",FLOOR('Main Calcs'!F35*VLOOKUP($D$5,'Main Calcs'!$I$3:$L$7,4,FALSE),0.01)& VLOOKUP($D$5,'Main Calcs'!$I$3:$M$7,2,FALSE)) -> 7m | F37: =IF('Main Calcs'!G35="","",FLOOR('Main Calcs'!G35*VLOOKUP($D$5,'Main Calcs'!$I$3:$L$7,4,FALSE),0.01)& VLOOKUP($D$5,'Main Calcs'!$I$3:$M$7,2,FALSE)) -> 7.5m | G37: ='Main Calcs'!H35 -> 8 | H37: =IF('Main Calcs'!I35="","",'Main Calcs'!I35) -> 
A38: ='Main Calcs'!B36 -> Outdoor | B38: ='Main Calcs'!C36 -> 20° | C38: =IF('Main Calcs'!D36="","",FLOOR('Main Calcs'!D36*VLOOKUP($D$5,'Main Calcs'!$I$3:$L$7,4,FALSE),0.01)& VLOOKUP($D$5,'Main Calcs'!$I$3:$M$7,2,FALSE)) ->  | D38: =IF('Main Calcs'!E36="","",FLOOR('Main Calcs'!E36*VLOOKUP($D$5,'Main Calcs'!$I$3:$L$7,4,FALSE),0.01)& VLOOKUP($D$5,'Main Calcs'!$I$3:$M$7,2,FALSE)) -> 7m | E38: =IF('Main Calcs'!F36="","",FLOOR('Main Calcs'!F36*VLOOKUP($D$5,'Main Calcs'!$I$3:$L$7,4,FALSE),0.01)& VLOOKUP($D$5,'Main Calcs'!$I$3:$M$7,2,FALSE)) -> 16m | F38: =IF('Main Calcs'!G36="","",FLOOR('Main Calcs'!G36*VLOOKUP($D$5,'Main Calcs'!$I$3:$L$7,4,FALSE),0.01)& VLOOKUP($D$5,'Main Calcs'!$I$3:$M$7,2,FALSE)) ->  | G38: ='Main Calcs'!H36 -> 8 | H38: =IF('Main Calcs'!I36="","",'Main Calcs'!I36) -> Discontinued
A39: ='Main Calcs'!B37 ->  | B39: ='Main Calcs'!C37 ->  | C39: =IF('Main Calcs'!D37="","",FLOOR('Main Calcs'!D37*VLOOKUP($D$5,'Main Calcs'!$I$3:$L$7,4,FALSE),0.01)& VLOOKUP($D$5,'Main Calcs'!$I$3:$M$7,2,FALSE)) ->  | D39: =IF('Main Calcs'!E37="","",FLOOR('Main Calcs'!E37*VLOOKUP($D$5,'Main Calcs'!$I$3:$L$7,4,FALSE),0.01)& VLOOKUP($D$5,'Main Calcs'!$I$3:$M$7,2,FALSE)) ->  | E39: =IF('Main Calcs'!F37="","",FLOOR('Main Calcs'!F37*VLOOKUP($D$5,'Main Calcs'!$I$3:$L$7,4,FALSE),0.01)& VLOOKUP($D$5,'Main Calcs'!$I$3:$M$7,2,FALSE)) ->  | F39: =IF('Main Calcs'!G37="","",FLOOR('Main Calcs'!G37*VLOOKUP($D$5,'Main Calcs'!$I$3:$L$7,4,FALSE),0.01)& VLOOKUP($D$5,'Main Calcs'!$I$3:$M$7,2,FALSE)) ->  | G39: ='Main Calcs'!H37 ->  | H39: =IF('Main Calcs'!I37="","",'Main Calcs'!I37) -> 
H40: =IF('Main Calcs'!I38="","",'Main Calcs'!I38) -> 

Sheet Multi-Unit (Wide Opening) Calc
E3: Options
C5: Select Measurement Units: | D5: metres
D9: Select Device Type | K9: Height Range of Selected Device/Series
L10: Absolute Min | M10: Min | N10: Max | O10: Absolute Max
C11: Preferred Device: | D11: Vector | F11: Lens: | G11: 75° | L11: ='Multi-Unit (Wide Opening) Stuff'!U6 ->  | M11: ='Multi-Unit (Wide Opening) Stuff'!V6 -> 2m | N11: ='Multi-Unit (Wide Opening) Stuff'!W6 -> 4.5m | O11: ='Multi-Unit (Wide Opening) Stuff'!X6 -> 
K13: =IF('Multi-Unit (Wide Opening) Stuff'!$R2,"Field of View","") -> Field of View
K15: =IF('Multi-Unit (Wide Opening) Stuff'!$R2,"Note: Field of View scale should be set manually as appropriate" & CHAR(10) & "Use the scale guide square to assist with this","") -> Note: Field of View scale should be set manually as appropriate Use the scale guide square to assist with this
E17: Enter Entrance Details
C19: Height: | D19: 3.5 | E19: =VLOOKUP($D$5,'Main Calcs'!$I$3:$M$7,5,FALSE) -> m | F19: =IF(D19="","",IF(G11<>"",IF('Multi-Unit (Wide Opening) Stuff'!I5,"",IF('Multi-Unit (Wide Opening) Stuff'!J5,"Note: in extended mounting height range.", "Outside of mounting height range!")),"")) ->  | K19: =IF(E31>32,"Note: Maximum of 32 devices on a wide opening network",IF('Multi-Unit (Wide Opening) Stuff'!$R2,IF(E31>8,"Note: Only eight devices shown",""),"")) -> 
C21: Width: | D21: 10 | E21: =E19 -> m | F21: Extra Width: | H21: =E19 -> m
D25: Results
C27: Total Entrance Width: | D27: =IF(OR($D$11="",$G$11="",$D$19="",$D$21=""),"",IF('Multi-Unit (Wide Opening) Stuff'!B13,'Multi-Unit (Wide Opening) Stuff'!U14,"")) -> 10m
C29: Device Type: | D29: =IF(OR($D$11="",$G$11="",$D$19="",$D$21=""),"",IF('Multi-Unit (Wide Opening) Stuff'!B13,'Multi-Unit (Wide Opening) Stuff'!U16,"")) -> Vector | E29: Lens: | F29: =IF(OR($D$11="",$G$11="",$D$19="",$D$21=""),"",IF('Multi-Unit (Wide Opening) Stuff'!B13,'Multi-Unit (Wide Opening) Stuff'!W16,"")) -> 75° | G29: =IF(OR($D$11="",$G$11="",$D$19="",$D$21=""),"",IF(AND('Multi-Unit (Wide Opening) Stuff'!B13,$G$11="Auto")," (Auto selected)","")) -> 
D31: Number of Units Required: | E31: =IF(OR($D$11="",$G$11="",$D$19="",$D$21=""),"",IF('Multi-Unit (Wide Opening) Stuff'!B13,'Multi-Unit (Wide Opening) Stuff'!U18,"")) -> 3 | F31: =IF(E31>1," Devices"," Devices") -> Devices | G31: =IF(E31<>"",IF(E31>VLOOKUP(F29,$B$42:$G$48,6,FALSE),"Exceeds Max Number of Devices",""),"") -> 
C33: Separation: | D33: =IF(OR($D$11="",$G$11="",$D$19="",$D$21=""),"",IF('Multi-Unit (Wide Opening) Stuff'!B13,'Multi-Unit (Wide Opening) Stuff'!U19,"")) -> 3.44m
C35: Total Field Of View: | D35: =IF(OR($D$11="",$G$11="",$D$19="",$D$21=""),"",IF('Multi-Unit (Wide Opening) Stuff'!B13,'Multi-Unit (Wide Opening) Stuff'!U20,"")) -> 10.58m | F35: by | G35: =IF(OR($D$11="",$G$11="",$D$19="",$D$21=""),"",IF('Multi-Unit (Wide Opening) Stuff'!B13,'Multi-Unit (Wide Opening) Stuff'!W20,"")) -> 2.65m
C37: Total Field Of View: | D37: =IF(OR($D$11="",$G$11="",$D$19="",$D$21=""),"",IF('Multi-Unit (Wide Opening) Stuff'!B13,'Multi-Unit (Wide Opening) Stuff'!U22,"")) -> 28.03 m²
C40: Height Range
C41: Absolute Min | D41: Min | E41: Max | F41: Absolute Max | G41: Max Wide Opening | H41: Notes
A42: ='Main Calcs'!B30 -> Vector | B42: ='Main Calcs'!C30 -> 75° | C42: =IF('Main Calcs'!D30="","",FLOOR('Main Calcs'!D30*VLOOKUP($D$5,'Main Calcs'!$I$3:$L$7,4,FALSE),0.01)& VLOOKUP($D$5,'Main Calcs'!$I$3:$M$7,2,FALSE)) ->  | D42: =IF('Main Calcs'!E30="","",FLOOR('Main Calcs'!E30*VLOOKUP($D$5,'Main Calcs'!$I$3:$L$7,4,FALSE),0.01)& VLOOKUP($D$5,'Main Calcs'!$I$3:$M$7,2,FALSE)) -> 2m | E42: =IF('Main Calcs'!F30="","",FLOOR('Main Calcs'!F30*VLOOKUP($D$5,'Main Calcs'!$I$3:$L$7,4,FALSE),0.01)& VLOOKUP($D$5,'Main Calcs'!$I$3:$M$7,2,FALSE)) -> 4.5m | F42: =IF('Main Calcs'!G30="","",FLOOR('Main Calcs'!G30*VLOOKUP($D$5,'Main Calcs'!$I$3:$L$7,4,FALSE),0.01)& VLOOKUP($D$5,'Main Calcs'!$I$3:$M$7,2,FALSE)) ->  | G42: ='Main Calcs'!H30 -> 4 or 32 | H42: =IF('Main Calcs'!I30="","",'Main Calcs'!I30) -> Count or Analytic
A43: ='Main Calcs'!B31 -> Gazelle | B43: ='Main Calcs'!C31 -> 60° | C43: =IF('Main Calcs'!D31="","",FLOOR('Main Calcs'!D31*VLOOKUP($D$5,'Main Calcs'!$I$3:$L$7,4,FALSE),0.01)& VLOOKUP($D$5,'Main Calcs'!$I$3:$M$7,2,FALSE)) -> 2.2m | D43: =IF('Main Calcs'!E31="","",FLOOR('Main Calcs'!E31*VLOOKUP($D$5,'Main Calcs'!$I$3:$L$7,4,FALSE),0.01)& VLOOKUP($D$5,'Main Calcs'!$I$3:$M$7,2,FALSE)) -> 2.5m | E43: =IF('Main Calcs'!F31="","",FLOOR('Main Calcs'!F31*VLOOKUP($D$5,'Main Calcs'!$I$3:$L$7,4,FALSE),0.01)& VLOOKUP($D$5,'Main Calcs'!$I$3:$M$7,2,FALSE)) -> 4.5m | F43: =IF('Main Calcs'!G31="","",FLOOR('Main Calcs'!G31*VLOOKUP($D$5,'Main Calcs'!$I$3:$L$7,4,FALSE),0.01)& VLOOKUP($D$5,'Main Calcs'!$I$3:$M$7,2,FALSE)) -> 4.8m | G43: ='Main Calcs'!H31 -> 8 | H43: =IF('Main Calcs'!I31="","",'Main Calcs'!I31) -> 
A44: ='Main Calcs'!B32 -> Gazelle | B44: ='Main Calcs'!C32 -> 90° | C44: =IF('Main Calcs'!D32="","",FLOOR('Main Calcs'!D32*VLOOKUP($D$5,'Main Calcs'!$I$3:$L$7,4,FALSE),0.01)& VLOOKUP($D$5,'Main Calcs'!$I$3:$M$7,2,FALSE)) ->  | D44: =IF('Main Calcs'!E32="","",FLOOR('Main Calcs'!E32*VLOOKUP($D$5,'Main Calcs'!$I$3:$L$7,4,FALSE),0.01)& VLOOKUP($D$5,'Main Calcs'!$I$3:$M$7,2,FALSE)) -> 2.5m | E44: =IF('Main Calcs'!F32="","",FLOOR('Main Calcs'!F32*VLOOKUP($D$5,'Main Calcs'!$I$3:$L$7,4,FALSE),0.01)& VLOOKUP($D$5,'Main Calcs'!$I$3:$M$7,2,FALSE)) -> 4.5m | F44: =IF('Main Calcs'!G32="","",FLOOR('Main Calcs'!G32*VLOOKUP($D$5,'Main Calcs'!$I$3:$L$7,4,FALSE),0.01)& VLOOKUP($D$5,'Main Calcs'!$I$3:$M$7,2,FALSE)) ->  | G44: ='Main Calcs'!H32 -> 8 | H44: =IF('Main Calcs'!I32="","",'Main Calcs'!I32) -> 
A45: ='Main Calcs'!B33 -> Gazelle | B45: ='Main Calcs'!C33 -> 40° | C45: =IF('Main Calcs'!D33="","",FLOOR('Main Calcs'!D33*VLOOKUP($D$5,'Main Calcs'!$I$3:$L$7,4,FALSE),0.01)& VLOOKUP($D$5,'Main Calcs'!$I$3:$M$7,2,FALSE)) -> 3.5m | D45: =IF('Main Calcs'!E33="","",FLOOR('Main Calcs'!E33*VLOOKUP($D$5,'Main Calcs'!$I$3:$L$7,4,FALSE),0.01)& VLOOKUP($D$5,'Main Calcs'!$I$3:$M$7,2,FALSE)) -> 4m | E45: =IF('Main Calcs'!F33="","",FLOOR('Main Calcs'!F33*VLOOKUP($D$5,'Main Calcs'!$I$3:$L$7,4,FALSE),0.01)& VLOOKUP($D$5,'Main Calcs'!$I$3:$M$7,2,FALSE)) -> 7m | F45: =IF('Main Calcs'!G33="","",FLOOR('Main Calcs'!G33*VLOOKUP($D$5,'Main Calcs'!$I$3:$L$7,4,FALSE),0.01)& VLOOKUP($D$5,'Main Calcs'!$I$3:$M$7,2,FALSE)) -> 7.5m | G45: ='Main Calcs'!H33 -> 8 | H45: =IF('Main Calcs'!I33="","",'Main Calcs'!I33) -> 
A46: ='Main Calcs'!B34 -> Outdoor | B46: ='Main Calcs'!C34 -> 60° | C46: =IF('Main Calcs'!D34="","",FLOOR('Main Calcs'!D34*VLOOKUP($D$5,'Main Calcs'!$I$3:$L$7,4,FALSE),0.01)& VLOOKUP($D$5,'Main Calcs'!$I$3:$M$7,2,FALSE)) -> 2.2m | D46: =IF('Main Calcs'!E34="","",FLOOR('Main Calcs'!E34*VLOOKUP($D$5,'Main Calcs'!$I$3:$L$7,4,FALSE),0.01)& VLOOKUP($D$5,'Main Calcs'!$I$3:$M$7,2,FALSE)) -> 2.5m | E46: =IF('Main Calcs'!F34="","",FLOOR('Main Calcs'!F34*VLOOKUP($D$5,'Main Calcs'!$I$3:$L$7,4,FALSE),0.01)& VLOOKUP($D$5,'Main Calcs'!$I$3:$M$7,2,FALSE)) -> 4.5m | F46: =IF('Main Calcs'!G34="","",FLOOR('Main Calcs'!G34*VLOOKUP($D$5,'Main Calcs'!$I$3:$L$7,4,FALSE),0.01)& VLOOKUP($D$5,'Main Calcs'!$I$3:$M$7,2,FALSE)) -> 4.8m | G46: ='Main Calcs'!H34 -> 8 | H46: =IF('Main Calcs'!I34="","",'Main Calcs'!I34) -> 
A47: ='Main Calcs'!B35 -> Outdoor | B47: ='Main Calcs'!C35 -> 40° | C47: =IF('Main Calcs'!D35="","",FLOOR('Main Calcs'!D35*VLOOKUP($D$5,'Main Calcs'!$I$3:$L$7,4,FALSE),0.01)& VLOOKUP($D$5,'Main Calcs'!$I$3:$M$7,2,FALSE)) -> 3.5m | D47: =IF('Main Calcs'!E35="","",FLOOR('Main Calcs'!E35*VLOOKUP($D$5,'Main Calcs'!$I$3:$L$7,4,FALSE),0.01)& VLOOKUP($D$5,'Main Calcs'!$I$3:$M$7,2,FALSE)) -> 4m | E47: =IF('Main Calcs'!F35="","",FLOOR('Main Calcs'!F35*VLOOKUP($D$5,'Main Calcs'!$I$3:$L$7,4,FALSE),0.01)& VLOOKUP($D$5,'Main Calcs'!$I$3:$M$7,2,FALSE)) -> 7m | F47: =IF('Main Calcs'!G35="","",FLOOR('Main Calcs'!G35*VLOOKUP($D$5,'Main Calcs'!$I$3:$L$7,4,FALSE),0.01)& VLOOKUP($D$5,'Main Calcs'!$I$3:$M$7,2,FALSE)) -> 7.5m | G47: ='Main Calcs'!H35 -> 8 | H47: =IF('Main Calcs'!I35="","",'Main Calcs'!I35) -> 
A48: ='Main Calcs'!B36 -> Outdoor | B48: ='Main Calcs'!C36 -> 20° | C48: =IF('Main Calcs'!D36="","",FLOOR('Main Calcs'!D36*VLOOKUP($D$5,'Main Calcs'!$I$3:$L$7,4,FALSE),0.01)& VLOOKUP($D$5,'Main Calcs'!$I$3:$M$7,2,FALSE)) ->  | D48: =IF('Main Calcs'!E36="","",FLOOR('Main Calcs'!E36*VLOOKUP($D$5,'Main Calcs'!$I$3:$L$7,4,FALSE),0.01)& VLOOKUP($D$5,'Main Calcs'!$I$3:$M$7,2,FALSE)) -> 7m | E48: =IF('Main Calcs'!F36="","",FLOOR('Main Calcs'!F36*VLOOKUP($D$5,'Main Calcs'!$I$3:$L$7,4,FALSE),0.01)& VLOOKUP($D$5,'Main Calcs'!$I$3:$M$7,2,FALSE)) -> 16m | F48: =IF('Main Calcs'!G36="","",FLOOR('Main Calcs'!G36*VLOOKUP($D$5,'Main Calcs'!$I$3:$L$7,4,FALSE),0.01)& VLOOKUP($D$5,'Main Calcs'!$I$3:$M$7,2,FALSE)) ->  | G48: ='Main Calcs'!H36 -> 8 | H48: =IF('Main Calcs'!I36="","",'Main Calcs'!I36) -> Discontinued
A49: ='Main Calcs'!B37 ->  | B49: ='Main Calcs'!C37 ->  | C49: =IF('Main Calcs'!D37="","",FLOOR('Main Calcs'!D37*VLOOKUP($D$5,'Main Calcs'!$I$3:$L$7,4,FALSE),0.01)& VLOOKUP($D$5,'Main Calcs'!$I$3:$M$7,2,FALSE)) ->  | D49: =IF('Main Calcs'!E37="","",FLOOR('Main Calcs'!E37*VLOOKUP($D$5,'Main Calcs'!$I$3:$L$7,4,FALSE),0.01)& VLOOKUP($D$5,'Main Calcs'!$I$3:$M$7,2,FALSE)) ->  | E49: =IF('Main Calcs'!F37="","",FLOOR('Main Calcs'!F37*VLOOKUP($D$5,'Main Calcs'!$I$3:$L$7,4,FALSE),0.01)& VLOOKUP($D$5,'Main Calcs'!$I$3:$M$7,2,FALSE)) ->  | F49: =IF('Main Calcs'!G37="","",FLOOR('Main Calcs'!G37*VLOOKUP($D$5,'Main Calcs'!$I$3:$L$7,4,FALSE),0.01)& VLOOKUP($D$5,'Main Calcs'!$I$3:$M$7,2,FALSE)) ->  | G49: ='Main Calcs'!H37 ->  | H49: =IF('Main Calcs'!I37="","",'Main Calcs'!I37) -> 
H50: =IF(#REF!="","",#REF!) -> 
D60: Install Height
C62: Height: | E62: =VLOOKUP($D$5,'Main Calcs'!$I$3:$M$7,5,FALSE) -> m | F62: =IF(D19="","",IF(G11<>"",IF('Field Of View Stuff'!I5,"",IF('Field Of View Stuff'!J5,"Note: in extended mounting height range.", "Outside of mounting height range!")),"")) -> 
D66: Results
C68: Field Of View (Width): | D68: =IF(OR($D$11="",$G$11="",$D$19=""),"",IF('Field Of View Stuff'!$B$13,'Field Of View Stuff'!$B$10,"")) -> 3.69m | E68: =E62 & " by" -> m by | F68: (Depth): | G68: =IF(OR($D$11="",$G$11="",$D$19=""),"",IF('Field Of View Stuff'!$B$13,'Field Of View Stuff'!$B$11,"")) -> 2.65m | H68: =E62 -> m
D71: Closest | F71: Recommended | H71: Farthest
C72: Install Distance from Door: | D72: =IF(OR($D$11="",$G$11="",$D$19=""),"",IF('Field Of View Stuff'!$B$13,'Field Of View Stuff'!$B$19,"")) -> 0.1m | E72: =E62 -> m | F72: =IF(OR($D$11="",$G$11="",$D$19=""),"",IF('Field Of View Stuff'!$B$13,'Field Of View Stuff'!$B$20,"")) -> 1.11m | G72: =E62 -> m | H72: =IF(OR($D$11="",$G$11="",$D$19=""),"",IF('Field Of View Stuff'!$B$13,'Field Of View Stuff'!$B$21,"")) -> 1.32m | I72: =E62 -> m

Sheet Multi-Unit (Array) Calc
E3: Options
C5: Select Measurement Units: | D5: metres
D9: Select Device Type | J9: Height Range of Selected Device/Series
K10: Absolute Min | L10: Min | M10: Max | N10: Absolute Max
C11: Preferred Device: | D11: Auto | F11: Lens: | G11: Auto | K11: ='Multi-Unit (Array) Stuff'!U6 ->  | L11: ='Multi-Unit (Array) Stuff'!V6 -> 2m | M11: ='Multi-Unit (Array) Stuff'!W6 -> 16m | N11: ='Multi-Unit (Array) Stuff'!X6 -> 
K13: =IF('Multi-Unit (Array) Stuff'!$R2,"Field of View","") -> Field of View
K15: =IF('Multi-Unit (Array) Stuff'!$R2,"Note: Field of View scale should be set manually as appropriate" & CHAR(10) & "Use the scale guide square to assist with this","") -> Note: Field of View scale should be set manually as appropriate Use the scale guide square to assist with this
E17: Enter Entrance Details
C19: Height: | D19: 3.5 | E19: =VLOOKUP($D$5,'Main Calcs'!$I$3:$M$7,5,FALSE) -> m | F19: =IF(D19="","",IF(G11<>"",IF('Multi-Unit (Array) Stuff'!I5,"",IF('Multi-Unit (Array) Stuff'!J5,"Note: in extended mounting height range.", "Outside of mounting height range!")),"")) ->  | K19: =IF(E29>32,"Note: Maximum of 32 devices can be connected together on one network",IF('Multi-Unit (Array) Stuff'!$R2,IF(D31>8,"Note: Maximum eight rows of devices shown",IF(F31>8, "Note: Maximum eight devices wide shown","")),"")) -> 
C21: Width: | D21: 6 | E21: =E19 -> m | F21: Depth: | G21: 5 | H21: =E19 -> m
D25: Results
C27: Device Type: | D27: =IF(OR($D$11="",$G$11="",$D$19="",AND($D$21="",$G$21="")),"",IF('Multi-Unit (Array) Stuff'!B13,'Multi-Unit (Array) Stuff'!U16,"")) -> Vector | E27: Lens: | F27: =IF(OR($D$11="",$G$11="",$D$19="",AND($D$21="",$G$21="")),"",IF('Multi-Unit (Array) Stuff'!B13,'Multi-Unit (Array) Stuff'!W16,"")) -> 75° | G27: =IF(OR($D$11="",$G$11="",$D$19="",AND($D$21="",$G$21="")),"",IF(AND('Multi-Unit (Array) Stuff'!B13,$G$11="Auto")," (Auto selected)","")) -> (Auto selected)
D29: Number of Units Required: | E29: =IF(OR($D$11="",$G$11="",$D$19="",AND($D$21="",$G$21="")),"",IF('Multi-Unit (Array) Stuff'!B13,'Multi-Unit (Array) Stuff'!Y18,"")) -> 4 | F29: =IF(E29>1," Units"," Unit") -> Units | G29: =IF(E29<>"",IF(E29>VLOOKUP(F27,$B$42:$G$48,6,FALSE),"Exceeds Max Number of Devices",""),"") -> 
C31: Installed in an array of: | D31: =IF(OR($D$11="",$G$11="",$D$19="",AND($D$21="",$G$21="")),"",IF('Multi-Unit (Array) Stuff'!B13,'Multi-Unit (Array) Stuff'!W18,"")) -> 2 | E31: =IF(D31>1, "rows, of", "row, of") -> rows, of | F31: =IF(OR($D$11="",$G$11="",$D$19="",AND($D$21="",$G$21="")),"",IF('Multi-Unit (Array) Stuff'!B13,'Multi-Unit (Array) Stuff'!U18,"")) -> 2 | G31: =IF(F31>1," devices"," device") -> devices
C33: Separation (Left-Right): | D33: =IF(OR($D$11="",$G$11="",$D$19="",AND($D$21="",$G$21="")),"",IF('Multi-Unit (Array) Stuff'!B13,'Multi-Unit (Array) Stuff'!U19,"")) -> 3.44m | G33: (Front-Back): | H33: =IF(OR($D$11="",$G$11="",$D$19="",AND($D$21="",$G$21="")),"",IF('Multi-Unit (Array) Stuff'!B13,'Multi-Unit (Array) Stuff'!W19,"")) -> 2.4m
C35: Field Of View: | D35: =IF(OR($D$11="",$G$11="",$D$19="",AND($D$21="",$G$21="")),"",IF('Multi-Unit (Array) Stuff'!B13,'Multi-Unit (Array) Stuff'!U20,"")) -> 7.14m | F35: by | G35: =IF(OR($D$11="",$G$11="",$D$19="",AND($D$21="",$G$21="")),"",IF('Multi-Unit (Array) Stuff'!B13,'Multi-Unit (Array) Stuff'!W20,"")) -> 5.05m
C37: Total Field Of View: | D37: =IF(OR($D$11="",$G$11="",$D$19="",AND($D$21="",$G$21="")),"",IF('Multi-Unit (Array) Stuff'!B13,'Multi-Unit (Array) Stuff'!U22,"")) -> 36.05 m²
C40: Height Range
C41: Absolute Min | D41: Min | E41: Max | F41: Absolute Max | G41: Max Wide Opening | H41: Notes
A42: ='Main Calcs'!B30 -> Vector | B42: ='Main Calcs'!C30 -> 75° | C42: =IF('Main Calcs'!D30="","",FLOOR('Main Calcs'!D30*VLOOKUP($D$5,'Main Calcs'!$I$3:$L$7,4,FALSE),0.01)& VLOOKUP($D$5,'Main Calcs'!$I$3:$M$7,2,FALSE)) ->  | D42: =IF('Main Calcs'!E30="","",FLOOR('Main Calcs'!E30*VLOOKUP($D$5,'Main Calcs'!$I$3:$L$7,4,FALSE),0.01)& VLOOKUP($D$5,'Main Calcs'!$I$3:$M$7,2,FALSE)) -> 2m | E42: =IF('Main Calcs'!F30="","",FLOOR('Main Calcs'!F30*VLOOKUP($D$5,'Main Calcs'!$I$3:$L$7,4,FALSE),0.01)& VLOOKUP($D$5,'Main Calcs'!$I$3:$M$7,2,FALSE)) -> 4.5m | F42: =IF('Main Calcs'!G30="","",FLOOR('Main Calcs'!G30*VLOOKUP($D$5,'Main Calcs'!$I$3:$L$7,4,FALSE),0.01)& VLOOKUP($D$5,'Main Calcs'!$I$3:$M$7,2,FALSE)) ->  | G42: ='Main Calcs'!H30 -> 4 or 32 | H42: =IF('Main Calcs'!I30="","",'Main Calcs'!I30) -> Count or Analytic
A43: ='Main Calcs'!B31 -> Gazelle | B43: ='Main Calcs'!C31 -> 60° | C43: =IF('Main Calcs'!D31="","",FLOOR('Main Calcs'!D31*VLOOKUP($D$5,'Main Calcs'!$I$3:$L$7,4,FALSE),0.01)& VLOOKUP($D$5,'Main Calcs'!$I$3:$M$7,2,FALSE)) -> 2.2m | D43: =IF('Main Calcs'!E31="","",FLOOR('Main Calcs'!E31*VLOOKUP($D$5,'Main Calcs'!$I$3:$L$7,4,FALSE),0.01)& VLOOKUP($D$5,'Main Calcs'!$I$3:$M$7,2,FALSE)) -> 2.5m | E43: =IF('Main Calcs'!F31="","",FLOOR('Main Calcs'!F31*VLOOKUP($D$5,'Main Calcs'!$I$3:$L$7,4,FALSE),0.01)& VLOOKUP($D$5,'Main Calcs'!$I$3:$M$7,2,FALSE)) -> 4.5m | F43: =IF('Main Calcs'!G31="","",FLOOR('Main Calcs'!G31*VLOOKUP($D$5,'Main Calcs'!$I$3:$L$7,4,FALSE),0.01)& VLOOKUP($D$5,'Main Calcs'!$I$3:$M$7,2,FALSE)) -> 4.8m | G43: ='Main Calcs'!H31 -> 8 | H43: =IF('Main Calcs'!I31="","",'Main Calcs'!I31) -> 
A44: ='Main Calcs'!B32 -> Gazelle | B44: ='Main Calcs'!C32 -> 90° | C44: =IF('Main Calcs'!D32="","",FLOOR('Main Calcs'!D32*VLOOKUP($D$5,'Main Calcs'!$I$3:$L$7,4,FALSE),0.01)& VLOOKUP($D$5,'Main Calcs'!$I$3:$M$7,2,FALSE)) ->  | D44: =IF('Main Calcs'!E32="","",FLOOR('Main Calcs'!E32*VLOOKUP($D$5,'Main Calcs'!$I$3:$L$7,4,FALSE),0.01)& VLOOKUP($D$5,'Main Calcs'!$I$3:$M$7,2,FALSE)) -> 2.5m | E44: =IF('Main Calcs'!F32="","",FLOOR('Main Calcs'!F32*VLOOKUP($D$5,'Main Calcs'!$I$3:$L$7,4,FALSE),0.01)& VLOOKUP($D$5,'Main Calcs'!$I$3:$M$7,2,FALSE)) -> 4.5m | F44: =IF('Main Calcs'!G32="","",FLOOR('Main Calcs'!G32*VLOOKUP($D$5,'Main Calcs'!$I$3:$L$7,4,FALSE),0.01)& VLOOKUP($D$5,'Main Calcs'!$I$3:$M$7,2,FALSE)) ->  | G44: ='Main Calcs'!H32 -> 8 | H44: =IF('Main Calcs'!I32="","",'Main Calcs'!I32) -> 
A45: ='Main Calcs'!B33 -> Gazelle | B45: ='Main Calcs'!C33 -> 40° | C45: =IF('Main Calcs'!D33="","",FLOOR('Main Calcs'!D33*VLOOKUP($D$5,'Main Calcs'!$I$3:$L$7,4,FALSE),0.01)& VLOOKUP($D$5,'Main Calcs'!$I$3:$M$7,2,FALSE)) -> 3.5m | D45: =IF('Main Calcs'!E33="","",FLOOR('Main Calcs'!E33*VLOOKUP($D$5,'Main Calcs'!$I$3:$L$7,4,FALSE),0.01)& VLOOKUP($D$5,'Main Calcs'!$I$3:$M$7,2,FALSE)) -> 4m | E45: =IF('Main Calcs'!F33="","",FLOOR('Main Calcs'!F33*VLOOKUP($D$5,'Main Calcs'!$I$3:$L$7,4,FALSE),0.01)& VLOOKUP($D$5,'Main Calcs'!$I$3:$M$7,2,FALSE)) -> 7m | F45: =IF('Main Calcs'!G33="","",FLOOR('Main Calcs'!G33*VLOOKUP($D$5,'Main Calcs'!$I$3:$L$7,4,FALSE),0.01)& VLOOKUP($D$5,'Main Calcs'!$I$3:$M$7,2,FALSE)) -> 7.5m | G45: ='Main Calcs'!H33 -> 8 | H45: =IF('Main Calcs'!I33="","",'Main Calcs'!I33) -> 
A46: ='Main Calcs'!B34 -> Outdoor | B46: ='Main Calcs'!C34 -> 60° | C46: =IF('Main Calcs'!D34="","",FLOOR('Main Calcs'!D34*VLOOKUP($D$5,'Main Calcs'!$I$3:$L$7,4,FALSE),0.01)& VLOOKUP($D$5,'Main Calcs'!$I$3:$M$7,2,FALSE)) -> 2.2m | D46: =IF('Main Calcs'!E34="","",FLOOR('Main Calcs'!E34*VLOOKUP($D$5,'Main Calcs'!$I$3:$L$7,4,FALSE),0.01)& VLOOKUP($D$5,'Main Calcs'!$I$3:$M$7,2,FALSE)) -> 2.5m | E46: =IF('Main Calcs'!F34="","",FLOOR('Main Calcs'!F34*VLOOKUP($D$5,'Main Calcs'!$I$3:$L$7,4,FALSE),0.01)& VLOOKUP($D$5,'Main Calcs'!$I$3:$M$7,2,FALSE)) -> 4.5m | F46: =IF('Main Calcs'!G34="","",FLOOR('Main Calcs'!G34*VLOOKUP($D$5,'Main Calcs'!$I$3:$L$7,4,FALSE),0.01)& VLOOKUP($D$5,'Main Calcs'!$I$3:$M$7,2,FALSE)) -> 4.8m | G46: ='Main Calcs'!H34 -> 8 | H46: =IF('Main Calcs'!I34="","",'Main Calcs'!I34) -> 
A47: ='Main Calcs'!B35 -> Outdoor | B47: ='Main Calcs'!C35 -> 40° | C47: =IF('Main Calcs'!D35="","",FLOOR('Main Calcs'!D35*VLOOKUP($D$5,'Main Calcs'!$I$3:$L$7,4,FALSE),0.01)& VLOOKUP($D$5,'Main Calcs'!$I$3:$M$7,2,FALSE)) -> 3.5m | D47: =IF('Main Calcs'!E35="","",FLOOR('Main Calcs'!E35*VLOOKUP($D$5,'Main Calcs'!$I$3:$L$7,4,FALSE),0.01)& VLOOKUP($D$5,'Main Calcs'!$I$3:$M$7,2,FALSE)) -> 4m | E47: =IF('Main Calcs'!F35="","",FLOOR('Main Calcs'!F35*VLOOKUP($D$5,'Main Calcs'!$I$3:$L$7,4,FALSE),0.01)& VLOOKUP($D$5,'Main Calcs'!$I$3:$M$7,2,FALSE)) -> 7m | F47: =IF('Main Calcs'!G35="","",FLOOR('Main Calcs'!G35*VLOOKUP($D$5,'Main Calcs'!$I$3:$L$7,4,FALSE),0.01)& VLOOKUP($D$5,'Main Calcs'!$I$3:$M$7,2,FALSE)) -> 7.5m | G47: ='Main Calcs'!H35 -> 8 | H47: =IF('Main Calcs'!I35="","",'Main Calcs'!I35) -> 
A48: ='Main Calcs'!B36 -> Outdoor | B48: ='Main Calcs'!C36 -> 20° | C48: =IF('Main Calcs'!D36="","",FLOOR('Main Calcs'!D36*VLOOKUP($D$5,'Main Calcs'!$I$3:$L$7,4,FALSE),0.01)& VLOOKUP($D$5,'Main Calcs'!$I$3:$M$7,2,FALSE)) ->  | D48: =IF('Main Calcs'!E36="","",FLOOR('Main Calcs'!E36*VLOOKUP($D$5,'Main Calcs'!$I$3:$L$7,4,FALSE),0.01)& VLOOKUP($D$5,'Main Calcs'!$I$3:$M$7,2,FALSE)) -> 7m | E48: =IF('Main Calcs'!F36="","",FLOOR('Main Calcs'!F36*VLOOKUP($D$5,'Main Calcs'!$I$3:$L$7,4,FALSE),0.01)& VLOOKUP($D$5,'Main Calcs'!$I$3:$M$7,2,FALSE)) -> 16m | F48: =IF('Main Calcs'!G36="","",FLOOR('Main Calcs'!G36*VLOOKUP($D$5,'Main Calcs'!$I$3:$L$7,4,FALSE),0.01)& VLOOKUP($D$5,'Main Calcs'!$I$3:$M$7,2,FALSE)) ->  | G48: ='Main Calcs'!H36 -> 8 | H48: =IF('Main Calcs'!I36="","",'Main Calcs'!I36) -> Discontinued

Sheet Clear (hidden)
E3: Units:
E4: metres
A7: Clears spreadsheet and sets as 'new'

Sheet Instructions (Old) (hidden)

Sheet Field Of View Stuff (hidden)
A1: Old: | B1: metres | I1: Update Values: | J1: TRUE | P1: UseAuto: | Q1: 0 | T1: Height Range of Selected Device Series
A2: New: | B2: metres | J2: 0 | M2: Positions | P2: Enable Sq | Q2: TRUE | R2: =IF(OR('Field Of View Calc'!$D$11="",'Field Of View Calc'!$G$11="",'Field Of View Calc'!$D$17=""),FALSE,IF('Field Of View Stuff'!$B$13,TRUE,FALSE)) -> TRUE | U2: Absolute Min | V2: Min | W2: Max | X2: Absolute Max
A3: Measurement | B3: =INDIRECT("'Field Of View Calc'!" & M3&N3) -> metres | C3: =VLOOKUP(B3,'Main Calcs'!$I$3:$M$7,2,FALSE) -> m | H3: Sheet: Field of view calc | L3: Measurement | M3: D | N3: =CELL("row",INDEX('Field Of View Calc'!$C$1:$C$50,MATCH(VLOOKUP("*"&L3&"*",'Field Of View Calc'!$C$1:$C$50,1,FALSE),'Field Of View Calc'!$C$1:$C$50,0))) -> 5 | T3: metres | U3: =IF($B$15="Auto",VLOOKUP($B$15,'Main Calcs'!$AF$30:$AJ$33,2,FALSE),IF($B$16="Auto",VLOOKUP($B$15,'Main Calcs'!$AF$30:$AJ$33,2,FALSE),IF($B$16="",VLOOKUP($B$15,'Main Calcs'!$AF$30:$AJ$33,2,FALSE),VLOOKUP($B$16,'Main Calcs'!$C$30:$G$37,2,FALSE)))) ->  | V3: =IF($B$15="Auto",VLOOKUP($B$15,'Main Calcs'!$AF$30:$AJ$33,3,FALSE),IF($B$16="Auto",VLOOKUP($B$15,'Main Calcs'!$AF$30:$AJ$33,3,FALSE),IF($B$16="",VLOOKUP($B$15,'Main Calcs'!$AF$30:$AJ$33,3,FALSE),VLOOKUP($B$16,'Main Calcs'!$C$30:$G$37,3,FALSE)))) -> 2 | W3: =IF($B$15="Auto",VLOOKUP($B$15,'Main Calcs'!$AF$30:$AJ$33,4,FALSE),IF($B$16="Auto",VLOOKUP($B$15,'Main Calcs'!$AF$30:$AJ$33,4,FALSE),IF($B$16="",VLOOKUP($B$15,'Main Calcs'!$AF$30:$AJ$33,4,FALSE),VLOOKUP($B$16,'Main Calcs'!$C$30:$G$37,4,FALSE)))) -> 4.5 | X3: =IF($B$15="Auto",VLOOKUP($B$15,'Main Calcs'!$AF$30:$AJ$33,5,FALSE),IF($B$16="Auto",VLOOKUP($B$15,'Main Calcs'!$AF$30:$AJ$33,5,FALSE),IF($B$16="",VLOOKUP($B$15,'Main Calcs'!$AF$30:$AJ$33,5,FALSE),VLOOKUP($B$16,'Main Calcs'!$C$30:$G$37,5,FALSE)))) -> 
B4: Local Measurements | D4: Metres | F4: TRUE | I4: Valid Recommended Height | J4: Valid Extended height | L4: Height: | M4: D | N4: =CELL("row",INDEX('Field Of View Calc'!$C$1:$C$50,MATCH(L4,'Field Of View Calc'!$C$1:$C$50,0))) -> 17 | T4: =B3 -> metres | U4: =IF(OR(U3="",U3=0),"",U3*VLOOKUP($B$3,'Main Calcs'!$I$3:$L$7,4,FALSE)) ->  | V4: =IF(OR(V3="",V3=0),"",V3*VLOOKUP($B$3,'Main Calcs'!$I$3:$L$7,4,FALSE)) -> 2 | W4: =IF(OR(W3="",W3=0),"",W3*VLOOKUP($B$3,'Main Calcs'!$I$3:$L$7,4,FALSE)) -> 4.5 | X4: =IF(OR(X3="",X3=0),"",X3*VLOOKUP($B$3,'Main Calcs'!$I$3:$L$7,4,FALSE)) -> 
A5: Height: | B5: =INDIRECT("'Field Of View Calc'!" &M4&N4) -> 3.5 | C5: =VLOOKUP('Field Of View Calc'!$D$5,'Main Calcs'!$I$3:$M$7,2,FALSE) & " → =" -> m → = | D5: =FLOOR(B5*VLOOKUP($B$3,'Main Calcs'!$I$3:$L$7,3,FALSE),0.01) -> 3.5 | E5: m | I5: =IF(AND($B$5>=$V$5,$B$5<=$W$5),1,0) -> 1 | J5: =IF(AND(VLOOKUP('Field Of View Stuff'!$B$16,'Main Calcs'!$C$30:$H$37,2,FALSE)>0,$B$5>=$U$5,$B$5<=$X$5),1,0) -> 0 | L5: Width: | T5: output | U5: =IF(U4<>"",FLOOR(U4,0.01),"") ->  | V5: =IF(V4<>"",FLOOR(V4,0.01),"") -> 2 | W5: 4.5
A6: Width | C6: =VLOOKUP('Field Of View Calc'!D5,'Main Calcs'!$I$3:$M$7,2,FALSE) & " → =" -> m → = | D6: =FLOOR(B6*VLOOKUP($B$3,'Main Calcs'!$I$3:$L$7,3,FALSE),0.01) -> 0 | E6: m | L6: Extra Width: | T6: Output | U6: =IF(ISERROR(U5),"",IF(U5<>"",U5&$C$3,"")) ->  | V6: =IF(ISERROR(V5),"",IF(V5<>"",V5&$C$3,"")) -> 2m | W6: 4.5m
A7: Additional: | C7: =VLOOKUP('Field Of View Calc'!D5,'Main Calcs'!$I$3:$M$7,2,FALSE) & " → =" -> m → = | D7: =FLOOR(B7*VLOOKUP($B$3,'Main Calcs'!$I$3:$L$7,3,FALSE),0.01) -> 0 | E7: m | L7: Device: | M7: D | N7: =CELL("row",INDEX('Field Of View Calc'!$C$1:$C$50,MATCH(L7,'Field Of View Calc'!$C$1:$C$50,0))) -> 11
A8: Total Width: | C8: =VLOOKUP('Field Of View Calc'!D5,'Main Calcs'!$I$3:$M$7,2,FALSE) & " → =" -> m → = | D8: =D6+D7 -> 0 | E8: m | I8: Min All (m) | J8: Max All (m) | L8: Lens: | M8: G | N8: =CELL("row",INDEX('Field Of View Calc'!$F$1:$F$50,MATCH(L8,'Field Of View Calc'!$F$1:$F$50,0))) -> 11
I9: =MIN('Main Calcs'!D30:E37) -> 2 | J9: =MAX('Main Calcs'!F30:G37) -> 16 | U9: =IF(OR($E$25="",$H$25="",$H$25=0),"",IF($E$25="Auto",VLOOKUP($E$25,'Main Calcs'!$AF$30:$AJ$33,2,FALSE),IF($H$25="Auto",VLOOKUP($E$25,'Main Calcs'!$AF$30:$AJ$33,2,FALSE),VLOOKUP($H$25,'Main Calcs'!$C$30:$G$37,2,FALSE)*VLOOKUP($E$17,'Main Calcs'!$I$3:$L$7,4,FALSE) & P15))) ->  | V9: =IF(OR($E$25="",$H$25="",$H$25=0),"",IF($E$25="Auto",VLOOKUP($E$25,'Main Calcs'!$AF$30:$AJ$33,3,FALSE),IF($H$25="Auto",VLOOKUP($E$25,'Main Calcs'!$AF$30:$AJ$33,3,FALSE),VLOOKUP($H$25,'Main Calcs'!$C$30:$G$37,3,FALSE)*VLOOKUP($E$17,'Main Calcs'!$I$3:$L$7,4,FALSE) & P15))) ->  | W9: =IF(OR($E$25="",$H$25="",$H$25=0),"",IF($E$25="Auto",VLOOKUP($E$25,'Main Calcs'!$AF$30:$AJ$33,4,FALSE),IF($H$25="Auto",VLOOKUP($E$25,'Main Calcs'!$AF$30:$AJ$33,4,FALSE),VLOOKUP($H$25,'Main Calcs'!$C$30:$G$37,4,FALSE)*VLOOKUP($E$17,'Main Calcs'!$I$3:$L$7,4,FALSE) & P15))) ->  | X9: =IF(OR($E$25="",$H$25="",$H$25=0),"",IF($E$25="Auto",VLOOKUP($E$25,'Main Calcs'!$AF$30:$AJ$33,5,FALSE),IF($H$25="Auto",VLOOKUP($E$25,'Main Calcs'!$AF$30:$AJ$33,5,FALSE),VLOOKUP($H$25,'Main Calcs'!$C$30:$G$37,5,FALSE)*VLOOKUP($E$17,'Main Calcs'!$I$3:$L$7,4,FALSE) & P15))) -> 
A10: Field of View (width): | B10: =G10 & C3 -> 3.69m | C10: ← | D10: =VLOOKUP($B$16,'Main Calcs'!$C$30:$Q$37,10,FALSE)*D5+VLOOKUP($B$16,'Main Calcs'!$C$30:$Q$37,11,FALSE) -> 3.695829118 | E10: m | F10: → | G10: =IF(C3="mm",FLOOR(D10*VLOOKUP(B3,'Main Calcs'!$I$3:$L$7,4,FALSE),1),FLOOR(D10*VLOOKUP(B3,'Main Calcs'!$I$3:$L$7,4,FALSE),0.01)) -> 3.69
A11: Field of View (depth): | B11: =G11 & C3 -> 2.65m | C11: ← | D11: =VLOOKUP($B$16,'Main Calcs'!$C$30:$Q$37,12,FALSE)*D5+VLOOKUP($B$16,'Main Calcs'!$C$30:$Q$37,13,FALSE) -> 2.651645205 | E11: m | F11: → | G11: =IF(C3="mm",FLOOR(D11*VLOOKUP(B3,'Main Calcs'!$I$3:$L$7,4,FALSE),1),FLOOR(D11*VLOOKUP(B3,'Main Calcs'!$I$3:$L$7,4,FALSE),0.01)) -> 2.65 | I11: ="Min All (" & VLOOKUP('Field Of View Calc'!$D$5,'Main Calcs'!$I$3:$M$7,2,FALSE) & ")" -> Min All (m) | J11: ="Max All (" & VLOOKUP('Field Of View Calc'!$D$5,'Main Calcs'!$I$3:$M$7,2,FALSE) &" )" -> Max All (m )
A12: Field of View (width): | I12: =FLOOR(I9*VLOOKUP($B$3,'Main Calcs'!$I$3:$L$7,4,FALSE),0.01) -> 2 | J12: =FLOOR(J9*VLOOKUP($B$3,'Main Calcs'!$I$3:$L$7,4,FALSE),0.01) -> 16
A13: FofV OK?: | B13: =OR(I5,J5) -> TRUE
A15: Device: | B15: =INDIRECT("'Field Of View Calc'!" & M7&N7) -> Vector | Q15: Vector Dimensions 195mm x 110mm x 32mm
A16: Lens: | B16: =IF(INDIRECT("'Field Of View Calc'!" &M8&N8)<>"",INDIRECT("'Field Of View Calc'!" &M8&N8),"") -> 75° | Q16: Gazelle Dimensions 190mm x 111mm x 63mm deep
Q17: Outdoor Dimensions 140mm x 133mm x 80mm
A18: Distance From Door | F18: =CELL("col",INDEX('Field Of View Calc'!$C$1:$C$50,MATCH(VLOOKUP("*"&A18&"*",'Field Of View Calc'!$C$1:$C$50,1,FALSE),'Field Of View Calc'!$C$1:$C$50,0))) ->  | G18: =CELL("row",INDEX('Field Of View Calc'!$C$1:$C$50,MATCH(VLOOKUP("*"&A18&"*",'Field Of View Calc'!$C$1:$C$50,1,FALSE),'Field Of View Calc'!$C$1:$C$50,0))) ->  | I18: Recommended calc | O18: =IF(K31,FLOOR(0.5*VLOOKUP($B$3,'Main Calcs'!$I$3:$L$7,4,FALSE),0.01),"") -> 0.5
A19: Closest | B19: =G19& $C$3 -> 0.1m | D19: =IF('Field Of View Stuff'!$B$13,FLOOR(VLOOKUP('Field Of View Stuff'!$B$16,'Main Calcs'!$C$30:$V$37,18,FALSE),0.01),"") -> 0.1 | F19: → | G19: =IF($C$3="mm",FLOOR(D19*VLOOKUP($B$3,'Main Calcs'!$I$3:$L$7,4,FALSE),1),FLOOR(D19*VLOOKUP($B$3,'Main Calcs'!$I$3:$L$7,4,FALSE),0.01)) -> 0.1 | H19: Optimum calc min | I19: Optimum Weighting %
A20: Recommended | B20: =G20& $C$3 -> 1.11m | D20: =IF('Field Of View Stuff'!$B$13,IF(J20>D21,D21,J20),"") -> 1.11 | F20: → | G20: =IF($C$3="mm",FLOOR(D20*VLOOKUP($B$3,'Main Calcs'!$I$3:$L$7,4,FALSE),1),FLOOR(D20*VLOOKUP($B$3,'Main Calcs'!$I$3:$L$7,4,FALSE),0.01)) -> 1.11 | H20: =VLOOKUP($B$16,'Main Calcs'!$C$30:$V$37,19,FALSE) -> 0.9 | I20: =VLOOKUP($B$16,'Main Calcs'!$C$30:$V$37,20,FALSE) -> 0.5 | J20: =IF('Field Of View Stuff'!$B$13,FLOOR((D21-H20)*I20+H20,0.01),"") -> 1.11
A21: Farthest | B21: 1.32m | D21: =IF('Field Of View Stuff'!$B$13,D11/2,"") -> 1.325822602 | F21: → | G21: =IF($C$3="mm",FLOOR(D21*VLOOKUP($B$3,'Main Calcs'!$I$3:$L$7,4,FALSE),1),FLOOR(D21*VLOOKUP($B$3,'Main Calcs'!$I$3:$L$7,4,FALSE),0.01)) -> 1.32
B23: X | C23: Y | D23: X | E23: Y | F23: X | G23: Y | H23: X | I23: Y
A24: Outdoor | B24: -0.07 | C24: 0.04 | D24: 0.07 | E24: 0.04 | F24: 0.07 | G24: -0.093 | H24: -0.07 | I24: -0.093 | L24: Square | M24: TRUE
A25: Gazelle | B25: -0.025 | C25: 0.025 | D25: 0.03 | E25: 0.025 | F25: 0.03 | G25: -0.16 | H25: -0.025 | I25: -0.16
A26: Vector | B26: -0.025 | C26: 0.025 | D26: 0.03 | E26: 0.025 | F26: 0.03 | G26: -0.16 | H26: -0.025 | I26: -0.16 | J26: 2.985329127
A27: SquareTRUE | B27: -0.5 | C27: 0.5 | D27: 0.5 | E27: 0.5 | F27: 0.5 | G27: -0.5 | H27: -0.5 | I27: -0.5
A28: SquareFALSE | B28: 0 | C28: 0 | D28: 0 | E28: 1 | F28: 1 | G28: 1 | H28: 1 | I28: 0
N29: Plot Coordinates
J30: Width | K30: Depth | N30: X | O30: Y
J31: =$G$10 -> 3.69 | K31: =$G$11 -> 2.65 | N31: =IF(R2,-0.5*J31,0) -> -1.845 | O31: =IF(R2,-0.5*K31,0) -> -1.325
J32: =$G$10 -> 3.69 | K32: =$G$11 -> 2.65 | N32: =IF(R2,-0.5*J32,0) -> -1.845 | O32: =IF(R2,0.5*K32,0) -> 1.325
J33: 3.69 | K33: 2.65 | N33: =IF(R2,0.5*J33,0) -> 1.845 | O33: =IF(R2,0.5*K33,0) -> 1.325
J34: 3.69 | K34: 2.65 | N34: =IF(R2,0.5*J34,0) -> 1.845 | O34: =IF(R2,-0.5*K34,0) -> -1.325
J35: 3.69 | K35: 2.65 | N35: =N31 -> -1.845 | O35: =O31 -> -1.325
N37: =IF(AND($Q$2,$R$2),VLOOKUP("Square"&$M$24,$A$24:$I$28,2,FALSE)*VLOOKUP($B$3,'Main Calcs'!$I$3:$L$7,4,FALSE),N31) -> -0.5 | O37: =IF(AND($Q$2,$R$2),VLOOKUP("Square"&$M$24,$A$24:$I$28,3,FALSE)*VLOOKUP($B$3,'Main Calcs'!$I$3:$L$7,4,FALSE),O31) -> 0.5
N38: =IF(AND($Q$2,$R$2),VLOOKUP("Square"&$M$24,$A$24:$I$28,4,FALSE)*VLOOKUP($B$3,'Main Calcs'!$I$3:$L$7,4,FALSE),N32) -> 0.5 | O38: =IF(AND($Q$2,$R$2),VLOOKUP("Square"&$M$24,$A$24:$I$28,5,FALSE)*VLOOKUP($B$3,'Main Calcs'!$I$3:$L$7,4,FALSE),O32) -> 0.5
N39: =IF(AND($Q$2,$R$2),VLOOKUP("Square"&$M$24,$A$24:$I$28,6,FALSE)*VLOOKUP($B$3,'Main Calcs'!$I$3:$L$7,4,FALSE),N33) -> 0.5 | O39: =IF(AND($Q$2,$R$2),VLOOKUP("Square"&$M$24,$A$24:$I$28,7,FALSE)*VLOOKUP($B$3,'Main Calcs'!$I$3:$L$7,4,FALSE),O33) -> -0.5
N40: =IF(AND($Q$2,$R$2),VLOOKUP("Square"&$M$24,$A$24:$I$28,8,FALSE)*VLOOKUP($B$3,'Main Calcs'!$I$3:$L$7,4,FALSE),N34) -> -0.5 | O40: =IF(AND($Q$2,$R$2),VLOOKUP("Square"&$M$24,$A$24:$I$28,9,FALSE)*VLOOKUP($B$3,'Main Calcs'!$I$3:$L$7,4,FALSE),O34) -> -0.5
N41: =IF(AND($Q$2,$R$2),VLOOKUP("Square"&$M$24,$A$24:$I$28,2,FALSE)*VLOOKUP($B$3,'Main Calcs'!$I$3:$L$7,4,FALSE),N35) -> -0.5 | O41: =IF(AND($Q$2,$R$2),VLOOKUP("Square"&$M$24,$A$24:$I$28,3,FALSE)*VLOOKUP($B$3,'Main Calcs'!$I$3:$L$7,4,FALSE),O35) -> 0.5
N43: =IF($R$2,(VLOOKUP($B$15,$A$24:$I$26,2,FALSE)*VLOOKUP($B$3,'Main Calcs'!$I$3:$L$7,4,FALSE)),N31) -> -0.025 | O43: =IF($R$2,(VLOOKUP($B$15,$A$24:$I$26,3,FALSE)*VLOOKUP($B$3,'Main Calcs'!$I$3:$L$7,4,FALSE)),O31) -> 0.025
N44: =IF($R$2,(VLOOKUP($B$15,$A$24:$I$26,4,FALSE)*VLOOKUP($B$3,'Main Calcs'!$I$3:$L$7,4,FALSE)),N32) -> 0.03 | O44: =IF($R$2,(VLOOKUP($B$15,$A$24:$I$26,5,FALSE)*VLOOKUP($B$3,'Main Calcs'!$I$3:$L$7,4,FALSE)),O32) -> 0.025
N45: =IF($R$2,(VLOOKUP($B$15,$A$24:$I$26,6,FALSE)*VLOOKUP($B$3,'Main Calcs'!$I$3:$L$7,4,FALSE)),N33) -> 0.03 | O45: =IF($R$2,(VLOOKUP($B$15,$A$24:$I$26,7,FALSE)*VLOOKUP($B$3,'Main Calcs'!$I$3:$L$7,4,FALSE)),O33) -> -0.16
N46: =IF($R$2,(VLOOKUP($B$15,$A$24:$I$26,8,FALSE)*VLOOKUP($B$3,'Main Calcs'!$I$3:$L$7,4,FALSE)),N34) -> -0.025 | O46: =IF($R$2,(VLOOKUP($B$15,$A$24:$I$26,9,FALSE)*VLOOKUP($B$3,'Main Calcs'!$I$3:$L$7,4,FALSE)),O34) -> -0.16
N47: =IF($R$2,(VLOOKUP($B$15,$A$24:$I$26,2,FALSE)*VLOOKUP($B$3,'Main Calcs'!$I$3:$L$7,4,FALSE)),N35) -> -0.025 | O47: =IF($R$2,(VLOOKUP($B$15,$A$24:$I$26,3,FALSE)*VLOOKUP($B$3,'Main Calcs'!$I$3:$L$7,4,FALSE)),O35) -> 0.025

Sheet Multi-Unit (Wide Opening) Stuff (hidden)
A1: Old: | B1: metres | I1: Update Values: | J1: TRUE | P1: UseAuto: | Q1: 1 | T1: Height Range of Selected Device Series
A2: New: | B2: metres | I2: AutoSelectDevice: | J2: 0 | M2: Positions | P2: Enable Sq | Q2: TRUE | R2: =IF(OR('Multi-Unit (Wide Opening) Calc'!$D$11="",'Multi-Unit (Wide Opening) Calc'!$G$11="",'Multi-Unit (Wide Opening) Calc'!$D$19="",'Multi-Unit (Wide Opening) Calc'!$D$21=""),FALSE,IF('Multi-Unit (Wide Opening) Stuff'!$B$13,IF(U18>32,FALSE,TRUE),TRUE)) -> TRUE | U2: Absolute Min | V2: Min | W2: Max | X2: Absolute Max
A3: Measurement | B3: =INDIRECT("'Multi-Unit (Wide Opening) Calc'!" & M3&N3) -> metres | C3: =VLOOKUP(B3,'Main Calcs'!$I$3:$M$7,2,FALSE) -> m | L3: Measurement | M3: D | N3: =CELL("row",INDEX('Multi-Unit (Wide Opening) Calc'!$C$1:$C$75,MATCH(VLOOKUP("*"&L3&"*",'Multi-Unit (Wide Opening) Calc'!$C$1:$C$75,1,FALSE),'Multi-Unit (Wide Opening) Calc'!$C$1:$C$75,0))) -> 5 | T3: metres | U3: =IF($B$15="Auto",VLOOKUP($B$15,'Main Calcs'!$AF$30:$AJ$33,2,FALSE),IF($B$16="Auto",VLOOKUP($B$15,'Main Calcs'!$AF$30:$AJ$33,2,FALSE),IF($B$16="",VLOOKUP($B$15,'Main Calcs'!$AF$30:$AJ$33,2,FALSE),VLOOKUP($B$16,'Main Calcs'!$C$30:$G$37,2,FALSE)))) ->  | V3: =IF($B$15="Auto",VLOOKUP($B$15,'Main Calcs'!$AF$30:$AJ$33,3,FALSE),IF($B$16="Auto",VLOOKUP($B$15,'Main Calcs'!$AF$30:$AJ$33,3,FALSE),IF($B$16="",VLOOKUP($B$15,'Main Calcs'!$AF$30:$AJ$33,3,FALSE),VLOOKUP($B$16,'Main Calcs'!$C$30:$G$37,3,FALSE)))) -> 2 | W3: =IF($B$15="Auto",VLOOKUP($B$15,'Main Calcs'!$AF$30:$AJ$33,4,FALSE),IF($B$16="Auto",VLOOKUP($B$15,'Main Calcs'!$AF$30:$AJ$33,4,FALSE),IF($B$16="",VLOOKUP($B$15,'Main Calcs'!$AF$30:$AJ$33,4,FALSE),VLOOKUP($B$16,'Main Calcs'!$C$30:$G$37,4,FALSE)))) -> 4.5 | X3: =IF($B$15="Auto",VLOOKUP($B$15,'Main Calcs'!$AF$30:$AJ$33,5,FALSE),IF($B$16="Auto",VLOOKUP($B$15,'Main Calcs'!$AF$30:$AJ$33,5,FALSE),IF($B$16="",VLOOKUP($B$15,'Main Calcs'!$AF$30:$AJ$33,5,FALSE),VLOOKUP($B$16,'Main Calcs'!$C$30:$G$37,5,FALSE)))) -> 
B4: Local Measurements | D4: Metres | F4: TRUE | I4: Valid Recommended Height | J4: Valid Extended height | L4: Height: | M4: D | N4: =CELL("row",INDEX('Multi-Unit (Wide Opening) Calc'!$C$1:$C$75,MATCH(L4,'Multi-Unit (Wide Opening) Calc'!$C$1:$C$75,0))) -> 19 | T4: =B3 -> metres | U4: =IF(OR(U3="",U3=0),"",U3*VLOOKUP($B$3,'Main Calcs'!$I$3:$L$7,4,FALSE)) ->  | V4: =IF(OR(V3="",V3=0),"",V3*VLOOKUP($B$3,'Main Calcs'!$I$3:$L$7,4,FALSE)) -> 2 | W4: =IF(OR(W3="",W3=0),"",W3*VLOOKUP($B$3,'Main Calcs'!$I$3:$L$7,4,FALSE)) -> 4.5 | X4: =IF(OR(X3="",X3=0),"",X3*VLOOKUP($B$3,'Main Calcs'!$I$3:$L$7,4,FALSE)) -> 
A5: Height: | B5: =INDIRECT("'Multi-Unit (Wide Opening) Calc'!" &M4&N4) -> 3.5 | C5: =$C$3 & " → =" -> m → = | D5: =FLOOR(B5*VLOOKUP($B$3,'Main Calcs'!$I$3:$L$7,3,FALSE),0.01) -> 3.5 | E5: m | I5: =IF(AND($B$5>=V5,$B$5<=W5),1,0) -> 1 | J5: =IF(AND($B$5>=U5,IF(X5<>"",$B$5<=X5,$B$5<=W5)),1,0) -> 0 | L5: Width: | M5: D | N5: =CELL("row",INDEX('Multi-Unit (Wide Opening) Calc'!$C$1:$C$75,MATCH(L5,'Multi-Unit (Wide Opening) Calc'!$C$1:$C$75,0))) -> 21 | T5: output | U5: =IF(U4<>"",FLOOR(U4,0.01),"") ->  | V5: =IF(V4<>"",FLOOR(V4,0.01),"") -> 2 | W5: 4.5
A6: Width | B6: =INDIRECT("'Multi-Unit (Wide Opening) Calc'!" &M5&N5) -> 10 | C6: =$C$3 & " → =" -> m → = | D6: =FLOOR(B6*VLOOKUP($B$3,'Main Calcs'!$I$3:$L$7,3,FALSE),0.01) -> 10 | E6: m | L6: Extra Width: | M6: G | N6: =CELL("row",INDEX('Multi-Unit (Wide Opening) Calc'!$F$1:$F$75,MATCH(L6,'Multi-Unit (Wide Opening) Calc'!$F$1:$F$75,0))) -> 21 | T6: Output | U6: =IF(ISERROR(U5),"",IF(U5<>"",U5&$C$3,"")) ->  | V6: =IF(ISERROR(V5),"",IF(V5<>"",V5&$C$3,"")) -> 2m | W6: 4.5m
A7: Additional: | B7: =INDIRECT("'Multi-Unit (Wide Opening) Calc'!" &M6&N6) -> 0 | C7: m → = | D7: =FLOOR(B7*VLOOKUP($B$3,'Main Calcs'!$I$3:$L$7,3,FALSE),0.01) -> 0 | E7: m | L7: Device: | M7: D | N7: =CELL("row",INDEX('Multi-Unit (Wide Opening) Calc'!$C$1:$C$75,MATCH("*" &L7,'Multi-Unit (Wide Opening) Calc'!$C$1:$C$75,0))) -> 11
A8: Total Width: | B8: =B6+B7 -> 10 | C8: m → = | D8: =D6+D7 -> 10 | E8: m | I8: Min All (m) | J8: Max All (m) | L8: Lens: | M8: G | N8: =CELL("row",INDEX('Multi-Unit (Wide Opening) Calc'!$F$1:$F$75,MATCH(L8,'Multi-Unit (Wide Opening) Calc'!$F$1:$F$75,0))) -> 11 | T8: Width: | U8: =IF($C$3="mm",FLOOR($B$8,1),FLOOR($B$8,0.01)) -> 10
I9: =MIN('Main Calcs'!D30:E37) -> 2 | J9: =MAX('Main Calcs'!F30:G37) -> 16 | T9: Device | U9: =Stuff!BR23 -> Vector | V9: Lens | W9: =Stuff!BS23 -> 75° | X9: =IF(OR($E$25="",$H$25="",$H$25=0),"",IF($E$25="Auto",VLOOKUP($E$25,'Main Calcs'!$AF$30:$AJ$33,5,FALSE),IF($H$25="Auto",VLOOKUP($E$25,'Main Calcs'!$AF$30:$AJ$33,5,FALSE),VLOOKUP($H$25,'Main Calcs'!$C$30:$G$37,5,FALSE)*VLOOKUP($E$17,'Main Calcs'!$I$3:$L$7,4,FALSE) & O15))) -> 
A10: Field of View (width): | B10: =FLOOR(D10*VLOOKUP(B3,'Main Calcs'!$I$3:$L$7,4,FALSE),0.01) -> 3.69 | C10: m → = | D10: =VLOOKUP($W$9,'Main Calcs'!$C$30:$Q$37,10,FALSE)*D5+VLOOKUP($W$9,'Main Calcs'!$C$30:$Q$37,11,FALSE) -> 3.695829118 | E10: m | T10: No Of Units | U10: =Stuff!BV23 -> 3
A11: Field of View (depth): | B11: =FLOOR(D11*VLOOKUP(B3,'Main Calcs'!$I$3:$L$7,4,FALSE),0.01) -> 2.65 | C11: m → = | D11: =VLOOKUP($W$9,'Main Calcs'!$C$30:$Q$37,12,FALSE)*D5+VLOOKUP($W$9,'Main Calcs'!$C$30:$Q$37,13,FALSE) -> 2.651645205 | E11: m | I11: ="Min All (" & VLOOKUP('Field Of View Calc'!$D$5,'Main Calcs'!$I$3:$M$7,2,FALSE) & ")" -> Min All (m) | J11: ="Max All (" & VLOOKUP('Field Of View Calc'!$D$5,'Main Calcs'!$I$3:$M$7,2,FALSE) &" )" -> Max All (m ) | T11: Total | U11: =IF($C$3="mm",FLOOR(Stuff!BZ23*VLOOKUP($B$3,'Main Calcs'!$I$3:$L$7,4,FALSE),1),FLOOR(Stuff!BZ23*VLOOKUP($B$3,'Main Calcs'!$I$3:$L$7,4,FALSE),0.01)) -> 10.58 | W11: =IF($C$3="mm",FLOOR(Stuff!CD23*VLOOKUP($B$3,'Main Calcs'!$I$3:$L$7,4,FALSE),1),FLOOR(Stuff!CD23*VLOOKUP($B$3,'Main Calcs'!$I$3:$L$7,4,FALSE),0.01)) -> 2.65
A12: Field of View (width): | I12: =FLOOR(I9*VLOOKUP($B$3,'Main Calcs'!$I$3:$L$7,4,FALSE),0.01) -> 2 | J12: =FLOOR(J9*VLOOKUP($B$3,'Main Calcs'!$I$3:$L$7,4,FALSE),0.01) -> 16 | T12: Separation | U12: =IF(U10>1,IF($C$3="mm",FLOOR(Stuff!BY23*VLOOKUP($B$3,'Main Calcs'!$I$3:$L$7,4,FALSE),1),FLOOR(Stuff!BY23*VLOOKUP($B$3,'Main Calcs'!$I$3:$L$7,4,FALSE),0.01)),"") -> 3.44
A13: FofV OK?: | B13: =OR(I5,J5) -> TRUE
T14: Total width | U14: =U8 & $C$3 -> 10m
A15: Device: | B15: =INDIRECT("'Multi-Unit (Wide Opening) Calc'!" & M7&N7) -> Vector
A16: Lens: | B16: =IF(INDIRECT("'Multi-Unit (Wide Opening) Calc'!" &M8&N8)<>"",INDIRECT("'Multi-Unit (Wide Opening) Calc'!" &M8&N8),"") -> 75° | M16: =OR('Multi-Unit (Wide Opening) Stuff'!$D$5<2,'Multi-Unit (Wide Opening) Stuff'!$D$5>16,AND($H$25<>"",'Multi-Unit (Wide Opening) Stuff'!$I$5=0,'Multi-Unit (Wide Opening) Stuff'!$J$5=0)) -> FALSE | T16: Device Type: | U16: =U9 -> Vector | V16: Lens: | W16: =W9 -> 75°
A18: Distance From Door | F18: =CELL("col",INDEX('Field Of View Calc'!$C$1:$C$50,MATCH(VLOOKUP("*"&A18&"*",'Field Of View Calc'!$C$1:$C$50,1,FALSE),'Field Of View Calc'!$C$1:$C$50,0))) ->  | G18: =CELL("row",INDEX('Field Of View Calc'!$C$1:$C$50,MATCH(VLOOKUP("*"&A18&"*",'Field Of View Calc'!$C$1:$C$50,1,FALSE),'Field Of View Calc'!$C$1:$C$50,0))) ->  | I18: Recommended calc | T18: Number of Units Required: | U18: =U10 -> 3
A19: Closest | B19: =FLOOR(D19*VLOOKUP('Multi-Unit (Wide Opening) Calc'!$D$5,'Main Calcs'!$I$3:$L$7,4,FALSE),0.01) ->  | D19: =IF('Multi-Unit (Wide Opening) Stuff'!$B$13,FLOOR(VLOOKUP('Multi-Unit (Wide Opening) Stuff'!$B$16,'Main Calcs'!$T$30:$V$37,2,FALSE),0.01),"") ->  | H19: Optimum calc min | I19: Optimum Weighting % | T19: Separation: | U19: =IF(U12<>"",U12&$C$3,"") -> 3.44m
A20: Recommended | B20: =FLOOR(D20*VLOOKUP('Multi-Unit (Wide Opening) Calc'!$D$5,'Main Calcs'!$I$3:$L$7,4,FALSE),0.01) -> 0.66 | D20: =IF('Multi-Unit (Wide Opening) Stuff'!$B$13,IF(J20>D21,D21,J20),"") -> 0.66 | H20: =VLOOKUP($B$16,'Main Calcs'!$C$30:$V$37,16,FALSE) -> 1.019524352 | I20: =VLOOKUP($B$16,'Main Calcs'!$C$30:$V$37,17,FALSE) -> -1.166690029 | J20: =IF('Multi-Unit (Wide Opening) Stuff'!$B$13,FLOOR((D21-H20)*I20+H20,0.01),"") -> 0.66 | T20: Total Field Of View: | U20: =U11 & $C$3 -> 10.58m | W20: =W11 & $C$3 -> 2.65m
A21: Farthest | B21: =FLOOR(D21*VLOOKUP('Multi-Unit (Wide Opening) Calc'!$D$5,'Main Calcs'!$I$3:$L$7,4,FALSE),0.01) -> 1.32 | D21: =IF('Multi-Unit (Wide Opening) Stuff'!$B$13,D11/2,"") -> 1.325822602
T22: Total: | U22: =IF(B3="inches",FLOOR(U11*W11,0.01) & " " & W22, FLOOR(U11*W11,0.01) & " " & W22) -> 28.03 m² | W22: =VLOOKUP(B3,'Main Calcs'!$I$3:$N$7,6,FALSE) -> m²
B23: X | C23: Y | D23: X | E23: Y | F23: X | G23: Y | H23: X | I23: Y
A24: Outdoor | B24: -0.07 | C24: 0.04 | D24: 0.07 | E24: 0.04 | F24: 0.07 | G24: -0.093 | H24: -0.07 | I24: -0.093 | L24: Square | M24: FALSE
A25: Gazelle | B25: -0.025 | C25: 0.025 | D25: 0.03 | E25: 0.025 | F25: 0.03 | G25: -0.16 | H25: -0.025 | I25: -0.16
A26: Vector | B26: -0.025 | C26: -0.16 | D26: -0.025 | E26: 0.025 | F26: 0.03 | G26: 0.025 | H26: 0.03 | I26: -0.16
A27: SquareTRUE | B27: -0.5 | C27: -0.5 | D27: -0.5 | E27: 0.5 | F27: 0.5 | G27: 0.5 | H27: 0.5 | I27: -0.5
A28: SquareFALSE | B28: 0 | C28: 0 | D28: 0 | E28: 1 | F28: 1 | G28: 1 | H28: 1 | I28: 0
N29: Plot Coordinates | Q29: Edited Coordinates | T29: Shown Coordinates
B30: Absolute Min | C30: Min | D30: Max | E30: Absolute Max | J30: Width | K30: Depth | L30: Separation | N30: X | O30: Y | Q30: X | R30: Y | T30: X | U30: Y
A31: Vector | C31: 2 | D31: 4.5 | I31: 1 | J31: =$B$10 -> 3.69 | K31: =$B$11 -> 2.65 | N31: =-0.5*J31 -> -1.845 | O31: =-0.5*K31 -> -1.325 | Q31: =IF((ROW()-31)/5<$U$18,N31,Q26) -> -1.845 | R31: -1.325 | T31: =Q31 -> -1.845 | U31: =R31 -> -1.325
A32: Gazelle | B32: 2.2 | C32: 2.5 | D32: 7 | E32: 7.5 | I32: 2 | J32: =$B$10 -> 3.69 | K32: =$B$11 -> 2.65 | N32: =-0.5*J32 -> -1.845 | O32: =0.5*K32 -> 1.325 | Q32: =IF((ROW()-31)/5<$U$18,N32,Q27) -> -1.845 | R32: 1.325 | T32: =Q32 -> -1.845 | U32: =R32 -> 1.325
A33: Outdoor | B33: 2.2 | C33: 2.5 | D33: 16 | I33: 3 | J33: 3.69 | K33: 2.65 | N33: =0.5*J33 -> 1.845 | O33: =0.5*K33 -> 1.325 | Q33: =IF((ROW()-31)/5<$U$18,N33,Q28) -> 1.845 | R33: 1.325 | T33: =Q33 -> 1.845 | U33: 1.325
I34: 4 | J34: 3.69 | K34: 2.65 | N34: =0.5*J34 -> 1.845 | O34: =-0.5*K34 -> -1.325 | Q34: =IF((ROW()-31)/5<$U$18,N34,Q29) -> 1.845 | R34: -1.325 | T34: 1.845 | U34: -1.325
I35: 5 | J35: 3.69 | K35: 2.65 | N35: =N31 -> -1.845 | O35: =O31 -> -1.325 | Q35: =IF((ROW()-31)/5<$U$18,N35,Q30) -> -1.845 | R35: -1.325 | T35: -1.845 | U35: -1.325
I36: 1 | J36: 3.69 | K36: 2.65 | L36: =$U$12 -> 3.44 | N36: =N31+L36 -> 1.595 | O36: =O31 -> -1.325 | Q36: =IF((ROW()-31)/5<$U$18,N36,Q31) -> 1.595 | R36: =IF((ROW()-31)/5<$U$18,O36,R31) -> -1.325
I37: 2 | J37: 3.69 | K37: 2.65 | L37: 3.44 | N37: =N32+L37 -> 1.595 | O37: =O32 -> 1.325 | Q37: 1.595 | R37: 1.325 | T37: =IF($R$2,(VLOOKUP($U$16,$A$24:$I$26,2,FALSE)*VLOOKUP($B$3,'Main Calcs'!$I$3:$L$7,4,FALSE)),T31) -> -0.025 | U37: =IF($R$2,(VLOOKUP($U$16,$A$24:$I$26,3,FALSE)*VLOOKUP($B$3,'Main Calcs'!$I$3:$L$7,4,FALSE)),U31) -> -0.16
I38: 3 | J38: 3.69 | K38: 2.65 | L38: 3.44 | N38: 5.285 | O38: 1.325 | Q38: 5.285 | R38: 1.325 | T38: =IF($R$2,(VLOOKUP($U$16,$A$24:$I$26,4,FALSE)*VLOOKUP($B$3,'Main Calcs'!$I$3:$L$7,4,FALSE)),T32) -> -0.025 | U38: =IF($R$2,(VLOOKUP($U$16,$A$24:$I$26,5,FALSE)*VLOOKUP($B$3,'Main Calcs'!$I$3:$L$7,4,FALSE)),U32) -> 0.025
I39: 4 | J39: 3.69 | K39: 2.65 | L39: 3.44 | N39: 5.285 | O39: -1.325 | Q39: 5.285 | R39: -1.325 | T39: =IF($R$2,(VLOOKUP($U$16,$A$24:$I$26,6,FALSE)*VLOOKUP($B$3,'Main Calcs'!$I$3:$L$7,4,FALSE)),T33) -> 0.03 | U39: =IF($R$2,(VLOOKUP($U$16,$A$24:$I$26,7,FALSE)*VLOOKUP($B$3,'Main Calcs'!$I$3:$L$7,4,FALSE)),U33) -> 0.025
I40: 5 | J40: 3.69 | K40: 2.65 | L40: 3.44 | N40: 1.595 | O40: -1.325 | Q40: 1.595 | R40: -1.325 | T40: =IF($R$2,(VLOOKUP($U$16,$A$24:$I$26,8,FALSE)*VLOOKUP($B$3,'Main Calcs'!$I$3:$L$7,4,FALSE)),T34) -> 0.03 | U40: =IF($R$2,(VLOOKUP($U$16,$A$24:$I$26,9,FALSE)*VLOOKUP($B$3,'Main Calcs'!$I$3:$L$7,4,FALSE)),U34) -> -0.16
I41: 1 | J41: 3.69 | K41: 2.65 | L41: 3.44 | N41: 5.035 | O41: -1.325 | Q41: 5.035 | R41: -1.325 | T41: =IF($R$2,(VLOOKUP($U$16,$A$24:$I$26,2,FALSE)*VLOOKUP($B$3,'Main Calcs'!$I$3:$L$7,4,FALSE)),T35) -> -0.025 | U41: =IF($R$2,(VLOOKUP($U$16,$A$24:$I$26,3,FALSE)*VLOOKUP($B$3,'Main Calcs'!$I$3:$L$7,4,FALSE)),U35) -> -0.16
I42: 2 | J42: 3.69 | K42: 2.65 | L42: 3.44 | N42: 5.035 | O42: 1.325 | Q42: 5.035 | R42: 1.325
I43: 3 | J43: 3.69 | K43: 2.65 | L43: 3.44 | N43: 8.725 | O43: 1.325 | Q43: 8.725 | R43: 1.325 | T43: =Q36 -> 1.595 | U43: -1.325
I44: 4 | J44: 3.69 | K44: 2.65 | L44: 3.44 | N44: 8.725 | O44: -1.325 | Q44: 8.725 | R44: -1.325 | T44: 1.595 | U44: 1.325
I45: 5 | J45: 3.69 | K45: 2.65 | L45: 3.44 | N45: 5.035 | O45: -1.325 | Q45: 5.035 | R45: -1.325 | T45: 5.285 | U45: 1.325
I46: 1 | J46: 3.69 | K46: 2.65 | L46: 3.44 | N46: 8.475 | O46: -1.325 | Q46: 5.035 | R46: -1.325 | T46: 5.285 | U46: -1.325
I47: 2 | J47: 3.69 | K47: 2.65 | L47: 3.44 | N47: 8.475 | O47: 1.325 | Q47: 5.035 | R47: 1.325 | T47: 1.595 | U47: -1.325
I48: 3 | J48: 3.69 | K48: 2.65 | L48: 3.44 | N48: 12.165 | O48: 1.325 | Q48: 8.725 | R48: 1.325
I49: 4 | J49: 3.69 | K49: 2.65 | L49: 3.44 | N49: 12.165 | O49: -1.325 | Q49: 8.725 | R49: -1.325 | T49: =IF($R$2,T43-$T$31+(VLOOKUP($U$16,$A$24:$I$26,2,FALSE)*VLOOKUP($B$3,'Main Calcs'!$I$3:$L$7,4,FALSE)),T37) -> 3.415 | U49: =IF($R$2,(VLOOKUP($U$16,$A$24:$I$26,3,FALSE)*VLOOKUP($B$3,'Main Calcs'!$I$3:$L$7,4,FALSE)),U37) -> -0.16
I50: 5 | J50: 3.69 | K50: 2.65 | L50: 3.44 | N50: 8.475 | O50: -1.325 | Q50: 5.035 | R50: -1.325 | T50: =IF($R$2,T44-$T$32+(VLOOKUP($U$16,$A$24:$I$26,4,FALSE)*VLOOKUP($B$3,'Main Calcs'!$I$3:$L$7,4,FALSE)),T38) -> 3.415 | U50: =IF($R$2,(VLOOKUP($U$16,$A$24:$I$26,5,FALSE)*VLOOKUP($B$3,'Main Calcs'!$I$3:$L$7,4,FALSE)),U38) -> 0.025
I51: 1 | J51: 3.69 | K51: 2.65 | L51: 3.44 | N51: 11.915 | O51: -1.325 | Q51: 5.035 | R51: -1.325 | T51: =IF($R$2,T45-$T$33+(VLOOKUP($U$16,$A$24:$I$26,6,FALSE)*VLOOKUP($B$3,'Main Calcs'!$I$3:$L$7,4,FALSE)),T39) -> 3.47 | U51: =IF($R$2,(VLOOKUP($U$16,$A$24:$I$26,7,FALSE)*VLOOKUP($B$3,'Main Calcs'!$I$3:$L$7,4,FALSE)),U39) -> 0.025
I52: 2 | J52: 3.69 | K52: 2.65 | L52: 3.44 | N52: 11.915 | O52: 1.325 | Q52: 5.035 | R52: 1.325 | T52: =IF($R$2,T46-$T$34+(VLOOKUP($U$16,$A$24:$I$26,8,FALSE)*VLOOKUP($B$3,'Main Calcs'!$I$3:$L$7,4,FALSE)),T40) -> 3.47 | U52: =IF($R$2,(VLOOKUP($U$16,$A$24:$I$26,9,FALSE)*VLOOKUP($B$3,'Main Calcs'!$I$3:$L$7,4,FALSE)),U40) -> -0.16
I53: 3 | J53: 3.69 | K53: 2.65 | L53: 3.44 | N53: 15.605 | O53: 1.325 | Q53: 8.725 | R53: 1.325 | T53: =IF($R$2,T47-$T$35+(VLOOKUP($U$16,$A$24:$I$26,2,FALSE)*VLOOKUP($B$3,'Main Calcs'!$I$3:$L$7,4,FALSE)),T41) -> 3.415 | U53: =IF($R$2,(VLOOKUP($U$16,$A$24:$I$26,3,FALSE)*VLOOKUP($B$3,'Main Calcs'!$I$3:$L$7,4,FALSE)),U41) -> -0.16
I54: 4 | J54: 3.69 | K54: 2.65 | L54: 3.44 | N54: 15.605 | O54: -1.325 | Q54: 8.725 | R54: -1.325
I55: 5 | J55: 3.69 | K55: 2.65 | L55: 3.44 | N55: 11.915 | O55: -1.325 | Q55: 5.035 | R55: -1.325 | T55: =Q41 -> 5.035 | U55: -1.325
I56: 1 | J56: 3.69 | K56: 2.65 | L56: 3.44 | N56: 15.355 | O56: -1.325 | Q56: 5.035 | R56: -1.325 | T56: 5.035 | U56: 1.325
I57: 2 | J57: 3.69 | K57: 2.65 | L57: 3.44 | N57: 15.355 | O57: 1.325 | Q57: 5.035 | R57: 1.325 | T57: 8.725 | U57: 1.325
I58: 3 | J58: 3.69 | K58: 2.65 | L58: 3.44 | N58: 19.045 | O58: 1.325 | Q58: 8.725 | R58: 1.325 | T58: 8.725 | U58: -1.325
I59: 4 | J59: 3.69 | K59: 2.65 | L59: 3.44 | N59: 19.045 | O59: -1.325 | Q59: 8.725 | R59: -1.325 | T59: 5.035 | U59: -1.325
I60: 5 | J60: 3.69 | K60: 2.65 | L60: 3.44 | N60: 15.355 | O60: -1.325 | Q60: 5.035 | R60: -1.325
I61: 1 | J61: 3.69 | K61: 2.65 | L61: 3.44 | N61: 18.795 | O61: -1.325 | Q61: 5.035 | R61: -1.325 | T61: =IF($R$2,T55-$T$31+(VLOOKUP($U$16,$A$24:$I$26,2,FALSE)*VLOOKUP($B$3,'Main Calcs'!$I$3:$L$7,4,FALSE)),T49) -> 6.855 | U61: =IF($R$2,(VLOOKUP($U$16,$A$24:$I$26,3,FALSE)*VLOOKUP($B$3,'Main Calcs'!$I$3:$L$7,4,FALSE)),U49) -> -0.16
I62: 2 | J62: 3.69 | K62: 2.65 | L62: 3.44 | N62: =N57+L62 -> 18.795 | O62: 1.325 | Q62: 5.035 | R62: 1.325 | T62: =IF($R$2,T56-$T$32+(VLOOKUP($U$16,$A$24:$I$26,4,FALSE)*VLOOKUP($B$3,'Main Calcs'!$I$3:$L$7,4,FALSE)),T50) -> 6.855 | U62: =IF($R$2,(VLOOKUP($U$16,$A$24:$I$26,5,FALSE)*VLOOKUP($B$3,'Main Calcs'!$I$3:$L$7,4,FALSE)),U50) -> 0.025
I63: 3 | J63: 3.69 | K63: 2.65 | L63: 3.44 | N63: 22.485 | O63: 1.325 | Q63: 8.725 | R63: 1.325 | T63: =IF($R$2,T57-$T$33+(VLOOKUP($U$16,$A$24:$I$26,6,FALSE)*VLOOKUP($B$3,'Main Calcs'!$I$3:$L$7,4,FALSE)),T51) -> 6.91 | U63: =IF($R$2,(VLOOKUP($U$16,$A$24:$I$26,7,FALSE)*VLOOKUP($B$3,'Main Calcs'!$I$3:$L$7,4,FALSE)),U51) -> 0.025
I64: 4 | J64: 3.69 | K64: 2.65 | L64: 3.44 | N64: 22.485 | O64: -1.325 | Q64: 8.725 | R64: -1.325 | T64: =IF($R$2,T58-$T$34+(VLOOKUP($U$16,$A$24:$I$26,8,FALSE)*VLOOKUP($B$3,'Main Calcs'!$I$3:$L$7,4,FALSE)),T52) -> 6.91 | U64: =IF($R$2,(VLOOKUP($U$16,$A$24:$I$26,9,FALSE)*VLOOKUP($B$3,'Main Calcs'!$I$3:$L$7,4,FALSE)),U52) -> -0.16
I65: 5 | J65: 3.69 | K65: 2.65 | L65: 3.44 | N65: 18.795 | O65: -1.325 | Q65: 5.035 | R65: -1.325 | T65: =IF($R$2,T59-$T$35+(VLOOKUP($U$16,$A$24:$I$26,2,FALSE)*VLOOKUP($B$3,'Main Calcs'!$I$3:$L$7,4,FALSE)),T53) -> 6.855 | U65: =IF($R$2,(VLOOKUP($U$16,$A$24:$I$26,3,FALSE)*VLOOKUP($B$3,'Main Calcs'!$I$3:$L$7,4,FALSE)),U53) -> -0.16
I66: 1 | J66: 3.69 | K66: 2.65 | L66: 3.44 | N66: 22.235 | O66: -1.325 | Q66: 5.035 | R66: -1.325
I67: 2 | J67: 3.69 | K67: 2.65 | L67: 3.44 | N67: 22.235 | O67: 1.325 | Q67: 5.035 | R67: 1.325 | T67: =Q46 -> 5.035 | U67: -1.325
I68: 3 | J68: 3.69 | K68: 2.65 | L68: 3.44 | N68: 25.925 | O68: 1.325 | Q68: 8.725 | R68: 1.325 | T68: 5.035 | U68: 1.325
I69: 4 | J69: 3.69 | K69: 2.65 | L69: 3.44 | N69: 25.925 | O69: -1.325 | Q69: 8.725 | R69: -1.325 | T69: 8.725 | U69: 1.325
I70: 5 | J70: 3.69 | K70: 2.65 | L70: 3.44 | N70: 22.235 | O70: -1.325 | Q70: 5.035 | R70: -1.325 | T70: 8.725 | U70: -1.325
T71: 5.035 | U71: -1.325
T73: =IF($R$2,T67-$T$31+(VLOOKUP($U$16,$A$24:$I$26,2,FALSE)*VLOOKUP($B$3,'Main Calcs'!$I$3:$L$7,4,FALSE)),T61) -> 6.855 | U73: =IF($R$2,(VLOOKUP($U$16,$A$24:$I$26,3,FALSE)*VLOOKUP($B$3,'Main Calcs'!$I$3:$L$7,4,FALSE)),U61) -> -0.16
T74: =IF($R$2,T68-$T$32+(VLOOKUP($U$16,$A$24:$I$26,4,FALSE)*VLOOKUP($B$3,'Main Calcs'!$I$3:$L$7,4,FALSE)),T62) -> 6.855 | U74: =IF($R$2,(VLOOKUP($U$16,$A$24:$I$26,5,FALSE)*VLOOKUP($B$3,'Main Calcs'!$I$3:$L$7,4,FALSE)),U62) -> 0.025
T75: =IF($R$2,T69-$T$33+(VLOOKUP($U$16,$A$24:$I$26,6,FALSE)*VLOOKUP($B$3,'Main Calcs'!$I$3:$L$7,4,FALSE)),T63) -> 6.91 | U75: =IF($R$2,(VLOOKUP($U$16,$A$24:$I$26,7,FALSE)*VLOOKUP($B$3,'Main Calcs'!$I$3:$L$7,4,FALSE)),U63) -> 0.025
T76: =IF($R$2,T70-$T$34+(VLOOKUP($U$16,$A$24:$I$26,8,FALSE)*VLOOKUP($B$3,'Main Calcs'!$I$3:$L$7,4,FALSE)),T64) -> 6.91 | U76: =IF($R$2,(VLOOKUP($U$16,$A$24:$I$26,9,FALSE)*VLOOKUP($B$3,'Main Calcs'!$I$3:$L$7,4,FALSE)),U64) -> -0.16
T77: =IF($R$2,T71-$T$35+(VLOOKUP($U$16,$A$24:$I$26,2,FALSE)*VLOOKUP($B$3,'Main Calcs'!$I$3:$L$7,4,FALSE)),T65) -> 6.855 | U77: =IF($R$2,(VLOOKUP($U$16,$A$24:$I$26,3,FALSE)*VLOOKUP($B$3,'Main Calcs'!$I$3:$L$7,4,FALSE)),U65) -> -0.16
T79: =Q51 -> 5.035 | U79: -1.325
T80: 5.035 | U80: 1.325
T81: 8.725 | U81: 1.325
T82: 8.725 | U82: -1.325
T83: 5.035 | U83: -1.325
T85: =IF($R$2,T79-$T$31+(VLOOKUP($U$16,$A$24:$I$26,2,FALSE)*VLOOKUP($B$3,'Main Calcs'!$I$3:$L$7,4,FALSE)),T73) -> 6.855 | U85: =IF($R$2,(VLOOKUP($U$16,$A$24:$I$26,3,FALSE)*VLOOKUP($B$3,'Main Calcs'!$I$3:$L$7,4,FALSE)),U73) -> -0.16
T86: =IF($R$2,T80-$T$32+(VLOOKUP($U$16,$A$24:$I$26,4,FALSE)*VLOOKUP($B$3,'Main Calcs'!$I$3:$L$7,4,FALSE)),T74) -> 6.855 | U86: =IF($R$2,(VLOOKUP($U$16,$A$24:$I$26,5,FALSE)*VLOOKUP($B$3,'Main Calcs'!$I$3:$L$7,4,FALSE)),U74) -> 0.025
T87: =IF($R$2,T81-$T$33+(VLOOKUP($U$16,$A$24:$I$26,6,FALSE)*VLOOKUP($B$3,'Main Calcs'!$I$3:$L$7,4,FALSE)),T75) -> 6.91 | U87: =IF($R$2,(VLOOKUP($U$16,$A$24:$I$26,7,FALSE)*VLOOKUP($B$3,'Main Calcs'!$I$3:$L$7,4,FALSE)),U75) -> 0.025
T88: =IF($R$2,T82-$T$34+(VLOOKUP($U$16,$A$24:$I$26,8,FALSE)*VLOOKUP($B$3,'Main Calcs'!$I$3:$L$7,4,FALSE)),T76) -> 6.91 | U88: =IF($R$2,(VLOOKUP($U$16,$A$24:$I$26,9,FALSE)*VLOOKUP($B$3,'Main Calcs'!$I$3:$L$7,4,FALSE)),U76) -> -0.16
T89: =IF($R$2,T83-$T$35+(VLOOKUP($U$16,$A$24:$I$26,2,FALSE)*VLOOKUP($B$3,'Main Calcs'!$I$3:$L$7,4,FALSE)),T77) -> 6.855 | U89: =IF($R$2,(VLOOKUP($U$16,$A$24:$I$26,3,FALSE)*VLOOKUP($B$3,'Main Calcs'!$I$3:$L$7,4,FALSE)),U77) -> -0.16
T91: =Q56 -> 5.035 | U91: -1.325
T92: 5.035 | U92: 1.325
T93: 8.725 | U93: 1.325
T94: 8.725 | U94: -1.325
T95: 5.035 | U95: -1.325
T97: =IF($R$2,T91-$T$31+(VLOOKUP($U$16,$A$24:$I$26,2,FALSE)*VLOOKUP($B$3,'Main Calcs'!$I$3:$L$7,4,FALSE)),T85) -> 6.855 | U97: =IF($R$2,(VLOOKUP($U$16,$A$24:$I$26,3,FALSE)*VLOOKUP($B$3,'Main Calcs'!$I$3:$L$7,4,FALSE)),U85) -> -0.16
T98: =IF($R$2,T92-$T$32+(VLOOKUP($U$16,$A$24:$I$26,4,FALSE)*VLOOKUP($B$3,'Main Calcs'!$I$3:$L$7,4,FALSE)),T86) -> 6.855 | U98: =IF($R$2,(VLOOKUP($U$16,$A$24:$I$26,5,FALSE)*VLOOKUP($B$3,'Main Calcs'!$I$3:$L$7,4,FALSE)),U86) -> 0.025
T99: =IF($R$2,T93-$T$33+(VLOOKUP($U$16,$A$24:$I$26,6,FALSE)*VLOOKUP($B$3,'Main Calcs'!$I$3:$L$7,4,FALSE)),T87) -> 6.91 | U99: =IF($R$2,(VLOOKUP($U$16,$A$24:$I$26,7,FALSE)*VLOOKUP($B$3,'Main Calcs'!$I$3:$L$7,4,FALSE)),U87) -> 0.025
T100: =IF($R$2,T94-$T$34+(VLOOKUP($U$16,$A$24:$I$26,8,FALSE)*VLOOKUP($B$3,'Main Calcs'!$I$3:$L$7,4,FALSE)),T88) -> 6.91 | U100: =IF($R$2,(VLOOKUP($U$16,$A$24:$I$26,9,FALSE)*VLOOKUP($B$3,'Main Calcs'!$I$3:$L$7,4,FALSE)),U88) -> -0.16
T101: =IF($R$2,T95-$T$35+(VLOOKUP($U$16,$A$24:$I$26,2,FALSE)*VLOOKUP($B$3,'Main Calcs'!$I$3:$L$7,4,FALSE)),T89) -> 6.855 | U101: =IF($R$2,(VLOOKUP($U$16,$A$24:$I$26,3,FALSE)*VLOOKUP($B$3,'Main Calcs'!$I$3:$L$7,4,FALSE)),U89) -> -0.16
T103: =Q61 -> 5.035 | U103: -1.325
T104: 5.035 | U104: 1.325
T105: 8.725 | U105: 1.325
T106: 8.725 | U106: -1.325
T107: 5.035 | U107: -1.325
T109: =IF($R$2,T103-$T$31+(VLOOKUP($U$16,$A$24:$I$26,2,FALSE)*VLOOKUP($B$3,'Main Calcs'!$I$3:$L$7,4,FALSE)),T97) -> 6.855 | U109: =IF($R$2,(VLOOKUP($U$16,$A$24:$I$26,3,FALSE)*VLOOKUP($B$3,'Main Calcs'!$I$3:$L$7,4,FALSE)),U97) -> -0.16
T110: =IF($R$2,T104-$T$32+(VLOOKUP($U$16,$A$24:$I$26,4,FALSE)*VLOOKUP($B$3,'Main Calcs'!$I$3:$L$7,4,FALSE)),T98) -> 6.855 | U110: =IF($R$2,(VLOOKUP($U$16,$A$24:$I$26,5,FALSE)*VLOOKUP($B$3,'Main Calcs'!$I$3:$L$7,4,FALSE)),U98) -> 0.025
T111: =IF($R$2,T105-$T$33+(VLOOKUP($U$16,$A$24:$I$26,6,FALSE)*VLOOKUP($B$3,'Main Calcs'!$I$3:$L$7,4,FALSE)),T99) -> 6.91 | U111: =IF($R$2,(VLOOKUP($U$16,$A$24:$I$26,7,FALSE)*VLOOKUP($B$3,'Main Calcs'!$I$3:$L$7,4,FALSE)),U99) -> 0.025
T112: =IF($R$2,T106-$T$34+(VLOOKUP($U$16,$A$24:$I$26,8,FALSE)*VLOOKUP($B$3,'Main Calcs'!$I$3:$L$7,4,FALSE)),T100) -> 6.91 | U112: =IF($R$2,(VLOOKUP($U$16,$A$24:$I$26,9,FALSE)*VLOOKUP($B$3,'Main Calcs'!$I$3:$L$7,4,FALSE)),U100) -> -0.16
T113: =IF($R$2,T107-$T$35+(VLOOKUP($U$16,$A$24:$I$26,2,FALSE)*VLOOKUP($B$3,'Main Calcs'!$I$3:$L$7,4,FALSE)),T101) -> 6.855 | U113: =IF($R$2,(VLOOKUP($U$16,$A$24:$I$26,3,FALSE)*VLOOKUP($B$3,'Main Calcs'!$I$3:$L$7,4,FALSE)),U101) -> -0.16
T115: =Q66 -> 5.035 | U115: -1.325
T116: 5.035 | U116: 1.325
T117: 8.725 | U117: 1.325
T118: 8.725 | U118: -1.325
T119: 5.035 | U119: -1.325
T121: =IF($R$2,T115-$T$31+(VLOOKUP($U$16,$A$24:$I$26,2,FALSE)*VLOOKUP($B$3,'Main Calcs'!$I$3:$L$7,4,FALSE)),T109) -> 6.855 | U121: =IF($R$2,(VLOOKUP($U$16,$A$24:$I$26,3,FALSE)*VLOOKUP($B$3,'Main Calcs'!$I$3:$L$7,4,FALSE)),U109) -> -0.16
T122: =IF($R$2,T116-$T$32+(VLOOKUP($U$16,$A$24:$I$26,4,FALSE)*VLOOKUP($B$3,'Main Calcs'!$I$3:$L$7,4,FALSE)),T110) -> 6.855 | U122: =IF($R$2,(VLOOKUP($U$16,$A$24:$I$26,5,FALSE)*VLOOKUP($B$3,'Main Calcs'!$I$3:$L$7,4,FALSE)),U110) -> 0.025
T123: =IF($R$2,T117-$T$33+(VLOOKUP($U$16,$A$24:$I$26,6,FALSE)*VLOOKUP($B$3,'Main Calcs'!$I$3:$L$7,4,FALSE)),T111) -> 6.91 | U123: =IF($R$2,(VLOOKUP($U$16,$A$24:$I$26,7,FALSE)*VLOOKUP($B$3,'Main Calcs'!$I$3:$L$7,4,FALSE)),U111) -> 0.025
T124: =IF($R$2,T118-$T$34+(VLOOKUP($U$16,$A$24:$I$26,8,FALSE)*VLOOKUP($B$3,'Main Calcs'!$I$3:$L$7,4,FALSE)),T112) -> 6.91 | U124: =IF($R$2,(VLOOKUP($U$16,$A$24:$I$26,9,FALSE)*VLOOKUP($B$3,'Main Calcs'!$I$3:$L$7,4,FALSE)),U112) -> -0.16
T125: =IF($R$2,T119-$T$35+(VLOOKUP($U$16,$A$24:$I$26,2,FALSE)*VLOOKUP($B$3,'Main Calcs'!$I$3:$L$7,4,FALSE)),T113) -> 6.855 | U125: =IF($R$2,(VLOOKUP($U$16,$A$24:$I$26,3,FALSE)*VLOOKUP($B$3,'Main Calcs'!$I$3:$L$7,4,FALSE)),U113) -> -0.16
T127: =IF(AND($Q$2,$R$2),VLOOKUP("Square"&$M$24,$A$24:$I$28,2,FALSE)*VLOOKUP($B$3,'Main Calcs'!$I$3:$L$7,4,FALSE),T121) -> 0 | U127: =IF(AND($Q$2,$R$2),VLOOKUP("Square"&$M$24,$A$24:$I$28,3,FALSE)*VLOOKUP($B$3,'Main Calcs'!$I$3:$L$7,4,FALSE),U121) -> 0
T128: =IF(AND($Q$2,$R$2),VLOOKUP("Square"&$M$24,$A$24:$I$28,4,FALSE)*VLOOKUP($B$3,'Main Calcs'!$I$3:$L$7,4,FALSE),T122) -> 0 | U128: =IF(AND($Q$2,$R$2),VLOOKUP("Square"&$M$24,$A$24:$I$28,5,FALSE)*VLOOKUP($B$3,'Main Calcs'!$I$3:$L$7,4,FALSE),U122) -> 1
T129: =IF(AND($Q$2,$R$2),VLOOKUP("Square"&$M$24,$A$24:$I$28,6,FALSE)*VLOOKUP($B$3,'Main Calcs'!$I$3:$L$7,4,FALSE),T123) -> 1 | U129: =IF(AND($Q$2,$R$2),VLOOKUP("Square"&$M$24,$A$24:$I$28,7,FALSE)*VLOOKUP($B$3,'Main Calcs'!$I$3:$L$7,4,FALSE),U123) -> 1
T130: =IF(AND($Q$2,$R$2),VLOOKUP("Square"&$M$24,$A$24:$I$28,8,FALSE)*VLOOKUP($B$3,'Main Calcs'!$I$3:$L$7,4,FALSE),T124) -> 1 | U130: =IF(AND($Q$2,$R$2),VLOOKUP("Square"&$M$24,$A$24:$I$28,9,FALSE)*VLOOKUP($B$3,'Main Calcs'!$I$3:$L$7,4,FALSE),U124) -> 0
T131: =IF(AND($Q$2,$R$2),VLOOKUP("Square"&$M$24,$A$24:$I$28,2,FALSE)*VLOOKUP($B$3,'Main Calcs'!$I$3:$L$7,4,FALSE),T125) -> 0 | U131: =IF(AND($Q$2,$R$2),VLOOKUP("Square"&$M$24,$A$24:$I$28,3,FALSE)*VLOOKUP($B$3,'Main Calcs'!$I$3:$L$7,4,FALSE),U125) -> 0

Sheet Multi-Unit (Array) Stuff (hidden)
A1: Old: | B1: metres | I1: Update Values: | J1: TRUE | P1: UseAuto: | Q1: 1 | T1: Height Range of Selected Device Series
A2: New: | B2: metres | I2: AutoSelectDevice: | J2: TRUE | M2: Positions | P2: Enable Sq | Q2: TRUE | R2: =IF(OR('Multi-Unit (Array) Calc'!$D$11="",'Multi-Unit (Array) Calc'!$G$11="",'Multi-Unit (Array) Calc'!$D$19="",'Multi-Unit (Array) Calc'!$G$21="",'Multi-Unit (Array) Calc'!$D$21=""),FALSE,IF('Multi-Unit (Array) Stuff'!$B$13,IF(Y18>32,FALSE,TRUE),FALSE)) -> TRUE | U2: Absolute Min | V2: Min | W2: Max | X2: Absolute Max
A3: Measurement | B3: =INDIRECT("'Multi-Unit (Array) Calc'!" & M3&N3) -> metres | C3: =VLOOKUP(B3,'Main Calcs'!$I$3:$M$7,2,FALSE) -> m | L3: Measurement | M3: D | N3: =CELL("row",INDEX('Multi-Unit (Array) Calc'!$C$1:$C$75,MATCH(VLOOKUP("*"&L3&"*",'Multi-Unit (Array) Calc'!$C$1:$C$75,1,FALSE),'Multi-Unit (Array) Calc'!$C$1:$C$75,0))) -> 5 | T3: metres | U3: =IF($B$15="Auto",VLOOKUP($B$15,'Main Calcs'!$AF$30:$AJ$33,2,FALSE),IF($B$16="Auto",VLOOKUP($B$15,'Main Calcs'!$AF$30:$AJ$33,2,FALSE),IF($B$16="",VLOOKUP($B$15,'Main Calcs'!$AF$30:$AJ$33,2,FALSE),VLOOKUP($B$16,'Main Calcs'!$C$30:$G$37,2,FALSE)))) ->  | V3: =IF($B$15="Auto",VLOOKUP($B$15,'Main Calcs'!$AF$30:$AJ$33,3,FALSE),IF($B$16="Auto",VLOOKUP($B$15,'Main Calcs'!$AF$30:$AJ$33,3,FALSE),IF($B$16="",VLOOKUP($B$15,'Main Calcs'!$AF$30:$AJ$33,3,FALSE),VLOOKUP($B$16,'Main Calcs'!$C$30:$G$37,3,FALSE)))) -> 2 | W3: =IF($B$15="Auto",VLOOKUP($B$15,'Main Calcs'!$AF$30:$AJ$33,4,FALSE),IF($B$16="Auto",VLOOKUP($B$15,'Main Calcs'!$AF$30:$AJ$33,4,FALSE),IF($B$16="",VLOOKUP($B$15,'Main Calcs'!$AF$30:$AJ$33,4,FALSE),VLOOKUP($B$16,'Main Calcs'!$C$30:$G$37,4,FALSE)))) -> 16 | X3: =IF($B$15="Auto",VLOOKUP($B$15,'Main Calcs'!$AF$30:$AJ$33,5,FALSE),IF($B$16="Auto",VLOOKUP($B$15,'Main Calcs'!$AF$30:$AJ$33,5,FALSE),IF($B$16="",VLOOKUP($B$15,'Main Calcs'!$AF$30:$AJ$33,5,FALSE),VLOOKUP($B$16,'Main Calcs'!$C$30:$G$37,5,FALSE)))) -> 
B4: Local Measurements | D4: Metres | I4: Valid Recommended Height | J4: Valid Extended height | L4: Height: | M4: D | N4: =CELL("row",INDEX('Multi-Unit (Array) Calc'!$C$1:$C$75,MATCH(L4,'Multi-Unit (Array) Calc'!$C$1:$C$75,0))) -> 19 | T4: =B3 -> metres | U4: =IF(OR(U3="",U3=0),"",U3*VLOOKUP($B$3,'Main Calcs'!$I$3:$L$7,4,FALSE)) ->  | V4: =IF(OR(V3="",V3=0),"",V3*VLOOKUP($B$3,'Main Calcs'!$I$3:$L$7,4,FALSE)) -> 2 | W4: =IF(OR(W3="",W3=0),"",W3*VLOOKUP($B$3,'Main Calcs'!$I$3:$L$7,4,FALSE)) -> 16 | X4: =IF(OR(X3="",X3=0),"",X3*VLOOKUP($B$3,'Main Calcs'!$I$3:$L$7,4,FALSE)) ->  | AG4: Plot Coordinates
A5: Height: | B5: =INDIRECT("'Multi-Unit (Array) Calc'!" &M4&N4) -> 3.5 | C5: =$C$3 & " → =" -> m → = | D5: =FLOOR(B5*VLOOKUP($B$3,'Main Calcs'!$I$3:$L$7,3,FALSE),0.01) -> 3.5 | E5: m | I5: =IF(AND($B$5>=V5,$B$5<=W5),1,0) -> 1 | J5: =IF(AND($B$5>=U5,IF(X5<>"",$B$5<=X5,$B$5<=W5)),1,0) -> 0 | L5: Width: | M5: D | N5: =CELL("row",INDEX('Multi-Unit (Array) Calc'!$C$1:$C$75,MATCH(L5,'Multi-Unit (Array) Calc'!$C$1:$C$75,0))) -> 21 | T5: output | U5: =IF(U4<>"",FLOOR(U4,0.01),"") ->  | V5: =IF(V4<>"",FLOOR(V4,0.01),"") -> 2 | W5: 16 | AB5: Width | AC5: Depth | AG5: X | AH5: Y
A6: Width | B6: =INDIRECT("'Multi-Unit (Array) Calc'!" &M5&N5) -> 6 | C6: =$C$3 & " → =" -> m → = | D6: =FLOOR(B6*VLOOKUP($B$3,'Main Calcs'!$I$3:$L$7,3,FALSE),0.01) -> 6 | E6: m | L6: Depth: | M6: G | N6: =CELL("row",INDEX('Multi-Unit (Array) Calc'!$F$1:$F$75,MATCH(L6,'Multi-Unit (Array) Calc'!$F$1:$F$75,0))) -> 21 | T6: Output | U6: =IF(ISERROR(U5),"",IF(U5<>"",U5&$C$3,"")) ->  | V6: =IF(ISERROR(V5),"",IF(V5<>"",V5&$C$3,"")) -> 2m | W6: 16m | AB6: =B10 -> 3.69 | AC6: =B11 -> 2.65 | AE6: =ROW()-5 -> 1 | AG6: =AB6/2*-1 -> -1.845 | AH6: =AC6/2*-1 -> -1.325
A7: Depth: | B7: =INDIRECT("'Multi-Unit (Array) Calc'!" &M6&N6) -> 5 | C7: m → = | D7: =FLOOR(B7*VLOOKUP($B$3,'Main Calcs'!$I$3:$L$7,3,FALSE),0.01) -> 5 | E7: m | L7: Device: | M7: D | N7: =CELL("row",INDEX('Multi-Unit (Array) Calc'!$C$1:$C$75,MATCH("*" &L7,'Multi-Unit (Array) Calc'!$C$1:$C$75,0))) -> 11 | AE7: =ROW()-5 -> 2 | AG7: =AB6/2*-1 -> -1.845 | AH7: =AC6/2 -> 1.325
A8: Total Width: | B8: =B6 -> 6 | C8: m → = | D8: =FLOOR(B8*VLOOKUP($B$3,'Main Calcs'!$I$3:$L$7,3,FALSE),0.01) -> 6 | E8: m | I8: Min All (m) | J8: Max All (m) | L8: Lens: | M8: G | N8: =CELL("row",INDEX('Multi-Unit (Array) Calc'!$F$1:$F$75,MATCH(L8,'Multi-Unit (Array) Calc'!$F$1:$F$75,0))) -> 11 | T8: Width: | U8: =B8 -> 6 | AA8: Number of units required | AB8: 3 | AC8: =W10 -> 2 | AE8: 3 | AG8: =AB6/2 -> 1.845 | AH8: =AC6/2 -> 1.325
A9: Total Depth: | B9: =B7 -> 5 | C9: m → = | D9: =FLOOR(B9*VLOOKUP($B$3,'Main Calcs'!$I$3:$L$7,3,FALSE),0.01) -> 5 | E9: m | I9: =MIN('Main Calcs'!D30:E37) -> 2 | J9: =MAX('Main Calcs'!F30:G37) -> 16 | T9: Device | U9: =Stuff!BR24 -> Vector | V9: Lens | W9: =Stuff!BS24 -> 75° | X9: =IF(OR($E$25="",$H$25="",$H$25=0),"",IF($E$25="Auto",VLOOKUP($E$25,'Main Calcs'!$AF$30:$AJ$33,5,FALSE),IF($H$25="Auto",VLOOKUP($E$25,'Main Calcs'!$AF$30:$AJ$33,5,FALSE),VLOOKUP($H$25,'Main Calcs'!$C$30:$G$37,5,FALSE)*VLOOKUP($E$17,'Main Calcs'!$I$3:$L$7,4,FALSE) & O15))) ->  | AA9: Seperation | AB9: =U12 -> 3.44 | AC9: =W12 -> 2.4 | AE9: 4 | AG9: =AB6/2 -> 1.845 | AH9: =AC6/2*-1 -> -1.325
A10: Field of View (width): | B10: =FLOOR(D10*VLOOKUP(B3,'Main Calcs'!$I$3:$L$7,4,FALSE),0.01) -> 3.69 | C10: m → = | D10: =VLOOKUP($W$9,'Main Calcs'!$C$30:$Q$37,10,FALSE)*D5+VLOOKUP($W$9,'Main Calcs'!$C$30:$Q$37,11,FALSE) -> 3.695829118 | E10: m | T10: No Of Units | U10: =Stuff!BT24 -> 2 | V10: x | W10: =Stuff!BU24 -> 2 | X10: = | Y10: =U10*W10 -> 4 | AA10: Total devices: | AB10: =AB8*AC8 -> 6 | AE10: 5 | AG10: =AG6 -> -1.845 | AH10: =AC6/2*-1 -> -1.325
A11: Field of View (depth): | B11: =FLOOR(D11*VLOOKUP(B3,'Main Calcs'!$I$3:$L$7,4,FALSE),0.01) -> 2.65 | C11: m → = | D11: =VLOOKUP($W$9,'Main Calcs'!$C$30:$Q$37,12,FALSE)*D5+VLOOKUP($W$9,'Main Calcs'!$C$30:$Q$37,13,FALSE) -> 2.651645205 | E11: m | I11: ="Min All (" & VLOOKUP('Field Of View Calc'!$D$5,'Main Calcs'!$I$3:$M$7,2,FALSE) & ")" -> Min All (m) | J11: ="Max All (" & VLOOKUP('Field Of View Calc'!$D$5,'Main Calcs'!$I$3:$M$7,2,FALSE) &" )" -> Max All (m ) | T11: Total | U11: =FLOOR(Stuff!BZ24*VLOOKUP($B$3,'Main Calcs'!$I$3:$L$7,4,FALSE),0.01) -> 7.14 | W11: =FLOOR(Stuff!CD24*VLOOKUP($B$3,'Main Calcs'!$I$3:$L$7,4,FALSE),0.01) -> 5.05 | AE11: 6 | AG11: =IF($AB$8>1,AG6+AB9,"") -> 1.595 | AH11: =IF($AB$8>1,AH6,"") -> -1.325
A12: Field of View (width): | I12: =FLOOR(I9*VLOOKUP($B$3,'Main Calcs'!$I$3:$L$7,4,FALSE),0.01) -> 2 | J12: =FLOOR(J9*VLOOKUP($B$3,'Main Calcs'!$I$3:$L$7,4,FALSE),0.01) -> 16 | T12: Separation (leftright) | U12: =IF(U10>1,IF($C$3="mm",FLOOR(Stuff!BY24*VLOOKUP($B$3,'Main Calcs'!$I$3:$L$7,4,FALSE),1),FLOOR(Stuff!BY24*VLOOKUP($B$3,'Main Calcs'!$I$3:$L$7,4,FALSE),0.01)),"") -> 3.44 | W12: =IF(W10>1,IF($C$3="mm",FLOOR(Stuff!CC24*VLOOKUP($B$3,'Main Calcs'!$I$3:$L$7,4,FALSE),1),FLOOR(Stuff!CC24*VLOOKUP($B$3,'Main Calcs'!$I$3:$L$7,4,FALSE),0.01)),"") -> 2.4 | AE12: 7 | AG12: =IF(AB8>1,AG7+$AB$9,"") -> 1.595 | AH12: =IF($AB$8>1,AH7,"") -> 1.325
A13: FofV OK?: | B13: =OR(I5,J5) -> TRUE | AE13: 8 | AG13: =IF(AB8>1,AG9+$AB$9,"") -> 5.285 | AH13: =IF($AB$8>1,AH8,"") -> 1.325
T14: Total width | U14: =U8 -> 6 | AE14: 9 | AG14: =IF(AB8>1,AG9+$AB$9,"") -> 5.285 | AH14: =IF($AB$8>1,AH9,"") -> -1.325
A15: Device: | B15: =INDIRECT("'Multi-Unit (Array) Calc'!" & M7&N7) -> Auto | AE15: 10 | AG15: =IF(AB8>1,AG10+$AB$9,"") -> 1.595 | AH15: =IF($AB$8>1,AH10,"") -> -1.325
A16: Lens: | B16: =IF(INDIRECT("'Multi-Unit (Array) Calc'!" &M8&N8)<>"",INDIRECT("'Multi-Unit (Array) Calc'!" &M8&N8),"") -> Auto | T16: Device Type: | U16: =U9 -> Vector | V16: Lens: | W16: =W9 -> 75° | AE16: 11 | AG16: =IF(AB8>2,AG11+$AB$9,"") -> 5.035 | AH16: =IF($AB$8>2,AH11,"") -> -1.325
AE17: 12 | AG17: =IF(AB8>2,AG12+$AB$9,"") -> 5.035 | AH17: =IF($AB$8>2,AH12,"") -> 1.325
A18: Distance From Door | T18: Number of Units Required: | U18: =U10 -> 2 | V18: x | W18: =W10 -> 2 | X18: = | Y18: =Y10 -> 4 | AE18: 13 | AG18: =IF(AB8>2,AG13+$AB$9,"") -> 8.725 | AH18: =IF($AB$8>2,AH13,"") -> 1.325
A19: Closest | B19: =FLOOR(D19*VLOOKUP('Multi-Unit (Array) Calc'!$D$5,'Main Calcs'!$I$3:$L$7,4,FALSE),0.01) ->  | D19: =IF('Multi-Unit (Array) Stuff'!$B$13,FLOOR(VLOOKUP('Multi-Unit (Array) Stuff'!$B$16,'Main Calcs'!$T$30:$V$37,2,FALSE),0.01),"") ->  | T19: Separation: | U19: =IF(U12<>"",U12&$C$3,"") -> 3.44m | W19: =IF(W12<>"",W12&$C$3,"") -> 2.4m | AE19: 14 | AG19: =IF(AB8>2,AG14+$AB$9,"") -> 8.725 | AH19: =IF($AB$8>2,AH14,"") -> -1.325
A20: Recommended | B20: =FLOOR(D20*VLOOKUP('Multi-Unit (Array) Calc'!$D$5,'Main Calcs'!$I$3:$L$7,4,FALSE),0.01) -> 0 | D20: =IF('Multi-Unit (Array) Stuff'!$B$13,IF(J20>D21,D21,J20),"") -> 0 | T20: Total Field Of View: | U20: =U11 & $C$3 -> 7.14m | W20: =W11 & $C$3 -> 5.05m | AE20: 15 | AG20: =IF(AB8>2,AG15+$AB$9,"") -> 5.035 | AH20: =IF($AB$8>2,AH15,"") -> -1.325
A21: Farthest | B21: =FLOOR(D21*VLOOKUP('Multi-Unit (Array) Calc'!$D$5,'Main Calcs'!$I$3:$L$7,4,FALSE),0.01) -> 1.32 | D21: =IF('Multi-Unit (Array) Stuff'!$B$13,D11/2,"") -> 1.325822602 | AE21: 16
T22: Total | U22: =IF(B3="inches",FLOOR(U11*W11,0.01) & " " & W22, FLOOR(U11*W11,0.01) & " " & W22) -> 36.05 m² | W22: =VLOOKUP(B3,'Main Calcs'!$I$3:$N$7,6,FALSE) -> m² | AF22: =IF(AE22="","",FLOOR((ROW()-6)/$AC$8,1)+ROW()-5) -> 
B23: X | C23: Y | D23: X | E23: Y | F23: X | G23: Y | H23: X | I23: Y
A24: Outdoor | B24: -0.07 | C24: 0.04 | D24: 0.07 | E24: 0.04 | F24: 0.07 | G24: -0.093 | H24: -0.07 | I24: -0.093 | M24: FALSE | Q24: Shown Coordinates
A25: Gazelle | B25: -0.025 | C25: 0.025 | D25: 0.03 | E25: 0.025 | F25: 0.03 | G25: -0.16 | H25: -0.025 | I25: -0.16 | Q25: X | R25: Y
A26: Vector | B26: -0.025 | C26: -0.16 | D26: -0.025 | E26: 0.025 | F26: 0.03 | G26: 0.025 | H26: 0.03 | I26: -0.16 | L26: rows | M26: columns | N26: left right | O26: up down | T26: Start Col: | U26: =L31 -> -1.845
A27: SquareTRUE | B27: -0.5 | C27: -0.5 | D27: -0.5 | E27: 0.5 | F27: 0.5 | G27: 0.5 | H27: 0.5 | I27: -0.5 | L27: w10 | M27: u10 | N27: u12 | O27: w12
A28: SquareFALSE | B28: 0 | C28: 0 | D28: 0 | E28: 1 | F28: 1 | G28: 1 | H28: 1 | I28: 0 | L28: =$W$10 -> 2 | M28: =$U$10 -> 2 | N28: =IF($U$12="",0.01,$U$12) -> 3.44 | O28: =IF($W$12="",0,$W$12) -> 2.4
L29: Coordinates | Q29: Calculated Coordinates | T29: Edited Coordinates | W29: More Editing | Z29: Coordinates with filler
F30: Row | G30: Columns | H30: Reset | J30: Width | K30: Depth | L30: X | M30: Y | N30: Separation | Q30: X | R30: Y | T30: X | U30: Y | W30: X | X30: Y | Z30: X | AA30: Y
B31: start | C31: -0.5 | D31: -0.5 | F31: 1 | G31: 1 | H31: start | I31: 1 | J31: =$B$10 -> 3.69 | K31: =$B$11 -> 2.65 | L31: =VLOOKUP($H31,$B$31:$D$36,2,FALSE)*J31 -> -1.845 | M31: =VLOOKUP($H31,$B$31:$D$36,3,FALSE)*K31 -> -1.325 | N31: =(G31-1)*$N$28 -> 0 | O31: =(F31-1)*$O$28 -> 0 | Q31: =L31+N31 -> -1.845 | R31: =M31+O31 -> -1.325 | T31: =IF(G31<=$M$28,Q31,"") -> -1.845 | U31: =IF(F31<=$L$28,R31,"") -> -1.325 | W31: =IF(AND(T31<>"",U31<>""),T31,NA()) -> -1.845 | X31: =IF(W31<>"",U31,NA()) -> -1.325 | Z31: =IF(AND(T31<>"",U31<>""),T31,NA()) -> -1.845 | AA31: =IF(W31<>"",U31,NA()) -> -1.325 | AC31: =Z31 -> -1.845 | AD31: =AA31 -> -1.325
B32: up | C32: -0.5 | D32: 0.5 | F32: 1 | G32: 1 | H32: up | I32: 2 | J32: =$B$10 -> 3.69 | K32: =$B$11 -> 2.65 | L32: -1.845 | M32: 1.325 | N32: =(G32-1)*$N$28 -> 0 | O32: =(F32-1)*$O$28 -> 0 | Q32: =L32+N32 -> -1.845 | R32: =M32+O32 -> 1.325 | T32: =IF(G32<=$M$28,Q32,"") -> -1.845 | U32: =IF(F32<=$L$28,R32,"") -> 1.325 | W32: =IF(AND(T32<>"",U32<>""),T32,NA()) -> -1.845 | X32: =IF(W32<>"",U32,NA()) -> 1.325 | Z32: =IF(AND(T32<>"",U32<>""),T32,NA()) -> -1.845 | AA32: =IF(W32<>"",U32,NA()) -> 1.325 | AC32: =Z32 -> -1.845 | AD32: =AA32 -> 1.325
B33: along | C33: 0.5 | D33: 0.5 | F33: 1 | G33: 1 | H33: along | I33: 3 | J33: 3.69 | K33: 2.65 | L33: 1.845 | M33: 1.325 | N33: 0 | O33: 0 | Q33: 1.845 | R33: 1.325 | T33: =IF(G33<=$M$28,Q33,"") -> 1.845 | U33: 1.325 | W33: 1.845 | X33: 1.325 | Z33: 1.845 | AA33: 1.325 | AC33: 1.845 | AD33: 1.325
B34: down | C34: 0.5 | D34: -0.5 | F34: 1 | G34: 1 | H34: down | I34: 4 | J34: 3.69 | K34: 2.65 | L34: 1.845 | M34: -1.325 | N34: 0 | O34: 0 | Q34: 1.845 | R34: -1.325 | T34: 1.845 | U34: -1.325 | W34: 1.845 | X34: -1.325 | Z34: 1.845 | AA34: -1.325 | AC34: 1.845 | AD34: -1.325
B35: back | C35: -0.5 | D35: -0.5 | F35: 1 | G35: 1 | H35: back | I35: 5 | J35: 3.69 | K35: 2.65 | L35: -1.845 | M35: -1.325 | N35: 0 | O35: 0 | Q35: -1.845 | R35: -1.325 | T35: -1.845 | U35: -1.325 | W35: -1.845 | X35: -1.325 | Z35: -1.845 | AA35: -1.325 | AC35: -1.845 | AD35: -1.325
B36: reset | C36: -0.5 | D36: -0.5 | F36: 1 | G36: 2 | H36: start | I36: 1 | J36: 3.69 | K36: 2.65 | L36: -1.845 | M36: -1.325 | N36: 3.44 | O36: 0 | Q36: 1.595 | R36: -1.325 | T36: 1.595 | U36: -1.325 | W36: 1.595 | X36: -1.325 | Z36: =IF(AND($T36<>"",$U36<>""),T36,Z31) -> 1.595 | AA36: =IF(AND($T36<>"",$U36<>""),U36,AA31) -> -1.325
F37: 1 | G37: 2 | H37: up | I37: 2 | J37: 3.69 | K37: 2.65 | L37: -1.845 | M37: 1.325 | N37: 3.44 | O37: 0 | Q37: 1.595 | R37: 1.325 | T37: 1.595 | U37: 1.325 | W37: 1.595 | X37: 1.325 | Z37: =IF(AND($T37<>"",$U37<>""),T37,Z32) -> 1.595 | AA37: 1.325 | AC37: =Z36 -> 1.595 | AD37: -1.325
F38: 1 | G38: 2 | H38: along | I38: 3 | J38: 3.69 | K38: 2.65 | L38: 1.845 | M38: 1.325 | N38: 3.44 | O38: 0 | Q38: 5.285 | R38: 1.325 | T38: 5.285 | U38: 1.325 | W38: 5.285 | X38: 1.325 | Z38: =IF(AND($T38<>"",$U38<>""),T38,Z33) -> 5.285 | AA38: 1.325 | AC38: 1.595 | AD38: 1.325
F39: 1 | G39: 2 | H39: down | I39: 4 | J39: 3.69 | K39: 2.65 | L39: 1.845 | M39: -1.325 | N39: 3.44 | O39: 0 | Q39: 5.285 | R39: -1.325 | T39: 5.285 | U39: -1.325 | W39: 5.285 | X39: -1.325 | Z39: =IF(AND($T39<>"",$U39<>""),T39,Z34) -> 5.285 | AA39: -1.325 | AC39: 5.285 | AD39: 1.325
F40: 1 | G40: 2 | H40: back | I40: 5 | J40: 3.69 | K40: 2.65 | L40: -1.845 | M40: -1.325 | N40: 3.44 | O40: 0 | Q40: 1.595 | R40: -1.325 | T40: 1.595 | U40: -1.325 | W40: 1.595 | X40: -1.325 | Z40: =IF(AND($T40<>"",$U40<>""),T40,Z35) -> 1.595 | AA40: -1.325 | AC40: 5.285 | AD40: -1.325
F41: 1 | G41: 3 | H41: start | I41: 1 | J41: 3.69 | K41: 2.65 | L41: -1.845 | M41: -1.325 | N41: 6.88 | O41: 0 | Q41: 5.035 | R41: -1.325 | U41: -1.325 | Z41: =IF(AND($T41<>"",$U41<>""),T41,Z36) -> 1.595 | AA41: -1.325 | AC41: 1.595 | AD41: -1.325
F42: 1 | G42: 3 | H42: up | I42: 2 | J42: 3.69 | K42: 2.65 | L42: -1.845 | M42: 1.325 | N42: 6.88 | O42: 0 | Q42: 5.035 | R42: 1.325 | U42: 1.325 | Z42: =IF(AND($T42<>"",$U42<>""),T42,Z37) -> 1.595 | AA42: 1.325
F43: 1 | G43: 3 | H43: along | I43: 3 | J43: 3.69 | K43: 2.65 | L43: 1.845 | M43: 1.325 | N43: 6.88 | O43: 0 | Q43: 8.725 | R43: 1.325 | U43: 1.325 | Z43: =IF(AND($T43<>"",$U43<>""),T43,Z38) -> 5.285 | AA43: 1.325 | AC43: =Z41 -> 1.595 | AD43: -1.325
F44: 1 | G44: 3 | H44: down | I44: 4 | J44: 3.69 | K44: 2.65 | L44: 1.845 | M44: -1.325 | N44: 6.88 | O44: 0 | Q44: 8.725 | R44: -1.325 | U44: -1.325 | Z44: =IF(AND($T44<>"",$U44<>""),T44,Z39) -> 5.285 | AA44: -1.325 | AC44: 1.595 | AD44: 1.325
F45: 1 | G45: 3 | H45: back | I45: 5 | J45: 3.69 | K45: 2.65 | L45: -1.845 | M45: -1.325 | N45: 6.88 | O45: 0 | Q45: 5.035 | R45: -1.325 | U45: -1.325 | Z45: =IF(AND($T45<>"",$U45<>""),T45,Z40) -> 1.595 | AA45: -1.325 | AC45: 5.285 | AD45: 1.325
F46: 1 | G46: 4 | H46: start | I46: 1 | J46: 3.69 | K46: 2.65 | L46: -1.845 | M46: -1.325 | N46: 10.32 | O46: 0 | Q46: 8.475 | R46: -1.325 | U46: -1.325 | Z46: =IF(AND($T46<>"",$U46<>""),T46,Z41) -> 1.595 | AA46: -1.325 | AC46: 5.285 | AD46: -1.325
F47: 1 | G47: 4 | H47: up | I47: 2 | J47: 3.69 | K47: 2.65 | L47: -1.845 | M47: 1.325 | N47: 10.32 | O47: 0 | Q47: 8.475 | R47: 1.325 | U47: 1.325 | Z47: =IF(AND($T47<>"",$U47<>""),T47,Z42) -> 1.595 | AA47: 1.325 | AC47: 1.595 | AD47: -1.325
F48: 1 | G48: 4 | H48: along | I48: 3 | J48: 3.69 | K48: 2.65 | L48: 1.845 | M48: 1.325 | N48: 10.32 | O48: 0 | Q48: 12.165 | R48: 1.325 | U48: 1.325 | Z48: =IF(AND($T48<>"",$U48<>""),T48,Z43) -> 5.285 | AA48: 1.325
F49: 1 | G49: 4 | H49: down | I49: 4 | J49: 3.69 | K49: 2.65 | L49: 1.845 | M49: -1.325 | N49: 10.32 | O49: 0 | Q49: 12.165 | R49: -1.325 | U49: -1.325 | Z49: =IF(AND($T49<>"",$U49<>""),T49,Z44) -> 5.285 | AA49: -1.325 | AC49: =Z46 -> 1.595 | AD49: -1.325
F50: 1 | G50: 4 | H50: back | I50: 5 | J50: 3.69 | K50: 2.65 | L50: -1.845 | M50: -1.325 | N50: 10.32 | O50: 0 | Q50: 8.475 | R50: -1.325 | U50: -1.325 | Z50: =IF(AND($T50<>"",$U50<>""),T50,Z45) -> 1.595 | AA50: -1.325 | AC50: 1.595 | AD50: 1.325
F51: 1 | G51: 5 | H51: start | I51: 1 | J51: 3.69 | K51: 2.65 | L51: -1.845 | M51: -1.325 | N51: 13.76 | O51: 0 | Q51: 11.915 | R51: -1.325 | U51: -1.325 | Z51: =IF(AND($T51<>"",$U51<>""),T51,Z46) -> 1.595 | AA51: -1.325 | AC51: 5.285 | AD51: 1.325
F52: 1 | G52: 5 | H52: up | I52: 2 | J52: 3.69 | K52: 2.65 | L52: -1.845 | M52: 1.325 | N52: 13.76 | O52: 0 | Q52: 11.915 | R52: 1.325 | U52: 1.325 | Z52: =IF(AND($T52<>"",$U52<>""),T52,Z47) -> 1.595 | AA52: 1.325 | AC52: 5.285 | AD52: -1.325
F53: 1 | G53: 5 | H53: along | I53: 3 | J53: 3.69 | K53: 2.65 | L53: 1.845 | M53: 1.325 | N53: 13.76 | O53: 0 | Q53: 15.605 | R53: 1.325 | U53: 1.325 | Z53: =IF(AND($T53<>"",$U53<>""),T53,Z48) -> 5.285 | AA53: 1.325 | AC53: 1.595 | AD53: -1.325
F54: 1 | G54: 5 | H54: down | I54: 4 | J54: 3.69 | K54: 2.65 | L54: 1.845 | M54: -1.325 | N54: 13.76 | O54: 0 | Q54: 15.605 | R54: -1.325 | U54: -1.325 | Z54: =IF(AND($T54<>"",$U54<>""),T54,Z49) -> 5.285 | AA54: -1.325
F55: 1 | G55: 5 | H55: back | I55: 5 | J55: 3.69 | K55: 2.65 | L55: -1.845 | M55: -1.325 | N55: 13.76 | O55: 0 | Q55: 11.915 | R55: -1.325 | U55: -1.325 | Z55: =IF(AND($T55<>"",$U55<>""),T55,Z50) -> 1.595 | AA55: -1.325 | AC55: =Z51 -> 1.595 | AD55: -1.325
F56: 1 | G56: 6 | H56: start | I56: 1 | J56: 3.69 | K56: 2.65 | L56: -1.845 | M56: -1.325 | N56: 17.2 | O56: 0 | Q56: 15.355 | R56: -1.325 | U56: -1.325 | Z56: =IF(AND($T56<>"",$U56<>""),T56,Z51) -> 1.595 | AA56: -1.325 | AC56: 1.595 | AD56: 1.325
F57: 1 | G57: 6 | H57: up | I57: 2 | J57: 3.69 | K57: 2.65 | L57: -1.845 | M57: 1.325 | N57: 17.2 | O57: 0 | Q57: 15.355 | R57: 1.325 | U57: 1.325 | Z57: =IF(AND($T57<>"",$U57<>""),T57,Z52) -> 1.595 | AA57: 1.325 | AC57: 5.285 | AD57: 1.325
F58: 1 | G58: 6 | H58: along | I58: 3 | J58: 3.69 | K58: 2.65 | L58: 1.845 | M58: 1.325 | N58: 17.2 | O58: 0 | Q58: 19.045 | R58: 1.325 | U58: 1.325 | Z58: =IF(AND($T58<>"",$U58<>""),T58,Z53) -> 5.285 | AA58: 1.325 | AC58: 5.285 | AD58: -1.325
F59: 1 | G59: 6 | H59: down | I59: 4 | J59: 3.69 | K59: 2.65 | L59: 1.845 | M59: -1.325 | N59: 17.2 | O59: 0 | Q59: 19.045 | R59: -1.325 | U59: -1.325 | Z59: =IF(AND($T59<>"",$U59<>""),T59,Z54) -> 5.285 | AA59: -1.325 | AC59: 1.595 | AD59: -1.325
F60: 1 | G60: 6 | H60: back | I60: 5 | J60: 3.69 | K60: 2.65 | L60: -1.845 | M60: -1.325 | N60: 17.2 | O60: 0 | Q60: 15.355 | R60: -1.325 | U60: -1.325 | Z60: =IF(AND($T60<>"",$U60<>""),T60,Z55) -> 1.595 | AA60: -1.325
F61: 1 | G61: 7 | H61: start | I61: 1 | J61: 3.69 | K61: 2.65 | L61: -1.845 | M61: -1.325 | N61: 20.64 | O61: 0 | Q61: 18.795 | R61: -1.325 | U61: -1.325 | Z61: =IF(AND($T61<>"",$U61<>""),T61,Z56) -> 1.595 | AA61: -1.325 | AC61: =Z56 -> 1.595 | AD61: -1.325
F62: 1 | G62: 7 | H62: up | I62: 2 | J62: 3.69 | K62: 2.65 | L62: -1.845 | M62: 1.325 | N62: 20.64 | O62: 0 | Q62: 18.795 | R62: 1.325 | U62: 1.325 | Z62: =IF(AND($T62<>"",$U62<>""),T62,Z57) -> 1.595 | AA62: 1.325 | AC62: 1.595 | AD62: 1.325
F63: 1 | G63: 7 | H63: along | I63: 3 | J63: 3.69 | K63: 2.65 | L63: 1.845 | M63: 1.325 | N63: 20.64 | O63: 0 | Q63: 22.485 | R63: 1.325 | U63: 1.325 | Z63: =IF(AND($T63<>"",$U63<>""),T63,Z58) -> 5.285 | AA63: 1.325 | AC63: 5.285 | AD63: 1.325
F64: 1 | G64: 7 | H64: down | I64: 4 | J64: 3.69 | K64: 2.65 | L64: 1.845 | M64: -1.325 | N64: 20.64 | O64: 0 | Q64: 22.485 | R64: -1.325 | U64: -1.325 | Z64: =IF(AND($T64<>"",$U64<>""),T64,Z59) -> 5.285 | AA64: -1.325 | AC64: 5.285 | AD64: -1.325
F65: 1 | G65: 7 | H65: back | I65: 5 | J65: 3.69 | K65: 2.65 | L65: -1.845 | M65: -1.325 | N65: 20.64 | O65: 0 | Q65: 18.795 | R65: -1.325 | U65: -1.325 | Z65: =IF(AND($T65<>"",$U65<>""),T65,Z60) -> 1.595 | AA65: -1.325 | AC65: 1.595 | AD65: -1.325
F66: 1 | G66: 8 | H66: start | I66: 1 | J66: 3.69 | K66: 2.65 | L66: -1.845 | M66: -1.325 | N66: 24.08 | O66: 0 | Q66: 22.235 | R66: -1.325 | U66: -1.325 | Z66: =IF(AND($T66<>"",$U66<>""),T66,Z61) -> 1.595 | AA66: -1.325
F67: 1 | G67: 8 | H67: up | I67: 2 | J67: 3.69 | K67: 2.65 | L67: -1.845 | M67: 1.325 | N67: 24.08 | O67: 0 | Q67: 22.235 | R67: 1.325 | U67: 1.325 | Z67: =IF(AND($T67<>"",$U67<>""),T67,Z62) -> 1.595 | AA67: 1.325 | AC67: =Z61 -> 1.595 | AD67: -1.325
F68: 1 | G68: 8 | H68: along | I68: 3 | J68: 3.69 | K68: 2.65 | L68: 1.845 | M68: 1.325 | N68: 24.08 | O68: 0 | Q68: 25.925 | R68: 1.325 | U68: 1.325 | Z68: =IF(AND($T68<>"",$U68<>""),T68,Z63) -> 5.285 | AA68: 1.325 | AC68: 1.595 | AD68: 1.325
F69: 1 | G69: 8 | H69: down | I69: 4 | J69: 3.69 | K69: 2.65 | L69: 1.845 | M69: -1.325 | N69: 24.08 | O69: 0 | Q69: 25.925 | R69: -1.325 | U69: -1.325 | Z69: =IF(AND($T69<>"",$U69<>""),T69,Z64) -> 5.285 | AA69: -1.325 | AC69: 5.285 | AD69: 1.325
F70: 1 | G70: 8 | H70: back | I70: 5 | J70: 3.69 | K70: 2.65 | L70: -1.845 | M70: -1.325 | N70: 24.08 | O70: 0 | Q70: 22.235 | R70: -1.325 | U70: -1.325 | Z70: =IF(AND($T70<>"",$U70<>""),T70,Z65) -> 1.595 | AA70: -1.325 | AC70: 5.285 | AD70: -1.325
F71: =IF(F31<>"",F31+1,"") -> 2 | G71: =IF(G31<>"",G31,"") -> 1 | H71: =IF(H31<>"",H31,"") -> start | I71: 1 | J71: =$B$10 -> 3.69 | K71: 2.65 | L71: -1.845 | M71: -1.325 | N71: 0 | O71: 2.4 | Q71: -1.845 | R71: 1.075 | T71: -1.845 | U71: 1.075 | W71: -1.845 | X71: 1.075 | Z71: =IF(AND($T71<>"",$U71<>""),T71,Z66) -> -1.845 | AA71: 1.075 | AC71: 1.595 | AD71: -1.325
F72: 2 | G72: 1 | H72: up | I72: 2 | J72: 3.69 | K72: 2.65 | L72: -1.845 | M72: 1.325 | N72: 0 | O72: 2.4 | Q72: -1.845 | R72: 3.725 | T72: -1.845 | U72: 3.725 | W72: -1.845 | X72: 3.725 | Z72: =IF(AND($T72<>"",$U72<>""),T72,Z67) -> -1.845 | AA72: 3.725
F73: 2 | G73: 1 | H73: along | I73: 3 | J73: 3.69 | K73: 2.65 | L73: 1.845 | M73: 1.325 | N73: 0 | O73: 2.4 | Q73: 1.845 | R73: 3.725 | T73: 1.845 | U73: 3.725 | W73: 1.845 | X73: 3.725 | Z73: =IF(AND($T73<>"",$U73<>""),T73,Z68) -> 1.845 | AA73: 3.725 | AC73: =Z66 -> 1.595 | AD73: -1.325
F74: 2 | G74: 1 | H74: down | I74: 4 | J74: 3.69 | K74: 2.65 | L74: 1.845 | M74: -1.325 | N74: 0 | O74: 2.4 | Q74: 1.845 | R74: 1.075 | T74: 1.845 | U74: 1.075 | W74: 1.845 | X74: 1.075 | Z74: =IF(AND($T74<>"",$U74<>""),T74,Z69) -> 1.845 | AA74: 1.075 | AC74: 1.595 | AD74: 1.325
F75: 2 | G75: 1 | H75: back | I75: 5 | J75: 3.69 | K75: 2.65 | L75: -1.845 | M75: -1.325 | N75: 0 | O75: 2.4 | Q75: -1.845 | R75: 1.075 | T75: -1.845 | U75: 1.075 | W75: -1.845 | X75: 1.075 | Z75: =IF(AND($T75<>"",$U75<>""),T75,Z70) -> -1.845 | AA75: 1.075 | AC75: 5.285 | AD75: 1.325
F76: 2 | G76: 2 | H76: start | I76: 1 | J76: 3.69 | K76: 2.65 | L76: -1.845 | M76: -1.325 | N76: 3.44 | O76: 2.4 | Q76: 1.595 | R76: 1.075 | T76: 1.595 | U76: 1.075 | W76: 1.595 | X76: 1.075 | Z76: =IF(AND($T76<>"",$U76<>""),T76,Z71) -> 1.595 | AA76: 1.075 | AC76: 5.285 | AD76: -1.325
F77: 2 | G77: 2 | H77: up | I77: 2 | J77: 3.69 | K77: 2.65 | L77: -1.845 | M77: 1.325 | N77: 3.44 | O77: 2.4 | Q77: 1.595 | R77: 3.725 | T77: 1.595 | U77: 3.725 | W77: 1.595 | X77: 3.725 | Z77: =IF(AND($T77<>"",$U77<>""),T77,Z72) -> 1.595 | AA77: 3.725 | AC77: 1.595 | AD77: -1.325
F78: 2 | G78: 2 | H78: along | I78: 3 | J78: 3.69 | K78: 2.65 | L78: 1.845 | M78: 1.325 | N78: 3.44 | O78: 2.4 | Q78: 5.285 | R78: 3.725 | T78: 5.285 | U78: 3.725 | W78: 5.285 | X78: 3.725 | Z78: =IF(AND($T78<>"",$U78<>""),T78,Z73) -> 5.285 | AA78: 3.725
F79: 2 | G79: 2 | H79: down | I79: 4 | J79: 3.69 | K79: 2.65 | L79: 1.845 | M79: -1.325 | N79: 3.44 | O79: 2.4 | Q79: 5.285 | R79: 1.075 | T79: 5.285 | U79: 1.075 | W79: 5.285 | X79: 1.075 | Z79: =IF(AND($T79<>"",$U79<>""),T79,Z74) -> 5.285 | AA79: 1.075 | AC79: =Z71 -> -1.845 | AD79: 1.075
F80: 2 | G80: 2 | H80: back | I80: 5 | J80: 3.69 | K80: 2.65 | L80: -1.845 | M80: -1.325 | N80: 3.44 | O80: 2.4 | Q80: 1.595 | R80: 1.075 | T80: 1.595 | U80: 1.075 | W80: 1.595 | X80: 1.075 | Z80: =IF(AND($T80<>"",$U80<>""),T80,Z75) -> 1.595 | AA80: 1.075 | AC80: -1.845 | AD80: 3.725
F81: 2 | G81: 3 | H81: start | I81: 1 | J81: 3.69 | K81: 2.65 | L81: -1.845 | M81: -1.325 | N81: 6.88 | O81: 2.4 | Q81: 5.035 | R81: 1.075 | U81: 1.075 | Z81: =IF(AND($T81<>"",$U81<>""),T81,Z76) -> 1.595 | AA81: 1.075 | AC81: 1.845 | AD81: 3.725
F82: 2 | G82: 3 | H82: up | I82: 2 | J82: 3.69 | K82: 2.65 | L82: -1.845 | M82: 1.325 | N82: 6.88 | O82: 2.4 | Q82: 5.035 | R82: 3.725 | U82: 3.725 | Z82: =IF(AND($T82<>"",$U82<>""),T82,Z77) -> 1.595 | AA82: 3.725 | AC82: 1.845 | AD82: 1.075
F83: 2 | G83: 3 | H83: along | I83: 3 | J83: 3.69 | K83: 2.65 | L83: 1.845 | M83: 1.325 | N83: 6.88 | O83: 2.4 | Q83: 8.725 | R83: 3.725 | U83: 3.725 | Z83: =IF(AND($T83<>"",$U83<>""),T83,Z78) -> 5.285 | AA83: 3.725 | AC83: -1.845 | AD83: 1.075
F84: 2 | G84: 3 | H84: down | I84: 4 | J84: 3.69 | K84: 2.65 | L84: 1.845 | M84: -1.325 | N84: 6.88 | O84: 2.4 | Q84: 8.725 | R84: 1.075 | U84: 1.075 | Z84: =IF(AND($T84<>"",$U84<>""),T84,Z79) -> 5.285 | AA84: 1.075
F85: 2 | G85: 3 | H85: back | I85: 5 | J85: 3.69 | K85: 2.65 | L85: -1.845 | M85: -1.325 | N85: 6.88 | O85: 2.4 | Q85: 5.035 | R85: 1.075 | U85: 1.075 | Z85: =IF(AND($T85<>"",$U85<>""),T85,Z80) -> 1.595 | AA85: 1.075 | AC85: =Z76 -> 1.595 | AD85: 1.075
F86: 2 | G86: 4 | H86: start | I86: 1 | J86: 3.69 | K86: 2.65 | L86: -1.845 | M86: -1.325 | N86: 10.32 | O86: 2.4 | Q86: 8.475 | R86: 1.075 | U86: 1.075 | Z86: =IF(AND($T86<>"",$U86<>""),T86,Z81) -> 1.595 | AA86: 1.075 | AC86: 1.595 | AD86: 3.725
F87: 2 | G87: 4 | H87: up | I87: 2 | J87: 3.69 | K87: 2.65 | L87: -1.845 | M87: 1.325 | N87: 10.32 | O87: 2.4 | Q87: 8.475 | R87: 3.725 | U87: 3.725 | Z87: =IF(AND($T87<>"",$U87<>""),T87,Z82) -> 1.595 | AA87: 3.725 | AC87: 5.285 | AD87: 3.725
F88: 2 | G88: 4 | H88: along | I88: 3 | J88: 3.69 | K88: 2.65 | L88: 1.845 | M88: 1.325 | N88: 10.32 | O88: 2.4 | Q88: 12.165 | R88: 3.725 | U88: 3.725 | Z88: =IF(AND($T88<>"",$U88<>""),T88,Z83) -> 5.285 | AA88: 3.725 | AC88: 5.285 | AD88: 1.075
F89: 2 | G89: 4 | H89: down | I89: 4 | J89: 3.69 | K89: 2.65 | L89: 1.845 | M89: -1.325 | N89: 10.32 | O89: 2.4 | Q89: 12.165 | R89: 1.075 | U89: 1.075 | Z89: =IF(AND($T89<>"",$U89<>""),T89,Z84) -> 5.285 | AA89: 1.075 | AC89: 1.595 | AD89: 1.075
F90: 2 | G90: 4 | H90: back | I90: 5 | J90: 3.69 | K90: 2.65 | L90: -1.845 | M90: -1.325 | N90: 10.32 | O90: 2.4 | Q90: 8.475 | R90: 1.075 | U90: 1.075 | Z90: =IF(AND($T90<>"",$U90<>""),T90,Z85) -> 1.595 | AA90: 1.075
F91: 2 | G91: 5 | H91: =IF(H51<>"",H51,"") -> start | I91: 1 | J91: 3.69 | K91: 2.65 | L91: -1.845 | M91: -1.325 | N91: 13.76 | O91: 2.4 | Q91: 11.915 | R91: 1.075 | U91: 1.075 | Z91: =IF(AND($T91<>"",$U91<>""),T91,Z86) -> 1.595 | AA91: 1.075 | AC91: =Z81 -> 1.595 | AD91: 1.075
F92: 2 | G92: 5 | H92: up | I92: 2 | J92: 3.69 | K92: 2.65 | L92: -1.845 | M92: 1.325 | N92: 13.76 | O92: 2.4 | Q92: 11.915 | R92: 3.725 | U92: 3.725 | Z92: =IF(AND($T92<>"",$U92<>""),T92,Z87) -> 1.595 | AA92: 3.725 | AC92: 1.595 | AD92: 3.725
F93: 2 | G93: 5 | H93: along | I93: 3 | J93: 3.69 | K93: 2.65 | L93: 1.845 | M93: 1.325 | N93: 13.76 | O93: 2.4 | Q93: 15.605 | R93: 3.725 | U93: 3.725 | Z93: =IF(AND($T93<>"",$U93<>""),T93,Z88) -> 5.285 | AA93: 3.725 | AC93: 5.285 | AD93: 3.725
F94: 2 | G94: 5 | H94: down | I94: 4 | J94: 3.69 | K94: 2.65 | L94: 1.845 | M94: -1.325 | N94: 13.76 | O94: 2.4 | Q94: 15.605 | R94: 1.075 | U94: 1.075 | Z94: =IF(AND($T94<>"",$U94<>""),T94,Z89) -> 5.285 | AA94: 1.075 | AC94: 5.285 | AD94: 1.075
F95: 2 | G95: 5 | H95: back | I95: 5 | J95: 3.69 | K95: =$B$11 -> 2.65 | L95: =VLOOKUP($H95,$B$31:$D$36,2,FALSE)*J95 -> -1.845 | M95: =VLOOKUP($H95,$B$31:$D$36,3,FALSE)*K95 -> -1.325 | N95: 13.76 | O95: 2.4 | Q95: 11.915 | R95: 1.075 | T95: =IF(G95<=$M$28,Q95,"") ->  | U95: 1.075 | Z95: =IF(AND($T95<>"",$U95<>""),T95,Z90) -> 1.595 | AA95: 1.075 | AC95: 1.595 | AD95: 1.075
F96: 2 | G96: 6 | H96: start | I96: 1 | J96: 3.69 | K96: 2.65 | L96: -1.845 | M96: -1.325 | N96: =(G96-1)*$N$28 -> 17.2 | O96: =(F96-1)*$O$28 -> 2.4 | Q96: =L96+N96 -> 15.355 | R96: =M96+O96 -> 1.075 | U96: =IF(F96<=$L$28,R96,"") -> 1.075 | W96: =IF(AND(T96<>"",U96<>""),T96,NA()) ->  | X96: =IF(W96<>"",U96,NA()) ->  | Z96: =IF(AND($T96<>"",$U96<>""),T96,Z91) -> 1.595 | AA96: 1.075
F97: 2 | G97: 6 | H97: up | I97: 2 | J97: 3.69 | K97: 2.65 | L97: -1.845 | M97: 1.325 | N97: 17.2 | O97: 2.4 | Q97: 15.355 | R97: 3.725 | U97: 3.725 | Z97: =IF(AND($T97<>"",$U97<>""),T97,Z92) -> 1.595 | AA97: 3.725 | AC97: =Z86 -> 1.595 | AD97: 1.075
F98: 2 | G98: 6 | H98: along | I98: 3 | J98: 3.69 | K98: 2.65 | L98: 1.845 | M98: 1.325 | N98: 17.2 | O98: 2.4 | Q98: 19.045 | R98: 3.725 | U98: 3.725 | Z98: =IF(AND($T98<>"",$U98<>""),T98,Z93) -> 5.285 | AA98: 3.725 | AC98: 1.595 | AD98: 3.725
F99: 2 | G99: 6 | H99: down | I99: 4 | J99: 3.69 | K99: 2.65 | L99: 1.845 | M99: -1.325 | N99: 17.2 | O99: 2.4 | Q99: 19.045 | R99: 1.075 | U99: 1.075 | Z99: =IF(AND($T99<>"",$U99<>""),T99,Z94) -> 5.285 | AA99: 1.075 | AC99: 5.285 | AD99: 3.725
F100: 2 | G100: 6 | H100: back | I100: 5 | J100: 3.69 | K100: 2.65 | L100: -1.845 | M100: -1.325 | N100: 17.2 | O100: 2.4 | Q100: 15.355 | R100: 1.075 | U100: 1.075 | Z100: =IF(AND($T100<>"",$U100<>""),T100,Z95) -> 1.595 | AA100: 1.075 | AC100: 5.285 | AD100: 1.075
F101: 2 | G101: 7 | H101: start | I101: 1 | J101: 3.69 | K101: 2.65 | L101: -1.845 | M101: -1.325 | N101: 20.64 | O101: 2.4 | Q101: 18.795 | R101: 1.075 | U101: 1.075 | Z101: =IF(AND($T101<>"",$U101<>""),T101,Z96) -> 1.595 | AA101: 1.075 | AC101: 1.595 | AD101: 1.075
F102: 2 | G102: 7 | H102: up | I102: 2 | J102: 3.69 | K102: 2.65 | L102: -1.845 | M102: 1.325 | N102: 20.64 | O102: 2.4 | Q102: 18.795 | R102: 3.725 | U102: 3.725 | Z102: =IF(AND($T102<>"",$U102<>""),T102,Z97) -> 1.595 | AA102: 3.725
F103: 2 | G103: 7 | H103: along | I103: 3 | J103: 3.69 | K103: 2.65 | L103: 1.845 | M103: 1.325 | N103: 20.64 | O103: 2.4 | Q103: 22.485 | R103: 3.725 | U103: 3.725 | Z103: =IF(AND($T103<>"",$U103<>""),T103,Z98) -> 5.285 | AA103: 3.725 | AC103: =Z91 -> 1.595 | AD103: 1.075
F104: 2 | G104: 7 | H104: down | I104: 4 | J104: 3.69 | K104: 2.65 | L104: 1.845 | M104: -1.325 | N104: 20.64 | O104: 2.4 | Q104: 22.485 | R104: 1.075 | U104: 1.075 | Z104: =IF(AND($T104<>"",$U104<>""),T104,Z99) -> 5.285 | AA104: 1.075 | AC104: 1.595 | AD104: 3.725
F105: 2 | G105: 7 | H105: back | I105: 5 | J105: 3.69 | K105: 2.65 | L105: -1.845 | M105: -1.325 | N105: 20.64 | O105: 2.4 | Q105: 18.795 | R105: 1.075 | U105: 1.075 | Z105: =IF(AND($T105<>"",$U105<>""),T105,Z100) -> 1.595 | AA105: 1.075 | AC105: 5.285 | AD105: 3.725
F106: 2 | G106: 8 | H106: start | I106: 1 | J106: 3.69 | K106: 2.65 | L106: -1.845 | M106: -1.325 | N106: 24.08 | O106: 2.4 | Q106: 22.235 | R106: 1.075 | U106: 1.075 | Z106: =IF(AND($T106<>"",$U106<>""),T106,Z101) -> 1.595 | AA106: 1.075 | AC106: 5.285 | AD106: 1.075
F107: 2 | G107: 8 | H107: up | I107: 2 | J107: 3.69 | K107: 2.65 | L107: -1.845 | M107: 1.325 | N107: 24.08 | O107: 2.4 | Q107: 22.235 | R107: 3.725 | U107: 3.725 | Z107: =IF(AND($T107<>"",$U107<>""),T107,Z102) -> 1.595 | AA107: 3.725 | AC107: 1.595 | AD107: 1.075
F108: 2 | G108: 8 | H108: along | I108: 3 | J108: 3.69 | K108: 2.65 | L108: 1.845 | M108: 1.325 | N108: 24.08 | O108: 2.4 | Q108: 25.925 | R108: 3.725 | U108: 3.725 | Z108: =IF(AND($T108<>"",$U108<>""),T108,Z103) -> 5.285 | AA108: 3.725
F109: 2 | G109: 8 | H109: down | I109: 4 | J109: 3.69 | K109: 2.65 | L109: 1.845 | M109: -1.325 | N109: 24.08 | O109: 2.4 | Q109: 25.925 | R109: 1.075 | U109: 1.075 | Z109: =IF(AND($T109<>"",$U109<>""),T109,Z104) -> 5.285 | AA109: 1.075 | AC109: =Z96 -> 1.595 | AD109: =AA96 -> 1.075
F110: 2 | G110: 8 | H110: back | I110: 5 | J110: 3.69 | K110: 2.65 | L110: -1.845 | M110: -1.325 | N110: 24.08 | O110: 2.4 | Q110: 22.235 | R110: 1.075 | U110: 1.075 | Z110: =IF(AND($T110<>"",$U110<>""),T110,Z105) -> 1.595 | AA110: 1.075 | AC110: 1.595 | AD110: 3.725
F111: 3 | G111: 1 | H111: =IF(H71<>"",H71,"") -> start | I111: 1 | J111: 3.69 | K111: 2.65 | L111: -1.845 | M111: -1.325 | N111: 0 | O111: 4.8 | Q111: -1.845 | R111: 3.475 | T111: -1.845 | Z111: =IF(AND($T111<>"",$U111<>""),T111,Z106) -> 1.595 | AA111: 1.075 | AC111: 5.285 | AD111: 3.725
F112: 3 | G112: 1 | H112: up | I112: 2 | J112: 3.69 | K112: 2.65 | L112: -1.845 | M112: 1.325 | N112: 0 | O112: 4.8 | Q112: -1.845 | R112: 6.125 | T112: -1.845 | Z112: =IF(AND($T112<>"",$U112<>""),T112,Z107) -> 1.595 | AA112: 3.725 | AC112: 5.285 | AD112: 1.075
F113: 3 | G113: 1 | H113: along | I113: 3 | J113: 3.69 | K113: 2.65 | L113: 1.845 | M113: 1.325 | N113: 0 | O113: 4.8 | Q113: 1.845 | R113: 6.125 | T113: 1.845 | Z113: =IF(AND($T113<>"",$U113<>""),T113,Z108) -> 5.285 | AA113: 3.725 | AC113: 1.595 | AD113: 1.075
F114: 3 | G114: 1 | H114: down | I114: 4 | J114: 3.69 | K114: 2.65 | L114: 1.845 | M114: -1.325 | N114: 0 | O114: 4.8 | Q114: 1.845 | R114: 3.475 | T114: 1.845 | Z114: =IF(AND($T114<>"",$U114<>""),T114,Z109) -> 5.285 | AA114: 1.075
F115: 3 | G115: 1 | H115: back | I115: 5 | J115: 3.69 | K115: 2.65 | L115: -1.845 | M115: -1.325 | N115: 0 | O115: 4.8 | Q115: -1.845 | R115: 3.475 | T115: -1.845 | Z115: =IF(AND($T115<>"",$U115<>""),T115,Z110) -> 1.595 | AA115: 1.075 | AC115: =Z101 -> 1.595 | AD115: 1.075
F116: 3 | G116: 2 | H116: start | I116: 1 | J116: 3.69 | K116: 2.65 | L116: -1.845 | M116: -1.325 | N116: 3.44 | O116: 4.8 | Q116: 1.595 | R116: 3.475 | T116: 1.595 | Z116: =IF(AND($T116<>"",$U116<>""),T116,Z111) -> 1.595 | AA116: 1.075 | AC116: 1.595 | AD116: 3.725
F117: 3 | G117: 2 | H117: up | I117: 2 | J117: 3.69 | K117: 2.65 | L117: -1.845 | M117: 1.325 | N117: 3.44 | O117: 4.8 | Q117: 1.595 | R117: 6.125 | T117: 1.595 | Z117: =IF(AND($T117<>"",$U117<>""),T117,Z112) -> 1.595 | AA117: 3.725 | AC117: 5.285 | AD117: 3.725
F118: 3 | G118: 2 | H118: along | I118: 3 | J118: 3.69 | K118: 2.65 | L118: 1.845 | M118: 1.325 | N118: 3.44 | O118: 4.8 | Q118: 5.285 | R118: 6.125 | T118: 5.285 | Z118: =IF(AND($T118<>"",$U118<>""),T118,Z113) -> 5.285 | AA118: 3.725 | AC118: 5.285 | AD118: 1.075
F119: 3 | G119: 2 | H119: down | I119: 4 | J119: 3.69 | K119: 2.65 | L119: 1.845 | M119: -1.325 | N119: 3.44 | O119: 4.8 | Q119: 5.285 | R119: 3.475 | T119: 5.285 | Z119: =IF(AND($T119<>"",$U119<>""),T119,Z114) -> 5.285 | AA119: 1.075 | AC119: 1.595 | AD119: 1.075
F120: 3 | G120: 2 | H120: back | I120: 5 | J120: 3.69 | K120: 2.65 | L120: -1.845 | M120: -1.325 | N120: 3.44 | O120: 4.8 | Q120: 1.595 | R120: 3.475 | T120: 1.595 | Z120: =IF(AND($T120<>"",$U120<>""),T120,Z115) -> 1.595 | AA120: 1.075
F121: 3 | G121: 3 | H121: start | I121: 1 | J121: 3.69 | K121: 2.65 | L121: -1.845 | M121: -1.325 | N121: 6.88 | O121: 4.8 | Q121: 5.035 | R121: 3.475 | Z121: =IF(AND($T121<>"",$U121<>""),T121,Z116) -> 1.595 | AA121: 1.075 | AC121: =Z106 -> 1.595 | AD121: 1.075
F122: 3 | G122: 3 | H122: up | I122: 2 | J122: 3.69 | K122: 2.65 | L122: -1.845 | M122: 1.325 | N122: 6.88 | O122: 4.8 | Q122: 5.035 | R122: 6.125 | Z122: =IF(AND($T122<>"",$U122<>""),T122,Z117) -> 1.595 | AA122: 3.725 | AC122: 1.595 | AD122: 3.725
F123: 3 | G123: 3 | H123: along | I123: 3 | J123: 3.69 | K123: 2.65 | L123: 1.845 | M123: 1.325 | N123: 6.88 | O123: 4.8 | Q123: 8.725 | R123: 6.125 | Z123: =IF(AND($T123<>"",$U123<>""),T123,Z118) -> 5.285 | AA123: 3.725 | AC123: 5.285 | AD123: 3.725
F124: 3 | G124: 3 | H124: down | I124: 4 | J124: 3.69 | K124: 2.65 | L124: 1.845 | M124: -1.325 | N124: 6.88 | O124: 4.8 | Q124: 8.725 | R124: 3.475 | Z124: =IF(AND($T124<>"",$U124<>""),T124,Z119) -> 5.285 | AA124: 1.075 | AC124: 5.285 | AD124: 1.075
F125: 3 | G125: 3 | H125: back | I125: 5 | J125: 3.69 | K125: 2.65 | L125: -1.845 | M125: -1.325 | N125: 6.88 | O125: 4.8 | Q125: 5.035 | R125: 3.475 | Z125: =IF(AND($T125<>"",$U125<>""),T125,Z120) -> 1.595 | AA125: 1.075 | AC125: 1.595 | AD125: 1.075
F126: 3 | G126: 4 | H126: start | I126: 1 | J126: 3.69 | K126: 2.65 | L126: -1.845 | M126: -1.325 | N126: 10.32 | O126: 4.8 | Q126: 8.475 | R126: 3.475 | Z126: =IF(AND($T126<>"",$U126<>""),T126,Z121) -> 1.595 | AA126: 1.075
F127: 3 | G127: 4 | H127: up | I127: 2 | J127: 3.69 | K127: 2.65 | L127: -1.845 | M127: 1.325 | N127: 10.32 | O127: 4.8 | Q127: 8.475 | R127: 6.125 | Z127: =IF(AND($T127<>"",$U127<>""),T127,Z122) -> 1.595 | AA127: 3.725 | AC127: =Z111 -> 1.595 | AD127: 1.075
F128: 3 | G128: 4 | H128: along | I128: 3 | J128: 3.69 | K128: 2.65 | L128: 1.845 | M128: 1.325 | N128: 10.32 | O128: 4.8 | Q128: 12.165 | R128: 6.125 | Z128: =IF(AND($T128<>"",$U128<>""),T128,Z123) -> 5.285 | AA128: 3.725 | AC128: 1.595 | AD128: 3.725
F129: 3 | G129: 4 | H129: down | I129: 4 | J129: 3.69 | K129: 2.65 | L129: 1.845 | M129: -1.325 | N129: 10.32 | O129: 4.8 | Q129: 12.165 | R129: 3.475 | Z129: =IF(AND($T129<>"",$U129<>""),T129,Z124) -> 5.285 | AA129: 1.075 | AC129: 5.285 | AD129: 3.725
F130: 3 | G130: 4 | H130: back | I130: 5 | J130: 3.69 | K130: 2.65 | L130: -1.845 | M130: -1.325 | N130: 10.32 | O130: 4.8 | Q130: 8.475 | R130: 3.475 | Z130: =IF(AND($T130<>"",$U130<>""),T130,Z125) -> 1.595 | AA130: 1.075 | AC130: 5.285 | AD130: 1.075
F131: 3 | G131: 5 | H131: =IF(H91<>"",H91,"") -> start | I131: 1 | J131: 3.69 | K131: 2.65 | L131: -1.845 | M131: -1.325 | N131: 13.76 | O131: 4.8 | Q131: 11.915 | R131: 3.475 | Z131: =IF(AND($T131<>"",$U131<>""),T131,Z126) -> 1.595 | AA131: 1.075 | AC131: 1.595 | AD131: 1.075
F132: 3 | G132: 5 | H132: up | I132: 2 | J132: 3.69 | K132: 2.65 | L132: -1.845 | M132: 1.325 | N132: 13.76 | O132: 4.8 | Q132: 11.915 | R132: 6.125 | Z132: =IF(AND($T132<>"",$U132<>""),T132,Z127) -> 1.595 | AA132: 3.725
F133: 3 | G133: 5 | H133: along | I133: 3 | J133: 3.69 | K133: 2.65 | L133: 1.845 | M133: 1.325 | N133: 13.76 | O133: 4.8 | Q133: 15.605 | R133: 6.125 | Z133: =IF(AND($T133<>"",$U133<>""),T133,Z128) -> 5.285 | AA133: 3.725 | AC133: =Z116 -> 1.595 | AD133: 1.075
F134: 3 | G134: 5 | H134: down | I134: 4 | J134: =$B$10 -> 3.69 | K134: 2.65 | L134: 1.845 | M134: -1.325 | N134: 13.76 | O134: 4.8 | Q134: 15.605 | R134: 3.475 | Z134: =IF(AND($T134<>"",$U134<>""),T134,Z129) -> 5.285 | AA134: 1.075 | AC134: 1.595 | AD134: 3.725
F135: =IF(F95<>"",F95+1,"") -> 3 | G135: =IF(G95<>"",G95,"") -> 5 | H135: back | I135: 5 | J135: 3.69 | K135: 2.65 | L135: -1.845 | M135: -1.325 | N135: 13.76 | O135: 4.8 | Q135: 11.915 | R135: 3.475 | Z135: =IF(AND($T135<>"",$U135<>""),T135,Z130) -> 1.595 | AA135: 1.075 | AC135: 5.285 | AD135: 3.725
F136: 3 | G136: 6 | H136: start | I136: 1 | J136: 3.69 | K136: 2.65 | L136: -1.845 | M136: -1.325 | N136: 17.2 | O136: 4.8 | Q136: 15.355 | R136: 3.475 | Z136: =IF(AND($T136<>"",$U136<>""),T136,Z131) -> 1.595 | AA136: 1.075 | AC136: 5.285 | AD136: 1.075
F137: 3 | G137: 6 | H137: up | I137: 2 | J137: 3.69 | K137: 2.65 | L137: -1.845 | M137: 1.325 | N137: 17.2 | O137: 4.8 | Q137: 15.355 | R137: 6.125 | Z137: =IF(AND($T137<>"",$U137<>""),T137,Z132) -> 1.595 | AA137: 3.725 | AC137: 1.595 | AD137: 1.075
F138: 3 | G138: 6 | H138: along | I138: 3 | J138: 3.69 | K138: 2.65 | L138: 1.845 | M138: 1.325 | N138: 17.2 | O138: 4.8 | Q138: 19.045 | R138: 6.125 | Z138: =IF(AND($T138<>"",$U138<>""),T138,Z133) -> 5.285 | AA138: 3.725
F139: 3 | G139: 6 | H139: down | I139: 4 | J139: 3.69 | K139: 2.65 | L139: 1.845 | M139: -1.325 | N139: 17.2 | O139: 4.8 | Q139: 19.045 | R139: 3.475 | Z139: =IF(AND($T139<>"",$U139<>""),T139,Z134) -> 5.285 | AA139: 1.075 | AC139: =Z121 -> 1.595 | AD139: 1.075
F140: 3 | G140: 6 | H140: back | I140: 5 | J140: 3.69 | K140: 2.65 | L140: -1.845 | M140: -1.325 | N140: 17.2 | O140: 4.8 | Q140: 15.355 | R140: 3.475 | Z140: =IF(AND($T140<>"",$U140<>""),T140,Z135) -> 1.595 | AA140: 1.075 | AC140: 1.595 | AD140: 3.725
F141: 3 | G141: 7 | H141: start | I141: 1 | J141: 3.69 | K141: 2.65 | L141: -1.845 | M141: -1.325 | N141: 20.64 | O141: 4.8 | Q141: 18.795 | R141: 3.475 | Z141: =IF(AND($T141<>"",$U141<>""),T141,Z136) -> 1.595 | AA141: 1.075 | AC141: 5.285 | AD141: 3.725
F142: 3 | G142: 7 | H142: up | I142: 2 | J142: 3.69 | K142: 2.65 | L142: -1.845 | M142: 1.325 | N142: 20.64 | O142: 4.8 | Q142: 18.795 | R142: 6.125 | Z142: =IF(AND($T142<>"",$U142<>""),T142,Z137) -> 1.595 | AA142: 3.725 | AC142: 5.285 | AD142: 1.075
F143: 3 | G143: 7 | H143: along | I143: 3 | J143: 3.69 | K143: 2.65 | L143: 1.845 | M143: 1.325 | N143: 20.64 | O143: 4.8 | Q143: 22.485 | R143: 6.125 | Z143: =IF(AND($T143<>"",$U143<>""),T143,Z138) -> 5.285 | AA143: 3.725 | AC143: 1.595 | AD143: 1.075
F144: 3 | G144: 7 | H144: down | I144: 4 | J144: 3.69 | K144: 2.65 | L144: 1.845 | M144: -1.325 | N144: 20.64 | O144: 4.8 | Q144: 22.485 | R144: 3.475 | Z144: =IF(AND($T144<>"",$U144<>""),T144,Z139) -> 5.285 | AA144: 1.075
F145: 3 | G145: 7 | H145: back | I145: 5 | J145: 3.69 | K145: 2.65 | L145: -1.845 | M145: -1.325 | N145: 20.64 | O145: 4.8 | Q145: 18.795 | R145: 3.475 | Z145: =IF(AND($T145<>"",$U145<>""),T145,Z140) -> 1.595 | AA145: 1.075 | AC145: =Z126 -> 1.595 | AD145: 1.075
F146: 3 | G146: 8 | H146: start | I146: 1 | J146: 3.69 | K146: 2.65 | L146: -1.845 | M146: -1.325 | N146: 24.08 | O146: 4.8 | Q146: 22.235 | R146: 3.475 | Z146: =IF(AND($T146<>"",$U146<>""),T146,Z141) -> 1.595 | AA146: 1.075 | AC146: 1.595 | AD146: 3.725
F147: 3 | G147: 8 | H147: up | I147: 2 | J147: 3.69 | K147: 2.65 | L147: -1.845 | M147: 1.325 | N147: 24.08 | O147: 4.8 | Q147: 22.235 | R147: 6.125 | Z147: =IF(AND($T147<>"",$U147<>""),T147,Z142) -> 1.595 | AA147: 3.725 | AC147: 5.285 | AD147: 3.725
F148: 3 | G148: 8 | H148: along | I148: 3 | J148: 3.69 | K148: 2.65 | L148: 1.845 | M148: 1.325 | N148: 24.08 | O148: 4.8 | Q148: 25.925 | R148: 6.125 | Z148: =IF(AND($T148<>"",$U148<>""),T148,Z143) -> 5.285 | AA148: 3.725 | AC148: 5.285 | AD148: 1.075
F149: 3 | G149: 8 | H149: down | I149: 4 | J149: 3.69 | K149: 2.65 | L149: 1.845 | M149: -1.325 | N149: 24.08 | O149: 4.8 | Q149: 25.925 | R149: 3.475 | Z149: =IF(AND($T149<>"",$U149<>""),T149,Z144) -> 5.285 | AA149: 1.075 | AC149: 1.595 | AD149: 1.075
F150: 3 | G150: 8 | H150: back | I150: 5 | J150: 3.69 | K150: 2.65 | L150: -1.845 | M150: -1.325 | N150: 24.08 | O150: 4.8 | Q150: 22.235 | R150: 3.475 | Z150: =IF(AND($T150<>"",$U150<>""),T150,Z145) -> 1.595 | AA150: 1.075
F151: 4 | G151: 1 | H151: =IF(H111<>"",H111,"") -> start | I151: 1 | J151: 3.69 | K151: 2.65 | L151: -1.845 | M151: -1.325 | N151: 0 | O151: 7.2 | Q151: -1.845 | R151: 5.875 | T151: -1.845 | Z151: =IF(AND($T151<>"",$U151<>""),T151,Z146) -> 1.595 | AA151: 1.075 | AC151: =Z131 -> 1.595 | AD151: 1.075
F152: 4 | G152: 1 | H152: up | I152: 2 | J152: 3.69 | K152: 2.65 | L152: -1.845 | M152: 1.325 | N152: 0 | O152: 7.2 | Q152: -1.845 | R152: 8.525 | T152: -1.845 | Z152: =IF(AND($T152<>"",$U152<>""),T152,Z147) -> 1.595 | AA152: 3.725 | AC152: 1.595 | AD152: 3.725
F153: 4 | G153: 1 | H153: along | I153: 3 | J153: 3.69 | K153: 2.65 | L153: 1.845 | M153: 1.325 | N153: 0 | O153: 7.2 | Q153: 1.845 | R153: 8.525 | T153: 1.845 | Z153: =IF(AND($T153<>"",$U153<>""),T153,Z148) -> 5.285 | AA153: 3.725 | AC153: 5.285 | AD153: 3.725
F154: 4 | G154: 1 | H154: down | I154: 4 | J154: 3.69 | K154: 2.65 | L154: 1.845 | M154: -1.325 | N154: 0 | O154: 7.2 | Q154: 1.845 | R154: 5.875 | T154: 1.845 | Z154: =IF(AND($T154<>"",$U154<>""),T154,Z149) -> 5.285 | AA154: 1.075 | AC154: 5.285 | AD154: 1.075
F155: 4 | G155: 1 | H155: back | I155: 5 | J155: 3.69 | K155: 2.65 | L155: -1.845 | M155: -1.325 | N155: 0 | O155: 7.2 | Q155: -1.845 | R155: 5.875 | T155: -1.845 | Z155: =IF(AND($T155<>"",$U155<>""),T155,Z150) -> 1.595 | AA155: 1.075 | AC155: 1.595 | AD155: 1.075
F156: 4 | G156: 2 | H156: start | I156: 1 | J156: 3.69 | K156: 2.65 | L156: -1.845 | M156: -1.325 | N156: 3.44 | O156: 7.2 | Q156: 1.595 | R156: 5.875 | T156: 1.595 | Z156: =IF(AND($T156<>"",$U156<>""),T156,Z151) -> 1.595 | AA156: 1.075
F157: 4 | G157: 2 | H157: up | I157: 2 | J157: 3.69 | K157: =$B$11 -> 2.65 | L157: -1.845 | M157: 1.325 | N157: 3.44 | O157: 7.2 | Q157: 1.595 | R157: 8.525 | T157: 1.595 | Z157: =IF(AND($T157<>"",$U157<>""),T157,Z152) -> 1.595 | AA157: 3.725 | AC157: =Z136 -> 1.595 | AD157: 1.075
F158: 4 | G158: 2 | H158: along | I158: 3 | J158: 3.69 | K158: 2.65 | L158: 1.845 | M158: 1.325 | N158: 3.44 | O158: 7.2 | Q158: 5.285 | R158: 8.525 | T158: 5.285 | Z158: =IF(AND($T158<>"",$U158<>""),T158,Z153) -> 5.285 | AA158: 3.725 | AC158: 1.595 | AD158: 3.725
F159: 4 | G159: 2 | H159: down | I159: 4 | J159: 3.69 | K159: 2.65 | L159: =VLOOKUP($H159,$B$31:$D$36,2,FALSE)*J159 -> 1.845 | M159: =VLOOKUP($H159,$B$31:$D$36,3,FALSE)*K159 -> -1.325 | N159: 3.44 | O159: 7.2 | Q159: 5.285 | R159: 5.875 | T159: =IF(G159<=$M$28,Q159,"") -> 5.285 | Z159: =IF(AND($T159<>"",$U159<>""),T159,Z154) -> 5.285 | AA159: 1.075 | AC159: 5.285 | AD159: 3.725
F160: 4 | G160: 2 | H160: back | I160: 5 | J160: 3.69 | K160: 2.65 | L160: -1.845 | M160: -1.325 | N160: =(G160-1)*$N$28 -> 3.44 | O160: =(F160-1)*$O$28 -> 7.2 | Q160: =L160+N160 -> 1.595 | R160: =M160+O160 -> 5.875 | T160: 1.595 | U160: =IF(F160<=$L$28,R160,"") ->  | W160: =IF(AND(T160<>"",U160<>""),T160,NA()) ->  | X160: =IF(W160<>"",U160,NA()) ->  | Z160: =IF(AND($T160<>"",$U160<>""),T160,Z155) -> 1.595 | AA160: 1.075 | AC160: 5.285 | AD160: 1.075
F161: 4 | G161: 3 | H161: start | I161: 1 | J161: 3.69 | K161: 2.65 | L161: -1.845 | M161: -1.325 | N161: 6.88 | O161: 7.2 | Q161: 5.035 | R161: 5.875 | Z161: =IF(AND($T161<>"",$U161<>""),T161,Z156) -> 1.595 | AA161: 1.075 | AC161: 1.595 | AD161: 1.075
F162: 4 | G162: 3 | H162: up | I162: 2 | J162: 3.69 | K162: 2.65 | L162: -1.845 | M162: 1.325 | N162: 6.88 | O162: 7.2 | Q162: 5.035 | R162: 8.525 | Z162: =IF(AND($T162<>"",$U162<>""),T162,Z157) -> 1.595 | AA162: 3.725
F163: 4 | G163: 3 | H163: along | I163: 3 | J163: 3.69 | K163: 2.65 | L163: 1.845 | M163: 1.325 | N163: 6.88 | O163: 7.2 | Q163: 8.725 | R163: 8.525 | Z163: =IF(AND($T163<>"",$U163<>""),T163,Z158) -> 5.285 | AA163: 3.725 | AC163: =Z141 -> 1.595 | AD163: 1.075
F164: 4 | G164: 3 | H164: down | I164: 4 | J164: 3.69 | K164: 2.65 | L164: 1.845 | M164: -1.325 | N164: 6.88 | O164: 7.2 | Q164: 8.725 | R164: 5.875 | Z164: =IF(AND($T164<>"",$U164<>""),T164,Z159) -> 5.285 | AA164: 1.075 | AC164: 1.595 | AD164: 3.725
F165: 4 | G165: 3 | H165: back | I165: 5 | J165: 3.69 | K165: 2.65 | L165: -1.845 | M165: -1.325 | N165: 6.88 | O165: 7.2 | Q165: 5.035 | R165: 5.875 | Z165: =IF(AND($T165<>"",$U165<>""),T165,Z160) -> 1.595 | AA165: 1.075 | AC165: 5.285 | AD165: 3.725
F166: 4 | G166: 4 | H166: start | I166: 1 | J166: =$B$10 -> 3.69 | K166: 2.65 | L166: -1.845 | M166: -1.325 | N166: 10.32 | O166: 7.2 | Q166: 8.475 | R166: 5.875 | Z166: =IF(AND($T166<>"",$U166<>""),T166,Z161) -> 1.595 | AA166: 1.075 | AC166: 5.285 | AD166: 1.075
F167: 4 | G167: 4 | H167: up | I167: 2 | J167: 3.69 | K167: 2.65 | L167: -1.845 | M167: 1.325 | N167: 10.32 | O167: 7.2 | Q167: 8.475 | R167: 8.525 | Z167: =IF(AND($T167<>"",$U167<>""),T167,Z162) -> 1.595 | AA167: 3.725 | AC167: 1.595 | AD167: 1.075
F168: 4 | G168: 4 | H168: along | I168: 3 | J168: 3.69 | K168: 2.65 | L168: 1.845 | M168: 1.325 | N168: 10.32 | O168: 7.2 | Q168: 12.165 | R168: 8.525 | Z168: =IF(AND($T168<>"",$U168<>""),T168,Z163) -> 5.285 | AA168: 3.725
F169: 4 | G169: 4 | H169: down | I169: 4 | J169: 3.69 | K169: 2.65 | L169: 1.845 | M169: -1.325 | N169: 10.32 | O169: 7.2 | Q169: 12.165 | R169: 5.875 | Z169: =IF(AND($T169<>"",$U169<>""),T169,Z164) -> 5.285 | AA169: 1.075 | AC169: =Z146 -> 1.595 | AD169: 1.075
F170: 4 | G170: 4 | H170: back | I170: 5 | J170: 3.69 | K170: 2.65 | L170: -1.845 | M170: -1.325 | N170: 10.32 | O170: 7.2 | Q170: 8.475 | R170: 5.875 | Z170: =IF(AND($T170<>"",$U170<>""),T170,Z165) -> 1.595 | AA170: 1.075 | AC170: 1.595 | AD170: 3.725
F171: 4 | G171: 5 | H171: =IF(H131<>"",H131,"") -> start | I171: 1 | J171: 3.69 | K171: 2.65 | L171: -1.845 | M171: -1.325 | N171: 13.76 | O171: 7.2 | Q171: 11.915 | R171: 5.875 | Z171: =IF(AND($T171<>"",$U171<>""),T171,Z166) -> 1.595 | AA171: 1.075 | AC171: 5.285 | AD171: 3.725
F172: 4 | G172: 5 | H172: up | I172: 2 | J172: 3.69 | K172: 2.65 | L172: -1.845 | M172: 1.325 | N172: 13.76 | O172: 7.2 | Q172: 11.915 | R172: 8.525 | Z172: =IF(AND($T172<>"",$U172<>""),T172,Z167) -> 1.595 | AA172: 3.725 | AC172: 5.285 | AD172: 1.075
F173: 4 | G173: 5 | H173: along | I173: 3 | J173: 3.69 | K173: 2.65 | L173: 1.845 | M173: 1.325 | N173: 13.76 | O173: 7.2 | Q173: 15.605 | R173: 8.525 | Z173: =IF(AND($T173<>"",$U173<>""),T173,Z168) -> 5.285 | AA173: 3.725 | AC173: 1.595 | AD173: 1.075
F174: 4 | G174: 5 | H174: down | I174: 4 | J174: 3.69 | K174: 2.65 | L174: 1.845 | M174: -1.325 | N174: 13.76 | O174: 7.2 | Q174: 15.605 | R174: 5.875 | Z174: =IF(AND($T174<>"",$U174<>""),T174,Z169) -> 5.285 | AA174: 1.075
F175: 4 | G175: 5 | H175: back | I175: 5 | J175: 3.69 | K175: 2.65 | L175: -1.845 | M175: -1.325 | N175: 13.76 | O175: 7.2 | Q175: 11.915 | R175: 5.875 | Z175: =IF(AND($T175<>"",$U175<>""),T175,Z170) -> 1.595 | AA175: 1.075 | AC175: =Z151 -> 1.595 | AD175: 1.075
F176: 4 | G176: 6 | H176: start | I176: 1 | J176: 3.69 | K176: 2.65 | L176: -1.845 | M176: -1.325 | N176: 17.2 | O176: 7.2 | Q176: 15.355 | R176: 5.875 | Z176: =IF(AND($T176<>"",$U176<>""),T176,Z171) -> 1.595 | AA176: 1.075 | AC176: 1.595 | AD176: 3.725
F177: 4 | G177: 6 | H177: up | I177: 2 | J177: 3.69 | K177: 2.65 | L177: -1.845 | M177: 1.325 | N177: 17.2 | O177: 7.2 | Q177: 15.355 | R177: 8.525 | Z177: =IF(AND($T177<>"",$U177<>""),T177,Z172) -> 1.595 | AA177: 3.725 | AC177: 5.285 | AD177: 3.725
F178: 4 | G178: 6 | H178: along | I178: 3 | J178: 3.69 | K178: 2.65 | L178: 1.845 | M178: 1.325 | N178: 17.2 | O178: 7.2 | Q178: 19.045 | R178: 8.525 | Z178: =IF(AND($T178<>"",$U178<>""),T178,Z173) -> 5.285 | AA178: 3.725 | AC178: 5.285 | AD178: 1.075
F179: 4 | G179: 6 | H179: down | I179: 4 | J179: 3.69 | K179: 2.65 | L179: 1.845 | M179: -1.325 | N179: 17.2 | O179: 7.2 | Q179: 19.045 | R179: 5.875 | Z179: =IF(AND($T179<>"",$U179<>""),T179,Z174) -> 5.285 | AA179: 1.075 | AC179: 1.595 | AD179: 1.075
F180: 4 | G180: 6 | H180: back | I180: 5 | J180: 3.69 | K180: 2.65 | L180: -1.845 | M180: -1.325 | N180: 17.2 | O180: 7.2 | Q180: 15.355 | R180: 5.875 | Z180: =IF(AND($T180<>"",$U180<>""),T180,Z175) -> 1.595 | AA180: 1.075
F181: 4 | G181: 7 | H181: start | I181: 1 | J181: 3.69 | K181: 2.65 | L181: -1.845 | M181: -1.325 | N181: 20.64 | O181: 7.2 | Q181: 18.795 | R181: 5.875 | Z181: =IF(AND($T181<>"",$U181<>""),T181,Z176) -> 1.595 | AA181: 1.075 | AC181: =Z156 -> 1.595 | AD181: 1.075
F182: 4 | G182: 7 | H182: up | I182: 2 | J182: 3.69 | K182: 2.65 | L182: -1.845 | M182: 1.325 | N182: 20.64 | O182: 7.2 | Q182: 18.795 | R182: 8.525 | Z182: =IF(AND($T182<>"",$U182<>""),T182,Z177) -> 1.595 | AA182: 3.725 | AC182: 1.595 | AD182: 3.725
F183: 4 | G183: 7 | H183: along | I183: 3 | J183: 3.69 | K183: 2.65 | L183: 1.845 | M183: 1.325 | N183: 20.64 | O183: 7.2 | Q183: 22.485 | R183: 8.525 | Z183: =IF(AND($T183<>"",$U183<>""),T183,Z178) -> 5.285 | AA183: 3.725 | AC183: 5.285 | AD183: 3.725
F184: 4 | G184: 7 | H184: down | I184: 4 | J184: 3.69 | K184: 2.65 | L184: 1.845 | M184: -1.325 | N184: 20.64 | O184: 7.2 | Q184: 22.485 | R184: 5.875 | Z184: =IF(AND($T184<>"",$U184<>""),T184,Z179) -> 5.285 | AA184: 1.075 | AC184: 5.285 | AD184: 1.075
F185: 4 | G185: 7 | H185: back | I185: 5 | J185: 3.69 | K185: 2.65 | L185: -1.845 | M185: -1.325 | N185: 20.64 | O185: 7.2 | Q185: 18.795 | R185: 5.875 | Z185: =IF(AND($T185<>"",$U185<>""),T185,Z180) -> 1.595 | AA185: 1.075 | AC185: =Z160 -> 1.595 | AD185: =AA160 -> 1.075
F186: 4 | G186: 8 | H186: start | I186: 1 | J186: 3.69 | K186: 2.65 | L186: -1.845 | M186: -1.325 | N186: 24.08 | O186: 7.2 | Q186: 22.235 | R186: 5.875 | Z186: =IF(AND($T186<>"",$U186<>""),T186,Z181) -> 1.595 | AA186: 1.075
F187: 4 | G187: 8 | H187: up | I187: 2 | J187: 3.69 | K187: 2.65 | L187: -1.845 | M187: 1.325 | N187: 24.08 | O187: 7.2 | Q187: 22.235 | R187: 8.525 | Z187: =IF(AND($T187<>"",$U187<>""),T187,Z182) -> 1.595 | AA187: 3.725 | AC187: =Z161 -> 1.595 | AD187: 1.075
F188: 4 | G188: 8 | H188: along | I188: 3 | J188: 3.69 | K188: 2.65 | L188: 1.845 | M188: 1.325 | N188: 24.08 | O188: 7.2 | Q188: 25.925 | R188: 8.525 | Z188: =IF(AND($T188<>"",$U188<>""),T188,Z183) -> 5.285 | AA188: 3.725 | AC188: 1.595 | AD188: 3.725
F189: 4 | G189: 8 | H189: down | I189: 4 | J189: 3.69 | K189: 2.65 | L189: 1.845 | M189: -1.325 | N189: 24.08 | O189: 7.2 | Q189: 25.925 | R189: 5.875 | Z189: =IF(AND($T189<>"",$U189<>""),T189,Z184) -> 5.285 | AA189: 1.075 | AC189: 5.285 | AD189: 3.725
F190: 4 | G190: 8 | H190: back | I190: 5 | J190: 3.69 | K190: 2.65 | L190: -1.845 | M190: -1.325 | N190: 24.08 | O190: 7.2 | Q190: 22.235 | R190: 5.875 | Z190: =IF(AND($T190<>"",$U190<>""),T190,Z185) -> 1.595 | AA190: 1.075 | AC190: 5.285 | AD190: 1.075
F191: 5 | G191: 1 | H191: =IF(H151<>"",H151,"") -> start | I191: 1 | J191: 3.69 | K191: 2.65 | L191: -1.845 | M191: -1.325 | N191: 0 | O191: 9.6 | Q191: -1.845 | R191: 8.275 | T191: -1.845 | Z191: =IF(AND($T191<>"",$U191<>""),T191,Z186) -> 1.595 | AA191: 1.075 | AC191: 1.595 | AD191: 1.075
F192: 5 | G192: 1 | H192: up | I192: 2 | J192: 3.69 | K192: 2.65 | L192: -1.845 | M192: 1.325 | N192: 0 | O192: 9.6 | Q192: -1.845 | R192: 10.925 | T192: -1.845 | Z192: =IF(AND($T192<>"",$U192<>""),T192,Z187) -> 1.595 | AA192: 3.725
F193: 5 | G193: 1 | H193: along | I193: 3 | J193: 3.69 | K193: 2.65 | L193: 1.845 | M193: 1.325 | N193: 0 | O193: 9.6 | Q193: 1.845 | R193: 10.925 | T193: 1.845 | Z193: =IF(AND($T193<>"",$U193<>""),T193,Z188) -> 5.285 | AA193: 3.725 | AC193: =Z166 -> 1.595 | AD193: 1.075
F194: 5 | G194: 1 | H194: down | I194: 4 | J194: 3.69 | K194: 2.65 | L194: 1.845 | M194: -1.325 | N194: 0 | O194: 9.6 | Q194: 1.845 | R194: 8.275 | T194: 1.845 | Z194: =IF(AND($T194<>"",$U194<>""),T194,Z189) -> 5.285 | AA194: 1.075 | AC194: 1.595 | AD194: 3.725
F195: 5 | G195: 1 | H195: back | I195: 5 | J195: 3.69 | K195: 2.65 | L195: -1.845 | M195: -1.325 | N195: 0 | O195: 9.6 | Q195: -1.845 | R195: 8.275 | T195: -1.845 | Z195: =IF(AND($T195<>"",$U195<>""),T195,Z190) -> 1.595 | AA195: 1.075 | AC195: 5.285 | AD195: 3.725
F196: 5 | G196: 2 | H196: start | I196: 1 | J196: 3.69 | K196: 2.65 | L196: -1.845 | M196: -1.325 | N196: 3.44 | O196: 9.6 | Q196: 1.595 | R196: 8.275 | T196: 1.595 | Z196: =IF(AND($T196<>"",$U196<>""),T196,Z191) -> 1.595 | AA196: 1.075 | AC196: 5.285 | AD196: 1.075
F197: 5 | G197: 2 | H197: up | I197: 2 | J197: 3.69 | K197: 2.65 | L197: -1.845 | M197: 1.325 | N197: 3.44 | O197: 9.6 | Q197: 1.595 | R197: 10.925 | T197: 1.595 | Z197: =IF(AND($T197<>"",$U197<>""),T197,Z192) -> 1.595 | AA197: 3.725 | AC197: 1.595 | AD197: 1.075
F198: 5 | G198: 2 | H198: along | I198: 3 | J198: 3.69 | K198: 2.65 | L198: 1.845 | M198: 1.325 | N198: 3.44 | O198: 9.6 | Q198: 5.285 | R198: 10.925 | T198: 5.285 | Z198: =IF(AND($T198<>"",$U198<>""),T198,Z193) -> 5.285 | AA198: 3.725
F199: =IF(F159<>"",F159+1,"") -> 5 | G199: =IF(G159<>"",G159,"") -> 2 | H199: down | I199: 4 | J199: 3.69 | K199: 2.65 | L199: 1.845 | M199: -1.325 | N199: 3.44 | O199: 9.6 | Q199: 5.285 | R199: 8.275 | T199: 5.285 | Z199: =IF(AND($T199<>"",$U199<>""),T199,Z194) -> 5.285 | AA199: 1.075 | AC199: =Z171 -> 1.595 | AD199: 1.075
F200: 5 | G200: 2 | H200: back | I200: 5 | J200: 3.69 | K200: 2.65 | L200: -1.845 | M200: -1.325 | N200: 3.44 | O200: 9.6 | Q200: 1.595 | R200: 8.275 | T200: 1.595 | Z200: =IF(AND($T200<>"",$U200<>""),T200,Z195) -> 1.595 | AA200: 1.075 | AC200: 1.595 | AD200: 3.725
... 208 more rows

Sheet Stuff (hidden)
L1: Lowest | M1: Height Range | O1: Highest | P1: Typical | R1: Minimum | AS1: Wide opening stuff | CV1: 60 | CW1: 90 | CX1: 60 | CY1: 90 | CZ1: 90 | DA1: 60 | DB1: 90 | DC1: 90 | DD1: 90 | DE1: 60 | DF1: 90 | DG1: 90 | DH1: 90 | DI1: 90 | DJ1: 60 | DK1: 90 | DL1: 90 | DM1: 90 | DN1: 90 | DO1: 90 | DP1: 60 | DQ1: 90 | DR1: 90 | DS1: 90 | DT1: 90 | DU1: 90 | DV1: 90 | DW1: 60 | DX1: 90 | DY1: 90 | DZ1: 90 | EA1: 90 | EB1: 90 | EC1: 90 | ED1: 90 | EE1: 60 | EF1: 90 | EG1: 90 | EH1: 90 | EI1: 90 | EJ1: 90 | EK1: 90 | EL1: 90 | EM1: 90
CX2: 60 | CY2: 60 | CZ2: 90 | DA2: 60 | DB2: 60 | DC2: 90 | DD2: 90 | DE2: 60 | DF2: 60 | DG2: 90 | DH2: 90 | DI2: 90 | DJ2: 60 | DK2: 60 | DL2: 90 | DM2: 90 | DN2: 90 | DO2: 90 | DP2: 60 | DQ2: 60 | DR2: 90 | DS2: 90 | DT2: 90 | DU2: 90 | DV2: 90 | DW2: 60 | DX2: 60 | DY2: 90 | DZ2: 90 | EA2: 90 | EB2: 90 | EC2: 90 | ED2: 90 | EE2: 60 | EF2: 60 | EG2: 90 | EH2: 90 | EI2: 90 | EJ2: 90 | EK2: 90 | EL2: 90 | EM2: 90
B3: mm | C3: 0.001 | D3: 1000 | E3: IP | G3: Yes | I3: 9 | J3: ₉₀ | K3: 90° | L3: =IF(VLOOKUP($K3,'Main Calcs'!$C$30:$G$36,2,FALSE)=0,M3,VLOOKUP($K3,'Main Calcs'!$C$30:$G$36,2,FALSE)) ->  | M3: =VLOOKUP($K3,'Main Calcs'!$C$30:$G$36,3,FALSE) -> 2.5 | N3: =VLOOKUP($K3,'Main Calcs'!$C$30:$G$36,4,FALSE) -> 4.5 | O3: =IF(VLOOKUP($K3,'Main Calcs'!$C$30:$G$36,5,FALSE)=0,N3,VLOOKUP($K3,'Main Calcs'!$C$30:$G$36,5,FALSE)) ->  | P3: =VLOOKUP($K3,'Main Calcs'!$L$30:$Q$37,2,FALSE) ->  | Q3: =VLOOKUP($K3,'Main Calcs'!$L$30:$Q$37,3,FALSE) ->  | R3: =VLOOKUP($K3,'Main Calcs'!$L$30:$Q$37,6,FALSE) ->  | S3: =VLOOKUP($K3,'Main Calcs'!$L$30:$Q$37,7,FALSE) ->  | AS3: S60 | AT3: 1 | DA3: 60 | DB3: 60 | DC3: 60 | DD3: 90 | DE3: 60 | DF3: 60 | DG3: 60 | DH3: 90 | DI3: 90 | DJ3: 60 | DK3: 60 | DL3: 60 | DM3: 90 | DN3: 90 | DO3: 90 | DP3: 60 | DQ3: 60 | DR3: 60 | DS3: 90 | DT3: 90 | DU3: 90 | DV3: 90 | DW3: 60 | DX3: 60 | DY3: 60 | DZ3: 90 | EA3: 90 | EB3: 90 | EC3: 90 | ED3: 90 | EE3: 60 | EF3: 60 | EG3: 60 | EH3: 90 | EI3: 90 | EJ3: 90 | EK3: 90 | EL3: 90 | EM3: 90
B4: cm | C4: 0.01 | D4: 100 | E4: Relay | G4: No | I4: 6 | J4: ₆₀ | K4: 60° | L4: =IF(VLOOKUP($K4,'Main Calcs'!$C$30:$G$36,2,FALSE)=0,M4,VLOOKUP($K4,'Main Calcs'!$C$30:$G$36,2,FALSE)) -> 2.2 | M4: =VLOOKUP($K4,'Main Calcs'!$C$30:$G$36,3,FALSE) -> 2.5 | N4: =VLOOKUP($K4,'Main Calcs'!$C$30:$G$36,4,FALSE) -> 4.5 | O4: =IF(VLOOKUP($K4,'Main Calcs'!$C$30:$G$36,5,FALSE)=0,N4,VLOOKUP($K4,'Main Calcs'!$C$30:$G$36,5,FALSE)) -> 4.8 | P4: =VLOOKUP($K4,'Main Calcs'!$L$30:$Q$37,2,FALSE) ->  | Q4: =VLOOKUP($K4,'Main Calcs'!$L$30:$Q$37,3,FALSE) ->  | R4: =VLOOKUP($K4,'Main Calcs'!$L$30:$Q$37,6,FALSE) ->  | S4: =VLOOKUP($K4,'Main Calcs'!$L$30:$Q$37,7,FALSE) ->  | AS4: S90 | AT4: 2 | DE4: 60 | DF4: 60 | DG4: 60 | DH4: 60 | DI4: 90 | DJ4: 60 | DK4: 60 | DL4: 60 | DM4: 60 | DN4: 90 | DO4: 90 | DP4: 60 | DQ4: 60 | DR4: 60 | DS4: 60 | DT4: 90 | DU4: 90 | DV4: 90 | DW4: 60 | DX4: 60 | DY4: 60 | DZ4: 60 | EA4: 90 | EB4: 90 | EC4: 90 | ED4: 90 | EE4: 60 | EF4: 60 | EG4: 60 | EH4: 60 | EI4: 90 | EJ4: 90 | EK4: 90 | EL4: 90 | EM4: 90
B5: m | C5: 1 | D5: 1 | I5: 4 | J5: ⁴⁰ | K5: 40° | L5: =IF(VLOOKUP($K5,'Main Calcs'!$C$30:$G$36,2,FALSE)=0,M5,VLOOKUP($K5,'Main Calcs'!$C$30:$G$36,2,FALSE)) -> 3.5 | M5: =VLOOKUP($K5,'Main Calcs'!$C$30:$G$36,3,FALSE) -> 4 | N5: =VLOOKUP($K5,'Main Calcs'!$C$30:$G$36,4,FALSE) -> 7 | O5: =IF(VLOOKUP($K5,'Main Calcs'!$C$30:$G$36,5,FALSE)=0,N5,VLOOKUP($K5,'Main Calcs'!$C$30:$G$36,5,FALSE)) -> 7.5 | P5: =VLOOKUP($K5,'Main Calcs'!$L$30:$Q$37,2,FALSE) ->  | Q5: =VLOOKUP($K5,'Main Calcs'!$L$30:$Q$37,3,FALSE) ->  | R5: =VLOOKUP($K5,'Main Calcs'!$L$30:$Q$37,6,FALSE) ->  | S5: =VLOOKUP($K5,'Main Calcs'!$L$30:$Q$37,7,FALSE) ->  | AS5: E60 | AT5: 3 | DJ5: 60 | DK5: 60 | DL5: 60 | DM5: 60 | DN5: 60 | DO5: 90 | DP5: 60 | DQ5: 60 | DR5: 60 | DS5: 60 | DT5: 60 | DU5: 90 | DV5: 90 | DW5: 60 | DX5: 60 | DY5: 60 | DZ5: 60 | EA5: 60 | EB5: 90 | EC5: 90 | ED5: 90 | EE5: 60 | EF5: 60 | EG5: 60 | EH5: 60 | EI5: 60 | EJ5: 90 | EK5: 90 | EL5: 90 | EM5: 90
B6: ft | C6: 0.3048 | D6: 3.28084 | K6: 20° | L6: =IF(VLOOKUP($K6,'Main Calcs'!$C$30:$G$36,2,FALSE)=0,M6,VLOOKUP($K6,'Main Calcs'!$C$30:$G$36,2,FALSE)) ->  | M6: =VLOOKUP($K6,'Main Calcs'!$C$30:$G$36,3,FALSE) -> 7 | N6: =VLOOKUP($K6,'Main Calcs'!$C$30:$G$36,4,FALSE) -> 16 | O6: =IF(VLOOKUP($K6,'Main Calcs'!$C$30:$G$36,5,FALSE)=0,N6,VLOOKUP($K6,'Main Calcs'!$C$30:$G$36,5,FALSE)) ->  | P6: =VLOOKUP($K6,'Main Calcs'!$L$30:$Q$37,2,FALSE) ->  | Q6: =VLOOKUP($K6,'Main Calcs'!$L$30:$Q$37,3,FALSE) ->  | R6: =VLOOKUP($K6,'Main Calcs'!$L$30:$Q$37,6,FALSE) ->  | S6: =VLOOKUP($K6,'Main Calcs'!$L$30:$Q$37,7,FALSE) ->  | AS6: E90 | AT6: 4 | AU6: This table is used to lookup what to add together… | DP6: 60 | DQ6: 60 | DR6: 60 | DS6: 60 | DT6: 60 | DU6: 60 | DV6: 90 | DW6: 60 | DX6: 60 | DY6: 60 | DZ6: 60 | EA6: 60 | EB6: 60 | EC6: 90 | ED6: 90 | EE6: 60 | EF6: 60 | EG6: 60 | EH6: 60 | EI6: 60 | EJ6: 60 | EK6: 90 | EL6: 90 | EM6: 90
B7: inches | C7: 0.0254 | D7: 39.3701 | K7: 75° | L7: =IF(VLOOKUP($K7,'Main Calcs'!$C$30:$G$36,2,FALSE)=0,M7,VLOOKUP($K7,'Main Calcs'!$C$30:$G$36,2,FALSE)) ->  | M7: =VLOOKUP($K7,'Main Calcs'!$C$30:$G$36,3,FALSE) -> 2 | N7: =VLOOKUP($K7,'Main Calcs'!$C$30:$G$36,4,FALSE) -> 4.5 | O7: =IF(VLOOKUP($K7,'Main Calcs'!$C$30:$G$36,5,FALSE)=0,N7,VLOOKUP($K7,'Main Calcs'!$C$30:$G$36,5,FALSE)) ->  | P7: =VLOOKUP($K7,'Main Calcs'!$L$30:$Q$37,2,FALSE) ->  | Q7: =VLOOKUP($K7,'Main Calcs'!$L$30:$Q$37,3,FALSE) ->  | R7: =VLOOKUP($K7,'Main Calcs'!$L$30:$Q$37,6,FALSE) ->  | S7: =VLOOKUP($K7,'Main Calcs'!$L$30:$Q$37,7,FALSE) ->  | AS7: 90 - 90 | AT7: 5 | DW7: 60 | DX7: 60 | DY7: 60 | DZ7: 60 | EA7: 60 | EB7: 60 | EC7: 60 | ED7: 90 | EE7: 60 | EF7: 60 | EG7: 60 | EH7: 60 | EI7: 60 | EJ7: 60 | EK7: 60 | EL7: 90 | EM7: 90
AS8: 90 - 60 | AT8: 6 | EE8: 60 | EF8: 60 | EG8: 60 | EH8: 60 | EI8: 60 | EJ8: 60 | EK8: 60 | EL8: 60 | EM8: 90
K9: Output reqd: | L9: IP | N9: Edge Case: | O9: 0 | P9: =A23 -> m | Q9: = | R9: =IF(AND(O9<>"", P9<>""),O9*VLOOKUP(P9,$B$3:$C$7,2,FALSE),"") -> 0 | S9: m | AS9: 60 - 60 | AT9: 7 | CU9: 1 | CV9: S60 | CW9: S90 | CX9: E60 | CY9: E90 | CZ9: E90 | DA9: E60 | DB9: E90 | DC9: E90 | DD9: E90 | DE9: E60 | DF9: E90 | DG9: E90 | DH9: E90 | DI9: E90 | DJ9: E60 | DK9: E90 | DL9: E90 | DM9: E90 | DN9: E90 | DO9: E90 | DP9: E60 | DQ9: E90 | DR9: E90 | DS9: E90 | DT9: E90 | DU9: E90 | DV9: E90 | DW9: E60 | DX9: E90 | DY9: E90 | DZ9: E90 | EA9: E90 | EB9: E90 | EC9: E90 | ED9: E90 | EE9: E60 | EF9: E90 | EG9: E90 | EH9: E90 | EI9: E90 | EJ9: E90 | EK9: E90 | EL9: E90 | EM9: E90
B10: Auto | K10: Dualview?: | L10: No | AS10: B | AT10: 8 | CU10: 1a | CV10: B | CW10: B | CX10: 60 - 60 | CY10: 90 - 60 | CZ10: 90 - 90 | DA10: 60 - 60 | DB10: 90 - 60 | DC10: 90 - 90 | DD10: 90 - 90 | DE10: 60 - 60 | DF10: 90 - 60 | DG10: 90 - 90 | DH10: 90 - 90 | DI10: 90 - 90 | DJ10: 60 - 60 | DK10: 90 - 60 | DL10: 90 - 90 | DM10: 90 - 90 | DN10: 90 - 90 | DO10: 90 - 90 | DP10: 60 - 60 | DQ10: 90 - 60 | DR10: 90 - 90 | DS10: 90 - 90 | DT10: 90 - 90 | DU10: 90 - 90 | DV10: 90 - 90 | DW10: 60 - 60 | DX10: 90 - 60 | DY10: 90 - 90 | DZ10: 90 - 90 | EA10: 90 - 90 | EB10: 90 - 90 | EC10: 90 - 90 | ED10: 90 - 90 | EE10: 60 - 60 | EF10: 90 - 60 | EG10: 90 - 90 | EH10: 90 - 90 | EI10: 90 - 90 | EJ10: 90 - 90 | EK10: 90 - 90 | EL10: 90 - 90 | EM10: 90 - 90
B11: 90° | N11: Changover | O11: 4.5 | P11: =A23 -> m | Q11: = | R11: =IF(AND(O11<>"", P11<>""),O11*VLOOKUP(P11,$B$3:$C$7,2,FALSE),"") -> 4.5 | S11: m | CU11: 2a | CV11: B | CW11: B | CX11: E60 | CY11: E60 | CZ11: E90 | DA11: 60 - 60 | DB11: 60 - 60 | DC11: 90 - 60 | DD11: 90 - 90 | DE11: 60 - 60 | DF11: 60 - 60 | DG11: 90 - 60 | DH11: 90 - 90 | DI11: 90 - 90 | DJ11: 60 - 60 | DK11: 60 - 60 | DL11: 90 - 60 | DM11: 90 - 90 | DN11: 90 - 90 | DO11: 90 - 90 | DP11: 60 - 60 | DQ11: 60 - 60 | DR11: 90 - 60 | DS11: 90 - 90 | DT11: 90 - 90 | DU11: 90 - 90 | DV11: 90 - 90 | DW11: 60 - 60 | DX11: 60 - 60 | DY11: 90 - 60 | DZ11: 90 - 90 | EA11: 90 - 90 | EB11: 90 - 90 | EC11: 90 - 90 | ED11: 90 - 90 | EE11: 60 - 60 | EF11: 60 - 60 | EG11: 90 - 60 | EH11: 90 - 90 | EI11: 90 - 90 | EJ11: 90 - 90 | EK11: 90 - 90 | EL11: 90 - 90 | EM11: 90 - 90
B12: 60° | N12: Changeover absolute limit: | R12: 4 | S12: m | CU12: 3a | CV12: B | CW12: B | CX12: B | CY12: B | CZ12: B | DA12: E60 | DB12: E60 | DC12: E60 | DD12: E90 | DE12: 60 - 60 | DF12: 60 - 60 | DG12: 60 - 60 | DH12: 90 - 60 | DI12: 90 - 90 | DJ12: 60 - 60 | DK12: 60 - 60 | DL12: 60 - 60 | DM12: 90 - 60 | DN12: 90 - 90 | DO12: 90 - 90 | DP12: 60 - 60 | DQ12: 60 - 60 | DR12: 60 - 60 | DS12: 90 - 60 | DT12: 90 - 90 | DU12: 90 - 90 | DV12: 90 - 90 | DW12: 60 - 60 | DX12: 60 - 60 | DY12: 60 - 60 | DZ12: 90 - 60 | EA12: 90 - 90 | EB12: 90 - 90 | EC12: 90 - 90 | ED12: 90 - 90 | EE12: 60 - 60 | EF12: 60 - 60 | EG12: 60 - 60 | EH12: 90 - 60 | EI12: 90 - 90 | EJ12: 90 - 90 | EK12: 90 - 90 | EL12: 90 - 90 | EM12: 90 - 90
B13: 40° | D13: Lowest | E13: Height Range | G13: Highest | CU13: 4a | CV13: B | CW13: B | CX13: B | CY13: B | CZ13: B | DA13: B | DB13: B | DC13: B | DD13: B | DE13: E60 | DF13: E60 | DG13: E60 | DH13: E60 | DI13: E90 | DJ13: 60 - 60 | DK13: 60 - 60 | DL13: 60 - 60 | DM13: 60 - 60 | DN13: 90 - 60 | DO13: 90 - 90 | DP13: 60 - 60 | DQ13: 60 - 60 | DR13: 60 - 60 | DS13: 60 - 60 | DT13: 90 - 60 | DU13: 90 - 90 | DV13: 90 - 90 | DW13: 60 - 60 | DX13: 60 - 60 | DY13: 60 - 60 | DZ13: 60 - 60 | EA13: 90 - 60 | EB13: 90 - 90 | EC13: 90 - 90 | ED13: 90 - 90 | EE13: 60 - 60 | EF13: 60 - 60 | EG13: 60 - 60 | EH13: 60 - 60 | EI13: 90 - 60 | EJ13: 90 - 90 | EK13: 90 - 90 | EL13: 90 - 90 | EM13: 90 - 90
K14: Max Units | L14: 8 | CU14: 5a | CV14: B | CW14: B | CX14: B | CY14: B | CZ14: B | DA14: B | DB14: B | DC14: B | DD14: B | DE14: B | DF14: B | DG14: B | DH14: B | DI14: B | DJ14: E60 | DK14: E60 | DL14: E60 | DM14: E60 | DN14: E60 | DO14: E90 | DP14: 60 - 60 | DQ14: 60 - 60 | DR14: 60 - 60 | DS14: 60 - 60 | DT14: 60 - 60 | DU14: 90 - 60 | DV14: 90 - 90 | DW14: 60 - 60 | DX14: 60 - 60 | DY14: 60 - 60 | DZ14: 60 - 60 | EA14: 60 - 60 | EB14: 90 - 60 | EC14: 90 - 90 | ED14: 90 - 90 | EE14: 60 - 60 | EF14: 60 - 60 | EG14: 60 - 60 | EH14: 60 - 60 | EI14: 60 - 60 | EJ14: 90 - 60 | EK14: 90 - 90 | EL14: 90 - 90 | EM14: 90 - 90
C15: 90° | D15: 2.5 | E15: 2.5 | F15: 4.5 | G15: 4.5 | CU15: 6a | CV15: B | CW15: B | CX15: B | CY15: B | CZ15: B | DA15: B | DB15: B | DC15: B | DD15: B | DE15: B | DF15: B | DG15: B | DH15: B | DI15: B | DJ15: B | DK15: B | DL15: B | DM15: B | DN15: B | DO15: B | DP15: E60 | DQ15: E60 | DR15: E60 | DS15: E60 | DT15: E60 | DU15: E60 | DV15: E90 | DW15: 60 - 60 | DX15: 60 - 60 | DY15: 60 - 60 | DZ15: 60 - 60 | EA15: 60 - 60 | EB15: 60 - 60 | EC15: 90 - 60 | ED15: 90 - 90 | EE15: 60 - 60 | EF15: 60 - 60 | EG15: 60 - 60 | EH15: 60 - 60 | EI15: 60 - 60 | EJ15: 60 - 60 | EK15: 90 - 60 | EL15: 90 - 90 | EM15: 90 - 90
C16: 60° | D16: 2.2 | E16: 2.5 | F16: =IF(AND(U23>=N24,U23<=4.8),U23,4.5) -> 4.5 | G16: 4.8 | AA16: =IF(D23<>"",IF((D23+$R$9)<U23,1,IF(CEILING((D23+$R$9)/Y23,1)<9, CEILING((D23+$R$9)/Y23,1),"N/A")),"") -> 1 | CU16: 7a | CV16: B | CW16: B | CX16: B | CY16: B | CZ16: B | DA16: B | DB16: B | DC16: B | DD16: B | DE16: B | DF16: B | DG16: B | DH16: B | DI16: B | DJ16: B | DK16: B | DL16: B | DM16: B | DN16: B | DO16: B | DP16: B | DQ16: B | DR16: B | DS16: B | DT16: B | DU16: B | DV16: B | DW16: E60 | DX16: E60 | DY16: E60 | DZ16: E60 | EA16: E60 | EB16: E60 | EC16: E60 | ED16: E90 | EE16: 60 - 60 | EF16: 60 - 60 | EG16: 60 - 60 | EH16: 60 - 60 | EI16: 60 - 60 | EJ16: 60 - 60 | EK16: 60 - 60 | EL16: 90 - 60 | EM16: 90 - 90
C17: 40° | D17: 3.5 | E17: 4 | F17: 7 | G17: 7.5 | AA17: IF(C23<>"",IF((C23+$R$9)<J23,1,IF(CEILING((C23+$R$9)/K23,1)<9, CEILING((C23+$R$9)/K23,1),"N/A")),"") | CU17: 8 | CV17: B | CW17: B | CX17: B | CY17: B | CZ17: B | DA17: B | DB17: B | DC17: B | DD17: B | DE17: B | DF17: B | DG17: B | DH17: B | DI17: B | DJ17: B | DK17: B | DL17: B | DM17: B | DN17: B | DO17: B | DP17: B | DQ17: B | DR17: B | DS17: B | DT17: B | DU17: B | DV17: B | DW17: B | DX17: B | DY17: B | DZ17: B | EA17: B | EB17: B | EC17: B | ED17: B | EE17: E60 | EF17: E60 | EG17: E60 | EH17: E60 | EI17: E60 | EJ17: E60 | EK17: E60 | EL17: E60 | EM17: E90
C18: Auto | D18: 2.2 | E18: 2.5 | F18: 7 | G18: 7.5 | AA18: IF(AND(K7,K9),IF(AND($C$2<>"",C9<>"",$H$7>=$H$5, $H$7<=$J$5), IF(H9<VLOOKUP(C2,$Q$2:$U$5,4,FALSE),1,CEILING((H9-VLOOKUP(C2,$Q$2:$U$5,4,FALSE))/VLOOKUP(C2,$Q$2:$U$5,5,FALSE)+1,1)),""),"") | AS18: This is 1/2 typical of 1st unit and 1/2 typical of last unit plus the separation between units based on minimums
CU19: Option: | CV19: 1 | CW19: 2 | CX19: 3 | CY19: 4 | CZ19: 5 | DA19: 6 | DB19: 7 | DC19: 8 | DD19: 9 | DE19: 10 | DF19: 11 | DG19: 12 | DH19: 13 | DI19: 14 | DJ19: 15 | DK19: 16 | DL19: 17 | DM19: 18 | DN19: 19 | DO19: 20 | DP19: 21 | DQ19: 22 | DR19: 23 | DS19: 24 | DT19: 25 | DU19: 26 | DV19: 27 | DW19: 28 | DX19: 29 | DY19: 30 | DZ19: 31 | EA19: 32 | EB19: 33 | EC19: 34 | ED19: 35 | EE19: 36 | EF19: 37 | EG19: 38 | EH19: 39 | EI19: 40 | EJ19: 41 | EK19: 42 | EL19: 43 | EM19: 44
CU20: Number of units: | CV20: 1 | CW20: 1 | CX20: 2 | CY20: 2 | CZ20: 2 | DA20: 3 | DB20: 3 | DC20: 3 | DD20: 3 | DE20: 4 | DF20: 4 | DG20: 4 | DH20: 4 | DI20: 4 | DJ20: 5 | DK20: 5 | DL20: 5 | DM20: 5 | DN20: 5 | DO20: 5 | DP20: 6 | DQ20: 6 | DR20: 6 | DS20: 6 | DT20: 6 | DU20: 6 | DV20: 6 | DW20: 7 | DX20: 7 | DY20: 7 | DZ20: 7 | EA20: 7 | EB20: 7 | EC20: 7 | ED20: 7 | EE20: 8 | EF20: 8 | EG20: 8 | EH20: 8 | EI20: 8 | EJ20: 8 | EK20: 8 | EL20: 8 | EM20: 8
E21: In recommended height range? | J21: In extended height range? | O21: Device Type Possible | R21: Device Type Possible (Extended) | U21: Typical Formula | Z21: Minimum | AE21: Typical Formula 2 | AJ21: Minimum 2 | AO21: Units (width) | AT21: Units (depth) | AY21: TOTAL Number of Units | BW21: Left-Right | CA21: Front-back
B22: Mounting Height | C22: Entrance Width | D22: Entrance Depth | E22: 75° | F22: 60° | G22: 40° | H22: 20° | I22: 90° | J22: 75° | K22: 60° | L22: 40° | M22: 20° | N22: 90° | O22: Vector | P22: Gazelle | Q22: Outdoor | R22: Vector | S22: Gazelle | T22: Outdoor | U22: 75° | V22: 60° | W22: 40° | X22: 20° | Y22: 90° | Z22: 75° | AA22: 60° | AB22: 40° | AC22: 20° | AD22: 90° | AE22: 75° | AF22: 60° | AG22: 40° | AH22: 20° | AI22: 90° | AJ22: 75° | AK22: 60° | AL22: 40° | AM22: 20° | AN22: 90° | AO22: 75° | AP22: 60° | AQ22: 40° | AR22: 20° | AS22: 90° | AT22: 75° | AU22: 60° | AV22: 40° | AW22: 20° | AX22: 90° | AY22: 75° | AZ22: 60° | BA22: 40° | BB22: 20° | BC22: 90° | BD22: Vector works? | BE22: Number of Vectors (width) | BF22: Number of Vectors (depth) | BG22: Total Vectors | BH22: Least No Of Units | BI22: Number of least units | BJ22: Lens Preferred | BK22: Unit Selected | BL22: Lens Selected | BM22: Gazelle Auto | BN22: Vector Auto | BO22: Outdoor Auto | BP22: Auto Auto Device! | BQ22: Auto Auto Lens! | BR22: Device OUTPUT | BS22: Lens OUTPUT | BT22: Units width | BU22: Units depth | BV22: No Of Units OUTPUT | BW22: Typical in Use | BX22: Minimum in Use | BY22: Recommended Separation | BZ22: Total FofV (m) | CA22: Typical in Use | CB22: Minimum in Use | CC22: Recommended Separation | CD22: Total FofV (m) | CE22: Master | CF22: Node 1 | CG22: Node 2 | CH22: Node 3 | CI22: Node 4 | CJ22: Node 5 | CK22: Node 6 | CL22: Node 7 | CM22: Edge case? | CN22: S60 | CO22: S90 | CP22: E60 | CQ22: E90 | CR22: 90 - 90 | CS22: 90 - 60 | CT22: 60 - 60 | CU22: B | CV22: =IF(COUNTIF(#REF!,60)>0,IF(COUNTIF(#REF!,90)>0,COUNTIF(#REF!,60)&"x 60° & " & COUNTIF(#REF!,90)&"x 90°",COUNTIF(#REF!,60)&"x 60° "),IF(COUNTIF(#REF!,90)>0,COUNTIF(#REF!,90)& "x 90°","")) ->  | CW22: =IF(COUNTIF(#REF!,60)>0,IF(COUNTIF(#REF!,90)>0,COUNTIF(#REF!,60)&"x 60° & " & COUNTIF(#REF!,90)&"x 90°",COUNTIF(#REF!,60)&"x 60° "),IF(COUNTIF(#REF!,90)>0,COUNTIF(#REF!,90)& "x 90°","")) ->  | CX22: =IF(COUNTIF(#REF!,60)>0,IF(COUNTIF(#REF!,90)>0,COUNTIF(#REF!,60)&"x 60° & " & COUNTIF(#REF!,90)&"x 90°",COUNTIF(#REF!,60)&"x 60° "),IF(COUNTIF(#REF!,90)>0,COUNTIF(#REF!,90)& "x 90°","")) ->  | CY22: =IF(COUNTIF(#REF!,60)>0,IF(COUNTIF(#REF!,90)>0,COUNTIF(#REF!,60)&"x 60° & " & COUNTIF(#REF!,90)&"x 90°",COUNTIF(#REF!,60)&"x 60° "),IF(COUNTIF(#REF!,90)>0,COUNTIF(#REF!,90)& "x 90°","")) ->  | CZ22: =IF(COUNTIF(#REF!,60)>0,IF(COUNTIF(#REF!,90)>0,COUNTIF(#REF!,60)&"x 60° & " & COUNTIF(#REF!,90)&"x 90°",COUNTIF(#REF!,60)&"x 60° "),IF(COUNTIF(#REF!,90)>0,COUNTIF(#REF!,90)& "x 90°","")) ->  | DA22: =IF(COUNTIF(#REF!,60)>0,IF(COUNTIF(#REF!,90)>0,COUNTIF(#REF!,60)&"x 60° & " & COUNTIF(#REF!,90)&"x 90°",COUNTIF(#REF!,60)&"x 60° "),IF(COUNTIF(#REF!,90)>0,COUNTIF(#REF!,90)& "x 90°","")) ->  | DB22: =IF(COUNTIF(#REF!,60)>0,IF(COUNTIF(#REF!,90)>0,COUNTIF(#REF!,60)&"x 60° & " & COUNTIF(#REF!,90)&"x 90°",COUNTIF(#REF!,60)&"x 60° "),IF(COUNTIF(#REF!,90)>0,COUNTIF(#REF!,90)& "x 90°","")) ->  | DC22: =IF(COUNTIF(#REF!,60)>0,IF(COUNTIF(#REF!,90)>0,COUNTIF(#REF!,60)&"x 60° & " & COUNTIF(#REF!,90)&"x 90°",COUNTIF(#REF!,60)&"x 60° "),IF(COUNTIF(#REF!,90)>0,COUNTIF(#REF!,90)& "x 90°","")) ->  | DD22: =IF(COUNTIF(#REF!,60)>0,IF(COUNTIF(#REF!,90)>0,COUNTIF(#REF!,60)&"x 60° & " & COUNTIF(#REF!,90)&"x 90°",COUNTIF(#REF!,60)&"x 60° "),IF(COUNTIF(#REF!,90)>0,COUNTIF(#REF!,90)& "x 90°","")) ->  | DE22: =IF(COUNTIF(#REF!,60)>0,IF(COUNTIF(#REF!,90)>0,COUNTIF(#REF!,60)&"x 60° & " & COUNTIF(#REF!,90)&"x 90°",COUNTIF(#REF!,60)&"x 60° "),IF(COUNTIF(#REF!,90)>0,COUNTIF(#REF!,90)& "x 90°","")) ->  | DF22: =IF(COUNTIF(#REF!,60)>0,IF(COUNTIF(#REF!,90)>0,COUNTIF(#REF!,60)&"x 60° & " & COUNTIF(#REF!,90)&"x 90°",COUNTIF(#REF!,60)&"x 60° "),IF(COUNTIF(#REF!,90)>0,COUNTIF(#REF!,90)& "x 90°","")) ->  | DG22: =IF(COUNTIF(#REF!,60)>0,IF(COUNTIF(#REF!,90)>0,COUNTIF(#REF!,60)&"x 60° & " & COUNTIF(#REF!,90)&"x 90°",COUNTIF(#REF!,60)&"x 60° "),IF(COUNTIF(#REF!,90)>0,COUNTIF(#REF!,90)& "x 90°","")) ->  | DH22: =IF(COUNTIF(#REF!,60)>0,IF(COUNTIF(#REF!,90)>0,COUNTIF(#REF!,60)&"x 60° & " & COUNTIF(#REF!,90)&"x 90°",COUNTIF(#REF!,60)&"x 60° "),IF(COUNTIF(#REF!,90)>0,COUNTIF(#REF!,90)& "x 90°","")) ->  | DI22: =IF(COUNTIF(#REF!,60)>0,IF(COUNTIF(#REF!,90)>0,COUNTIF(#REF!,60)&"x 60° & " & COUNTIF(#REF!,90)&"x 90°",COUNTIF(#REF!,60)&"x 60° "),IF(COUNTIF(#REF!,90)>0,COUNTIF(#REF!,90)& "x 90°","")) ->  | DJ22: =IF(COUNTIF(#REF!,60)>0,IF(COUNTIF(#REF!,90)>0,COUNTIF(#REF!,60)&"x 60° & " & COUNTIF(#REF!,90)&"x 90°",COUNTIF(#REF!,60)&"x 60° "),IF(COUNTIF(#REF!,90)>0,COUNTIF(#REF!,90)& "x 90°","")) ->  | DK22: =IF(COUNTIF(#REF!,60)>0,IF(COUNTIF(#REF!,90)>0,COUNTIF(#REF!,60)&"x 60° & " & COUNTIF(#REF!,90)&"x 90°",COUNTIF(#REF!,60)&"x 60° "),IF(COUNTIF(#REF!,90)>0,COUNTIF(#REF!,90)& "x 90°","")) ->  | DL22: =IF(COUNTIF(#REF!,60)>0,IF(COUNTIF(#REF!,90)>0,COUNTIF(#REF!,60)&"x 60° & " & COUNTIF(#REF!,90)&"x 90°",COUNTIF(#REF!,60)&"x 60° "),IF(COUNTIF(#REF!,90)>0,COUNTIF(#REF!,90)& "x 90°","")) ->  | DM22: =IF(COUNTIF(#REF!,60)>0,IF(COUNTIF(#REF!,90)>0,COUNTIF(#REF!,60)&"x 60° & " & COUNTIF(#REF!,90)&"x 90°",COUNTIF(#REF!,60)&"x 60° "),IF(COUNTIF(#REF!,90)>0,COUNTIF(#REF!,90)& "x 90°","")) ->  | DN22: =IF(COUNTIF(#REF!,60)>0,IF(COUNTIF(#REF!,90)>0,COUNTIF(#REF!,60)&"x 60° & " & COUNTIF(#REF!,90)&"x 90°",COUNTIF(#REF!,60)&"x 60° "),IF(COUNTIF(#REF!,90)>0,COUNTIF(#REF!,90)& "x 90°","")) ->  | DO22: =IF(COUNTIF(#REF!,60)>0,IF(COUNTIF(#REF!,90)>0,COUNTIF(#REF!,60)&"x 60° & " & COUNTIF(#REF!,90)&"x 90°",COUNTIF(#REF!,60)&"x 60° "),IF(COUNTIF(#REF!,90)>0,COUNTIF(#REF!,90)& "x 90°","")) ->  | DP22: =IF(COUNTIF(#REF!,60)>0,IF(COUNTIF(#REF!,90)>0,COUNTIF(#REF!,60)&"x 60° & " & COUNTIF(#REF!,90)&"x 90°",COUNTIF(#REF!,60)&"x 60° "),IF(COUNTIF(#REF!,90)>0,COUNTIF(#REF!,90)& "x 90°","")) ->  | DQ22: =IF(COUNTIF(#REF!,60)>0,IF(COUNTIF(#REF!,90)>0,COUNTIF(#REF!,60)&"x 60° & " & COUNTIF(#REF!,90)&"x 90°",COUNTIF(#REF!,60)&"x 60° "),IF(COUNTIF(#REF!,90)>0,COUNTIF(#REF!,90)& "x 90°","")) ->  | DR22: =IF(COUNTIF(#REF!,60)>0,IF(COUNTIF(#REF!,90)>0,COUNTIF(#REF!,60)&"x 60° & " & COUNTIF(#REF!,90)&"x 90°",COUNTIF(#REF!,60)&"x 60° "),IF(COUNTIF(#REF!,90)>0,COUNTIF(#REF!,90)& "x 90°","")) ->  | DS22: =IF(COUNTIF(#REF!,60)>0,IF(COUNTIF(#REF!,90)>0,COUNTIF(#REF!,60)&"x 60° & " & COUNTIF(#REF!,90)&"x 90°",COUNTIF(#REF!,60)&"x 60° "),IF(COUNTIF(#REF!,90)>0,COUNTIF(#REF!,90)& "x 90°","")) ->  | DT22: =IF(COUNTIF(#REF!,60)>0,IF(COUNTIF(#REF!,90)>0,COUNTIF(#REF!,60)&"x 60° & " & COUNTIF(#REF!,90)&"x 90°",COUNTIF(#REF!,60)&"x 60° "),IF(COUNTIF(#REF!,90)>0,COUNTIF(#REF!,90)& "x 90°","")) ->  | DU22: =IF(COUNTIF(#REF!,60)>0,IF(COUNTIF(#REF!,90)>0,COUNTIF(#REF!,60)&"x 60° & " & COUNTIF(#REF!,90)&"x 90°",COUNTIF(#REF!,60)&"x 60° "),IF(COUNTIF(#REF!,90)>0,COUNTIF(#REF!,90)& "x 90°","")) ->  | DV22: =IF(COUNTIF(#REF!,60)>0,IF(COUNTIF(#REF!,90)>0,COUNTIF(#REF!,60)&"x 60° & " & COUNTIF(#REF!,90)&"x 90°",COUNTIF(#REF!,60)&"x 60° "),IF(COUNTIF(#REF!,90)>0,COUNTIF(#REF!,90)& "x 90°","")) ->  | DW22: =IF(COUNTIF(#REF!,60)>0,IF(COUNTIF(#REF!,90)>0,COUNTIF(#REF!,60)&"x 60° & " & COUNTIF(#REF!,90)&"x 90°",COUNTIF(#REF!,60)&"x 60° "),IF(COUNTIF(#REF!,90)>0,COUNTIF(#REF!,90)& "x 90°","")) ->  | DX22: =IF(COUNTIF(#REF!,60)>0,IF(COUNTIF(#REF!,90)>0,COUNTIF(#REF!,60)&"x 60° & " & COUNTIF(#REF!,90)&"x 90°",COUNTIF(#REF!,60)&"x 60° "),IF(COUNTIF(#REF!,90)>0,COUNTIF(#REF!,90)& "x 90°","")) ->  | DY22: =IF(COUNTIF(#REF!,60)>0,IF(COUNTIF(#REF!,90)>0,COUNTIF(#REF!,60)&"x 60° & " & COUNTIF(#REF!,90)&"x 90°",COUNTIF(#REF!,60)&"x 60° "),IF(COUNTIF(#REF!,90)>0,COUNTIF(#REF!,90)& "x 90°","")) ->  | DZ22: =IF(COUNTIF(#REF!,60)>0,IF(COUNTIF(#REF!,90)>0,COUNTIF(#REF!,60)&"x 60° & " & COUNTIF(#REF!,90)&"x 90°",COUNTIF(#REF!,60)&"x 60° "),IF(COUNTIF(#REF!,90)>0,COUNTIF(#REF!,90)& "x 90°","")) ->  | EA22: =IF(COUNTIF(#REF!,60)>0,IF(COUNTIF(#REF!,90)>0,COUNTIF(#REF!,60)&"x 60° & " & COUNTIF(#REF!,90)&"x 90°",COUNTIF(#REF!,60)&"x 60° "),IF(COUNTIF(#REF!,90)>0,COUNTIF(#REF!,90)& "x 90°","")) ->  | EB22: =IF(COUNTIF(#REF!,60)>0,IF(COUNTIF(#REF!,90)>0,COUNTIF(#REF!,60)&"x 60° & " & COUNTIF(#REF!,90)&"x 90°",COUNTIF(#REF!,60)&"x 60° "),IF(COUNTIF(#REF!,90)>0,COUNTIF(#REF!,90)& "x 90°","")) ->  | EC22: =IF(COUNTIF(#REF!,60)>0,IF(COUNTIF(#REF!,90)>0,COUNTIF(#REF!,60)&"x 60° & " & COUNTIF(#REF!,90)&"x 90°",COUNTIF(#REF!,60)&"x 60° "),IF(COUNTIF(#REF!,90)>0,COUNTIF(#REF!,90)& "x 90°","")) ->  | ED22: =IF(COUNTIF(#REF!,60)>0,IF(COUNTIF(#REF!,90)>0,COUNTIF(#REF!,60)&"x 60° & " & COUNTIF(#REF!,90)&"x 90°",COUNTIF(#REF!,60)&"x 60° "),IF(COUNTIF(#REF!,90)>0,COUNTIF(#REF!,90)& "x 90°","")) ->  | EE22: =IF(COUNTIF(#REF!,60)>0,IF(COUNTIF(#REF!,90)>0,COUNTIF(#REF!,60)&"x 60° & " & COUNTIF(#REF!,90)&"x 90°",COUNTIF(#REF!,60)&"x 60° "),IF(COUNTIF(#REF!,90)>0,COUNTIF(#REF!,90)& "x 90°","")) ->  | EF22: =IF(COUNTIF(#REF!,60)>0,IF(COUNTIF(#REF!,90)>0,COUNTIF(#REF!,60)&"x 60° & " & COUNTIF(#REF!,90)&"x 90°",COUNTIF(#REF!,60)&"x 60° "),IF(COUNTIF(#REF!,90)>0,COUNTIF(#REF!,90)& "x 90°","")) ->  | EG22: =IF(COUNTIF(#REF!,60)>0,IF(COUNTIF(#REF!,90)>0,COUNTIF(#REF!,60)&"x 60° & " & COUNTIF(#REF!,90)&"x 90°",COUNTIF(#REF!,60)&"x 60° "),IF(COUNTIF(#REF!,90)>0,COUNTIF(#REF!,90)& "x 90°","")) ->  | EH22: =IF(COUNTIF(#REF!,60)>0,IF(COUNTIF(#REF!,90)>0,COUNTIF(#REF!,60)&"x 60° & " & COUNTIF(#REF!,90)&"x 90°",COUNTIF(#REF!,60)&"x 60° "),IF(COUNTIF(#REF!,90)>0,COUNTIF(#REF!,90)& "x 90°","")) ->  | EI22: =IF(COUNTIF(#REF!,60)>0,IF(COUNTIF(#REF!,90)>0,COUNTIF(#REF!,60)&"x 60° & " & COUNTIF(#REF!,90)&"x 90°",COUNTIF(#REF!,60)&"x 60° "),IF(COUNTIF(#REF!,90)>0,COUNTIF(#REF!,90)& "x 90°","")) ->  | EJ22: =IF(COUNTIF(#REF!,60)>0,IF(COUNTIF(#REF!,90)>0,COUNTIF(#REF!,60)&"x 60° & " & COUNTIF(#REF!,90)&"x 90°",COUNTIF(#REF!,60)&"x 60° "),IF(COUNTIF(#REF!,90)>0,COUNTIF(#REF!,90)& "x 90°","")) ->  | EK22: =IF(COUNTIF(#REF!,60)>0,IF(COUNTIF(#REF!,90)>0,COUNTIF(#REF!,60)&"x 60° & " & COUNTIF(#REF!,90)&"x 90°",COUNTIF(#REF!,60)&"x 60° "),IF(COUNTIF(#REF!,90)>0,COUNTIF(#REF!,90)& "x 90°","")) ->  | EL22: =IF(COUNTIF(#REF!,60)>0,IF(COUNTIF(#REF!,90)>0,COUNTIF(#REF!,60)&"x 60° & " & COUNTIF(#REF!,90)&"x 90°",COUNTIF(#REF!,60)&"x 60° "),IF(COUNTIF(#REF!,90)>0,COUNTIF(#REF!,90)& "x 90°","")) ->  | EM22: =IF(COUNTIF(#REF!,60)>0,IF(COUNTIF(#REF!,90)>0,COUNTIF(#REF!,60)&"x 60° & " & COUNTIF(#REF!,90)&"x 90°",COUNTIF(#REF!,60)&"x 60° "),IF(COUNTIF(#REF!,90)>0,COUNTIF(#REF!,90)& "x 90°","")) ->  | EO22: Width | EP22: Width + Edge | EQ22: 1st Option that works (Width only) | ER22: 1st option that works with edge | ES22: Number of Units Required | ET22: Field of view | EU22: Master Lens | EV22: Master | EW22: Node 1 | EX22: Node 2 | EY22: Node 3 | EZ22: Node 4 | FA22: Node 5 | FB22: Node 6 | FC22: Node 7 | FD22: Master Lens | FE22: Num units | FF22: F of v | FG22: Master | FH22: Node 1 | FI22: Node 2 | FJ22: Node 3 | FK22: Node 4 | FL22: Node 5 | FM22: Node 6 | FN22: Node 7 | FP22: Preferred Lens Option! | FQ22: Preferred Possible? | FR22: Preferred Possible Extended | FS22: Override anyway !?!?!?!?! | FT22: Number of Units Required | FU22: Typical | FV22: Minimum | FW22: Total FofV (m) | FX22: Total FofV | FY22: Master | FZ22: Node 1 | GA22: Node 2 | GB22: Node 3 | GC22: Node 4 | GD22: Node 5 | GE22: Node 6 | GF22: Node 7 | GG22: Master Lens Type | GH22: Number of Units | GI22: Total Field Of View | GJ22: Master | GK22: Node 1 | GL22: Node 2 | GM22: Node 3 | GN22: Node 4 | GO22: Node 5 | GP22: Node 6 | GQ22: Node 7 | GS22: Notes Displayed | GT22: Notes 1 (>8 units) | GU22: Note 2 (No Relay Dualviews) | GV22: Note 3 (Dualview won't see full network) | GW22: Note 4 (More than 5 units AND IP) | GX22: Master | GY22: Node 1 | GZ22: Node 2 | HA22: Node 3 | HB22: Node 4 | HC22: Node 5 | HD22: Node 6 | HE22: Node 7 | HF22: Master | HG22: Node 1 | HH22: Node 2 | HI22: Node 3 | HJ22: Node 4 | HK22: Node 5 | HL22: Node 6 | HM22: Node 7 | HN22: Num 90 deg units | HO22: Num 60 deg units | HP22: Num 40 deg units | HQ22: Total Units | HS22: 1st Unit | HT22: Last Unit 1/2 Fofv | HU22: Last Unit | HV22: 1st Unit 1/2 Fofv | HW22: Last unit 1/2 fofv | HX22: 1st & last added together | HY22: Full FofV | HZ22: Units in the middle coverage | IA22: Door width | IB22: FofV - Door | IC22: FofV - Middle | ID22: Door - Middle | IE22: 1st Unit percentage | IF22: Last Unit Percentage | IG22: 1st UNIT OFFSET | IH22: LAST UNIT OFFSET | II22: CHECK | IJ22: Master - 1 | IK22: 1-2 | IL22: 2-3 | IM22: 3-4 | IN22: 4-5 | IO22: 5-6 | IP22: 6-7 | IS22: Number of 90 deg? | IT22: Number of 60 deg? | IU22: Number of 40 deg? | IV22: Biggest Field of View | IW22: Smallest Field of View | IX22: 90 deg min | IY22: 60 deg min | IZ22: 40 deg min | JA22: 90 Typical/2 | JB22: 60 Typical/2 | JC22: 40 Typical/2 | JD22: Closest (Based on smallest fofv) | JE22: Furthest (Based on smallest fofv) | JF22: Closest (Based on Biggest fofv) | JG22: Furthest (Based on biggest fofv) | JH22: Closest | JI22: Furthest | JL22: Ident | JN22: Master | JO22: No. | JQ22: Unique Ident | JS22: Node 1 | JT22: No. | JV22: Ident | JX22: Node 2 | JY22: No. | KA22: Ident | KC22: Node 3 | KD22: No. | KF22: Ident | KH22: Node 4 | KI22: No. | KK22: Ident | KM22: Node 5 | KN22: No. | KP22: Ident | KR22: Node 6 | KS22: No. | KU22: Ident | KW22: Node 7 | KX22: No. | LB22: ident
A23: m | B23: ='Multi-Unit (Wide Opening) Stuff'!D5 -> 3.5 | C23: ='Multi-Unit (Wide Opening) Stuff'!D8 -> 10 | D23: 1 | E23: =IF(AND($B23<>"",$D23<>""),IF(AND($B23>=VLOOKUP(E$22,$K$3:$S$7,3,FALSE),$B23<=VLOOKUP(E$22,$K$3:$S$7,4,FALSE)),"YES","NO"),"") -> YES | F23: YES | G23: NO | H23: NO | I23: YES | J23: =IF(AND($B23<>"",$D23<>""),IF(AND($B23>=VLOOKUP(J$22,$K$3:$S$7,2,FALSE),$B23<=VLOOKUP(J$22,$K$3:$S$7,5,FALSE)),"YES","NO"),"") -> NO | K23: YES | L23: YES | M23: NO | N23: NO | O23: =E23 -> YES | P23: =IF(OR(F23="YES", G23="YES",I23 = "YES"), "YES", "NO") -> YES | Q23: =IF(OR(F23 = "YES",G23="YES", H23="YES"), "YES", "NO") -> YES | R23: =J23 -> NO | S23: =IF(OR(K23="YES", L23="YES",N23 = "YES"), "YES", "NO") -> YES | T23: =IF(OR(K23 = "YES",L23="YES", M23="YES"), "YES", "NO") -> YES | U23: =IF($B23<>"",$B23*VLOOKUP(U$22,'Main Calcs'!$C$30:$V$37,10,FALSE)+VLOOKUP(U$22,'Main Calcs'!$C$30:$V$36,11,FALSE),"") -> 3.695829118 | V23: =IF($B23<>"",$B23*VLOOKUP(V$22,'Main Calcs'!$C$30:$V$37,10,FALSE)+VLOOKUP(V$22,'Main Calcs'!$C$30:$V$36,11,FALSE),"") -> 3.245788336 | W23: =IF($B23<>"",$B23*VLOOKUP(W$22,'Main Calcs'!$C$30:$V$37,10,FALSE)+VLOOKUP(W$22,'Main Calcs'!$C$30:$V$36,11,FALSE),"") -> 2.0024797 | X23: =IF($B23<>"",$B23*VLOOKUP(X$22,'Main Calcs'!$C$30:$V$37,10,FALSE)+VLOOKUP(X$22,'Main Calcs'!$C$30:$V$36,11,FALSE),"") -> 0.924106165 | Y23: =IF($B23<>"",$B23*VLOOKUP(Y$22,'Main Calcs'!$C$30:$V$37,10,FALSE)+VLOOKUP(Y$22,'Main Calcs'!$C$30:$V$36,11,FALSE),"") -> 4.657510072 | Z23: =IF($B23<>"",$B23*VLOOKUP(Z$22,'Main Calcs'!$C$30:$V$37,14,FALSE)+VLOOKUP(Z$22,'Main Calcs'!$C$30:$V$37,15,FALSE),"") -> 3.445829118 | AA23: =IF($B23<>"",$B23*VLOOKUP(AA$22,'Main Calcs'!$C$30:$V$37,14,FALSE)+VLOOKUP(AA$22,'Main Calcs'!$C$30:$V$37,15,FALSE),"") -> 3.057487754 | AB23: =IF($B23<>"",$B23*VLOOKUP(AB$22,'Main Calcs'!$C$30:$V$37,14,FALSE)+VLOOKUP(AB$22,'Main Calcs'!$C$30:$V$37,15,FALSE),"") -> 1.851604221 | AC23: =IF($B23<>"",$B23*VLOOKUP(AC$22,'Main Calcs'!$C$30:$V$37,14,FALSE)+VLOOKUP(AC$22,'Main Calcs'!$C$30:$V$37,15,FALSE),"") -> 0.874038484 | AD23: =IF($B23<>"",$B23*VLOOKUP(AD$22,'Main Calcs'!$C$30:$V$37,14,FALSE)+VLOOKUP(AD$22,'Main Calcs'!$C$30:$V$37,15,FALSE),"") -> 4.420396781 | AE23: =IF($B23<>"",$B23*VLOOKUP(AE$22,'Main Calcs'!$C$30:$V$37,12,FALSE)+VLOOKUP(AE$22,'Main Calcs'!$C$30:$V$36,13,FALSE),"") -> 2.651645205 | AF23: =IF($B23<>"",$B23*VLOOKUP(AF$22,'Main Calcs'!$C$30:$V$37,12,FALSE)+VLOOKUP(AF$22,'Main Calcs'!$C$30:$V$36,13,FALSE),"") -> 3.245788336 | AG23: =IF($B23<>"",$B23*VLOOKUP(AG$22,'Main Calcs'!$C$30:$V$37,12,FALSE)+VLOOKUP(AG$22,'Main Calcs'!$C$30:$V$36,13,FALSE),"") -> 2.0024797 | AH23: =IF($B23<>"",$B23*VLOOKUP(AH$22,'Main Calcs'!$C$30:$V$37,12,FALSE)+VLOOKUP(AH$22,'Main Calcs'!$C$30:$V$36,13,FALSE),"") -> 0.924106165 | AI23: =IF($B23<>"",$B23*VLOOKUP(AI$22,'Main Calcs'!$C$30:$V$37,12,FALSE)+VLOOKUP(AI$22,'Main Calcs'!$C$30:$V$36,13,FALSE),"") -> 4.657510072 | AJ23: =IF($B23<>"",$B23*VLOOKUP(AJ$22,'Main Calcs'!$C$30:$V$37,16,FALSE)+VLOOKUP(AJ$22,'Main Calcs'!$C$30:$V$37,17,FALSE),"") -> 2.401645205 | AK23: =IF($B23<>"",$B23*VLOOKUP(AK$22,'Main Calcs'!$C$30:$V$37,16,FALSE)+VLOOKUP(AK$22,'Main Calcs'!$C$30:$V$37,17,FALSE),"") -> 3.057487754 | AL23: =IF($B23<>"",$B23*VLOOKUP(AL$22,'Main Calcs'!$C$30:$V$37,16,FALSE)+VLOOKUP(AL$22,'Main Calcs'!$C$30:$V$37,17,FALSE),"") -> 1.851604221 | AM23: =IF($B23<>"",$B23*VLOOKUP(AM$22,'Main Calcs'!$C$30:$V$37,16,FALSE)+VLOOKUP(AM$22,'Main Calcs'!$C$30:$V$37,17,FALSE),"") -> 0.874038484 | AN23: =IF($B23<>"",$B23*VLOOKUP(AN$22,'Main Calcs'!$C$30:$V$37,16,FALSE)+VLOOKUP(AN$22,'Main Calcs'!$C$30:$V$37,17,FALSE),"") -> 4.420396781 | AO23: =IF($C23<>"",IF(($C23+$R$9)<U23,1,CEILING(($C23+$R$9-U23)/Z23+1,1)),"") -> 3 | AP23: =IF($C23<>"",IF(($C23+$R$9)<V23,1,CEILING(($C23+$R$9-V23)/AA23+1,1)),"") -> 4 | AQ23: 6 | AR23: 12 | AS23: 3 | AT23: =IF($D23<>"",IF($D23=0,0,IF(($D23+$R$9)<AE23,1,CEILING(($D23+$R$9-AE23)/AJ23+1,1))),"") -> 1 | AU23: =IF($D23<>"",IF($D23=0,0,IF(($D23+$R$9)<AF23,1,CEILING(($D23+$R$9-AF23)/AK23+1,1))),"") -> 1 | AV23: 1 | AW23: 2 | AX23: 1 | AY23: =AO23*AT23 -> 3 | AZ23: =AP23*AU23 -> 4 | BA23: 6 | BB23: 24 | BC23: 3 | BD23: =E23 -> YES | BE23: =IF($BD23="YES",AO23,"") -> 3 | BF23: =IF($BD23="YES",AT23,"") -> 1 | BG23: =IF($BD23="YES",AO23*AT23,"") -> 3 | BH23: =INDEX($AY$22:$BC$22,MATCH(MIN($AY23:BC23),$AY23:BC23,0)) -> 75° | BI23: =IF($BH23<>"",HLOOKUP($BH23,$AY$22:$BC23,2,FALSE)) -> 3 | BJ23: =IF($E23="YES","75°",IF($G23="YES","40°",IF($H23="YES","20°",""))) -> 75° | BK23: ='Multi-Unit (Wide Opening) Stuff'!B15 -> Vector | BL23: ='Multi-Unit (Wide Opening) Stuff'!B16 -> 75° | BM23: =IF(F23="YES","60°",IF(G23="YES","40°",IF(K23="Yes","60°",IF(L23="YES","40°","")))) -> 60° | BN23: =IF(E23="YES","75°","") -> 75° | BO23: =IF(F23="YES","60°",IF(G23="YES","40°",IF(H23="YES","20°",IF(K23="Yes","60°",IF(L23="YES","40°",IF(M23="YES","20°","")))))) -> 60° | BP23: =IF(BK23="Auto",IF(BN23<>"","Vector",IF(BM23<>"","Gazelle",IF(BO23<>"","Outdoor",""))),"") ->  | BQ23: =IF(BP23="","",IF(BP23="Vector", "75°",IF(BP23="Gazelle",IF(F23="YES","60°",IF(G23="YES","40°",IF(K23="YES","60°",IF(L23="YES","40°","Whoops")))),IF(BP23="Outdoor",IF(F23="YES","60°",IF(G23="YES","40°",IF(H23="YES","20°","Whoops"))))))) ->  | BR23: =IF(BK23<>"Auto",BK23,BP23) -> Vector | BS23: =IF(BL23="Auto",IF(BK23="Gazelle",BM23,IF(BK23="Vector",BN23,IF(BK23="Outdoor",BO23,IF(BK23="Auto",BQ23,"Whoops")))),BL23) -> 75° | BT23: =HLOOKUP($BS23,$AO$22:$AS23,ROW()-21,FALSE) -> 3 | BU23: =HLOOKUP($BS23,$AT$22:$AX23,ROW()-21,FALSE) -> 1 | BV23: =BT23*BU23 -> 3 | BW23: =IF($D23<>"",HLOOKUP($BS23,$U$22:$Y23,ROW()-21,FALSE),"") -> 3.695829118 | BX23: =IF($D23<>"",HLOOKUP($BS23,$Z$22:$AD23,ROW()-21,FALSE),"") -> 3.445829118 | BY23: =IF(BX23<>"",BX23,"") -> 3.445829118 | BZ23: =IF(ISNUMBER($BT23),IF($BT23>1,$BW23+($BX23*($BT23-1)),$BW23),"") -> 10.58748735 | CA23: =IF($D23<>"",HLOOKUP($BS23,$AE$22:$AI23,ROW()-21,FALSE),"") -> 2.651645205 | CB23: =IF($D23<>"",HLOOKUP($BS23,$AJ$22:$AN23,ROW()-21,FALSE),"") -> 2.401645205 | CC23: =IF(CB23<>"",CB23,"") -> 2.401645205 | CD23: =IF(ISNUMBER($BU23),IF($BU23>1,$CA23+($CB23*($BU23-1)),$CA23),"") -> 2.651645205 | CE23: =IF(BR23<>"",VLOOKUP($BR23&$BS23&$L$9&$L$10,Dropdowns!$R$2:$S$29,2,FALSE),"") -> N/A | CF23: =IF($BR23<>"",IF($BV23>1,VLOOKUP($BR23 & $BS23 & $L$9,Dropdowns!$X$2:$Y$11,2,FALSE),"-"),"") -> IRC6337-SW | CG23: =IF($BR23<>"",IF($BV23>2,VLOOKUP($BR23 & $BS23 & $L$9,Dropdowns!$X$2:$Y$11,2,FALSE),"-"),"") -> IRC6337-SW | CH23: =IF($BR23<>"",IF($BV23>3,VLOOKUP($BR23 & $BS23 & $L$9,Dropdowns!$X$2:$Y$11,2,FALSE),"-"),"") -> - | CI23: =IF($BR23<>"",IF($BV23>4,VLOOKUP($BR23 & $BS23 & $L$9,Dropdowns!$X$2:$Y$11,2,FALSE),"-"),"") -> - | CJ23: =IF($BR23<>"",IF($BV23>5,VLOOKUP($BR23 & $BS23 & $L$9,Dropdowns!$X$2:$Y$11,2,FALSE),"-"),"") -> - | CK23: =IF($BR23<>"",IF($BV23>6,VLOOKUP($BR23 & $BS23 & $L$9,Dropdowns!$X$2:$Y$11,2,FALSE),"-"),"") -> - | CL23: =IF($BR23<>"",IF($BV23>7,VLOOKUP($BR23 & $BS23 & $L$9,Dropdowns!$X$2:$Y$11,2,FALSE),"-"),"") -> - | CM23: =IF(CD23<>"",IF(CD23-D23<$R$9,"Y","N"),"") -> N | CN23: =IF(B23<>"",B23*$P$4+$Q$4,"") ->  | CO23: =IF(B23<>"",B23*$P$3+$Q$3,"") ->  | CP23: =IF(CN23<>"",CN23/2,"") ->  | CQ23: =IF(CO23<>"",CO23/2,"") ->  | CR23: =Y23 -> 4.657510072 | CS23: =IF(CR23<>"",CR23/2+CT23/2,"") -> 3.329994886 | CT23: =W23 -> 2.0024797 | CU23: 0 | CV23: =INDEX($CN23:$CU23,1,VLOOKUP(CV$9,$AS$3:$AT$10,2, FALSE))+INDEX($CN23:$CU23,1,VLOOKUP(CV$10,$AS$3:$AT$10,2, FALSE))+INDEX($CN23:$CU23,1,VLOOKUP(CV$11,$AS$3:$AT$10,2, FALSE))+INDEX($CN23:$CU23,1,VLOOKUP(CV$12,$AS$3:$AT$10,2, FALSE))+INDEX($CN23:$CU23,1,VLOOKUP(CV$13,$AS$3:$AT$10,2, FALSE))+INDEX($CN23:$CU23,1,VLOOKUP(CV$14,$AS$3:$AT$10,2, FALSE))+INDEX($CN23:$CU23,1,VLOOKUP(CV$15,$AS$3:$AT$10,2, FALSE))+INDEX($CN23:$CU23,1,VLOOKUP(CV$16,$AS$3:$AT$10,2, FALSE))+INDEX($CN23:$CU23,1,VLOOKUP(CV$17,$AS$3:$AT$10,2, FALSE)) ->  | EO23: =IF(D23<>"",D23,"") -> 1 | EP23: =IF(EO23<>"",EO23+$R$9,"") -> 1 | EQ23: =IF(EM23>EO23,MATCH(TRUE,INDEX($CV23:$EM23>EO23,0),),"N/A") ->  | ER23: =IF(AND(ISNUMBER(EP23),EM23>EP23),MATCH(TRUE,INDEX($CV23:$EM23>EP23,0),),"N/A") ->  | ES23: =IF(ISNUMBER(ER23),HLOOKUP(ER23,$CV$19:$EM$20,2),"N/A") -> N/A | ET23: =IF(AND(B23<>"",ISNUMBER(ER23)),INDEX(CV23:EM23,1,ER23),"") ->  | EU23: =IF(ISNUMBER(ER23),INDEX($CV$22:$EM$22,1,ER23),"") ->  | EV23: =IF(ISNUMBER(ER23),VLOOKUP(INDEX($CV$22:$EM$22,1,ER23)&$L$9&$L$10,Dropdowns!$R$2:$S$13,2,FALSE),"") ->  | EW23: =IF(ISNUMBER($ER23),IF(INDEX($CV$23:$EM$23,1,ER23)<>"",VLOOKUP(INDEX($CV$23:$EM$23,1,ER23),Dropdowns!$V$2:$Y$4,2,FALSE),"-"),"") ->  | EX23: =IF(ISNUMBER($ER23),IF(INDEX($CV$3:$EM$3,1,ER23)<>"",VLOOKUP(INDEX($CV$3:$EM$3,1,ER23),Dropdowns!$V$2:$Y$4,2,FALSE),"-"),"") ->  | EY23: =IF(ISNUMBER($ER23),IF(INDEX($CV$4:$EM$4,1,ER23)<>"",VLOOKUP(INDEX($CV$4:$EM$4,1,ER23),Dropdowns!$V$2:$Y$4,2,FALSE),"-"),"") ->  | EZ23: =IF(ISNUMBER($ER23),IF(INDEX($CV$5:$EM$5,1,ER23)<>"",VLOOKUP(INDEX($CV$5:$EM$5,1,ER23),Dropdowns!$V$2:$Y$4,2,FALSE),"-"),"") ->  | FA23: =IF(ISNUMBER($ER23),IF(INDEX($CV$6:$EM$6,1,ER23)<>"",VLOOKUP(INDEX($CV$6:$EM$6,1,ER23),Dropdowns!$V$2:$Y$4,2,FALSE),"-"),"") ->  | FB23: =IF(ISNUMBER($ER23),IF(INDEX($CV$7:$EM$7,1,ER23)<>"",VLOOKUP(INDEX($CV$7:$EM$7,1,ER23),Dropdowns!$V$2:$Y$4,2,FALSE),"-"),"") ->  | FC23: =IF(ISNUMBER($ER23),IF(INDEX($CV$8:$EM$8,1,ER23)<>"",VLOOKUP(INDEX($CV$8:$EM$8,1,ER23),Dropdowns!$V$2:$Y$4,2,FALSE),"-"),"") ->  | FD23: =IF(BH23=40,40,IF(BH23="",BJ23,EU23)) ->  | FE23: =IF(AND(B23<>"",D23<>""),IF($FD23="","N/A",IF(FD23=90,ES23,BK23)),"") -> N/A | FF23: =IF(ISNUMBER(FE23),IF($FD23="","",IF(FD23=90,ET23,BZ23)),"") ->  | FG23: =IF(OR(B23="",D23=""),"",IF(OR($FD23="",$FE23>8),"",IF($FD23=90,$EV23,$CE23))) ->  | FH23: =IF(OR($FD23="",$FE23="N/A",$FG23="",$FG23="N/A"),"",IF($FD23=90,EW23,CF23)) ->  | FO23: =IF(FG23<>"","-","") ->  | FP23: =IF(noidea="","Auto",noidea) ->  | FQ23: =IF(FP23="Auto","",HLOOKUP(FP23,$D2:$F$21,ROW()-21,FALSE)) ->  | FR23: =IF(FP23="Auto","",HLOOKUP(FP23,$G2:$I$21,ROW()-21,FALSE)) ->  | FS23: =IF(FP23="Auto","",IF(noidea="Override","Yes","No")) ->  | FT23: =IF(OR(FQ23="YES",FR23="YES",FS23="Yes"),HLOOKUP(FP23,$P2:$R$21,ROW()-20,FALSE),"") ->  | FU23: =IF($FT23<>"",IF($FP23="90°",U23,IF($FP23="60°",V23,IF($FP23="40°",X23,""))),"") ->  | FV23: =IF($FT23<>"",IF($FP23="90°",Y23,IF($FP23="60°",W23,IF($FP23="40°",Z23,""))),"") ->  | FW23: =IF(FT23<>"",IF(FT23>1,FU23+(FV23*(FT23-1)),FU23),"") ->  | FX23: =IF(FW23<>"",FW23*VLOOKUP(A23,$B$3:$D$7,3,FALSE),"") ->  | FY23: =IF(AND(FP23<>"Auto",FP23<>"",FT23<>"",FT23<=8),VLOOKUP(LEFT(FP23,2)&$L$9&$L$10,Dropdowns!$R$2:$S$13,2,FALSE),"") ->  | FZ23: =IF(AND($FP23<>"Auto",$FP23<>"",$FT23<>"",$FY23<>""),IF($FT23>1,VLOOKUP(VALUE(LEFT($FP23,2)),Dropdowns!$V$2:$Y$4,2,FALSE),"-"),"") ->  | GA23: =IF(AND($FP23<>"Auto",$FP23<>"",$FT23<>"",$FY23<>""),IF($FT23>2,VLOOKUP(VALUE(LEFT($FP23,2)),Dropdowns!$V$2:$Y$4,2,FALSE),"-"),"") ->  | GB23: =IF(AND($FP23<>"Auto",$FP23<>"",$FT23<>"",$FY23<>""),IF($FT23>3,VLOOKUP(VALUE(LEFT($FP23,2)),Dropdowns!$V$2:$Y$4,2,FALSE),"-"),"") ->  | GC23: =IF(AND($FP23<>"Auto",$FP23<>"",$FT23<>"",$FY23<>""),IF($FT23>4,VLOOKUP(VALUE(LEFT($FP23,2)),Dropdowns!$V$2:$Y$4,2,FALSE),"-"),"") ->  | GD23: =IF(AND($FP23<>"Auto",$FP23<>"",$FT23<>"",$FY23<>""),IF($FT23>5,VLOOKUP(VALUE(LEFT($FP23,2)),Dropdowns!$V$2:$Y$4,2,FALSE),"-"),"") ->  | GE23: =IF(AND($FP23<>"Auto",$FP23<>"",$FT23<>"",$FY23<>""),IF($FT23>6,VLOOKUP(VALUE(LEFT($FP23,2)),Dropdowns!$V$2:$Y$4,2,FALSE),"-"),"") ->  | GF23: =IF(AND($FP23<>"Auto",$FP23<>"",$FT23<>"",$FY23<>""),IF($FT23>7,VLOOKUP(VALUE(LEFT($FP23,2)),Dropdowns!$V$2:$Y$4,2,FALSE),"-"),"") ->  | GG23: =IF(OR($FP23="Auto",$FP23=""),$FD23,VALUE(LEFT($FP23,2))) ->  | GH23: =IF(OR($FP23="Auto",$FP23=""),$FE23,$FT23) ->  | GI23: =IF(OR($FP23="Auto",$FP23=""),$FF23,$FW23) ->  | GJ23: =IF(OR($FP23="Auto",$FP23=""),FG23,FY23) ->  | GR23: =IF(GJ23<>"","-","") ->  | GS23: =IF(ISNUMBER(GH23),IF(GU23<>"",GU23,IF(GT23<>"",GT23,IF(GW23<>"",GW23 & GV23,GV23))),"") ->  | GT23: =IF(GH23<>"",IF(AND(ISNUMBER(GH23),GH23>8),"More than eight counters required. ",""),"") ->  | GU23: =IF(B23<>"",IF(AND($L$9="Relay",$L$10="Yes"),"DualView Relay Counters not available",""),"") ->  | GV23: =IF(AND(ISNUMBER(GH23),B23<>"",$L$9="IP",$L$10="Yes"),IF(OR(AND(GG23=40,GH23>5),AND(GG23=60,GH23>3),AND(GG23=90,GH23>1)),"DualView Master will not see whole of thermal view.",""),"") ->  | GW23: =IF($L$9<>"IP","",IF(GH23<>"",IF(AND(ISNUMBER(GH23),GH23>5),"Note: PoE cannot be used when over five units! ",""),"")) ->  | GX23: =IF(LEN(GJ23)<>10,"",VALUE(MID(GJ23,7,1))) ->  | GY23: =IF(LEN(GK23)<>10,"",VALUE(MID(GK23,7,1))) ->  | HF23: =IF(GX23="","",IF(GX23=9,$J$3,IF(GX23=6,$J$4,$J$5))) ->  | HG23: =IF(GY23="","",IF(GY23=9,$J$3,IF(GY23=6,$J$4,$J$5))) ->  | HN23: =COUNTIF($GX23:$HE23,"=9") -> 0 | HO23: =COUNTIF($GX23:$HE23,"=6") -> 0 | HP23: =COUNTIF($GX23:$HE23,"=4") -> 0 | HQ23: =SUM(HN23:HP23) -> 0 | HS23: =GJ23 ->  | HT23: =INDEX(GJ23:GQ23,1,HU23) ->  | HU23: =MATCH("-",GK23:GR23,0) ->  | HV23: =IF(LEN(HS23)<>10,"",HLOOKUP((MID(HS23,7,1)&"0 Typical"),$J2:$O$21,ROW()-21,FALSE)/2) ->  | HW23: =IF(LEN(HS23)<>10,"",HLOOKUP((MID(HT23,7,1)&"0 Typical"),$J2:$O$21,ROW()-21,FALSE)/2) ->  | HX23: =IF(HS23<>"",(HV23+HW23),"") ->  | HY23: =GI23 ->  | HZ23: =GI23-HX23 ->  | IA23: =D23 -> 1 | IB23: =HY23-IA23 ->  | IC23: =HY23-HZ23 ->  | ID23: =IA23-HZ23 ->  | IE23: =(HX23/HW23)/2 ->  | IF23: =(HX23/HV23)/2 ->  | IG23: =IF(LEN(HS23)<>10,"",ID23*(IE23/(IE23+IF23))) ->  | IH23: =ID23*(IF23/(IE23+IF23)) ->  | II23: =IH23+IG23+HZ23 ->  | IJ23: =IF(LEN(GJ23)<>10,"-",IF(LEN(GK23)<>10,$IH23,(HLOOKUP((MID(GJ23,7,1)&"0 Minimum"),$J2:$O$21,ROW()-21,FALSE)/2) + (HLOOKUP((MID(GK23,7,1)&"0 Minimum"),$J2:$O$21,ROW()-21,FALSE)/2))) ->  | IK23: =IF(LEN(GK23)<>10,"-",IF(LEN(GL23)<>10,$IH23,(HLOOKUP((MID(GK23,7,1)&"0 Minimum"),$J2:$O$21,ROW()-21,FALSE)/2) + (HLOOKUP((MID(GL23,7,1)&"0 Minimum"),$J2:$O$21,ROW()-21,FALSE)/2))) ->  | IL23: =IF(LEN(GL23)<>10,"-",IF(LEN(GM23)<>10,$IH23,(HLOOKUP((MID(GL23,7,1)&"0 Minimum"),$J2:$O$21,ROW()-21,FALSE)/2) + (HLOOKUP((MID(GM23,7,1)&"0 Minimum"),$J2:$O$21,ROW()-21,FALSE)/2))) ->  | IM23: =IF(LEN(GM23)<>10,"-",IF(LEN(GN23)<>10,$IH23,(HLOOKUP((MID(GM23,7,1)&"0 Minimum"),$J2:$O$21,ROW()-21,FALSE)/2) + (HLOOKUP((MID(GN23,7,1)&"0 Minimum"),$J2:$O$21,ROW()-21,FALSE)/2))) ->  | IN23: =IF(LEN(GN23)<>10,"-",IF(LEN(GO23)<>10,$IH23,(HLOOKUP((MID(GN23,7,1)&"0 Minimum"),$J2:$O$21,ROW()-21,FALSE)/2) + (HLOOKUP((MID(GO23,7,1)&"0 Minimum"),$J2:$O$21,ROW()-21,FALSE)/2))) ->  | IO23: =IF(LEN(GO23)<>10,"-",IF(LEN(GP23)<>10,$IH23,(HLOOKUP((MID(GO23,7,1)&"0 Minimum"),$J2:$O$21,ROW()-21,FALSE)/2) + (HLOOKUP((MID(GP23,7,1)&"0 Minimum"),$J2:$O$21,ROW()-21,FALSE)/2))) ->  | IP23: =IF(LEN(GP23)<>10,"-",IF(LEN(GQ23)<>10,$IH23,(HLOOKUP((MID(GP23,7,1)&"0 Minimum"),$J2:$O$21,ROW()-21,FALSE)/2) + (HLOOKUP((MID(GQ23,7,1)&"0 Minimum"),$J2:$O$21,ROW()-21,FALSE)/2))) ->  | IQ23: =IF(LEN(GQ23)<>10,"-",IF(LEN(GR23)<>10,$IH23,(HLOOKUP((MID(GQ23,7,1)&"0 Minimum"),$J2:$O$21,ROW()-21,FALSE)/2) + (HLOOKUP((MID(GR23,7,1)&"0 Minimum"),$J2:$O$21,ROW()-21,FALSE)/2))) ->  | IS23: =COUNTIF($GX23:$HE23,9) -> 0 | IT23: =COUNTIF($GX23:$HE23,6) -> 0 | IU23: =COUNTIF($GX23:$HE23,4) -> 0 | IV23: =IF($IS23>0,90,IF($IT23>0,60,IF($IU23>0,40,""))) ->  | IW23: =IF($IU23>0,40,IF($IT23>0,60,IF($IS23>0,90,""))) ->  | IX23: 1 | IY23: =IF((JB23/100)*$IY$20<1,1,(JB23/100)*$IY$20) ->  | IZ23: =IF((JC23/100)*$IZ$20<1,1,(JC23/100)*$IZ$20) ->  | JA23: =IF(B23<>"",(B23*$P$3+$Q$3)/2,"") ->  | JB23: =IF(B23<>"",(B23*$P$4+$Q$4)/2,"") ->  | JC23: =IF(B23<>"",(B23*$P$5+$Q$5)/2,"") ->  | JD23: =IF(IW23<>"",HLOOKUP(IW23&" deg min",$HX2:$HZ$21,ROW()-21,FALSE),"") ->  | JE23: =IF(IW23<>"",HLOOKUP(IW23&" Typical/2",$IA2:$IC$21,ROW()-21,FALSE),"") ->  | JF23: =IF(IV23<>"",HLOOKUP(IV23&" deg min",$HX2:$HZ$21,ROW()-21,FALSE),"") ->  | JG23: =IF(IV23<>"",HLOOKUP(IV23&" Typical/2",$IA2:$IC$21,ROW()-21,FALSE),"") ->  | JH23: =IF(AND(IS23>0,IT23=0,IU23=0),1,IF(IU23>0,IZ23,IF(IT23>0,IY23,""))) ->  | JI23: =IF(IU23>0,JC23,IF(IT23>0,JB23,IF(IS23>0,JA23,""))) ->  | JK23: =IF(AND(GJ23<>"-",GJ23<>"",GJ23<>"N/A"),GJ23,NA()) ->  | JL23: 1 | JM23: =IFERROR(INDEX($ID$24:$ID$522,SMALL(IF(ISNA($ID$24:$ID$522),"",ROW($ID$24:$ID$522)-MIN(ROW($ID$24:$ID$522))+1),ROW(#REF!))),"") ->  | JN23: =IFERROR(VLOOKUP(ROW()-22,$IE$24:$IF$522,2,FALSE),"") ->  | JO23: =COUNTIF(IF$24:IF$614,JN23) -> 591 | JP23: =IF(AND(GK23<>"-",GK23<>""),GK23,NA()) ->  | JQ23: 1 | JR23: =IFERROR(INDEX($II$24:$II$522,SMALL(IF(ISNA($II$24:$II$522),"",ROW($II$24:$II$522)-MIN(ROW($II$24:$II$522))+1),ROW(#REF!))),"") ->  | JS23: =IFERROR(VLOOKUP(ROW()-22,$IJ$24:$IK$522,2,FALSE),"") ->  | JT23: =COUNTIF(IK$24:IK$614,JS23) -> 591 | JU23: =IF(AND(GL23<>"-",GL23<>""),GL23,NA()) ->  | JV23: 1 | JW23: =IFERROR(INDEX($IN$24:$IN$522,SMALL(IF(ISNA($IN$24:$IN$522),"",ROW($IN$24:$IN$522)-MIN(ROW($IN$24:$IN$522))+1),ROW(#REF!))),"") ->  | JX23: =IFERROR(VLOOKUP(ROW()-22,$IO$24:$IP$522,2,FALSE),"") ->  | JY23: =COUNTIF(IP$24:IP$614,JX23) -> 591 | JZ23: =IF(AND(GM23<>"-",GM23<>""),GM23,NA()) ->  | KA23: 1 | KB23: =IFERROR(INDEX($IS$24:$IS$522,SMALL(IF(ISNA($IS$24:$IS$522),"",ROW($IS$24:$IS$522)-MIN(ROW($IS$24:$IS$522))+1),ROW(#REF!))),"") ->  | KC23: =IFERROR(VLOOKUP(ROW()-22,$IT$24:$IU$522,2,FALSE),"") ->  | KD23: =COUNTIF(IU$24:IU$614,KC23) -> 591 | KE23: =IF(AND(GN23<>"-",GN23<>""),GN23,NA()) ->  | KF23: 1 | KG23: =IFERROR(INDEX($IX$24:$IX$522,SMALL(IF(ISNA($IX$24:$IX$522),"",ROW($IX$24:$IX$522)-MIN(ROW($IX$24:$IX$522))+1),ROW(#REF!))),"") ->  | KH23: =IFERROR(VLOOKUP(ROW()-22,$IY$24:$IZ$522,2,FALSE),"") ->  | KI23: =COUNTIF(IZ$24:IZ$614,KH23) -> 591 | KJ23: =IF(AND(GO23<>"-",GO23<>""),GO23,NA()) ->  | KK23: 1 | KL23: =IFERROR(INDEX($JC$24:$JC$522,SMALL(IF(ISNA($JC$24:$JC$522),"",ROW($JC$24:$JC$522)-MIN(ROW($JC$24:$JC$522))+1),ROW(#REF!))),"") ->  | KM23: =IFERROR(VLOOKUP(ROW()-22,$JD$24:$JE$522,2,FALSE),"") ->  | KN23: =COUNTIF(JE$24:JE$614,KM23) -> 591 | KO23: =IF(AND(GP23<>"-",GP23<>""),GP23,NA()) ->  | KP23: 1 | KQ23: =IFERROR(INDEX($JH$24:$JH$522,SMALL(IF(ISNA($JH$24:$JH$522),"",ROW($JH$24:$JH$522)-MIN(ROW($JH$24:$JH$522))+1),ROW(#REF!))),"") ->  | KR23: =IFERROR(VLOOKUP(ROW()-22,$JI$24:$JJ$522,2,FALSE),"") ->  | KS23: =COUNTIF(JJ$24:JJ$614,KR23) -> 591 | KT23: =IF(AND(GQ23<>"-",GQ23<>""),GQ23,NA()) ->  | KU23: 1 | KV23: =IFERROR(INDEX($JM$24:$JM$522,SMALL(IF(ISNA($JM$24:$JM$522),"",ROW($JM$24:$JM$522)-MIN(ROW($JM$24:$JM$522))+1),ROW(#REF!))),"") ->  | KW23: =IFERROR(VLOOKUP(ROW()-22,$JN$24:$JO$522,2,FALSE),"") ->  | KX23: =COUNTIF(JO$24:JO$614,KW23) -> 591 | KY23: =IF(AND(JS23<>"-",JS23<>""),JS23,NA()) ->  | KZ23: =IF(AND(JT23<>"-",JT23<>""),JT23,NA()) -> 591 | LA23: =IF(ISERROR(KY23),NA(),KZ23) ->  | LB23: 1 | LC23: =IFERROR(INDEX($JR$24:$JR$92,SMALL(IF(ISNA($JR$24:$JR$92),"",ROW($JR$24:$JR$92)-MIN(ROW($JR$24:$JR$92))+1),ROW(#REF!))),"") ->  | LD23: =IFERROR(INDEX($JT$24:$JT$92,SMALL(IF(ISNA($JT$24:$JT$92),"",ROW($JT$24:$JT$92)-MIN(ROW($JT$24:$JT$92))+1),ROW(#REF!))),"") ->  | LE23: =IFERROR(VLOOKUP(ROW()-22,JU2:JV23,2,FALSE),"") ->  | LF23: =SUMIF(JV23:JV71,LE23,JW23:JW71) -> 0
A24: m | B24: ='Multi-Unit (Array) Stuff'!D5 -> 3.5 | C24: =IF('Multi-Unit (Array) Stuff'!D8>0,'Multi-Unit (Array) Stuff'!D8,1) -> 6 | D24: =IF('Multi-Unit (Array) Stuff'!D9>0,'Multi-Unit (Array) Stuff'!D9,1) -> 5 | E24: YES | F24: YES | G24: NO | H24: NO | I24: YES | J24: NO | K24: YES | L24: YES | M24: NO | N24: NO | O24: =E24 -> YES | P24: =IF(OR(F24="YES", G24="YES",I24 = "YES"), "YES", "NO") -> YES | Q24: =IF(OR(F24 = "YES",G24="YES", H24="YES"), "YES", "NO") -> YES | R24: =J24 -> NO | S24: =IF(OR(K24="YES", L24="YES",N24 = "YES"), "YES", "NO") -> YES | T24: =IF(OR(K24 = "YES",L24="YES", M24="YES"), "YES", "NO") -> YES | U24: =IF($B24<>"",$B24*VLOOKUP(U$22,'Main Calcs'!$C$30:$V$37,10,FALSE)+VLOOKUP(U$22,'Main Calcs'!$C$30:$V$36,11,FALSE),"") -> 3.695829118 | V24: =IF($B24<>"",$B24*VLOOKUP(V$22,'Main Calcs'!$C$30:$V$37,10,FALSE)+VLOOKUP(V$22,'Main Calcs'!$C$30:$V$36,11,FALSE),"") -> 3.245788336 | W24: =IF($B24<>"",$B24*VLOOKUP(W$22,'Main Calcs'!$C$30:$V$37,10,FALSE)+VLOOKUP(W$22,'Main Calcs'!$C$30:$V$36,11,FALSE),"") -> 2.0024797 | X24: =IF($B24<>"",$B24*VLOOKUP(X$22,'Main Calcs'!$C$30:$V$37,10,FALSE)+VLOOKUP(X$22,'Main Calcs'!$C$30:$V$36,11,FALSE),"") -> 0.924106165 | Y24: =IF($B24<>"",$B24*VLOOKUP(Y$22,'Main Calcs'!$C$30:$V$37,10,FALSE)+VLOOKUP(Y$22,'Main Calcs'!$C$30:$V$36,11,FALSE),"") -> 4.657510072 | Z24: =IF($B24<>"",$B24*VLOOKUP(Z$22,'Main Calcs'!$C$30:$V$37,14,FALSE)+VLOOKUP(Z$22,'Main Calcs'!$C$30:$V$37,15,FALSE),"") -> 3.445829118 | AA24: =IF($B24<>"",$B24*VLOOKUP(AA$22,'Main Calcs'!$C$30:$V$37,14,FALSE)+VLOOKUP(AA$22,'Main Calcs'!$C$30:$V$37,15,FALSE),"") -> 3.057487754 | AB24: =IF($B24<>"",$B24*VLOOKUP(AB$22,'Main Calcs'!$C$30:$V$37,14,FALSE)+VLOOKUP(AB$22,'Main Calcs'!$C$30:$V$37,15,FALSE),"") -> 1.851604221 | AC24: =IF($B24<>"",$B24*VLOOKUP(AC$22,'Main Calcs'!$C$30:$V$37,14,FALSE)+VLOOKUP(AC$22,'Main Calcs'!$C$30:$V$37,15,FALSE),"") -> 0.874038484 | AD24: =IF($B24<>"",$B24*VLOOKUP(AD$22,'Main Calcs'!$C$30:$V$37,14,FALSE)+VLOOKUP(AD$22,'Main Calcs'!$C$30:$V$37,15,FALSE),"") -> 4.420396781 | AE24: =IF($B24<>"",$B24*VLOOKUP(AE$22,'Main Calcs'!$C$30:$V$37,12,FALSE)+VLOOKUP(AE$22,'Main Calcs'!$C$30:$V$36,13,FALSE),"") -> 2.651645205 | AF24: =IF($B24<>"",$B24*VLOOKUP(AF$22,'Main Calcs'!$C$30:$V$37,12,FALSE)+VLOOKUP(AF$22,'Main Calcs'!$C$30:$V$36,13,FALSE),"") -> 3.245788336 | AG24: =IF($B24<>"",$B24*VLOOKUP(AG$22,'Main Calcs'!$C$30:$V$37,12,FALSE)+VLOOKUP(AG$22,'Main Calcs'!$C$30:$V$36,13,FALSE),"") -> 2.0024797 | AH24: =IF($B24<>"",$B24*VLOOKUP(AH$22,'Main Calcs'!$C$30:$V$37,12,FALSE)+VLOOKUP(AH$22,'Main Calcs'!$C$30:$V$36,13,FALSE),"") -> 0.924106165 | AI24: =IF($B24<>"",$B24*VLOOKUP(AI$22,'Main Calcs'!$C$30:$V$37,12,FALSE)+VLOOKUP(AI$22,'Main Calcs'!$C$30:$V$36,13,FALSE),"") -> 4.657510072 | AJ24: =IF($B24<>"",$B24*VLOOKUP(AJ$22,'Main Calcs'!$C$30:$V$37,16,FALSE)+VLOOKUP(AJ$22,'Main Calcs'!$C$30:$V$37,17,FALSE),"") -> 2.401645205 | AK24: =IF($B24<>"",$B24*VLOOKUP(AK$22,'Main Calcs'!$C$30:$V$37,16,FALSE)+VLOOKUP(AK$22,'Main Calcs'!$C$30:$V$37,17,FALSE),"") -> 3.057487754 | AL24: =IF($B24<>"",$B24*VLOOKUP(AL$22,'Main Calcs'!$C$30:$V$37,16,FALSE)+VLOOKUP(AL$22,'Main Calcs'!$C$30:$V$37,17,FALSE),"") -> 1.851604221 | AM24: =IF($B24<>"",$B24*VLOOKUP(AM$22,'Main Calcs'!$C$30:$V$37,16,FALSE)+VLOOKUP(AM$22,'Main Calcs'!$C$30:$V$37,17,FALSE),"") -> 0.874038484 | AN24: =IF($B24<>"",$B24*VLOOKUP(AN$22,'Main Calcs'!$C$30:$V$37,16,FALSE)+VLOOKUP(AN$22,'Main Calcs'!$C$30:$V$37,17,FALSE),"") -> 4.420396781 | AO24: =IF($C24<>"",IF(($C24+$R$9)<U24,1,CEILING(($C24+$R$9-U24)/Z24+1,1)),"") -> 2 | AP24: =IF($C24<>"",IF(($C24+$R$9)<V24,1,CEILING(($C24+$R$9-V24)/AA24+1,1)),"") -> 2 | AQ24: =IF($C24<>"",IF(($C24+$R$9)<W24,1,CEILING(($C24+$R$9-W24)/AB24+1,1)),"") -> 4 | AR24: =IF($C24<>"",IF(($C24+$R$9)<X24,1,CEILING(($C24+$R$9-X24)/AC24+1,1)),"") -> 7 | AS24: =IF($C24<>"",IF(($C24+$R$9)<Y24,1,CEILING(($C24+$R$9-Y24)/AD24+1,1)),"") -> 2 | AT24: =IF($D24<>"",IF($D24=0,0,IF(($D24+$R$9)<AE24,1,CEILING(($D24+$R$9-AE24)/AJ24+1,1))),"") -> 2 | AU24: =IF($D24<>"",IF($D24=0,0,IF(($D24+$R$9)<AF24,1,CEILING(($D24+$R$9-AF24)/AK24+1,1))),"") -> 2 | AV24: =IF($D24<>"",IF($D24=0,0,IF(($D24+$R$9)<AG24,1,CEILING(($D24+$R$9-AG24)/AL24+1,1))),"") -> 3 | AW24: =IF($D24<>"",IF($D24=0,0,IF(($D24+$R$9)<AH24,1,CEILING(($D24+$R$9-AH24)/AM24+1,1))),"") -> 6 | AX24: =IF($D24<>"",IF($D24=0,0,IF(($D24+$R$9)<AI24,1,CEILING(($D24+$R$9-AI24)/AN24+1,1))),"") -> 2 | AY24: =AO24*AT24 -> 4 | AZ24: 4 | BA24: 12 | BB24: 42 | BC24: 4 | BD24: =E24 -> YES | BE24: =IF($BD24="YES",AO24,"") -> 2 | BF24: =IF($BD24="YES",AT24,"") -> 2 | BG24: =IF($BD24="YES",AO24*AT24,"") -> 4 | BH24: =INDEX($AY$22:$BC$22,MATCH(MIN($AY24:BC24),$AY24:BC24,0)) -> 75° | BI24: =IF($BH24<>"",HLOOKUP($BH24,$AY$22:$BC24,2,FALSE)) -> 3 | BJ24: =IF($E24="YES","75°",IF($G24="YES","40°",IF($H24="YES","20°",""))) -> 75° | BK24: ='Multi-Unit (Array) Stuff'!B15 -> Auto | BL24: ='Multi-Unit (Array) Stuff'!B16 -> Auto | BM24: =IF(F24="YES","60°",IF(G24="YES","40°",IF(K24="Yes","60°",IF(L24="YES","40°","")))) -> 60° | BN24: =IF(E24="YES","75°","") -> 75° | BO24: =IF(F24="YES","60°",IF(G24="YES","40°",IF(H24="YES","20°",IF(K24="Yes","60°",IF(L24="YES","40°",IF(M24="YES","20°","")))))) -> 60° | BP24: =IF(BK24="Auto",IF(BN24<>"","Vector",IF(BM24<>"","Gazelle",IF(BO24<>"","Outdoor",""))),"") -> Vector | BQ24: =IF(BP24="","",IF(BP24="Vector", "75°",IF(BP24="Gazelle",IF(F24="YES","60°",IF(G24="YES","40°",IF(K24="YES","60°",IF(L24="YES","40°","Whoops")))),IF(BP24="Outdoor",IF(F24="YES","60°",IF(G24="YES","40°",IF(H24="YES","20°","Whoops"))))))) -> 75° | BR24: =IF(BK24<>"Auto",BK24,BP24) -> Vector | BS24: =IF(BL24="Auto",IF(BK24="Gazelle",BM24,IF(BK24="Vector",BN24,IF(BK24="Outdoor",BO24,IF(BK24="Auto",BQ24,"Whoops")))),BL24) -> 75° | BT24: =HLOOKUP($BS24,$AO$22:$AS24,ROW()-21,FALSE) -> 2 | BU24: =HLOOKUP($BS24,$AT$22:$AX24,ROW()-21,FALSE) -> 2 | BV24: =BT24*BU24 -> 4 | BW24: =IF($D24<>"",HLOOKUP($BS24,$U$22:$Y24,ROW()-21,FALSE),"") -> 3.695829118 | BX24: =IF($D24<>"",HLOOKUP($BS24,$Z$22:$AD24,ROW()-21,FALSE),"") -> 3.445829118 | BY24: =IF(BX24<>"",BX24,"") -> 3.445829118 | BZ24: =IF(ISNUMBER($BT24),IF($BT24>1,$BW24+($BX24*($BT24-1)),$BW24),"") -> 7.141658236 | CA24: =IF($D24<>"",HLOOKUP($BS24,$AE$22:$AI24,ROW()-21,FALSE),"") -> 2.651645205 | CB24: =IF($D24<>"",HLOOKUP($BS24,$AJ$22:$AN24,ROW()-21,FALSE),"") -> 2.401645205 | CC24: =IF(CB24<>"",CB24,"") -> 2.401645205 | CD24: =IF(ISNUMBER($BU24),IF($BU24>1,$CA24+($CB24*($BU24-1)),$CA24),"") -> 5.05329041 | CE24: =IF(BR24<>"",VLOOKUP($BR24&$BS24&$L$9&$L$10,Dropdowns!$R$2:$S$29,2,FALSE),"") -> N/A | CF24: =IF($BR24<>"",IF($BV24>1,VLOOKUP($BR24 & $BS24 & $L$9,Dropdowns!$X$2:$Y$11,2,FALSE),"-"),"") -> IRC6337-SW | CG24: =IF($BR24<>"",IF($BV24>2,VLOOKUP($BR24 & $BS24 & $L$9,Dropdowns!$X$2:$Y$11,2,FALSE),"-"),"") -> IRC6337-SW | CH24: =IF($BR24<>"",IF($BV24>3,VLOOKUP($BR24 & $BS24 & $L$9,Dropdowns!$X$2:$Y$11,2,FALSE),"-"),"") -> IRC6337-SW | CI24: =IF($BR24<>"",IF($BV24>4,VLOOKUP($BR24 & $BS24 & $L$9,Dropdowns!$X$2:$Y$11,2,FALSE),"-"),"") -> - | CJ24: =IF($BR24<>"",IF($BV24>5,VLOOKUP($BR24 & $BS24 & $L$9,Dropdowns!$X$2:$Y$11,2,FALSE),"-"),"") -> - | CK24: =IF($BR24<>"",IF($BV24>6,VLOOKUP($BR24 & $BS24 & $L$9,Dropdowns!$X$2:$Y$11,2,FALSE),"-"),"") -> - | CL24: =IF($BR24<>"",IF($BV24>7,VLOOKUP($BR24 & $BS24 & $L$9,Dropdowns!$X$2:$Y$11,2,FALSE),"-"),"") -> -

Sheet Compare Devices Calc
E3: Options | O3: =IF('Compare Devices Stuff'!$R2,"Field Of View Comparison","") -> Field Of View Comparison
C5: Select Measurement Units: | D5: metres | O5: =IF('Compare Devices Stuff'!$R2,"Note: Field of View scale should be set manually as appropriate" & CHAR(10) & "Use the scale guide square to assist with this","") -> Note: Field of View scale should be set manually as appropriate Use the scale guide square to assist with this
D9: Select Device Type | J9: Select Device Type
C11: Device: | D11: Gazelle | E11: Lens: | F11: 60° | I11: Device: | J11: Vector | K11: Lens: | L11: 75°
D15: Enter Install Height | J15: Enter Install Height
C17: Height: | D17: 3 | E17: =VLOOKUP($D$5,'Main Calcs'!$I$3:$M$7,5,FALSE) -> m | F17: =IF(D17="","",IF(F11<>"",IF('Compare Devices Stuff'!I5,"",IF('Compare Devices Stuff'!J5,"(Extended mounting height range)", "Outside mounting height range!")),"")) ->  | I17: Height: | J17: 3 | K17: =VLOOKUP($D$5,'Main Calcs'!$I$3:$M$7,5,FALSE) -> m | L17: =IF(J17="","",IF(L11<>"",IF('Compare Devices Stuff'!W5,"",IF('Compare Devices Stuff'!X5,"(Extended mounting height range)", "Outside mounting height range!")),"")) -> 
D21: Results | J21: Results
D23: (Width) | F23: (Depth) | J23: (Width) | L23: (Depth)
C24: Field Of View (Width): | D24: =IF(OR($D$11="",$F$11="",$D$17=""),"",IF('Compare Devices Stuff'!$B$13,'Compare Devices Stuff'!$B$10,"")) -> 2.75m | E24: by | F24: =IF(OR($D$11="",$F$11="",$D$17=""),"",IF('Compare Devices Stuff'!$B$13,'Compare Devices Stuff'!$B$11,"")) -> 2.75m | J24: =IF(OR($J$11="",$L$11="",$J$17=""),"",IF('Compare Devices Stuff'!$P$13,'Compare Devices Stuff'!$P$10,"")) -> 2.98m | K24: by | L24: =IF(OR($J$11="",$L$11="",$J$17=""),"",IF('Compare Devices Stuff'!$P$13,'Compare Devices Stuff'!$P$11,"")) -> 2.14m
C27: Height Range
C28: Absolute Min | D28: Min | E28: Max | F28: Absolute Max | G28: Max Wide Opening | I28: Notes
A29: ='Main Calcs'!B30 -> Vector | B29: ='Main Calcs'!C30 -> 75° | C29: =IF('Main Calcs'!D30="","",FLOOR('Main Calcs'!D30*VLOOKUP($D$5,'Main Calcs'!$I$3:$L$7,4,FALSE),0.01)& VLOOKUP($D$5,'Main Calcs'!$I$3:$M$7,2,FALSE)) ->  | D29: =IF('Main Calcs'!E30="","",FLOOR('Main Calcs'!E30*VLOOKUP($D$5,'Main Calcs'!$I$3:$L$7,4,FALSE),0.01)& VLOOKUP($D$5,'Main Calcs'!$I$3:$M$7,2,FALSE)) -> 2m | E29: =IF('Main Calcs'!F30="","",FLOOR('Main Calcs'!F30*VLOOKUP($D$5,'Main Calcs'!$I$3:$L$7,4,FALSE),0.01)& VLOOKUP($D$5,'Main Calcs'!$I$3:$M$7,2,FALSE)) -> 4.5m | F29: =IF('Main Calcs'!G30="","",FLOOR('Main Calcs'!G30*VLOOKUP($D$5,'Main Calcs'!$I$3:$L$7,4,FALSE),0.01)& VLOOKUP($D$5,'Main Calcs'!$I$3:$M$7,2,FALSE)) ->  | G29: ='Main Calcs'!H30 -> 4 or 32 | I29: =IF('Main Calcs'!I30="","",'Main Calcs'!I30) -> Count or Analytic
A30: ='Main Calcs'!B31 -> Gazelle | B30: ='Main Calcs'!C31 -> 60° | C30: =IF('Main Calcs'!D31="","",FLOOR('Main Calcs'!D31*VLOOKUP($D$5,'Main Calcs'!$I$3:$L$7,4,FALSE),0.01)& VLOOKUP($D$5,'Main Calcs'!$I$3:$M$7,2,FALSE)) -> 2.2m | D30: =IF('Main Calcs'!E31="","",FLOOR('Main Calcs'!E31*VLOOKUP($D$5,'Main Calcs'!$I$3:$L$7,4,FALSE),0.01)& VLOOKUP($D$5,'Main Calcs'!$I$3:$M$7,2,FALSE)) -> 2.5m | E30: =IF('Main Calcs'!F31="","",FLOOR('Main Calcs'!F31*VLOOKUP($D$5,'Main Calcs'!$I$3:$L$7,4,FALSE),0.01)& VLOOKUP($D$5,'Main Calcs'!$I$3:$M$7,2,FALSE)) -> 4.5m | F30: =IF('Main Calcs'!G31="","",FLOOR('Main Calcs'!G31*VLOOKUP($D$5,'Main Calcs'!$I$3:$L$7,4,FALSE),0.01)& VLOOKUP($D$5,'Main Calcs'!$I$3:$M$7,2,FALSE)) -> 4.8m | G30: ='Main Calcs'!H31 -> 8 | I30: =IF('Main Calcs'!I31="","",'Main Calcs'!I31) -> 
A31: ='Main Calcs'!B32 -> Gazelle | B31: ='Main Calcs'!C32 -> 90° | C31: =IF('Main Calcs'!D32="","",FLOOR('Main Calcs'!D32*VLOOKUP($D$5,'Main Calcs'!$I$3:$L$7,4,FALSE),0.01)& VLOOKUP($D$5,'Main Calcs'!$I$3:$M$7,2,FALSE)) ->  | D31: =IF('Main Calcs'!E32="","",FLOOR('Main Calcs'!E32*VLOOKUP($D$5,'Main Calcs'!$I$3:$L$7,4,FALSE),0.01)& VLOOKUP($D$5,'Main Calcs'!$I$3:$M$7,2,FALSE)) -> 2.5m | E31: =IF('Main Calcs'!F32="","",FLOOR('Main Calcs'!F32*VLOOKUP($D$5,'Main Calcs'!$I$3:$L$7,4,FALSE),0.01)& VLOOKUP($D$5,'Main Calcs'!$I$3:$M$7,2,FALSE)) -> 4.5m | F31: =IF('Main Calcs'!G32="","",FLOOR('Main Calcs'!G32*VLOOKUP($D$5,'Main Calcs'!$I$3:$L$7,4,FALSE),0.01)& VLOOKUP($D$5,'Main Calcs'!$I$3:$M$7,2,FALSE)) ->  | G31: ='Main Calcs'!H32 -> 8 | I31: =IF('Main Calcs'!I32="","",'Main Calcs'!I32) -> 
A32: ='Main Calcs'!B33 -> Gazelle | B32: ='Main Calcs'!C33 -> 40° | C32: =IF('Main Calcs'!D33="","",FLOOR('Main Calcs'!D33*VLOOKUP($D$5,'Main Calcs'!$I$3:$L$7,4,FALSE),0.01)& VLOOKUP($D$5,'Main Calcs'!$I$3:$M$7,2,FALSE)) -> 3.5m | D32: =IF('Main Calcs'!E33="","",FLOOR('Main Calcs'!E33*VLOOKUP($D$5,'Main Calcs'!$I$3:$L$7,4,FALSE),0.01)& VLOOKUP($D$5,'Main Calcs'!$I$3:$M$7,2,FALSE)) -> 4m | E32: =IF('Main Calcs'!F33="","",FLOOR('Main Calcs'!F33*VLOOKUP($D$5,'Main Calcs'!$I$3:$L$7,4,FALSE),0.01)& VLOOKUP($D$5,'Main Calcs'!$I$3:$M$7,2,FALSE)) -> 7m | F32: =IF('Main Calcs'!G33="","",FLOOR('Main Calcs'!G33*VLOOKUP($D$5,'Main Calcs'!$I$3:$L$7,4,FALSE),0.01)& VLOOKUP($D$5,'Main Calcs'!$I$3:$M$7,2,FALSE)) -> 7.5m | G32: ='Main Calcs'!H33 -> 8 | I32: =IF('Main Calcs'!I33="","",'Main Calcs'!I33) -> 
A33: ='Main Calcs'!B34 -> Outdoor | B33: ='Main Calcs'!C34 -> 60° | C33: =IF('Main Calcs'!D34="","",FLOOR('Main Calcs'!D34*VLOOKUP($D$5,'Main Calcs'!$I$3:$L$7,4,FALSE),0.01)& VLOOKUP($D$5,'Main Calcs'!$I$3:$M$7,2,FALSE)) -> 2.2m | D33: =IF('Main Calcs'!E34="","",FLOOR('Main Calcs'!E34*VLOOKUP($D$5,'Main Calcs'!$I$3:$L$7,4,FALSE),0.01)& VLOOKUP($D$5,'Main Calcs'!$I$3:$M$7,2,FALSE)) -> 2.5m | E33: =IF('Main Calcs'!F34="","",FLOOR('Main Calcs'!F34*VLOOKUP($D$5,'Main Calcs'!$I$3:$L$7,4,FALSE),0.01)& VLOOKUP($D$5,'Main Calcs'!$I$3:$M$7,2,FALSE)) -> 4.5m | F33: =IF('Main Calcs'!G34="","",FLOOR('Main Calcs'!G34*VLOOKUP($D$5,'Main Calcs'!$I$3:$L$7,4,FALSE),0.01)& VLOOKUP($D$5,'Main Calcs'!$I$3:$M$7,2,FALSE)) -> 4.8m | G33: ='Main Calcs'!H34 -> 8 | I33: =IF('Main Calcs'!I34="","",'Main Calcs'!I34) -> 
A34: ='Main Calcs'!B35 -> Outdoor | B34: ='Main Calcs'!C35 -> 40° | C34: =IF('Main Calcs'!D35="","",FLOOR('Main Calcs'!D35*VLOOKUP($D$5,'Main Calcs'!$I$3:$L$7,4,FALSE),0.01)& VLOOKUP($D$5,'Main Calcs'!$I$3:$M$7,2,FALSE)) -> 3.5m | D34: =IF('Main Calcs'!E35="","",FLOOR('Main Calcs'!E35*VLOOKUP($D$5,'Main Calcs'!$I$3:$L$7,4,FALSE),0.01)& VLOOKUP($D$5,'Main Calcs'!$I$3:$M$7,2,FALSE)) -> 4m | E34: =IF('Main Calcs'!F35="","",FLOOR('Main Calcs'!F35*VLOOKUP($D$5,'Main Calcs'!$I$3:$L$7,4,FALSE),0.01)& VLOOKUP($D$5,'Main Calcs'!$I$3:$M$7,2,FALSE)) -> 7m | F34: =IF('Main Calcs'!G35="","",FLOOR('Main Calcs'!G35*VLOOKUP($D$5,'Main Calcs'!$I$3:$L$7,4,FALSE),0.01)& VLOOKUP($D$5,'Main Calcs'!$I$3:$M$7,2,FALSE)) -> 7.5m | G34: ='Main Calcs'!H35 -> 8 | I34: =IF('Main Calcs'!I35="","",'Main Calcs'!I35) -> 
A35: ='Main Calcs'!B36 -> Outdoor | B35: ='Main Calcs'!C36 -> 20° | C35: =IF('Main Calcs'!D36="","",FLOOR('Main Calcs'!D36*VLOOKUP($D$5,'Main Calcs'!$I$3:$L$7,4,FALSE),0.01)& VLOOKUP($D$5,'Main Calcs'!$I$3:$M$7,2,FALSE)) ->  | D35: =IF('Main Calcs'!E36="","",FLOOR('Main Calcs'!E36*VLOOKUP($D$5,'Main Calcs'!$I$3:$L$7,4,FALSE),0.01)& VLOOKUP($D$5,'Main Calcs'!$I$3:$M$7,2,FALSE)) -> 7m | E35: =IF('Main Calcs'!F36="","",FLOOR('Main Calcs'!F36*VLOOKUP($D$5,'Main Calcs'!$I$3:$L$7,4,FALSE),0.01)& VLOOKUP($D$5,'Main Calcs'!$I$3:$M$7,2,FALSE)) -> 16m | F35: =IF('Main Calcs'!G36="","",FLOOR('Main Calcs'!G36*VLOOKUP($D$5,'Main Calcs'!$I$3:$L$7,4,FALSE),0.01)& VLOOKUP($D$5,'Main Calcs'!$I$3:$M$7,2,FALSE)) ->  | G35: ='Main Calcs'!H36 -> 8 | I35: =IF('Main Calcs'!I36="","",'Main Calcs'!I36) -> Discontinued
A36: ='Main Calcs'!B37 ->  | B36: ='Main Calcs'!C37 ->  | C36: =IF('Main Calcs'!D37="","",FLOOR('Main Calcs'!D37*VLOOKUP($D$5,'Main Calcs'!$I$3:$L$7,4,FALSE),0.01)& VLOOKUP($D$5,'Main Calcs'!$I$3:$M$7,2,FALSE)) ->  | D36: =IF('Main Calcs'!E37="","",FLOOR('Main Calcs'!E37*VLOOKUP($D$5,'Main Calcs'!$I$3:$L$7,4,FALSE),0.01)& VLOOKUP($D$5,'Main Calcs'!$I$3:$M$7,2,FALSE)) ->  | E36: =IF('Main Calcs'!F37="","",FLOOR('Main Calcs'!F37*VLOOKUP($D$5,'Main Calcs'!$I$3:$L$7,4,FALSE),0.01)& VLOOKUP($D$5,'Main Calcs'!$I$3:$M$7,2,FALSE)) ->  | F36: =IF('Main Calcs'!G37="","",FLOOR('Main Calcs'!G37*VLOOKUP($D$5,'Main Calcs'!$I$3:$L$7,4,FALSE),0.01)& VLOOKUP($D$5,'Main Calcs'!$I$3:$M$7,2,FALSE)) ->  | G36: ='Main Calcs'!H37 ->  | I36: =IF('Main Calcs'!I37="","",'Main Calcs'!I37) -> 
I37: =IF('Main Calcs'!I38="","",'Main Calcs'!I38) -> 

Sheet Compare Devices Stuff (hidden)
A1: Old: | B1: metres | I1: Update Values: | J1: TRUE | P1: UseAuto: | Q1: FALSE | W1: Update Values: | X1: TRUE | AC1: Height Range of Selected Device Series | AI1: Height Range of Selected Device Series
A2: New: | B2: metres | J2: 0 | M2: Positions | P2: Enable Sq | Q2: FALSE | R2: =IF(OR('Compare Devices Calc'!$D$11="",'Compare Devices Calc'!$F$11="",'Compare Devices Calc'!$J$11="",'Compare Devices Calc'!$L$11="",'Compare Devices Calc'!$D$17="",'Compare Devices Calc'!$J$17=""),FALSE,IF('Compare Devices Stuff'!$B$13,TRUE,FALSE)) -> TRUE | AA2: Positions | AD2: Absolute Min | AE2: Min | AF2: Max | AG2: Absolute Max | AJ2: Absolute Min | AK2: Min | AL2: Max | AM2: Absolute Max
A3: Measurement | B3: =INDIRECT("'Compare Devices Calc'!" & M3&N3) -> metres | C3: =VLOOKUP(B3,'Main Calcs'!$I$3:$M$7,2,FALSE) -> m | H3: Sheet: | I3: Compare Devices calc | L3: Measurement | M3: D | N3: =CELL("row",INDEX('Compare Devices Calc'!$C$1:$C$37,MATCH(VLOOKUP("*"&L3&"*",'Compare Devices Calc'!$C$1:$C$37,1,FALSE),'Compare Devices Calc'!$C$1:$C$37,0))) -> 5 | V3: Sheet: | W3: Compare Devices calc | AC3: metres | AD3: =IF($B$15="Auto",VLOOKUP($B$15,'Main Calcs'!$AF$30:$AJ$33,2,FALSE),IF($B$16="Auto",VLOOKUP($B$15,'Main Calcs'!$AF$30:$AJ$33,2,FALSE),IF($B$16="",VLOOKUP($B$15,'Main Calcs'!$AF$30:$AJ$33,2,FALSE),VLOOKUP($B$16,'Main Calcs'!$C$30:$G$37,2,FALSE)))) -> 2.2 | AE3: =IF($B$15="Auto",VLOOKUP($B$15,'Main Calcs'!$AF$30:$AJ$33,3,FALSE),IF($B$16="Auto",VLOOKUP($B$15,'Main Calcs'!$AF$30:$AJ$33,3,FALSE),IF($B$16="",VLOOKUP($B$15,'Main Calcs'!$AF$30:$AJ$33,3,FALSE),VLOOKUP($B$16,'Main Calcs'!$C$30:$G$37,3,FALSE)))) -> 2.5 | AF3: =IF($B$15="Auto",VLOOKUP($B$15,'Main Calcs'!$AF$30:$AJ$33,4,FALSE),IF($B$16="Auto",VLOOKUP($B$15,'Main Calcs'!$AF$30:$AJ$33,4,FALSE),IF($B$16="",VLOOKUP($B$15,'Main Calcs'!$AF$30:$AJ$33,4,FALSE),VLOOKUP($B$16,'Main Calcs'!$C$30:$G$37,4,FALSE)))) -> 4.5 | AG3: =IF($B$15="Auto",VLOOKUP($B$15,'Main Calcs'!$AF$30:$AJ$33,5,FALSE),IF($B$16="Auto",VLOOKUP($B$15,'Main Calcs'!$AF$30:$AJ$33,5,FALSE),IF($B$16="",VLOOKUP($B$15,'Main Calcs'!$AF$30:$AJ$33,5,FALSE),VLOOKUP($B$16,'Main Calcs'!$C$30:$G$37,5,FALSE)))) -> 4.8 | AI3: metres | AJ3: =IF($P$15="Auto",VLOOKUP($P$15,'Main Calcs'!$AF$30:$AJ$33,2,FALSE),IF($P$16="Auto",VLOOKUP($P$15,'Main Calcs'!$AF$30:$AJ$33,2,FALSE),IF($P$16="",VLOOKUP($P$15,'Main Calcs'!$AF$30:$AJ$33,2,FALSE),VLOOKUP($P$16,'Main Calcs'!$C$30:$G$37,2,FALSE)))) ->  | AK3: =IF($P$15="Auto",VLOOKUP($P$15,'Main Calcs'!$AF$30:$AJ$33,3,FALSE),IF($P$16="Auto",VLOOKUP($P$15,'Main Calcs'!$AF$30:$AJ$33,3,FALSE),IF($P$16="",VLOOKUP($P$15,'Main Calcs'!$AF$30:$AJ$33,3,FALSE),VLOOKUP($P$16,'Main Calcs'!$C$30:$G$37,3,FALSE)))) -> 2 | AL3: =IF($P$15="Auto",VLOOKUP($P$15,'Main Calcs'!$AF$30:$AJ$33,4,FALSE),IF($P$16="Auto",VLOOKUP($P$15,'Main Calcs'!$AF$30:$AJ$33,4,FALSE),IF($P$16="",VLOOKUP($P$15,'Main Calcs'!$AF$30:$AJ$33,4,FALSE),VLOOKUP($P$16,'Main Calcs'!$C$30:$G$37,4,FALSE)))) -> 4.5 | AM3: =IF($P$15="Auto",VLOOKUP($P$15,'Main Calcs'!$AF$30:$AJ$33,5,FALSE),IF($P$16="Auto",VLOOKUP($P$15,'Main Calcs'!$AF$30:$AJ$33,5,FALSE),IF($P$16="",VLOOKUP($P$15,'Main Calcs'!$AF$30:$AJ$33,5,FALSE),VLOOKUP($P$16,'Main Calcs'!$C$30:$G$37,5,FALSE)))) -> 
B4: Local Measurements | D4: Metres | F4: TRUE | I4: Valid Recommended Height | J4: Valid Extended height | L4: Height: | M4: D | N4: =CELL("row",INDEX('Compare Devices Calc'!$C$1:$C$37,MATCH(L4,'Compare Devices Calc'!$C$1:$C$37,0))) -> 17 | P4: Local Measurements | R4: Metres | T4: TRUE | W4: Valid Recommended Height | X4: Valid Extended height | Z4: Height: | AA4: J | AB4: =CELL("row",INDEX('Compare Devices Calc'!$C$1:$C$37,MATCH(Z4,'Compare Devices Calc'!$C$1:$C$37,0))) -> 17 | AC4: =B3 -> metres | AD4: =IF(OR(AD3="",AD3=0),"",AD3*VLOOKUP($B$3,'Main Calcs'!$I$3:$L$7,4,FALSE)) -> 2.2 | AE4: =IF(OR(AE3="",AE3=0),"",AE3*VLOOKUP($B$3,'Main Calcs'!$I$3:$L$7,4,FALSE)) -> 2.5 | AF4: =IF(OR(AF3="",AF3=0),"",AF3*VLOOKUP($B$3,'Main Calcs'!$I$3:$L$7,4,FALSE)) -> 4.5 | AG4: =IF(OR(AG3="",AG3=0),"",AG3*VLOOKUP($B$3,'Main Calcs'!$I$3:$L$7,4,FALSE)) -> 4.8 | AI4: =H3 -> Sheet: | AJ4: =IF(OR(AJ3="",AJ3=0),"",AJ3*VLOOKUP($B$3,'Main Calcs'!$I$3:$L$7,4,FALSE)) ->  | AK4: =IF(OR(AK3="",AK3=0),"",AK3*VLOOKUP($B$3,'Main Calcs'!$I$3:$L$7,4,FALSE)) -> 2 | AL4: =IF(OR(AL3="",AL3=0),"",AL3*VLOOKUP($B$3,'Main Calcs'!$I$3:$L$7,4,FALSE)) -> 4.5 | AM4: =IF(OR(AM3="",AM3=0),"",AM3*VLOOKUP($B$3,'Main Calcs'!$I$3:$L$7,4,FALSE)) -> 
A5: Height: | B5: =INDIRECT("'Compare Devices Calc'!" &M4&N4) -> 3 | C5: =VLOOKUP('Field Of View Calc'!$D$5,'Main Calcs'!$I$3:$M$7,2,FALSE) & " → =" -> m → = | D5: =FLOOR(B5*VLOOKUP($B$3,'Main Calcs'!$I$3:$L$7,3,FALSE),0.01) -> 3 | E5: m | I5: =IF(AND($B$5>=$AE$5,$B$5<=$AF$5),1,0) -> 1 | J5: =IF(AND(VLOOKUP($B$16,'Main Calcs'!$C$30:$H$37,2,FALSE)>0,$B$5>=$AD$5,$B$5<=$AG$5),1,0) -> 1 | L5: Width: | O5: Height: | P5: =INDIRECT("'Compare Devices Calc'!" &AA4&AB4) -> 3 | Q5: =VLOOKUP('Field Of View Calc'!$D$5,'Main Calcs'!$I$3:$M$7,2,FALSE) & " → =" -> m → = | R5: =FLOOR(P5*VLOOKUP($B$3,'Main Calcs'!$I$3:$L$7,3,FALSE),0.01) -> 3 | S5: m | W5: =IF(AND($P$5>=$AK$5,$P$5<=$AL$5),1,0) -> 1 | X5: =IF(AND(VLOOKUP($P$16,'Main Calcs'!$C$30:$H$37,2,FALSE)>0,$P$5>=$AJ$5,$P$5<=$AM$5),1,0) -> 0 | Z5: Width: | AC5: output | AD5: =IF(AD4<>"",FLOOR(AD4,0.01),"") -> 2.2 | AE5: =IF(AE4<>"",FLOOR(AE4,0.01),"") -> 2.5 | AF5: 4.5 | AG5: 4.8 | AI5: output | AJ5: =IF(AJ4<>"",FLOOR(AJ4,0.01),"") ->  | AK5: =IF(AK4<>"",FLOOR(AK4,0.01),"") -> 2 | AL5: 4.5
A6: Width | C6: =VLOOKUP('Field Of View Calc'!D5,'Main Calcs'!$I$3:$M$7,2,FALSE) & " → =" -> m → = | D6: =FLOOR(B6*VLOOKUP($B$3,'Main Calcs'!$I$3:$L$7,3,FALSE),0.01) -> 0 | E6: m | L6: Extra Width: | O6: Width | Q6: =VLOOKUP('Field Of View Calc'!$D$5,'Main Calcs'!$I$3:$M$7,2,FALSE) & " → =" -> m → = | R6: =FLOOR(P6*VLOOKUP($B$3,'Main Calcs'!$I$3:$L$7,3,FALSE),0.01) -> 0 | S6: m | Z6: Extra Width: | AC6: Output | AD6: =IF(ISERROR(AD5),"",IF(AD5<>"",AD5&$C$3,"")) -> 2.2m | AE6: =IF(ISERROR(AE5),"",IF(AE5<>"",AE5&$C$3,"")) -> 2.5m | AF6: 4.5m | AG6: 4.8m | AI6: Output | AJ6: =IF(ISERROR(AJ5),"",IF(AJ5<>"",AJ5&$C$3,"")) ->  | AK6: =IF(ISERROR(AK5),"",IF(AK5<>"",AK5&$C$3,"")) -> 2m | AL6: 4.5m
A7: Additional: | C7: =VLOOKUP('Field Of View Calc'!D5,'Main Calcs'!$I$3:$M$7,2,FALSE) & " → =" -> m → = | D7: =FLOOR(B7*VLOOKUP($B$3,'Main Calcs'!$I$3:$L$7,3,FALSE),0.01) -> 0 | E7: m | L7: Device: | M7: D | N7: =CELL("row",INDEX('Compare Devices Calc'!$C$1:$C$37,MATCH(L7,'Compare Devices Calc'!$C$1:$C$37,0))) -> 11 | O7: Additional: | Q7: =VLOOKUP('Field Of View Calc'!$D$5,'Main Calcs'!$I$3:$M$7,2,FALSE) & " → =" -> m → = | R7: =FLOOR(P7*VLOOKUP($B$3,'Main Calcs'!$I$3:$L$7,3,FALSE),0.01) -> 0 | S7: m | Z7: Device: | AA7: J | AB7: =CELL("row",INDEX('Compare Devices Calc'!$C$1:$C$37,MATCH(Z7,'Compare Devices Calc'!$C$1:$C$37,0))) -> 11
A8: Total Width: | C8: =VLOOKUP('Field Of View Calc'!D5,'Main Calcs'!$I$3:$M$7,2,FALSE) & " → =" -> m → = | D8: =D6+D7 -> 0 | E8: m | I8: Min All (m) | J8: Max All (m) | L8: Lens: | M8: F | N8: =CELL("row",INDEX('Compare Devices Calc'!$E$1:$E$37,MATCH(L8,'Compare Devices Calc'!$E$1:$E$37,0))) -> 11 | O8: Total Width: | Q8: =VLOOKUP('Field Of View Calc'!$D$5,'Main Calcs'!$I$3:$M$7,2,FALSE) & " → =" -> m → = | R8: =FLOOR(P8*VLOOKUP($B$3,'Main Calcs'!$I$3:$L$7,3,FALSE),0.01) -> 0 | S8: m | W8: Min All (m) | X8: Max All (m) | Z8: Lens: | AA8: L | AB8: =CELL("row",INDEX('Compare Devices Calc'!$E$1:$E$37,MATCH(Z8,'Compare Devices Calc'!$E$1:$E$37,0))) -> 11
I9: =MIN('Main Calcs'!D30:E37) -> 2 | J9: =MAX('Main Calcs'!F30:G37) -> 16 | W9: =MIN('Main Calcs'!D30:E37) -> 2 | X9: =MAX('Main Calcs'!F30:G37) -> 16 | AD9: =IF(OR($E$25="",$H$25="",$H$25=0),"",IF($E$25="Auto",VLOOKUP($E$25,'Main Calcs'!$AF$30:$AJ$33,2,FALSE),IF($H$25="Auto",VLOOKUP($E$25,'Main Calcs'!$AF$30:$AJ$33,2,FALSE),VLOOKUP($H$25,'Main Calcs'!$C$30:$G$37,2,FALSE)*VLOOKUP($E$17,'Main Calcs'!$I$3:$L$7,4,FALSE) & Y15))) ->  | AE9: =IF(OR($E$25="",$H$25="",$H$25=0),"",IF($E$25="Auto",VLOOKUP($E$25,'Main Calcs'!$AF$30:$AJ$33,3,FALSE),IF($H$25="Auto",VLOOKUP($E$25,'Main Calcs'!$AF$30:$AJ$33,3,FALSE),VLOOKUP($H$25,'Main Calcs'!$C$30:$G$37,3,FALSE)*VLOOKUP($E$17,'Main Calcs'!$I$3:$L$7,4,FALSE) & Y15))) ->  | AF9: =IF(OR($E$25="",$H$25="",$H$25=0),"",IF($E$25="Auto",VLOOKUP($E$25,'Main Calcs'!$AF$30:$AJ$33,4,FALSE),IF($H$25="Auto",VLOOKUP($E$25,'Main Calcs'!$AF$30:$AJ$33,4,FALSE),VLOOKUP($H$25,'Main Calcs'!$C$30:$G$37,4,FALSE)*VLOOKUP($E$17,'Main Calcs'!$I$3:$L$7,4,FALSE) & Y15))) ->  | AG9: =IF(OR($E$25="",$H$25="",$H$25=0),"",IF($E$25="Auto",VLOOKUP($E$25,'Main Calcs'!$AF$30:$AJ$33,5,FALSE),IF($H$25="Auto",VLOOKUP($E$25,'Main Calcs'!$AF$30:$AJ$33,5,FALSE),VLOOKUP($H$25,'Main Calcs'!$C$30:$G$37,5,FALSE)*VLOOKUP($E$17,'Main Calcs'!$I$3:$L$7,4,FALSE) & Y15))) ->  | AJ9: =IF(OR($E$25="",$H$25="",$H$25=0),"",IF($E$25="Auto",VLOOKUP($E$25,'Main Calcs'!$AF$30:$AJ$33,2,FALSE),IF($H$25="Auto",VLOOKUP($E$25,'Main Calcs'!$AF$30:$AJ$33,2,FALSE),VLOOKUP($H$25,'Main Calcs'!$C$30:$G$37,2,FALSE)*VLOOKUP($E$17,'Main Calcs'!$I$3:$L$7,4,FALSE) & AE15))) ->  | AK9: =IF(OR($E$25="",$H$25="",$H$25=0),"",IF($E$25="Auto",VLOOKUP($E$25,'Main Calcs'!$AF$30:$AJ$33,3,FALSE),IF($H$25="Auto",VLOOKUP($E$25,'Main Calcs'!$AF$30:$AJ$33,3,FALSE),VLOOKUP($H$25,'Main Calcs'!$C$30:$G$37,3,FALSE)*VLOOKUP($E$17,'Main Calcs'!$I$3:$L$7,4,FALSE) & AE15))) ->  | AL9: =IF(OR($E$25="",$H$25="",$H$25=0),"",IF($E$25="Auto",VLOOKUP($E$25,'Main Calcs'!$AF$30:$AJ$33,4,FALSE),IF($H$25="Auto",VLOOKUP($E$25,'Main Calcs'!$AF$30:$AJ$33,4,FALSE),VLOOKUP($H$25,'Main Calcs'!$C$30:$G$37,4,FALSE)*VLOOKUP($E$17,'Main Calcs'!$I$3:$L$7,4,FALSE) & AE15))) ->  | AM9: =IF(OR($E$25="",$H$25="",$H$25=0),"",IF($E$25="Auto",VLOOKUP($E$25,'Main Calcs'!$AF$30:$AJ$33,5,FALSE),IF($H$25="Auto",VLOOKUP($E$25,'Main Calcs'!$AF$30:$AJ$33,5,FALSE),VLOOKUP($H$25,'Main Calcs'!$C$30:$G$37,5,FALSE)*VLOOKUP($E$17,'Main Calcs'!$I$3:$L$7,4,FALSE) & AE15))) -> 
A10: Field of View (width): | B10: =G10 & $C$3 -> 2.75m | C10: ← | D10: =VLOOKUP($B$16,'Main Calcs'!$C$30:$Q$37,10,FALSE)*D5+VLOOKUP($B$16,'Main Calcs'!$C$30:$Q$37,11,FALSE) -> 2.756172638 | E10: m | F10: → | G10: =IF(C3="mm",FLOOR(D10*VLOOKUP(B3,'Main Calcs'!$I$3:$L$7,4,FALSE),1),FLOOR(D10*VLOOKUP(B3,'Main Calcs'!$I$3:$L$7,4,FALSE),0.01)) -> 2.75 | O10: Field of View (width): | P10: =U10 & $C$3 -> 2.98m | Q10: ← | R10: =VLOOKUP($P$16,'Main Calcs'!$C$30:$Q$37,10,FALSE)*R5+VLOOKUP($P$16,'Main Calcs'!$C$30:$Q$37,11,FALSE) -> 2.985329127 | S10: m | T10: → | U10: =IF($C$3="mm",FLOOR(R10*VLOOKUP($B$3,'Main Calcs'!$I$3:$L$7,4,FALSE),1),FLOOR(R10*VLOOKUP($B$3,'Main Calcs'!$I$3:$L$7,4,FALSE),0.01)) -> 2.98
A11: Field of View (depth): | B11: =G11 & $C$3 -> 2.75m | C11: ← | D11: =VLOOKUP($B$16,'Main Calcs'!$C$30:$Q$37,12,FALSE)*D5+VLOOKUP($B$16,'Main Calcs'!$C$30:$Q$37,13,FALSE) -> 2.756172638 | E11: m | F11: → | G11: =IF(C3="mm",FLOOR(D11*VLOOKUP(B3,'Main Calcs'!$I$3:$L$7,4,FALSE),1),FLOOR(D11*VLOOKUP(B3,'Main Calcs'!$I$3:$L$7,4,FALSE),0.01)) -> 2.75 | I11: ="Min All (" & VLOOKUP('Field Of View Calc'!$D$5,'Main Calcs'!$I$3:$M$7,2,FALSE) & ")" -> Min All (m) | J11: ="Max All (" & VLOOKUP('Field Of View Calc'!$D$5,'Main Calcs'!$I$3:$M$7,2,FALSE) &" )" -> Max All (m ) | O11: Field of View (depth): | P11: =U11 & $C$3 -> 2.14m | Q11: ← | R11: =VLOOKUP($P$16,'Main Calcs'!$C$30:$Q$37,12,FALSE)*R5+VLOOKUP($P$16,'Main Calcs'!$C$30:$Q$37,13,FALSE) -> 2.141883029 | S11: m | T11: → | U11: =IF($C$3="mm",FLOOR(R11*VLOOKUP($B$3,'Main Calcs'!$I$3:$L$7,4,FALSE),1),FLOOR(R11*VLOOKUP($B$3,'Main Calcs'!$I$3:$L$7,4,FALSE),0.01)) -> 2.14 | W11: Min All (m) | X11: Max All (m )
A12: Field of View (width): | I12: =FLOOR(I9*VLOOKUP($B$3,'Main Calcs'!$I$3:$L$7,4,FALSE),0.01) -> 2 | J12: =FLOOR(J9*VLOOKUP($B$3,'Main Calcs'!$I$3:$L$7,4,FALSE),0.01) -> 16 | O12: Field of View (width): | W12: =FLOOR(W9*VLOOKUP($B$3,'Main Calcs'!$I$3:$L$7,4,FALSE),0.01) -> 2 | X12: =FLOOR(X9*VLOOKUP($B$3,'Main Calcs'!$I$3:$L$7,4,FALSE),0.01) -> 16
A13: FofV OK?: | B13: =OR(I5,J5) -> TRUE | O13: FofV OK?: | P13: =OR(W5,X5) -> TRUE
A15: Device: | B15: =INDIRECT("'Compare Devices Calc'!" & M7&N7) -> Gazelle | O15: Device: | P15: =INDIRECT("'Compare Devices Calc'!" & AA7&AB7) -> Vector
A16: Lens: | B16: =IF(INDIRECT("'Compare Devices Calc'!" &M8&N8)<>"",INDIRECT("'Compare Devices Calc'!" &M8&N8),"") -> 60° | O16: Lens: | P16: =INDIRECT("'Compare Devices Calc'!" & AA8&AB8) -> 75°
A18: Distance From Door | F18: =CELL("col",INDEX('Compare Devices Calc'!$C$1:$C$37,MATCH(VLOOKUP("*"&A18&"*",'Compare Devices Calc'!$C$1:$C$37,1,FALSE),'Compare Devices Calc'!$C$1:$C$37,0))) ->  | G18: =CELL("row",INDEX('Compare Devices Calc'!$C$1:$C$37,MATCH(VLOOKUP("*"&A18&"*",'Compare Devices Calc'!$C$1:$C$37,1,FALSE),'Compare Devices Calc'!$C$1:$C$37,0))) ->  | I18: Recommended calc | O18: Distance From Door | W18: Recommended calc
A19: Closest | B19: =G19& $C$3 -> 0.9m | D19: =IF('Compare Devices Stuff'!$B$13,FLOOR(VLOOKUP('Compare Devices Stuff'!$B$16,'Main Calcs'!$C$30:$V$37,18,FALSE),0.01),"") -> 0.9 | F19: → | G19: =IF($C$3="mm",FLOOR(D19*VLOOKUP($B$3,'Main Calcs'!$I$3:$L$7,4,FALSE),1),FLOOR(D19*VLOOKUP($B$3,'Main Calcs'!$I$3:$L$7,4,FALSE),0.01)) -> 0.9 | H19: Optimum calc min | I19: Optimum Weighting % | O19: Closest | P19: 0.1m | T19: → | V19: Optimum calc min | W19: Optimum Weighting %
A20: Recommended | B20: =G20& $C$3 -> 1.22m | D20: =IF('Compare Devices Stuff'!$B$13,IF(J20>D21,D21,J20),"") -> 1.22 | F20: → | G20: =IF($C$3="mm",FLOOR(D20*VLOOKUP($B$3,'Main Calcs'!$I$3:$L$7,4,FALSE),1),FLOOR(D20*VLOOKUP($B$3,'Main Calcs'!$I$3:$L$7,4,FALSE),0.01)) -> 1.22 | H20: =VLOOKUP($B$16,'Main Calcs'!$C$30:$V$37,19,FALSE) -> 1 | I20: =VLOOKUP($B$16,'Main Calcs'!$C$30:$V$37,20,FALSE) -> 0.6 | J20: =IF('Compare Devices Stuff'!$B$13,FLOOR((D21-H20)*I20+H20,0.01),"") -> 1.22 | O20: Recommended | P20: 0.98m | T20: →
A21: Farthest | B21: 1.37m | D21: =IF('Compare Devices Stuff'!$B$13,D11/2,"") -> 1.378086319 | F21: → | G21: =IF($C$3="mm",FLOOR(D21*VLOOKUP($B$3,'Main Calcs'!$I$3:$L$7,4,FALSE),1),FLOOR(D21*VLOOKUP($B$3,'Main Calcs'!$I$3:$L$7,4,FALSE),0.01)) -> 1.37 | O21: Farthest | P21: 1.07m | T21: →
B23: X | C23: Y | D23: X | E23: Y | F23: X | G23: Y | H23: X | I23: Y
A24: Outdoor | B24: -0.07 | C24: 0.04 | D24: 0.07 | E24: 0.04 | F24: 0.07 | G24: -0.093 | H24: -0.07 | I24: -0.093 | L24: Square | M24: FALSE
A25: Gazelle | B25: -0.025 | C25: 0.025 | D25: 0.03 | E25: 0.025 | F25: 0.03 | G25: -0.16 | H25: -0.025 | I25: -0.16
A26: Vector | B26: -0.025 | C26: 0.025 | D26: 0.03 | E26: 0.025 | F26: 0.03 | G26: -0.16 | H26: -0.025 | I26: -0.16 | J26: 2.985329127
A27: SquareTRUE | B27: -0.5 | C27: 0.5 | D27: 0.5 | E27: 0.5 | F27: 0.5 | G27: -0.5 | H27: -0.5 | I27: -0.5
A28: SquareFALSE | B28: 0 | C28: 0 | D28: 0 | E28: 1 | F28: 1 | G28: 1 | H28: 1 | I28: 0
N29: Plot Coordinates
J30: Width | K30: Depth | N30: X | O30: Y
J31: =$G$10 -> 2.75 | K31: =$G$11 -> 2.75 | N31: =IF(R2,-0.5*J31,0) -> -1.375 | O31: =IF(R2,-0.5*K31,0) -> -1.375
J32: =$G$10 -> 2.75 | K32: =$G$11 -> 2.75 | N32: =IF(R2,-0.5*J32,0) -> -1.375 | O32: =IF(R2,0.5*K32,0) -> 1.375
J33: 2.75 | K33: 2.75 | N33: =IF(R2,0.5*J33,0) -> 1.375 | O33: =IF(R2,0.5*K33,0) -> 1.375
J34: 2.75 | K34: 2.75 | N34: =IF(R2,0.5*J34,0) -> 1.375 | O34: =IF(R2,-0.5*K34,0) -> -1.375
J35: 2.75 | K35: 2.75 | N35: =N31 -> -1.375 | O35: =O31 -> -1.375
J37: =$U$10 -> 2.98 | K37: =$U$11 -> 2.14 | N37: =IF($R$2,-0.5*J37,0) -> -1.49 | O37: =IF($R$2,-0.5*K37,0) -> -1.07
J38: =$U$10 -> 2.98 | K38: =$U$11 -> 2.14 | N38: =IF($R$2,-0.5*J38,0) -> -1.49 | O38: =IF($R$2,0.5*K38,0) -> 1.07
J39: 2.98 | K39: 2.14 | N39: =IF($R$2,0.5*J39,0) -> 1.49 | O39: =IF($R$2,0.5*K39,0) -> 1.07
J40: 2.98 | K40: 2.14 | N40: =IF($R$2,0.5*J40,0) -> 1.49 | O40: =IF($R$2,-0.5*K40,0) -> -1.07
J41: 2.98 | K41: 2.14 | N41: =N37 -> -1.49 | O41: =O37 -> -1.07
N43: =IF(AND($Q$2,$R$2),VLOOKUP("Square"&$M$24,$A$24:$I$28,2,FALSE)*VLOOKUP($B$3,'Main Calcs'!$I$3:$L$7,4,FALSE),N31) -> -1.375 | O43: =IF(AND($Q$2,$R$2),VLOOKUP("Square"&$M$24,$A$24:$I$28,3,FALSE)*VLOOKUP($B$3,'Main Calcs'!$I$3:$L$7,4,FALSE),O31) -> -1.375
N44: =IF(AND($Q$2,$R$2),VLOOKUP("Square"&$M$24,$A$24:$I$28,4,FALSE)*VLOOKUP($B$3,'Main Calcs'!$I$3:$L$7,4,FALSE),N32) -> -1.375 | O44: =IF(AND($Q$2,$R$2),VLOOKUP("Square"&$M$24,$A$24:$I$28,5,FALSE)*VLOOKUP($B$3,'Main Calcs'!$I$3:$L$7,4,FALSE),O32) -> 1.375
N45: =IF(AND($Q$2,$R$2),VLOOKUP("Square"&$M$24,$A$24:$I$28,6,FALSE)*VLOOKUP($B$3,'Main Calcs'!$I$3:$L$7,4,FALSE),N33) -> 1.375 | O45: =IF(AND($Q$2,$R$2),VLOOKUP("Square"&$M$24,$A$24:$I$28,7,FALSE)*VLOOKUP($B$3,'Main Calcs'!$I$3:$L$7,4,FALSE),O33) -> 1.375
N46: =IF(AND($Q$2,$R$2),VLOOKUP("Square"&$M$24,$A$24:$I$28,8,FALSE)*VLOOKUP($B$3,'Main Calcs'!$I$3:$L$7,4,FALSE),N34) -> 1.375 | O46: =IF(AND($Q$2,$R$2),VLOOKUP("Square"&$M$24,$A$24:$I$28,9,FALSE)*VLOOKUP($B$3,'Main Calcs'!$I$3:$L$7,4,FALSE),O34) -> -1.375
N47: =IF(AND($Q$2,$R$2),VLOOKUP("Square"&$M$24,$A$24:$I$28,2,FALSE)*VLOOKUP($B$3,'Main Calcs'!$I$3:$L$7,4,FALSE),N35) -> -1.375 | O47: =IF(AND($Q$2,$R$2),VLOOKUP("Square"&$M$24,$A$24:$I$28,3,FALSE)*VLOOKUP($B$3,'Main Calcs'!$I$3:$L$7,4,FALSE),O35) -> -1.375
N49: =IF($R$2,(VLOOKUP($B$15,$A$24:$I$26,2,FALSE)*VLOOKUP($B$3,'Main Calcs'!$I$3:$L$7,4,FALSE)),N31) -> -0.025 | O49: =IF($R$2,(VLOOKUP($B$15,$A$24:$I$26,3,FALSE)*VLOOKUP($B$3,'Main Calcs'!$I$3:$L$7,4,FALSE)),O31) -> 0.025
N50: =IF($R$2,(VLOOKUP($B$15,$A$24:$I$26,4,FALSE)*VLOOKUP($B$3,'Main Calcs'!$I$3:$L$7,4,FALSE)),N32) -> 0.03 | O50: =IF($R$2,(VLOOKUP($B$15,$A$24:$I$26,5,FALSE)*VLOOKUP($B$3,'Main Calcs'!$I$3:$L$7,4,FALSE)),O32) -> 0.025
N51: =IF($R$2,(VLOOKUP($B$15,$A$24:$I$26,6,FALSE)*VLOOKUP($B$3,'Main Calcs'!$I$3:$L$7,4,FALSE)),N33) -> 0.03 | O51: =IF($R$2,(VLOOKUP($B$15,$A$24:$I$26,7,FALSE)*VLOOKUP($B$3,'Main Calcs'!$I$3:$L$7,4,FALSE)),O33) -> -0.16
N52: =IF($R$2,(VLOOKUP($B$15,$A$24:$I$26,8,FALSE)*VLOOKUP($B$3,'Main Calcs'!$I$3:$L$7,4,FALSE)),N34) -> -0.025 | O52: =IF($R$2,(VLOOKUP($B$15,$A$24:$I$26,9,FALSE)*VLOOKUP($B$3,'Main Calcs'!$I$3:$L$7,4,FALSE)),O34) -> -0.16
N53: =IF($R$2,(VLOOKUP($B$15,$A$24:$I$26,2,FALSE)*VLOOKUP($B$3,'Main Calcs'!$I$3:$L$7,4,FALSE)),N35) -> -0.025 | O53: =IF($R$2,(VLOOKUP($B$15,$A$24:$I$26,3,FALSE)*VLOOKUP($B$3,'Main Calcs'!$I$3:$L$7,4,FALSE)),O35) -> 0.025

Sheet Main Calcs (hidden)
N2: Squared
I3: millimetres | J3: mm | K3: 0.001 | L3: 1000 | M3: mm | N3: mm²
I4: centimetres | J4: cm | K4: 0.01 | L4: 100 | M4: cm | N4: cm²
I5: metres | J5: m | K5: 1 | L5: 1 | M5: m | N5: m²
I6: feet | J6: ="'" -> ' | K6: 0.3048 | L6: 3.28084 | M6: ft | N6: ft² | O6: ←Selectable
I7: inches | J7: " | K7: 0.0254 | L7: 39.3701 | M7: inches | N7: in² | O7: ←Selectable
D10: Height Range (m) | L10: Width | N10: Length | P10: Separation | R10: Separation | V10: Distance from door
A11: Enable | B11: DeviceType | C11: Lens | D11: AbsoluteMin | E11: Min | F11: Max | G11: AbsoluteMax | H11: MaxWideOpening | I11: Notes | J11: Lookup1 | K11: Lookup2 | L11: Typical1 | M11: Typical2 | N11: Typical3 | O11: Typical4 | P11: Minimum1 | Q11: Minimum2 | R11: Minimum3 | S11: Minimum4 | T11: Absolute Closest (m) (fixed) | U11: Optimum calc min | V11: Optimum Weighting %
A12: 1 | B12: Vector | C12: 75° | E12: 2 | F12: 4.5 | H12: 4 or 32 | I12: Count or Analytic | J12: =B12&C12 -> Vector75° | K12: =B12&"Auto" -> VectorAuto | L12: 1.420999982 | M12: -1.277670819 | N12: 1.019524352 | O12: -0.9166900286 | P12: 1.420999982 | Q12: =-1.27767081877132-0.25 -> -1.527670819 | R12: 1.019524352 | S12: =-0.916690028625486-0.25 -> -1.166690029 | T12: 0.1 | U12: 0.9 | V12: 0.5
A13: 1 | B13: Gazelle | C13: 60° | D13: 2.2 | E13: 2.5 | F13: 4.5 | G13: 4.8 | H13: 8 | J13: Gazelle60° | K13: GazelleAuto | L13: 0.979231397 | M13: -0.181521553 | N13: 0.979231397 | O13: -0.181521553 | P13: 0.979027823 | Q13: -0.369109627 | R13: 0.979027823 | S13: -0.369109627 | T13: 0.9 | U13: 1 | V13: 0.6
A14: 1 | B14: Gazelle | C14: 90° | E14: 2.5 | F14: 4.5 | H14: 8 | J14: Gazelle90° | K14: GazelleAuto | L14: 1.473331143 | M14: -0.4991489294 | N14: 1.473331143 | O14: -0.4991489294 | P14: 1.467427012 | Q14: -0.7155977607 | R14: 1.467427012 | S14: -0.7155977607 | T14: 0.9 | U14: 1 | V14: 0.6
A15: 1 | B15: Gazelle | C15: 40° | D15: 3.5 | E15: 4 | F15: 7 | G15: 7.5 | H15: 8 | J15: Gazelle40° | K15: GazelleAuto | L15: 0.6177271475 | M15: -0.1595653162 | N15: 0.6177271475 | O15: -0.1595653162 | P15: 0.6215204836 | Q15: -0.3237174713 | R15: 0.6215204836 | S15: -0.3237174713 | T15: 0.9 | U15: 1 | V15: 0.6
A16: 1 | B16: Outdoor | C16: 60° | D16: 2.2 | E16: 2.5 | F16: 4.5 | G16: 4.8 | H16: 8 | J16: Outdoor60° | K16: OutdoorAuto | L16: 0.979231397 | M16: -0.181521553 | N16: 0.979231397 | O16: -0.181521553 | P16: 0.979027823 | Q16: -0.369109627 | R16: 0.979027823 | S16: -0.369109627 | T16: 0.9 | U16: 1 | V16: 0.6
A17: 0 | B17: Outdoor | C17: 40° | D17: 3.5 | E17: 4 | F17: 7 | G17: 7.5 | H17: 8 | J17: Outdoor40° | K17: OutdoorAuto | L17: 0.6177271475 | M17: -0.1595653162 | N17: 0.6177271475 | O17: -0.1595653162 | P17: 0.6215204836 | Q17: -0.3237174713 | R17: 0.6215204836 | S17: -0.3237174713 | T17: 0.9 | U17: 1 | V17: 0.6
A18: 1 | B18: Outdoor | C18: 20° | E18: 7 | F18: 16 | H18: 8 | I18: Discontinued | J18: Outdoor20° | K18: OutdoorAuto | L18: 0.28538741 | M18: -0.07474977 | N18: 0.28538741 | O18: -0.07474977 | P18: 0.28890355 | Q18: -0.137123941 | R18: 0.28890355 | S18: -0.137123941 | T18: 0.9 | U18: 1 | V18: 0.6
A19: 0 | K19: Auto | T19: 0.1 | U19: 0.9 | V19: 0.5 | W19: <--- ADD NEW HERE
C27: 1 | D27: 2 | E27: 3 | F27: 4 | G27: 5 | H27: 6 | I27: 7 | J27: 8 | K27: 9 | L27: 10 | M27: 11 | N27: 12 | O27: 13 | P27: 14 | Q27: 15 | R27: 16 | S27: 17 | T27: 18 | U27: 19 | V27: 20
D28: Height Range (m) | L28: Width | N28: Length | P28: Separation | V28: Distance from door | Z28: Complete Series Height Range (m) | AH28: Complete Series Height Range (m)
A29: Enable | B29: DeviceType | C29: Lens | D29: AbsoluteMin | E29: Min | F29: Max | G29: AbsoluteMax | H29: MaxWideOpening | I29: Notes | J29: Lookup1 | K29: Lookup2 | L29: Typical1 | M29: Typical2 | N29: Typical3 | O29: Typical4 | P29: Minimum1 | Q29: Minimum2 | R29: Minimum3 | S29: Minimum4 | T29: Absolute Closest (m) (fixed) | U29: Optimum calc min | V29: Optimum Weighting % | Y29: Absolute Min | Z29: Min | AA29: Max | AB29: Absolute Max | AG29: Absolute Min | AH29: Min | AI29: Max | AJ29: Absolute Max
A30: 1 | B30: =IF(B12<>"",B12,"") -> Vector | C30: =IF(C12<>"",C12,"") -> 75° | E30: 2 | F30: 4.5 | H30: 4 or 32 | I30: Count or Analytic | J30: Vector75° | K30: VectorAuto | L30: 1.420999982 | M30: -1.277670819 | N30: 1.019524352 | O30: -0.9166900286 | P30: 1.420999982 | Q30: -1.527670819 | R30: 1.019524352 | S30: -1.166690029 | T30: 0.1 | U30: 0.9 | V30: 0.5 | X30: Vector | Y30: =_xlfn.MINIFS($D$30:$D$36,$B$30:$B$36,$X30) -> 0 | Z30: =_xlfn.MINIFS($E$30:$E$36,$B$30:$B$36,$X30) -> 2 | AA30: =_xlfn.MAXIFS($F$30:$F$36,$B$30:$B$36,$X30) -> 4.5 | AB30: =_xlfn.MAXIFS($G$30:$G$36,$B$30:$B$36,$X30) -> 0 | AF30: Vector | AG30: =IF(Y30>0,Y30,"") ->  | AH30: =IF(Z30>0,Z30,"") -> 2 | AI30: =IF(AA30>0,AA30,"") -> 4.5 | AJ30: =IF(AB30>AI30,AB30,"") -> 
A31: 1 | B31: =IF(B13<>"",B13,"") -> Gazelle | C31: 60° | D31: 2.2 | E31: 2.5 | F31: 4.5 | G31: 4.8 | H31: 8 | J31: Gazelle60° | K31: GazelleAuto | L31: 0.979231397 | M31: -0.181521553 | N31: 0.979231397 | O31: -0.181521553 | P31: 0.979027823 | Q31: -0.369109627 | R31: 0.979027823 | S31: -0.369109627 | T31: 0.9 | U31: 1 | V31: 0.6 | X31: Gazelle | Y31: =_xlfn.MINIFS($D$30:$D$36,$B$30:$B$36,$X31) -> 2.2 | Z31: =_xlfn.MINIFS($E$30:$E$36,$B$30:$B$36,$X31) -> 2.5 | AA31: =_xlfn.MAXIFS($F$30:$F$36,$B$30:$B$36,$X31) -> 7 | AB31: =_xlfn.MAXIFS($G$30:$G$36,$B$30:$B$36,$X31) -> 7.5 | AF31: Gazelle | AG31: =IF(Y31>0,Y31,"") -> 2.2 | AH31: =IF(Z31>0,Z31,"") -> 2.5 | AI31: 7 | AJ31: 7.5
A32: 1 | B32: =IF(B14<>"",B14,"") -> Gazelle | C32: 90° | E32: 2.5 | F32: 4.5 | H32: 8 | J32: Gazelle90° | K32: GazelleAuto | L32: 1.473331143 | M32: -0.4991489294 | N32: 1.473331143 | O32: -0.4991489294 | P32: 1.467427012 | Q32: -0.7155977607 | R32: 1.467427012 | S32: -0.7155977607 | T32: 0.9 | U32: 1 | V32: 0.6 | X32: Outdoor | Y32: =_xlfn.MINIFS($D$30:$D$36,$B$30:$B$36,$X32) -> 2.2 | Z32: =_xlfn.MINIFS($E$30:$E$36,$B$30:$B$36,$X32) -> 2.5 | AA32: =_xlfn.MAXIFS($F$30:$F$36,$B$30:$B$36,$X32) -> 16 | AB32: =_xlfn.MAXIFS($G$30:$G$36,$B$30:$B$36,$X32) -> 7.5 | AF32: Outdoor | AG32: =IF(Y32>0,Y32,"") -> 2.2 | AH32: 2.5 | AI32: 16 | AJ32: =IF(AB32>AI32,AB32,"") -> 
A33: 1 | B33: =IF(B15<>"",B15,"") -> Gazelle | C33: 40° | D33: 3.5 | E33: 4 | F33: 7 | G33: 7.5 | H33: 8 | J33: Gazelle40° | K33: GazelleAuto | L33: 0.6177271475 | M33: -0.1595653162 | N33: 0.6177271475 | O33: -0.1595653162 | P33: 0.6215204836 | Q33: -0.3237174713 | R33: 0.6215204836 | S33: -0.3237174713 | T33: 0.9 | U33: 1 | V33: 0.6 | X33: Auto | Y33: =MIN(Y30:Y32) -> 0 | Z33: =MIN(Z30:Z32) -> 2 | AA33: =MAX(AA30:AA32) -> 16 | AB33: =MAX(AB30:AB32) -> 7.5 | AF33: Auto | AG33: =IF(Y33>0,Y33,"") ->  | AH33: =IF(Z33>0,Z33,"") -> 2 | AI33: =IF(AA33>0,AA33,"") -> 16 | AJ33: =IF(AB33>AI33,AB33,"") -> 
A34: 1 | B34: =IF(B16<>"",B16,"") -> Outdoor | C34: 60° | D34: 2.2 | E34: 2.5 | F34: 4.5 | G34: 4.8 | H34: 8 | J34: Outdoor60° | K34: OutdoorAuto | L34: 0.979231397 | M34: -0.181521553 | N34: 0.979231397 | O34: -0.181521553 | P34: 0.979027823 | Q34: -0.369109627 | R34: 0.979027823 | S34: -0.369109627 | T34: 0.9 | U34: 1 | V34: 0.6
A35: 1 | B35: =IF(B17<>"",B17,"") -> Outdoor | C35: 40° | D35: 3.5 | E35: 4 | F35: 7 | G35: 7.5 | H35: 8 | J35: Outdoor40° | K35: OutdoorAuto | L35: 0.6177271475 | M35: -0.1595653162 | N35: 0.6177271475 | O35: -0.1595653162 | P35: 0.6215204836 | Q35: -0.3237174713 | R35: 0.6215204836 | S35: -0.3237174713 | T35: 0.9 | U35: 1 | V35: 0.6
A36: 0 | B36: =IF(B18<>"",B18,"") -> Outdoor | C36: 20° | E36: 7 | F36: 16 | H36: 8 | I36: Discontinued | J36: Outdoor20° | K36: OutdoorAuto | L36: 0.28538741 | M36: -0.07474977 | N36: 0.28538741 | O36: -0.07474977 | P36: 0.28890355 | Q36: -0.137123941 | R36: 0.28890355 | S36: -0.137123941 | T36: 0.9 | U36: 1 | V36: 0.6
A37: 0 | B37: =IF(B19<>"",B19,"") ->  | K37: Auto | T37: 0.1 | U37: 0.9 | V37: 0.5
B38: =IF(B20<>"",B20,"") -> 
A48: =IF($A12=1,A12,"") -> 1 | B48: =IF($A12=1,B12,"") -> Vector | C48: 75° | D48: 0 | E48: 2 | F48: 4.5 | G48: 0 | H48: 4 or 32 | I48: Count or Analytic | J48: Vector75° | K48: VectorAuto | L48: 1.420999982 | M48: -1.277670819 | N48: 1.019524352 | O48: -0.9166900286 | P48: 1.420999982 | Q48: -1.527670819 | R48: 1.019524352 | S48: -1.166690029 | T48: 0.1 | U48: 0.9 | V48: 0.5 | W48: 0 | X48: 0
A49: =IF($A13=1,A13,"") -> 1 | B49: Gazelle | C49: 60° | D49: 2.2 | E49: 2.5 | F49: 4.5 | G49: 4.8 | H49: 8 | I49: 0 | J49: Gazelle60° | K49: GazelleAuto | L49: 0.979231397 | M49: -0.181521553 | N49: 0.979231397 | O49: -0.181521553 | P49: 0.979027823 | Q49: -0.369109627 | R49: 0.979027823 | S49: =IF($A13=1,S13,"") -> -0.369109627 | T49: 0.9 | U49: 1 | V49: 0.6 | W49: 0 | X49: 0
A50: =IF($A14=1,A14,"") -> 1 | B50: Gazelle | C50: 90° | D50: 0 | E50: 2.5 | F50: 4.5 | G50: 0 | H50: 8 | I50: 0 | J50: Gazelle90° | K50: GazelleAuto | L50: 1.473331143 | M50: -0.4991489294 | N50: 1.473331143 | O50: -0.4991489294 | P50: 1.467427012 | Q50: -0.7155977607 | R50: 1.467427012 | S50: =IF($A14=1,S14,"") -> -0.7155977607 | T50: 0.9 | U50: 1 | V50: 0.6 | W50: 0 | X50: 0
A51: =IF($A15=1,A15,"") -> 1 | B51: Gazelle | C51: 40° | D51: 3.5 | E51: 4 | F51: 7 | G51: 7.5 | H51: 8 | I51: 0 | J51: Gazelle40° | K51: GazelleAuto | L51: 0.6177271475 | M51: -0.1595653162 | N51: 0.6177271475 | O51: -0.1595653162 | P51: 0.6215204836 | Q51: -0.3237174713 | R51: 0.6215204836 | S51: =IF($A15=1,S15,"") -> -0.3237174713 | T51: 0.9 | U51: 1 | V51: 0.6 | W51: 0 | X51: 0
A52: =IF($A16=1,A16,"") -> 1 | B52: Outdoor | C52: 60° | D52: 2.2 | E52: 2.5 | F52: 4.5 | G52: 4.8 | H52: 8 | I52: 0 | J52: Outdoor60° | K52: OutdoorAuto | L52: 0.979231397 | M52: -0.181521553 | N52: 0.979231397 | O52: -0.181521553 | P52: 0.979027823 | Q52: -0.369109627 | R52: 0.979027823 | S52: =IF($A16=1,S16,"") -> -0.369109627 | T52: 0.9 | U52: 1 | V52: 0.6 | W52: 0 | X52: 0
A53: =IF($A17=1,A17,"") ->  | S53: =IF($A17=1,S17,"") -> 
A54: =IF($A18=1,A18,"") -> 1 | B54: Outdoor | C54: 20° | D54: 0 | E54: 7 | F54: 16 | G54: 0 | H54: 8 | I54: Discontinued | J54: Outdoor20° | K54: OutdoorAuto | L54: 0.28538741 | M54: -0.07474977 | N54: 0.28538741 | O54: -0.07474977 | P54: 0.28890355 | Q54: -0.137123941 | R54: 0.28890355 | S54: =IF($A18=1,S18,"") -> -0.137123941 | T54: 0.9 | U54: 1 | V54: 0.6 | W54: 0 | X54: 0
A55: =IF($A19=1,A19,"") ->  | S55: =IF($A19=1,S19,"") -> 
A56: =IF($A20=1,A20,"") ->  | S56: =IF($A20=1,S20,"") -> 
A57: =IF($A21=1,A21,"") -> 
A66: 1

Sheet Dropdowns (hidden)
A1: Devices | B1: Vector | C1: Gazelle | D1: Outdoor | E1: DevicesAuto | F1: Vector | G1: Gazelle1 | H1: Outdoor1 | J1: PreferFeet | K1: PreferInches | N1: Type | O1: Lens | P1: Output | Q1: Dualview | R1: Lookup Code | S1: Master | U1: Type | V1: Lens | W1: Output | X1: Lookup Code | Y1: Node
A2: Vector | B2: 75° | C2: 60° | D2: 20° | E2: Auto | F2: 75° | G2: 60° | H2: 20° | J2: sq. ft | K2: sq. in | N2: Gazelle | O2: 90° | P2: IP | Q2: Yes | R2: =N2&O2&P2&Q2 -> Gazelle90°IPYes | S2: IRC5739-MW | U2: Gazelle | V2: 90° | W2: IP | X2: =U2&V2&W2 -> Gazelle90°IP | Y2: IRC5129-NW
A3: Gazelle | C3: 40° | D3: 40° | E3: Vector | G3: 40° | H3: 40° | J3: sq ft | K3: sq in | N3: Gazelle | O3: 90° | P3: IP | Q3: No | R3: =N3&O3&P3&Q3 -> Gazelle90°IPNo | S3: IRC5729-MW | U3: Gazelle | V3: 60° | W3: IP | X3: =U3&V3&W3 -> Gazelle60°IP | Y3: IRC5106-NW
A4: Outdoor | C4: 90° | D4: 60° | E4: Gazelle | G4: 90° | H4: 60° | J4: sf | K4: square in | N4: Gazelle | O4: 90° | P4: Relay | Q4: No | R4: Gazelle90°RelayNo | S4: IRC5229-MW | U4: Gazelle | V4: 40° | W4: IP | X4: Gazelle40°IP | Y4: IRC5104-NW
E5: Outdoor | G5: Auto | H5: Auto | J5: ft² | K5: sq inches | N5: Gazelle | O5: 90° | P5: Relay | Q5: Yes | R5: Gazelle90°RelayYes | S5: N/A | U5: Vector | V5: 75° | W5: IP | X5: Vector75°IP | Y5: IRC6337-SW
K6: sq inch | N6: Gazelle | O6: 60° | P6: IP | Q6: Yes | R6: Gazelle60°IPYes | S6: IRC5716-MW | U6: Outdoor | V6: 60° | W6: IP | X6: Outdoor60°IP | Y6: IRC3100
K7: inches/-2 | N7: Gazelle | O7: 60° | P7: IP | Q7: No | R7: Gazelle60°IPNo | S7: IRC5706-MW | U7: Outdoor | V7: 60° | W7: Relay | X7: Outdoor60°Relay | Y7: IRC3120
K8: inch/-2 | N8: Gazelle | O8: 60° | P8: Relay | Q8: No | R8: Gazelle60°RelayNo | S8: IRC5206-MW | U8: Outdoor | V8: 40° | W8: IP | X8: Outdoor40°IP | Y8: IRC3111
K9: in/-2 | N9: Gazelle | O9: 60° | P9: Relay | Q9: Yes | R9: Gazelle60°RelayYes | S9: N/A | U9: Outdoor | V9: 40° | W9: Relay | X9: Outdoor40°Relay | Y9: IRC3121
K10: inches^2 | N10: Gazelle | O10: 40° | P10: IP | Q10: Yes | R10: Gazelle40°IPYes | S10: IRC5714-MW | U10: Outdoor | V10: 20° | W10: IP | X10: Outdoor20°IP | Y10: IRC3113
K11: inch^2 | N11: Gazelle | O11: 40° | P11: IP | Q11: No | R11: Gazelle40°IPNo | S11: IRC5704-MW | U11: Outdoor | V11: 20° | W11: Relay | X11: Outdoor20°Relay | Y11: IRC3123
K12: in^2 | N12: Gazelle | O12: 40° | P12: Relay | Q12: No | R12: Gazelle40°RelayNo | S12: IRC5204-MW
K13: inches² | N13: Gazelle | O13: 40° | P13: Relay | Q13: Yes | R13: Gazelle40°RelayYes | S13: N/A
K14: inch² | N14: Vector | O14: 75° | P14: IP | Q14: Yes | R14: Vector75°IPYes | S14: IRC6337-SW
K15: in² | N15: Vector | O15: 75° | P15: IP | Q15: No | R15: Vector75°IPNo | S15: N/A
N16: Vector | O16: 75° | P16: Relay | Q16: Yes | R16: Vector75°RelayYes | S16: N/A
N17: Vector | O17: 75° | P17: Relay | Q17: No | R17: Vector75°RelayNo | S17: N/A
N18: Outdoor | O18: 60° | P18: IP | Q18: Yes | R18: Outdoor60°IPYes | S18: N/A
N19: Outdoor | O19: 60° | P19: IP | Q19: No | R19: Outdoor60°IPNo | S19: IRC3110
N20: Outdoor | O20: 60° | P20: Relay | Q20: Yes | R20: Outdoor60°RelayYes | S20: N/A
N21: Outdoor | O21: 60° | P21: Relay | Q21: No | R21: Outdoor60°RelayNo | S21: IRC3120
N22: Outdoor | O22: 40° | P22: IP | Q22: Yes | R22: Outdoor40°IPYes | S22: N/A
N23: Outdoor | O23: 40° | P23: IP | Q23: No | R23: Outdoor40°IPNo | S23: IRC3111
N24: Outdoor | O24: 40° | P24: Relay | Q24: Yes | R24: Outdoor40°RelayYes | S24: N/A
N25: Outdoor | O25: 40° | P25: Relay | Q25: No | R25: Outdoor40°RelayNo | S25: IRC3121
N26: Outdoor | O26: 20° | P26: IP | Q26: Yes | R26: Outdoor20°IPYes | S26: N/A
N27: Outdoor | O27: 20° | P27: IP | Q27: No | R27: Outdoor20°IPNo | S27: IRC3113
N28: Outdoor | O28: 20° | P28: Relay | Q28: Yes | R28: Outdoor20°RelayYes | S28: N/A
N29: Outdoor | O29: 20° | P29: Relay | Q29: No | R29: Outdoor20°RelayNo | S29: IRC3123

Sheet Entrances (hidden)
H2: Output type reqd?: | I2: IP
H3: DualView reqd?: | I3: Yes
H5: Additional Coverage: | I5: 1 | J5: m
I6: (Ensures that entrances are fully covered)
H7: 60-40 Changeover limit: | I7: 4.5 | J7: m
I8: (Choose between 4.5m (14.8ft) and 4.8m (15.7ft) - recommended is 4.5m)
A10: HIDE ME | B10: HIDE ME | C10: HIDE ME | H10: Enter or Paste values here
A11: HIDE ME | B11: HIDE ME | C11: HIDE ME
A12: m | C12: m | U12: Counter Parts Required | AL12: Distance From Door Range
A13: Mounting Height | B13: Entrance Width | C13: Total Field of View | E13: No | F13: Site Name | G13: Entrance Name | H13: Mounting Height | I13: Entrance Width | J13: Units | K13: Preferred Lens | L13: Min Height | M13: Max Height | N13: Counters Required (Max 8!) | O13: Number of 90° Units | P13: Number of 60° Units | Q13: Number of 40° Units | R13: Total Field of View | S13: Units | T13: Wall/ Door Offset | U13: Master | V13: Separation | W13: Node 1 | X13: Separation | Y13: Node 2 | Z13: Separation | AA13: Node 3 | AB13: Separation | AC13: Node 4 | AD13: Separation | AE13: Node 5 | AF13: Separation | AG13: Node 6 | AH13: Separation | AI13: Node 7 | AJ13: Wall/ Door Offset | AK13: Calculator Generated Notes | AL13: Closest Possible | AM13: Furthest Possible | AN13: Your notes
A15: =IF(AND(H15<>"", $J15<>""),H15*VLOOKUP($J15,Calc!$B$3:$C$7,2,FALSE),"") -> 3.6 | B15: =IF(AND(I15<>"", $J15<>""),I15*VLOOKUP($J15,Calc!$B$3:$C$7,2,FALSE),"") -> 6 | C15: =Calc!$EF23 -> 7.93554234 | E15: 1 | G15: Automatic example | H15: 3.6 | I15: 6 | J15: m | K15: Auto | L15: =IF(AND(K15<>"",J15<>""),FLOOR(VLOOKUP(K15,Calc!$C$15:$G$18,2,FALSE)*VLOOKUP(J15,Calc!$B$3:$D$7,3,FALSE),0.01)&J15,"") -> 2.2m | M15: =IF(AND(K15<>"",J15<>""),FLOOR(VLOOKUP(K15,Calc!$C$15:$G$18,5,FALSE)*VLOOKUP(J15,Calc!$B$3:$D$7,3,FALSE),0.01)&J15,"") -> 7.5m | N15: =IF(R15<>"",Calc!FN23,"") -> 2 | O15: =IF(R15<>"",Calc!FK23,"") -> 1 | P15: =IF(R15<>"",Calc!FL23,"") -> 1 | Q15: =IF(R15<>"",Calc!FM23,"") -> 0 | R15: =IF(AND(C15<>"", S15<>""),C15*VLOOKUP(S15,Calc!$B$3:$D$7,3,FALSE),"") -> 7.93554234 | S15: m | T15: =IF(AND(Calc!GD23<>"",S15<>""),FLOOR(Calc!GD23*VLOOKUP(S15,Calc!$B$3:$D$7,3,FALSE),0.01)&S15,"") -> 1.26m | U15: =Calc!EG23 -> IRC5739-MW | V15: =IF(AND(Calc!GG23<>"-",S15<>""),FLOOR(Calc!GG23*VLOOKUP(S15,Calc!$B$3:$D$7,3,FALSE),0.01)&S15,"") -> 3.86m | W15: =Calc!EH23 -> IRC5106-NW | X15: =IF(AND(Calc!GH23<>"-",S15<>""),FLOOR(Calc!GH23*VLOOKUP(S15,Calc!$B$3:$D$7,3,FALSE),0.01)&S15,"") -> 0.87m | Y15: =Calc!EI23 -> - | Z15: =IF(AND(Calc!GI23<>"-",S15<>""),FLOOR(Calc!GI23*VLOOKUP(S15,Calc!$B$3:$D$7,3,FALSE),0.01)&S15,"") ->  | AA15: =Calc!EJ23 -> - | AB15: =IF(AND(Calc!GJ23<>"-",S15<>""),FLOOR(Calc!GJ23*VLOOKUP(S15,Calc!$B$3:$D$7,3,FALSE),0.01)&S15,"") ->  | AC15: =Calc!EK23 -> - | AD15: =IF(AND(Calc!GK23<>"-",S15<>""),FLOOR(Calc!GK23*VLOOKUP(S15,Calc!$B$3:$D$7,3,FALSE),0.01)&S15,"") ->  | AE15: =Calc!EL23 -> - | AF15: =IF(AND(Calc!GL23<>"-",S15<>""),FLOOR(Calc!GL23*VLOOKUP(S15,Calc!$B$3:$D$7,3,FALSE),0.01)&S15,"") ->  | AG15: =Calc!EM23 -> - | AH15: =IF(AND(Calc!GM23<>"-",S15<>""),FLOOR(Calc!GM23*VLOOKUP(S15,Calc!$B$3:$D$7,3,FALSE),0.01)&S15,"") ->  | AI15: =Calc!EN23 -> - | AJ15: =IF(AND(Calc!GN23<>"-",S15<>""),FLOOR(Calc!GN23*VLOOKUP(S15,Calc!$B$3:$D$7,3,FALSE),0.01)&S15,"") ->  | AK15: =Calc!EP23 -> DualView Master will not see whole of thermal view. | AL15: =IF(AND(Calc!HE23<>"-",Calc!HE23<>"",S15<>""),FLOOR(Calc!HE23*VLOOKUP(S15,Calc!$B$3:$D$7,3,FALSE),0.01)&S15,"") -> 1.33m | AM15: =IF(AND(Calc!HF23<>"-",Calc!HF23<>"",S15<>""),FLOOR(Calc!HF23*VLOOKUP(S15,Calc!$B$3:$D$7,3,FALSE),0.01)&S15,"") -> 1.67m
A16: =IF(AND(H16<>"", $J16<>""),H16*VLOOKUP($J16,Calc!$B$3:$C$7,2,FALSE),"") -> 3.6 | B16: =IF(AND(I16<>"", $J16<>""),I16*VLOOKUP($J16,Calc!$B$3:$C$7,2,FALSE),"") -> 250 | C16: =Calc!$EF24 -> 251.4303752 | E16: =IF(AND($E15<>"", $F15<>"",$G15<>"",$H15<>"",$I15<>""),$E15+1,"") ->  | F16: Test Site | G16: Forced 90° example | H16: 3.6 | I16: 250 | J16: m | K16: 90° | L16: =IF(AND(K16<>"",J16<>""),FLOOR(VLOOKUP(K16,Calc!$C$15:$G$18,2,FALSE)*VLOOKUP(J16,Calc!$B$3:$D$7,3,FALSE),0.01)&J16,"") -> 2.5m | M16: =IF(AND(K16<>"",J16<>""),FLOOR(VLOOKUP(K16,Calc!$C$15:$G$18,5,FALSE)*VLOOKUP(J16,Calc!$B$3:$D$7,3,FALSE),0.01)&J16,"") -> 4.5m | N16: =IF(R16<>"",Calc!FN24,"") -> 0 | O16: =IF(R16<>"",Calc!FK24,"") -> 0 | P16: =IF(R16<>"",Calc!FL24,"") -> 0 | Q16: =IF(R16<>"",Calc!FM24,"") -> 0 | R16: =IF(AND(C16<>"", S16<>""),C16*VLOOKUP(S16,Calc!$B$3:$D$7,3,FALSE),"") -> 251.4303752 | S16: m | T16: =IF(AND(Calc!GD24<>"",S16<>""),FLOOR(Calc!GD24*VLOOKUP(S16,Calc!$B$3:$D$7,3,FALSE),0.01)&S16,"") ->  | U16: =Calc!EG24 ->  | V16: =IF(AND(Calc!GG24<>"-",S16<>""),FLOOR(Calc!GG24*VLOOKUP(S16,Calc!$B$3:$D$7,3,FALSE),0.01)&S16,"") ->  | W16: =Calc!EH24 ->  | X16: =IF(AND(Calc!GH24<>"-",S16<>""),FLOOR(Calc!GH24*VLOOKUP(S16,Calc!$B$3:$D$7,3,FALSE),0.01)&S16,"") ->  | Y16: =Calc!EI24 ->  | Z16: =IF(AND(Calc!GI24<>"-",S16<>""),FLOOR(Calc!GI24*VLOOKUP(S16,Calc!$B$3:$D$7,3,FALSE),0.01)&S16,"") ->  | AA16: =Calc!EJ24 ->  | AB16: =IF(AND(Calc!GJ24<>"-",S16<>""),FLOOR(Calc!GJ24*VLOOKUP(S16,Calc!$B$3:$D$7,3,FALSE),0.01)&S16,"") ->  | AC16: =Calc!EK24 ->  | AD16: =IF(AND(Calc!GK24<>"-",S16<>""),FLOOR(Calc!GK24*VLOOKUP(S16,Calc!$B$3:$D$7,3,FALSE),0.01)&S16,"") ->  | AE16: =Calc!EL24 ->  | AF16: =IF(AND(Calc!GL24<>"-",S16<>""),FLOOR(Calc!GL24*VLOOKUP(S16,Calc!$B$3:$D$7,3,FALSE),0.01)&S16,"") ->  | AG16: =Calc!EM24 ->  | AH16: =IF(AND(Calc!GM24<>"-",S16<>""),FLOOR(Calc!GM24*VLOOKUP(S16,Calc!$B$3:$D$7,3,FALSE),0.01)&S16,"") ->  | AI16: =Calc!EN24 ->  | AJ16: =IF(AND(Calc!GN24<>"-",S16<>""),FLOOR(Calc!GN24*VLOOKUP(S16,Calc!$B$3:$D$7,3,FALSE),0.01)&S16,"") ->  | AK16: =Calc!EP24 -> More than eight counters required. | AL16: =IF(AND(Calc!HE24<>"-",Calc!HE24<>"",S16<>""),FLOOR(Calc!HE24*VLOOKUP(S16,Calc!$B$3:$D$7,3,FALSE),0.01)&S16,"") ->  | AM16: =IF(AND(Calc!HF24<>"-",Calc!HF24<>"",S16<>""),FLOOR(Calc!HF24*VLOOKUP(S16,Calc!$B$3:$D$7,3,FALSE),0.01)&S16,"") -> 
A17: =IF(AND(H17<>"", $J17<>""),H17*VLOOKUP($J17,Calc!$B$3:$C$7,2,FALSE),"") -> 3.6 | B17: =IF(AND(I17<>"", $J17<>""),I17*VLOOKUP($J17,Calc!$B$3:$C$7,2,FALSE),"") -> 280 | C17: =Calc!$EF25 -> 281.0180786 | E17: =IF(AND($E16<>"", $F16<>"",$G16<>"",$H16<>"",$I16<>""),$E16+1,"") ->  | F17: Test Site | G17: Forced 60° example | H17: 3.6 | I17: 280 | J17: m | K17: 60° | L17: =IF(AND(K17<>"",J17<>""),FLOOR(VLOOKUP(K17,Calc!$C$15:$G$18,2,FALSE)*VLOOKUP(J17,Calc!$B$3:$D$7,3,FALSE),0.01)&J17,"") -> 2.2m | M17: =IF(AND(K17<>"",J17<>""),FLOOR(VLOOKUP(K17,Calc!$C$15:$G$18,5,FALSE)*VLOOKUP(J17,Calc!$B$3:$D$7,3,FALSE),0.01)&J17,"") -> 4.8m | N17: =IF(R17<>"",Calc!FN25,"") -> 0 | O17: =IF(R17<>"",Calc!FK25,"") -> 0 | P17: =IF(R17<>"",Calc!FL25,"") -> 0 | Q17: =IF(R17<>"",Calc!FM25,"") -> 0 | R17: =IF(AND(C17<>"", S17<>""),C17*VLOOKUP(S17,Calc!$B$3:$D$7,3,FALSE),"") -> 281.0180786 | S17: m | T17: =IF(AND(Calc!GD25<>"",S17<>""),FLOOR(Calc!GD25*VLOOKUP(S17,Calc!$B$3:$D$7,3,FALSE),0.01)&S17,"") ->  | U17: =Calc!EG25 ->  | V17: =IF(AND(Calc!GG25<>"-",S17<>""),FLOOR(Calc!GG25*VLOOKUP(S17,Calc!$B$3:$D$7,3,FALSE),0.01)&S17,"") ->  | W17: =Calc!EH25 ->  | X17: =IF(AND(Calc!GH25<>"-",S17<>""),FLOOR(Calc!GH25*VLOOKUP(S17,Calc!$B$3:$D$7,3,FALSE),0.01)&S17,"") ->  | Y17: =Calc!EI25 ->  | Z17: =IF(AND(Calc!GI25<>"-",S17<>""),FLOOR(Calc!GI25*VLOOKUP(S17,Calc!$B$3:$D$7,3,FALSE),0.01)&S17,"") ->  | AA17: =Calc!EJ25 ->  | AB17: =IF(AND(Calc!GJ25<>"-",S17<>""),FLOOR(Calc!GJ25*VLOOKUP(S17,Calc!$B$3:$D$7,3,FALSE),0.01)&S17,"") ->  | AC17: =Calc!EK25 ->  | AD17: =IF(AND(Calc!GK25<>"-",S17<>""),FLOOR(Calc!GK25*VLOOKUP(S17,Calc!$B$3:$D$7,3,FALSE),0.01)&S17,"") ->  | AE17: =Calc!EL25 ->  | AF17: =IF(AND(Calc!GL25<>"-",S17<>""),FLOOR(Calc!GL25*VLOOKUP(S17,Calc!$B$3:$D$7,3,FALSE),0.01)&S17,"") ->  | AG17: =Calc!EM25 ->  | AH17: =IF(AND(Calc!GM25<>"-",S17<>""),FLOOR(Calc!GM25*VLOOKUP(S17,Calc!$B$3:$D$7,3,FALSE),0.01)&S17,"") ->  | AI17: =Calc!EN25 ->  | AJ17: =IF(AND(Calc!GN25<>"-",S17<>""),FLOOR(Calc!GN25*VLOOKUP(S17,Calc!$B$3:$D$7,3,FALSE),0.01)&S17,"") ->  | AK17: =Calc!EP25 -> More than eight counters required. | AL17: =IF(AND(Calc!HE25<>"-",Calc!HE25<>"",S17<>""),FLOOR(Calc!HE25*VLOOKUP(S17,Calc!$B$3:$D$7,3,FALSE),0.01)&S17,"") ->  | AM17: =IF(AND(Calc!HF25<>"-",Calc!HF25<>"",S17<>""),FLOOR(Calc!HF25*VLOOKUP(S17,Calc!$B$3:$D$7,3,FALSE),0.01)&S17,"") -> 
A18: =IF(AND(H18<>"", $J18<>""),H18*VLOOKUP($J18,Calc!$B$3:$C$7,2,FALSE),"") -> 3.6 | B18: =IF(AND(I18<>"", $J18<>""),I18*VLOOKUP($J18,Calc!$B$3:$C$7,2,FALSE),"") -> 6 | C18: =Calc!$EF26 -> 7.805521224 | F18: Test Site | G18: Forecd 40° example | H18: 3.6 | I18: 6 | J18: m | K18: 40° | L18: =IF(AND(K18<>"",J18<>""),FLOOR(VLOOKUP(K18,Calc!$C$15:$G$18,2,FALSE)*VLOOKUP(J18,Calc!$B$3:$D$7,3,FALSE),0.01)&J18,"") -> 3.5m | M18: =IF(AND(K18<>"",J18<>""),FLOOR(VLOOKUP(K18,Calc!$C$15:$G$18,5,FALSE)*VLOOKUP(J18,Calc!$B$3:$D$7,3,FALSE),0.01)&J18,"") -> 7.5m | N18: =IF(R18<>"",Calc!FN26,"") -> 4 | O18: =IF(R18<>"",Calc!FK26,"") -> 0 | P18: =IF(R18<>"",Calc!FL26,"") -> 0 | Q18: =IF(R18<>"",Calc!FM26,"") -> 4 | R18: =IF(AND(C18<>"", S18<>""),C18*VLOOKUP(S18,Calc!$B$3:$D$7,3,FALSE),"") -> 7.805521224 | S18: m | T18: =IF(AND(Calc!GD26<>"",S18<>""),FLOOR(Calc!GD26*VLOOKUP(S18,Calc!$B$3:$D$7,3,FALSE),0.01)&S18,"") -> 0.12m | U18: =Calc!EG26 -> IRC5714-MW | V18: =IF(AND(Calc!GG26<>"-",S18<>""),FLOOR(Calc!GG26*VLOOKUP(S18,Calc!$B$3:$D$7,3,FALSE),0.01)&S18,"") -> 1.91m | W18: =Calc!EH26 -> IRC5104-NW | X18: =IF(AND(Calc!GH26<>"-",S18<>""),FLOOR(Calc!GH26*VLOOKUP(S18,Calc!$B$3:$D$7,3,FALSE),0.01)&S18,"") -> 1.91m | Y18: =Calc!EI26 -> IRC5104-NW | Z18: =IF(AND(Calc!GI26<>"-",S18<>""),FLOOR(Calc!GI26*VLOOKUP(S18,Calc!$B$3:$D$7,3,FALSE),0.01)&S18,"") -> 1.91m | AA18: =Calc!EJ26 -> IRC5104-NW | AB18: =IF(AND(Calc!GJ26<>"-",S18<>""),FLOOR(Calc!GJ26*VLOOKUP(S18,Calc!$B$3:$D$7,3,FALSE),0.01)&S18,"") -> 0.12m | AC18: =Calc!EK26 -> - | AD18: =IF(AND(Calc!GK26<>"-",S18<>""),FLOOR(Calc!GK26*VLOOKUP(S18,Calc!$B$3:$D$7,3,FALSE),0.01)&S18,"") ->  | AE18: =Calc!EL26 -> - | AF18: =IF(AND(Calc!GL26<>"-",S18<>""),FLOOR(Calc!GL26*VLOOKUP(S18,Calc!$B$3:$D$7,3,FALSE),0.01)&S18,"") ->  | AG18: =Calc!EM26 -> - | AH18: =IF(AND(Calc!GM26<>"-",S18<>""),FLOOR(Calc!GM26*VLOOKUP(S18,Calc!$B$3:$D$7,3,FALSE),0.01)&S18,"") ->  | AI18: =Calc!EN26 -> - | AJ18: =IF(AND(Calc!GN26<>"-",S18<>""),FLOOR(Calc!GN26*VLOOKUP(S18,Calc!$B$3:$D$7,3,FALSE),0.01)&S18,"") ->  | AK18: =Calc!EP26 ->  | AL18: =IF(AND(Calc!HE26<>"-",Calc!HE26<>"",S18<>""),FLOOR(Calc!HE26*VLOOKUP(S18,Calc!$B$3:$D$7,3,FALSE),0.01)&S18,"") -> 1m | AM18: =IF(AND(Calc!HF26<>"-",Calc!HF26<>"",S18<>""),FLOOR(Calc!HF26*VLOOKUP(S18,Calc!$B$3:$D$7,3,FALSE),0.01)&S18,"") -> 1.03m
A19: =IF(AND(H19<>"", $J19<>""),H19*VLOOKUP($J19,Calc!$B$3:$C$7,2,FALSE),"") -> 4 | B19: =IF(AND(I19<>"", $J19<>""),I19*VLOOKUP($J19,Calc!$B$3:$C$7,2,FALSE),"") -> 3 | C19: =Calc!$EF27 -> 7.2824057 | F19: Test Site | H19: 4 | I19: 3 | J19: m | K19: 60° | L19: =IF(AND(K19<>"",J19<>""),FLOOR(VLOOKUP(K19,Calc!$C$15:$G$18,2,FALSE)*VLOOKUP(J19,Calc!$B$3:$D$7,3,FALSE),0.01)&J19,"") -> 2.2m | M19: =IF(AND(K19<>"",J19<>""),FLOOR(VLOOKUP(K19,Calc!$C$15:$G$18,5,FALSE)*VLOOKUP(J19,Calc!$B$3:$D$7,3,FALSE),0.01)&J19,"") -> 4.8m | N19: =IF(R19<>"",Calc!FN27,"") -> 2 | O19: =IF(R19<>"",Calc!FK27,"") -> 0 | P19: =IF(R19<>"",Calc!FL27,"") -> 2 | Q19: =IF(R19<>"",Calc!FM27,"") -> 0 | R19: =IF(AND(C19<>"", S19<>""),C19*VLOOKUP(S19,Calc!$B$3:$D$7,3,FALSE),"") -> 7.2824057 | S19: m | T19: =IF(AND(Calc!GD27<>"",S19<>""),FLOOR(Calc!GD27*VLOOKUP(S19,Calc!$B$3:$D$7,3,FALSE),0.01)&S19,"") -> -0.28m | U19: =Calc!EG27 -> IRC5716-MW | V19: =IF(AND(Calc!GG27<>"-",S19<>""),FLOOR(Calc!GG27*VLOOKUP(S19,Calc!$B$3:$D$7,3,FALSE),0.01)&S19,"") -> 3.54m | W19: =Calc!EH27 -> IRC5106-NW | X19: =IF(AND(Calc!GH27<>"-",S19<>""),FLOOR(Calc!GH27*VLOOKUP(S19,Calc!$B$3:$D$7,3,FALSE),0.01)&S19,"") -> -0.28m | Y19: =Calc!EI27 -> - | Z19: =IF(AND(Calc!GI27<>"-",S19<>""),FLOOR(Calc!GI27*VLOOKUP(S19,Calc!$B$3:$D$7,3,FALSE),0.01)&S19,"") ->  | AA19: =Calc!EJ27 -> - | AB19: =IF(AND(Calc!GJ27<>"-",S19<>""),FLOOR(Calc!GJ27*VLOOKUP(S19,Calc!$B$3:$D$7,3,FALSE),0.01)&S19,"") ->  | AC19: =Calc!EK27 -> - | AD19: =IF(AND(Calc!GK27<>"-",S19<>""),FLOOR(Calc!GK27*VLOOKUP(S19,Calc!$B$3:$D$7,3,FALSE),0.01)&S19,"") ->  | AE19: =Calc!EL27 -> - | AF19: =IF(AND(Calc!GL27<>"-",S19<>""),FLOOR(Calc!GL27*VLOOKUP(S19,Calc!$B$3:$D$7,3,FALSE),0.01)&S19,"") ->  | AG19: =Calc!EM27 -> - | AH19: =IF(AND(Calc!GM27<>"-",S19<>""),FLOOR(Calc!GM27*VLOOKUP(S19,Calc!$B$3:$D$7,3,FALSE),0.01)&S19,"") ->  | AI19: =Calc!EN27 -> - | AJ19: =IF(AND(Calc!GN27<>"-",S19<>""),FLOOR(Calc!GN27*VLOOKUP(S19,Calc!$B$3:$D$7,3,FALSE),0.01)&S19,"") ->  | AK19: =Calc!EP27 ->  | AL19: =IF(AND(Calc!HE27<>"-",Calc!HE27<>"",S19<>""),FLOOR(Calc!HE27*VLOOKUP(S19,Calc!$B$3:$D$7,3,FALSE),0.01)&S19,"") -> 1.49m | AM19: =IF(AND(Calc!HF27<>"-",Calc!HF27<>"",S19<>""),FLOOR(Calc!HF27*VLOOKUP(S19,Calc!$B$3:$D$7,3,FALSE),0.01)&S19,"") -> 1.86m
A20: =IF(AND(H20<>"", $J20<>""),H20*VLOOKUP($J20,Calc!$B$3:$C$7,2,FALSE),"") -> 4 | B20: =IF(AND(I20<>"", $J20<>""),I20*VLOOKUP($J20,Calc!$B$3:$C$7,2,FALSE),"") -> 3 | C20: =Calc!$EF28 -> 5.394175643 | H20: 4 | I20: 3 | J20: m | K20: Auto | L20: =IF(AND(K20<>"",J20<>""),FLOOR(VLOOKUP(K20,Calc!$C$15:$G$18,2,FALSE)*VLOOKUP(J20,Calc!$B$3:$D$7,3,FALSE),0.01)&J20,"") -> 2.2m | M20: =IF(AND(K20<>"",J20<>""),FLOOR(VLOOKUP(K20,Calc!$C$15:$G$18,5,FALSE)*VLOOKUP(J20,Calc!$B$3:$D$7,3,FALSE),0.01)&J20,"") -> 7.5m | N20: =IF(R20<>"",Calc!FN28,"") -> 1 | O20: =IF(R20<>"",Calc!FK28,"") -> 1 | P20: =IF(R20<>"",Calc!FL28,"") -> 0 | Q20: =IF(R20<>"",Calc!FM28,"") -> 0 | R20: =IF(AND(C20<>"", S20<>""),C20*VLOOKUP(S20,Calc!$B$3:$D$7,3,FALSE),"") -> 5.394175643 | S20: m | T20: =IF(AND(Calc!GD28<>"",S20<>""),FLOOR(Calc!GD28*VLOOKUP(S20,Calc!$B$3:$D$7,3,FALSE),0.01)&S20,"") -> 1.5m | U20: =Calc!EG28 -> IRC5739-MW | V20: =IF(AND(Calc!GG28<>"-",S20<>""),FLOOR(Calc!GG28*VLOOKUP(S20,Calc!$B$3:$D$7,3,FALSE),0.01)&S20,"") -> 1.5m | W20: =Calc!EH28 -> - | X20: =IF(AND(Calc!GH28<>"-",S20<>""),FLOOR(Calc!GH28*VLOOKUP(S20,Calc!$B$3:$D$7,3,FALSE),0.01)&S20,"") ->  | Y20: =Calc!EI28 -> - | Z20: =IF(AND(Calc!GI28<>"-",S20<>""),FLOOR(Calc!GI28*VLOOKUP(S20,Calc!$B$3:$D$7,3,FALSE),0.01)&S20,"") ->  | AA20: =Calc!EJ28 -> - | AB20: =IF(AND(Calc!GJ28<>"-",S20<>""),FLOOR(Calc!GJ28*VLOOKUP(S20,Calc!$B$3:$D$7,3,FALSE),0.01)&S20,"") ->  | AC20: =Calc!EK28 -> - | AD20: =IF(AND(Calc!GK28<>"-",S20<>""),FLOOR(Calc!GK28*VLOOKUP(S20,Calc!$B$3:$D$7,3,FALSE),0.01)&S20,"") ->  | AE20: =Calc!EL28 -> - | AF20: =IF(AND(Calc!GL28<>"-",S20<>""),FLOOR(Calc!GL28*VLOOKUP(S20,Calc!$B$3:$D$7,3,FALSE),0.01)&S20,"") ->  | AG20: =Calc!EM28 -> - | AH20: =IF(AND(Calc!GM28<>"-",S20<>""),FLOOR(Calc!GM28*VLOOKUP(S20,Calc!$B$3:$D$7,3,FALSE),0.01)&S20,"") ->  | AI20: =Calc!EN28 -> - | AJ20: =IF(AND(Calc!GN28<>"-",S20<>""),FLOOR(Calc!GN28*VLOOKUP(S20,Calc!$B$3:$D$7,3,FALSE),0.01)&S20,"") ->  | AK20: =Calc!EP28 ->  | AL20: =IF(AND(Calc!HE28<>"-",Calc!HE28<>"",S20<>""),FLOOR(Calc!HE28*VLOOKUP(S20,Calc!$B$3:$D$7,3,FALSE),0.01)&S20,"") -> 1m | AM20: =IF(AND(Calc!HF28<>"-",Calc!HF28<>"",S20<>""),FLOOR(Calc!HF28*VLOOKUP(S20,Calc!$B$3:$D$7,3,FALSE),0.01)&S20,"") -> 2.69m
A21: =IF(AND(H21<>"", $J21<>""),H21*VLOOKUP($J21,Calc!$B$3:$C$7,2,FALSE),"") -> 4 | B21: =IF(AND(I21<>"", $J21<>""),I21*VLOOKUP($J21,Calc!$B$3:$C$7,2,FALSE),"") -> 3 | C21: =Calc!$EF29 -> 5.394175643 | H21: 4 | I21: 3 | J21: m | L21: =IF(AND(K21<>"",J21<>""),FLOOR(VLOOKUP(K21,Calc!$C$15:$G$18,2,FALSE)*VLOOKUP(J21,Calc!$B$3:$D$7,3,FALSE),0.01)&J21,"") ->  | M21: =IF(AND(K21<>"",J21<>""),FLOOR(VLOOKUP(K21,Calc!$C$15:$G$18,5,FALSE)*VLOOKUP(J21,Calc!$B$3:$D$7,3,FALSE),0.01)&J21,"") ->  | N21: =IF(R21<>"",Calc!FN29,"") -> 1 | O21: =IF(R21<>"",Calc!FK29,"") -> 1 | P21: =IF(R21<>"",Calc!FL29,"") -> 0 | Q21: =IF(R21<>"",Calc!FM29,"") -> 0 | R21: =IF(AND(C21<>"", S21<>""),C21*VLOOKUP(S21,Calc!$B$3:$D$7,3,FALSE),"") -> 5.394175643 | S21: m | T21: =IF(AND(Calc!GD29<>"",S21<>""),FLOOR(Calc!GD29*VLOOKUP(S21,Calc!$B$3:$D$7,3,FALSE),0.01)&S21,"") -> 1.5m | U21: =Calc!EG29 -> IRC5739-MW | V21: =IF(AND(Calc!GG29<>"-",S21<>""),FLOOR(Calc!GG29*VLOOKUP(S21,Calc!$B$3:$D$7,3,FALSE),0.01)&S21,"") -> 1.5m | W21: =Calc!EH29 -> - | X21: =IF(AND(Calc!GH29<>"-",S21<>""),FLOOR(Calc!GH29*VLOOKUP(S21,Calc!$B$3:$D$7,3,FALSE),0.01)&S21,"") ->  | Y21: =Calc!EI29 -> - | Z21: =IF(AND(Calc!GI29<>"-",S21<>""),FLOOR(Calc!GI29*VLOOKUP(S21,Calc!$B$3:$D$7,3,FALSE),0.01)&S21,"") ->  | AA21: =Calc!EJ29 -> - | AB21: =IF(AND(Calc!GJ29<>"-",S21<>""),FLOOR(Calc!GJ29*VLOOKUP(S21,Calc!$B$3:$D$7,3,FALSE),0.01)&S21,"") ->  | AC21: =Calc!EK29 -> - | AD21: =IF(AND(Calc!GK29<>"-",S21<>""),FLOOR(Calc!GK29*VLOOKUP(S21,Calc!$B$3:$D$7,3,FALSE),0.01)&S21,"") ->  | AE21: =Calc!EL29 -> - | AF21: =IF(AND(Calc!GL29<>"-",S21<>""),FLOOR(Calc!GL29*VLOOKUP(S21,Calc!$B$3:$D$7,3,FALSE),0.01)&S21,"") ->  | AG21: =Calc!EM29 -> - | AH21: =IF(AND(Calc!GM29<>"-",S21<>""),FLOOR(Calc!GM29*VLOOKUP(S21,Calc!$B$3:$D$7,3,FALSE),0.01)&S21,"") ->  | AI21: =Calc!EN29 -> - | AJ21: =IF(AND(Calc!GN29<>"-",S21<>""),FLOOR(Calc!GN29*VLOOKUP(S21,Calc!$B$3:$D$7,3,FALSE),0.01)&S21,"") ->  | AK21: =Calc!EP29 ->  | AL21: =IF(AND(Calc!HE29<>"-",Calc!HE29<>"",S21<>""),FLOOR(Calc!HE29*VLOOKUP(S21,Calc!$B$3:$D$7,3,FALSE),0.01)&S21,"") -> 1m | AM21: =IF(AND(Calc!HF29<>"-",Calc!HF29<>"",S21<>""),FLOOR(Calc!HF29*VLOOKUP(S21,Calc!$B$3:$D$7,3,FALSE),0.01)&S21,"") -> 2.69m
A22: =IF(AND(H22<>"", $J22<>""),H22*VLOOKUP($J22,Calc!$B$3:$C$7,2,FALSE),"") ->  | B22: =IF(AND(I22<>"", $J22<>""),I22*VLOOKUP($J22,Calc!$B$3:$C$7,2,FALSE),"") ->  | C22: =Calc!$EF30 ->  | L22: =IF(AND(K22<>"",J22<>""),FLOOR(VLOOKUP(K22,Calc!$C$15:$G$18,2,FALSE)*VLOOKUP(J22,Calc!$B$3:$D$7,3,FALSE),0.01)&J22,"") ->  | M22: =IF(AND(K22<>"",J22<>""),FLOOR(VLOOKUP(K22,Calc!$C$15:$G$18,5,FALSE)*VLOOKUP(J22,Calc!$B$3:$D$7,3,FALSE),0.01)&J22,"") ->  | N22: =IF(R22<>"",Calc!FN30,"") ->  | O22: =IF(R22<>"",Calc!FK30,"") ->  | P22: =IF(R22<>"",Calc!FL30,"") ->  | Q22: =IF(R22<>"",Calc!FM30,"") ->  | R22: =IF(AND(C22<>"", S22<>""),C22*VLOOKUP(S22,Calc!$B$3:$D$7,3,FALSE),"") ->  | T22: =IF(AND(Calc!GD30<>"",S22<>""),FLOOR(Calc!GD30*VLOOKUP(S22,Calc!$B$3:$D$7,3,FALSE),0.01)&S22,"") ->  | U22: =Calc!EG30 ->  | V22: =IF(AND(Calc!GG30<>"-",S22<>""),FLOOR(Calc!GG30*VLOOKUP(S22,Calc!$B$3:$D$7,3,FALSE),0.01)&S22,"") ->  | W22: =Calc!EH30 ->  | X22: =IF(AND(Calc!GH30<>"-",S22<>""),FLOOR(Calc!GH30*VLOOKUP(S22,Calc!$B$3:$D$7,3,FALSE),0.01)&S22,"") ->  | Y22: =Calc!EI30 ->  | Z22: =IF(AND(Calc!GI30<>"-",S22<>""),FLOOR(Calc!GI30*VLOOKUP(S22,Calc!$B$3:$D$7,3,FALSE),0.01)&S22,"") ->  | AA22: =Calc!EJ30 ->  | AB22: =IF(AND(Calc!GJ30<>"-",S22<>""),FLOOR(Calc!GJ30*VLOOKUP(S22,Calc!$B$3:$D$7,3,FALSE),0.01)&S22,"") ->  | AC22: =Calc!EK30 ->  | AD22: =IF(AND(Calc!GK30<>"-",S22<>""),FLOOR(Calc!GK30*VLOOKUP(S22,Calc!$B$3:$D$7,3,FALSE),0.01)&S22,"") ->  | AE22: =Calc!EL30 ->  | AF22: =IF(AND(Calc!GL30<>"-",S22<>""),FLOOR(Calc!GL30*VLOOKUP(S22,Calc!$B$3:$D$7,3,FALSE),0.01)&S22,"") ->  | AG22: =Calc!EM30 ->  | AH22: =IF(AND(Calc!GM30<>"-",S22<>""),FLOOR(Calc!GM30*VLOOKUP(S22,Calc!$B$3:$D$7,3,FALSE),0.01)&S22,"") ->  | AI22: =Calc!EN30 ->  | AJ22: =IF(AND(Calc!GN30<>"-",S22<>""),FLOOR(Calc!GN30*VLOOKUP(S22,Calc!$B$3:$D$7,3,FALSE),0.01)&S22,"") ->  | AK22: =Calc!EP30 ->  | AL22: =IF(AND(Calc!HE30<>"-",Calc!HE30<>"",S22<>""),FLOOR(Calc!HE30*VLOOKUP(S22,Calc!$B$3:$D$7,3,FALSE),0.01)&S22,"") ->  | AM22: =IF(AND(Calc!HF30<>"-",Calc!HF30<>"",S22<>""),FLOOR(Calc!HF30*VLOOKUP(S22,Calc!$B$3:$D$7,3,FALSE),0.01)&S22,"") -> 
A23: =IF(AND(H23<>"", $J23<>""),H23*VLOOKUP($J23,Calc!$B$3:$C$7,2,FALSE),"") ->  | B23: =IF(AND(I23<>"", $J23<>""),I23*VLOOKUP($J23,Calc!$B$3:$C$7,2,FALSE),"") ->  | C23: =Calc!$EF31 ->  | L23: =IF(AND(K23<>"",J23<>""),FLOOR(VLOOKUP(K23,Calc!$C$15:$G$18,2,FALSE)*VLOOKUP(J23,Calc!$B$3:$D$7,3,FALSE),0.01)&J23,"") ->  | M23: =IF(AND(K23<>"",J23<>""),FLOOR(VLOOKUP(K23,Calc!$C$15:$G$18,5,FALSE)*VLOOKUP(J23,Calc!$B$3:$D$7,3,FALSE),0.01)&J23,"") ->  | N23: =IF(R23<>"",Calc!FN31,"") ->  | O23: =IF(R23<>"",Calc!FK31,"") ->  | P23: =IF(R23<>"",Calc!FL31,"") ->  | Q23: =IF(R23<>"",Calc!FM31,"") ->  | R23: =IF(AND(C23<>"", S23<>""),C23*VLOOKUP(S23,Calc!$B$3:$D$7,3,FALSE),"") ->  | T23: =IF(AND(Calc!GD31<>"",S23<>""),FLOOR(Calc!GD31*VLOOKUP(S23,Calc!$B$3:$D$7,3,FALSE),0.01)&S23,"") ->  | U23: =Calc!EG31 ->  | V23: =IF(AND(Calc!GG31<>"-",S23<>""),FLOOR(Calc!GG31*VLOOKUP(S23,Calc!$B$3:$D$7,3,FALSE),0.01)&S23,"") ->  | W23: =Calc!EH31 ->  | X23: =IF(AND(Calc!GH31<>"-",S23<>""),FLOOR(Calc!GH31*VLOOKUP(S23,Calc!$B$3:$D$7,3,FALSE),0.01)&S23,"") ->  | Y23: =Calc!EI31 ->  | Z23: =IF(AND(Calc!GI31<>"-",S23<>""),FLOOR(Calc!GI31*VLOOKUP(S23,Calc!$B$3:$D$7,3,FALSE),0.01)&S23,"") ->  | AA23: =Calc!EJ31 ->  | AB23: =IF(AND(Calc!GJ31<>"-",S23<>""),FLOOR(Calc!GJ31*VLOOKUP(S23,Calc!$B$3:$D$7,3,FALSE),0.01)&S23,"") ->  | AC23: =Calc!EK31 ->  | AD23: =IF(AND(Calc!GK31<>"-",S23<>""),FLOOR(Calc!GK31*VLOOKUP(S23,Calc!$B$3:$D$7,3,FALSE),0.01)&S23,"") ->  | AE23: =Calc!EL31 ->  | AF23: =IF(AND(Calc!GL31<>"-",S23<>""),FLOOR(Calc!GL31*VLOOKUP(S23,Calc!$B$3:$D$7,3,FALSE),0.01)&S23,"") ->  | AG23: =Calc!EM31 ->  | AH23: =IF(AND(Calc!GM31<>"-",S23<>""),FLOOR(Calc!GM31*VLOOKUP(S23,Calc!$B$3:$D$7,3,FALSE),0.01)&S23,"") ->  | AI23: =Calc!EN31 ->  | AJ23: =IF(AND(Calc!GN31<>"-",S23<>""),FLOOR(Calc!GN31*VLOOKUP(S23,Calc!$B$3:$D$7,3,FALSE),0.01)&S23,"") ->  | AK23: =Calc!EP31 ->  | AL23: =IF(AND(Calc!HE31<>"-",Calc!HE31<>"",S23<>""),FLOOR(Calc!HE31*VLOOKUP(S23,Calc!$B$3:$D$7,3,FALSE),0.01)&S23,"") ->  | AM23: =IF(AND(Calc!HF31<>"-",Calc!HF31<>"",S23<>""),FLOOR(Calc!HF31*VLOOKUP(S23,Calc!$B$3:$D$7,3,FALSE),0.01)&S23,"") -> 
A24: =IF(AND(H24<>"", $J24<>""),H24*VLOOKUP($J24,Calc!$B$3:$C$7,2,FALSE),"") ->  | B24: =IF(AND(I24<>"", $J24<>""),I24*VLOOKUP($J24,Calc!$B$3:$C$7,2,FALSE),"") ->  | C24: =Calc!$EF32 ->  | L24: =IF(AND(K24<>"",J24<>""),FLOOR(VLOOKUP(K24,Calc!$C$15:$G$18,2,FALSE)*VLOOKUP(J24,Calc!$B$3:$D$7,3,FALSE),0.01)&J24,"") ->  | M24: =IF(AND(K24<>"",J24<>""),FLOOR(VLOOKUP(K24,Calc!$C$15:$G$18,5,FALSE)*VLOOKUP(J24,Calc!$B$3:$D$7,3,FALSE),0.01)&J24,"") ->  | N24: =IF(R24<>"",Calc!FN32,"") ->  | O24: =IF(R24<>"",Calc!FK32,"") ->  | P24: =IF(R24<>"",Calc!FL32,"") ->  | Q24: =IF(R24<>"",Calc!FM32,"") ->  | R24: =IF(AND(C24<>"", S24<>""),C24*VLOOKUP(S24,Calc!$B$3:$D$7,3,FALSE),"") ->  | T24: =IF(AND(Calc!GD32<>"",S24<>""),FLOOR(Calc!GD32*VLOOKUP(S24,Calc!$B$3:$D$7,3,FALSE),0.01)&S24,"") ->  | U24: =Calc!EG32 ->  | V24: =IF(AND(Calc!GG32<>"-",S24<>""),FLOOR(Calc!GG32*VLOOKUP(S24,Calc!$B$3:$D$7,3,FALSE),0.01)&S24,"") ->  | W24: =Calc!EH32 ->  | X24: =IF(AND(Calc!GH32<>"-",S24<>""),FLOOR(Calc!GH32*VLOOKUP(S24,Calc!$B$3:$D$7,3,FALSE),0.01)&S24,"") ->  | Y24: =Calc!EI32 ->  | Z24: =IF(AND(Calc!GI32<>"-",S24<>""),FLOOR(Calc!GI32*VLOOKUP(S24,Calc!$B$3:$D$7,3,FALSE),0.01)&S24,"") ->  | AA24: =Calc!EJ32 ->  | AB24: =IF(AND(Calc!GJ32<>"-",S24<>""),FLOOR(Calc!GJ32*VLOOKUP(S24,Calc!$B$3:$D$7,3,FALSE),0.01)&S24,"") ->  | AC24: =Calc!EK32 ->  | AD24: =IF(AND(Calc!GK32<>"-",S24<>""),FLOOR(Calc!GK32*VLOOKUP(S24,Calc!$B$3:$D$7,3,FALSE),0.01)&S24,"") ->  | AE24: =Calc!EL32 ->  | AF24: =IF(AND(Calc!GL32<>"-",S24<>""),FLOOR(Calc!GL32*VLOOKUP(S24,Calc!$B$3:$D$7,3,FALSE),0.01)&S24,"") ->  | AG24: =Calc!EM32 ->  | AH24: =IF(AND(Calc!GM32<>"-",S24<>""),FLOOR(Calc!GM32*VLOOKUP(S24,Calc!$B$3:$D$7,3,FALSE),0.01)&S24,"") ->  | AI24: =Calc!EN32 ->  | AJ24: =IF(AND(Calc!GN32<>"-",S24<>""),FLOOR(Calc!GN32*VLOOKUP(S24,Calc!$B$3:$D$7,3,FALSE),0.01)&S24,"") ->  | AK24: =Calc!EP32 ->  | AL24: =IF(AND(Calc!HE32<>"-",Calc!HE32<>"",S24<>""),FLOOR(Calc!HE32*VLOOKUP(S24,Calc!$B$3:$D$7,3,FALSE),0.01)&S24,"") ->  | AM24: =IF(AND(Calc!HF32<>"-",Calc!HF32<>"",S24<>""),FLOOR(Calc!HF32*VLOOKUP(S24,Calc!$B$3:$D$7,3,FALSE),0.01)&S24,"") -> 
A25: =IF(AND(H25<>"", $J25<>""),H25*VLOOKUP($J25,Calc!$B$3:$C$7,2,FALSE),"") ->  | B25: =IF(AND(I25<>"", $J25<>""),I25*VLOOKUP($J25,Calc!$B$3:$C$7,2,FALSE),"") ->  | C25: =Calc!$EF33 ->  | L25: =IF(AND(K25<>"",J25<>""),FLOOR(VLOOKUP(K25,Calc!$C$15:$G$18,2,FALSE)*VLOOKUP(J25,Calc!$B$3:$D$7,3,FALSE),0.01)&J25,"") ->  | M25: =IF(AND(K25<>"",J25<>""),FLOOR(VLOOKUP(K25,Calc!$C$15:$G$18,5,FALSE)*VLOOKUP(J25,Calc!$B$3:$D$7,3,FALSE),0.01)&J25,"") ->  | N25: =IF(R25<>"",Calc!FN33,"") ->  | O25: =IF(R25<>"",Calc!FK33,"") ->  | P25: =IF(R25<>"",Calc!FL33,"") ->  | Q25: =IF(R25<>"",Calc!FM33,"") ->  | R25: =IF(AND(C25<>"", S25<>""),C25*VLOOKUP(S25,Calc!$B$3:$D$7,3,FALSE),"") ->  | T25: =IF(AND(Calc!GD33<>"",S25<>""),FLOOR(Calc!GD33*VLOOKUP(S25,Calc!$B$3:$D$7,3,FALSE),0.01)&S25,"") ->  | U25: =Calc!EG33 ->  | V25: =IF(AND(Calc!GG33<>"-",S25<>""),FLOOR(Calc!GG33*VLOOKUP(S25,Calc!$B$3:$D$7,3,FALSE),0.01)&S25,"") ->  | W25: =Calc!EH33 ->  | X25: =IF(AND(Calc!GH33<>"-",S25<>""),FLOOR(Calc!GH33*VLOOKUP(S25,Calc!$B$3:$D$7,3,FALSE),0.01)&S25,"") ->  | Y25: =Calc!EI33 ->  | Z25: =IF(AND(Calc!GI33<>"-",S25<>""),FLOOR(Calc!GI33*VLOOKUP(S25,Calc!$B$3:$D$7,3,FALSE),0.01)&S25,"") ->  | AA25: =Calc!EJ33 ->  | AB25: =IF(AND(Calc!GJ33<>"-",S25<>""),FLOOR(Calc!GJ33*VLOOKUP(S25,Calc!$B$3:$D$7,3,FALSE),0.01)&S25,"") ->  | AC25: =Calc!EK33 ->  | AD25: =IF(AND(Calc!GK33<>"-",S25<>""),FLOOR(Calc!GK33*VLOOKUP(S25,Calc!$B$3:$D$7,3,FALSE),0.01)&S25,"") ->  | AE25: =Calc!EL33 ->  | AF25: =IF(AND(Calc!GL33<>"-",S25<>""),FLOOR(Calc!GL33*VLOOKUP(S25,Calc!$B$3:$D$7,3,FALSE),0.01)&S25,"") ->  | AG25: =Calc!EM33 ->  | AH25: =IF(AND(Calc!GM33<>"-",S25<>""),FLOOR(Calc!GM33*VLOOKUP(S25,Calc!$B$3:$D$7,3,FALSE),0.01)&S25,"") ->  | AI25: =Calc!EN33 ->  | AJ25: =IF(AND(Calc!GN33<>"-",S25<>""),FLOOR(Calc!GN33*VLOOKUP(S25,Calc!$B$3:$D$7,3,FALSE),0.01)&S25,"") ->  | AK25: =Calc!EP33 ->  | AL25: =IF(AND(Calc!HE33<>"-",Calc!HE33<>"",S25<>""),FLOOR(Calc!HE33*VLOOKUP(S25,Calc!$B$3:$D$7,3,FALSE),0.01)&S25,"") ->  | AM25: =IF(AND(Calc!HF33<>"-",Calc!HF33<>"",S25<>""),FLOOR(Calc!HF33*VLOOKUP(S25,Calc!$B$3:$D$7,3,FALSE),0.01)&S25,"") -> 
A26: =IF(AND(H26<>"", $J26<>""),H26*VLOOKUP($J26,Calc!$B$3:$C$7,2,FALSE),"") ->  | B26: =IF(AND(I26<>"", $J26<>""),I26*VLOOKUP($J26,Calc!$B$3:$C$7,2,FALSE),"") ->  | C26: =Calc!$EF34 ->  | L26: =IF(AND(K26<>"",J26<>""),FLOOR(VLOOKUP(K26,Calc!$C$15:$G$18,2,FALSE)*VLOOKUP(J26,Calc!$B$3:$D$7,3,FALSE),0.01)&J26,"") ->  | M26: =IF(AND(K26<>"",J26<>""),FLOOR(VLOOKUP(K26,Calc!$C$15:$G$18,5,FALSE)*VLOOKUP(J26,Calc!$B$3:$D$7,3,FALSE),0.01)&J26,"") ->  | N26: =IF(R26<>"",Calc!FN34,"") ->  | O26: =IF(R26<>"",Calc!FK34,"") ->  | P26: =IF(R26<>"",Calc!FL34,"") ->  | Q26: =IF(R26<>"",Calc!FM34,"") ->  | R26: =IF(AND(C26<>"", S26<>""),C26*VLOOKUP(S26,Calc!$B$3:$D$7,3,FALSE),"") ->  | T26: =IF(AND(Calc!GD34<>"",S26<>""),FLOOR(Calc!GD34*VLOOKUP(S26,Calc!$B$3:$D$7,3,FALSE),0.01)&S26,"") ->  | U26: =Calc!EG34 ->  | V26: =IF(AND(Calc!GG34<>"-",S26<>""),FLOOR(Calc!GG34*VLOOKUP(S26,Calc!$B$3:$D$7,3,FALSE),0.01)&S26,"") ->  | W26: =Calc!EH34 ->  | X26: =IF(AND(Calc!GH34<>"-",S26<>""),FLOOR(Calc!GH34*VLOOKUP(S26,Calc!$B$3:$D$7,3,FALSE),0.01)&S26,"") ->  | Y26: =Calc!EI34 ->  | Z26: =IF(AND(Calc!GI34<>"-",S26<>""),FLOOR(Calc!GI34*VLOOKUP(S26,Calc!$B$3:$D$7,3,FALSE),0.01)&S26,"") ->  | AA26: =Calc!EJ34 ->  | AB26: =IF(AND(Calc!GJ34<>"-",S26<>""),FLOOR(Calc!GJ34*VLOOKUP(S26,Calc!$B$3:$D$7,3,FALSE),0.01)&S26,"") ->  | AC26: =Calc!EK34 ->  | AD26: =IF(AND(Calc!GK34<>"-",S26<>""),FLOOR(Calc!GK34*VLOOKUP(S26,Calc!$B$3:$D$7,3,FALSE),0.01)&S26,"") ->  | AE26: =Calc!EL34 ->  | AF26: =IF(AND(Calc!GL34<>"-",S26<>""),FLOOR(Calc!GL34*VLOOKUP(S26,Calc!$B$3:$D$7,3,FALSE),0.01)&S26,"") ->  | AG26: =Calc!EM34 ->  | AH26: =IF(AND(Calc!GM34<>"-",S26<>""),FLOOR(Calc!GM34*VLOOKUP(S26,Calc!$B$3:$D$7,3,FALSE),0.01)&S26,"") ->  | AI26: =Calc!EN34 ->  | AJ26: =IF(AND(Calc!GN34<>"-",S26<>""),FLOOR(Calc!GN34*VLOOKUP(S26,Calc!$B$3:$D$7,3,FALSE),0.01)&S26,"") ->  | AK26: =Calc!EP34 ->  | AL26: =IF(AND(Calc!HE34<>"-",Calc!HE34<>"",S26<>""),FLOOR(Calc!HE34*VLOOKUP(S26,Calc!$B$3:$D$7,3,FALSE),0.01)&S26,"") ->  | AM26: =IF(AND(Calc!HF34<>"-",Calc!HF34<>"",S26<>""),FLOOR(Calc!HF34*VLOOKUP(S26,Calc!$B$3:$D$7,3,FALSE),0.01)&S26,"") -> 
A27: =IF(AND(H27<>"", $J27<>""),H27*VLOOKUP($J27,Calc!$B$3:$C$7,2,FALSE),"") ->  | B27: =IF(AND(I27<>"", $J27<>""),I27*VLOOKUP($J27,Calc!$B$3:$C$7,2,FALSE),"") ->  | C27: =Calc!$EF35 ->  | L27: =IF(AND(K27<>"",J27<>""),FLOOR(VLOOKUP(K27,Calc!$C$15:$G$18,2,FALSE)*VLOOKUP(J27,Calc!$B$3:$D$7,3,FALSE),0.01)&J27,"") ->  | M27: =IF(AND(K27<>"",J27<>""),FLOOR(VLOOKUP(K27,Calc!$C$15:$G$18,5,FALSE)*VLOOKUP(J27,Calc!$B$3:$D$7,3,FALSE),0.01)&J27,"") ->  | N27: =IF(R27<>"",Calc!FN35,"") ->  | O27: =IF(R27<>"",Calc!FK35,"") ->  | P27: =IF(R27<>"",Calc!FL35,"") ->  | Q27: =IF(R27<>"",Calc!FM35,"") ->  | R27: =IF(AND(C27<>"", S27<>""),C27*VLOOKUP(S27,Calc!$B$3:$D$7,3,FALSE),"") ->  | T27: =IF(AND(Calc!GD35<>"",S27<>""),FLOOR(Calc!GD35*VLOOKUP(S27,Calc!$B$3:$D$7,3,FALSE),0.01)&S27,"") ->  | U27: =Calc!EG35 ->  | V27: =IF(AND(Calc!GG35<>"-",S27<>""),FLOOR(Calc!GG35*VLOOKUP(S27,Calc!$B$3:$D$7,3,FALSE),0.01)&S27,"") ->  | W27: =Calc!EH35 ->  | X27: =IF(AND(Calc!GH35<>"-",S27<>""),FLOOR(Calc!GH35*VLOOKUP(S27,Calc!$B$3:$D$7,3,FALSE),0.01)&S27,"") ->  | Y27: =Calc!EI35 ->  | Z27: =IF(AND(Calc!GI35<>"-",S27<>""),FLOOR(Calc!GI35*VLOOKUP(S27,Calc!$B$3:$D$7,3,FALSE),0.01)&S27,"") ->  | AA27: =Calc!EJ35 ->  | AB27: =IF(AND(Calc!GJ35<>"-",S27<>""),FLOOR(Calc!GJ35*VLOOKUP(S27,Calc!$B$3:$D$7,3,FALSE),0.01)&S27,"") ->  | AC27: =Calc!EK35 ->  | AD27: =IF(AND(Calc!GK35<>"-",S27<>""),FLOOR(Calc!GK35*VLOOKUP(S27,Calc!$B$3:$D$7,3,FALSE),0.01)&S27,"") ->  | AE27: =Calc!EL35 ->  | AF27: =IF(AND(Calc!GL35<>"-",S27<>""),FLOOR(Calc!GL35*VLOOKUP(S27,Calc!$B$3:$D$7,3,FALSE),0.01)&S27,"") ->  | AG27: =Calc!EM35 ->  | AH27: =IF(AND(Calc!GM35<>"-",S27<>""),FLOOR(Calc!GM35*VLOOKUP(S27,Calc!$B$3:$D$7,3,FALSE),0.01)&S27,"") ->  | AI27: =Calc!EN35 ->  | AJ27: =IF(AND(Calc!GN35<>"-",S27<>""),FLOOR(Calc!GN35*VLOOKUP(S27,Calc!$B$3:$D$7,3,FALSE),0.01)&S27,"") ->  | AK27: =Calc!EP35 ->  | AL27: =IF(AND(Calc!HE35<>"-",Calc!HE35<>"",S27<>""),FLOOR(Calc!HE35*VLOOKUP(S27,Calc!$B$3:$D$7,3,FALSE),0.01)&S27,"") ->  | AM27: =IF(AND(Calc!HF35<>"-",Calc!HF35<>"",S27<>""),FLOOR(Calc!HF35*VLOOKUP(S27,Calc!$B$3:$D$7,3,FALSE),0.01)&S27,"") -> 
A28: =IF(AND(H28<>"", $J28<>""),H28*VLOOKUP($J28,Calc!$B$3:$C$7,2,FALSE),"") ->  | B28: =IF(AND(I28<>"", $J28<>""),I28*VLOOKUP($J28,Calc!$B$3:$C$7,2,FALSE),"") ->  | C28: =Calc!$EF36 ->  | L28: =IF(AND(K28<>"",J28<>""),FLOOR(VLOOKUP(K28,Calc!$C$15:$G$18,2,FALSE)*VLOOKUP(J28,Calc!$B$3:$D$7,3,FALSE),0.01)&J28,"") ->  | M28: =IF(AND(K28<>"",J28<>""),FLOOR(VLOOKUP(K28,Calc!$C$15:$G$18,5,FALSE)*VLOOKUP(J28,Calc!$B$3:$D$7,3,FALSE),0.01)&J28,"") ->  | N28: =IF(R28<>"",Calc!FN36,"") ->  | O28: =IF(R28<>"",Calc!FK36,"") ->  | P28: =IF(R28<>"",Calc!FL36,"") ->  | Q28: =IF(R28<>"",Calc!FM36,"") ->  | R28: =IF(AND(C28<>"", S28<>""),C28*VLOOKUP(S28,Calc!$B$3:$D$7,3,FALSE),"") ->  | T28: =IF(AND(Calc!GD36<>"",S28<>""),FLOOR(Calc!GD36*VLOOKUP(S28,Calc!$B$3:$D$7,3,FALSE),0.01)&S28,"") ->  | U28: =Calc!EG36 ->  | V28: =IF(AND(Calc!GG36<>"-",S28<>""),FLOOR(Calc!GG36*VLOOKUP(S28,Calc!$B$3:$D$7,3,FALSE),0.01)&S28,"") ->  | W28: =Calc!EH36 ->  | X28: =IF(AND(Calc!GH36<>"-",S28<>""),FLOOR(Calc!GH36*VLOOKUP(S28,Calc!$B$3:$D$7,3,FALSE),0.01)&S28,"") ->  | Y28: =Calc!EI36 ->  | Z28: =IF(AND(Calc!GI36<>"-",S28<>""),FLOOR(Calc!GI36*VLOOKUP(S28,Calc!$B$3:$D$7,3,FALSE),0.01)&S28,"") ->  | AA28: =Calc!EJ36 ->  | AB28: =IF(AND(Calc!GJ36<>"-",S28<>""),FLOOR(Calc!GJ36*VLOOKUP(S28,Calc!$B$3:$D$7,3,FALSE),0.01)&S28,"") ->  | AC28: =Calc!EK36 ->  | AD28: =IF(AND(Calc!GK36<>"-",S28<>""),FLOOR(Calc!GK36*VLOOKUP(S28,Calc!$B$3:$D$7,3,FALSE),0.01)&S28,"") ->  | AE28: =Calc!EL36 ->  | AF28: =IF(AND(Calc!GL36<>"-",S28<>""),FLOOR(Calc!GL36*VLOOKUP(S28,Calc!$B$3:$D$7,3,FALSE),0.01)&S28,"") ->  | AG28: =Calc!EM36 ->  | AH28: =IF(AND(Calc!GM36<>"-",S28<>""),FLOOR(Calc!GM36*VLOOKUP(S28,Calc!$B$3:$D$7,3,FALSE),0.01)&S28,"") ->  | AI28: =Calc!EN36 ->  | AJ28: =IF(AND(Calc!GN36<>"-",S28<>""),FLOOR(Calc!GN36*VLOOKUP(S28,Calc!$B$3:$D$7,3,FALSE),0.01)&S28,"") ->  | AK28: =Calc!EP36 ->  | AL28: =IF(AND(Calc!HE36<>"-",Calc!HE36<>"",S28<>""),FLOOR(Calc!HE36*VLOOKUP(S28,Calc!$B$3:$D$7,3,FALSE),0.01)&S28,"") ->  | AM28: =IF(AND(Calc!HF36<>"-",Calc!HF36<>"",S28<>""),FLOOR(Calc!HF36*VLOOKUP(S28,Calc!$B$3:$D$7,3,FALSE),0.01)&S28,"") -> 
A29: =IF(AND(H29<>"", $J29<>""),H29*VLOOKUP($J29,Calc!$B$3:$C$7,2,FALSE),"") ->  | B29: =IF(AND(I29<>"", $J29<>""),I29*VLOOKUP($J29,Calc!$B$3:$C$7,2,FALSE),"") ->  | C29: =Calc!$EF37 ->  | L29: =IF(AND(K29<>"",J29<>""),FLOOR(VLOOKUP(K29,Calc!$C$15:$G$18,2,FALSE)*VLOOKUP(J29,Calc!$B$3:$D$7,3,FALSE),0.01)&J29,"") ->  | M29: =IF(AND(K29<>"",J29<>""),FLOOR(VLOOKUP(K29,Calc!$C$15:$G$18,5,FALSE)*VLOOKUP(J29,Calc!$B$3:$D$7,3,FALSE),0.01)&J29,"") ->  | N29: =IF(R29<>"",Calc!FN37,"") ->  | O29: =IF(R29<>"",Calc!FK37,"") ->  | P29: =IF(R29<>"",Calc!FL37,"") ->  | Q29: =IF(R29<>"",Calc!FM37,"") ->  | R29: =IF(AND(C29<>"", S29<>""),C29*VLOOKUP(S29,Calc!$B$3:$D$7,3,FALSE),"") ->  | T29: =IF(AND(Calc!GD37<>"",S29<>""),FLOOR(Calc!GD37*VLOOKUP(S29,Calc!$B$3:$D$7,3,FALSE),0.01)&S29,"") ->  | U29: =Calc!EG37 ->  | V29: =IF(AND(Calc!GG37<>"-",S29<>""),FLOOR(Calc!GG37*VLOOKUP(S29,Calc!$B$3:$D$7,3,FALSE),0.01)&S29,"") ->  | W29: =Calc!EH37 ->  | X29: =IF(AND(Calc!GH37<>"-",S29<>""),FLOOR(Calc!GH37*VLOOKUP(S29,Calc!$B$3:$D$7,3,FALSE),0.01)&S29,"") ->  | Y29: =Calc!EI37 ->  | Z29: =IF(AND(Calc!GI37<>"-",S29<>""),FLOOR(Calc!GI37*VLOOKUP(S29,Calc!$B$3:$D$7,3,FALSE),0.01)&S29,"") ->  | AA29: =Calc!EJ37 ->  | AB29: =IF(AND(Calc!GJ37<>"-",S29<>""),FLOOR(Calc!GJ37*VLOOKUP(S29,Calc!$B$3:$D$7,3,FALSE),0.01)&S29,"") ->  | AC29: =Calc!EK37 ->  | AD29: =IF(AND(Calc!GK37<>"-",S29<>""),FLOOR(Calc!GK37*VLOOKUP(S29,Calc!$B$3:$D$7,3,FALSE),0.01)&S29,"") ->  | AE29: =Calc!EL37 ->  | AF29: =IF(AND(Calc!GL37<>"-",S29<>""),FLOOR(Calc!GL37*VLOOKUP(S29,Calc!$B$3:$D$7,3,FALSE),0.01)&S29,"") ->  | AG29: =Calc!EM37 ->  | AH29: =IF(AND(Calc!GM37<>"-",S29<>""),FLOOR(Calc!GM37*VLOOKUP(S29,Calc!$B$3:$D$7,3,FALSE),0.01)&S29,"") ->  | AI29: =Calc!EN37 ->  | AJ29: =IF(AND(Calc!GN37<>"-",S29<>""),FLOOR(Calc!GN37*VLOOKUP(S29,Calc!$B$3:$D$7,3,FALSE),0.01)&S29,"") ->  | AK29: =Calc!EP37 ->  | AL29: =IF(AND(Calc!HE37<>"-",Calc!HE37<>"",S29<>""),FLOOR(Calc!HE37*VLOOKUP(S29,Calc!$B$3:$D$7,3,FALSE),0.01)&S29,"") ->  | AM29: =IF(AND(Calc!HF37<>"-",Calc!HF37<>"",S29<>""),FLOOR(Calc!HF37*VLOOKUP(S29,Calc!$B$3:$D$7,3,FALSE),0.01)&S29,"") -> 
A30: =IF(AND(H30<>"", $J30<>""),H30*VLOOKUP($J30,Calc!$B$3:$C$7,2,FALSE),"") ->  | B30: =IF(AND(I30<>"", $J30<>""),I30*VLOOKUP($J30,Calc!$B$3:$C$7,2,FALSE),"") ->  | C30: =Calc!$EF38 ->  | L30: =IF(AND(K30<>"",J30<>""),FLOOR(VLOOKUP(K30,Calc!$C$15:$G$18,2,FALSE)*VLOOKUP(J30,Calc!$B$3:$D$7,3,FALSE),0.01)&J30,"") ->  | M30: =IF(AND(K30<>"",J30<>""),FLOOR(VLOOKUP(K30,Calc!$C$15:$G$18,5,FALSE)*VLOOKUP(J30,Calc!$B$3:$D$7,3,FALSE),0.01)&J30,"") ->  | N30: =IF(R30<>"",Calc!FN38,"") ->  | O30: =IF(R30<>"",Calc!FK38,"") ->  | P30: =IF(R30<>"",Calc!FL38,"") ->  | Q30: =IF(R30<>"",Calc!FM38,"") ->  | R30: =IF(AND(C30<>"", S30<>""),C30*VLOOKUP(S30,Calc!$B$3:$D$7,3,FALSE),"") ->  | T30: =IF(AND(Calc!GD38<>"",S30<>""),FLOOR(Calc!GD38*VLOOKUP(S30,Calc!$B$3:$D$7,3,FALSE),0.01)&S30,"") ->  | U30: =Calc!EG38 ->  | V30: =IF(AND(Calc!GG38<>"-",S30<>""),FLOOR(Calc!GG38*VLOOKUP(S30,Calc!$B$3:$D$7,3,FALSE),0.01)&S30,"") ->  | W30: =Calc!EH38 ->  | X30: =IF(AND(Calc!GH38<>"-",S30<>""),FLOOR(Calc!GH38*VLOOKUP(S30,Calc!$B$3:$D$7,3,FALSE),0.01)&S30,"") ->  | Y30: =Calc!EI38 ->  | Z30: =IF(AND(Calc!GI38<>"-",S30<>""),FLOOR(Calc!GI38*VLOOKUP(S30,Calc!$B$3:$D$7,3,FALSE),0.01)&S30,"") ->  | AA30: =Calc!EJ38 ->  | AB30: =IF(AND(Calc!GJ38<>"-",S30<>""),FLOOR(Calc!GJ38*VLOOKUP(S30,Calc!$B$3:$D$7,3,FALSE),0.01)&S30,"") ->  | AC30: =Calc!EK38 ->  | AD30: =IF(AND(Calc!GK38<>"-",S30<>""),FLOOR(Calc!GK38*VLOOKUP(S30,Calc!$B$3:$D$7,3,FALSE),0.01)&S30,"") ->  | AE30: =Calc!EL38 ->  | AF30: =IF(AND(Calc!GL38<>"-",S30<>""),FLOOR(Calc!GL38*VLOOKUP(S30,Calc!$B$3:$D$7,3,FALSE),0.01)&S30,"") ->  | AG30: =Calc!EM38 ->  | AH30: =IF(AND(Calc!GM38<>"-",S30<>""),FLOOR(Calc!GM38*VLOOKUP(S30,Calc!$B$3:$D$7,3,FALSE),0.01)&S30,"") ->  | AI30: =Calc!EN38 ->  | AJ30: =IF(AND(Calc!GN38<>"-",S30<>""),FLOOR(Calc!GN38*VLOOKUP(S30,Calc!$B$3:$D$7,3,FALSE),0.01)&S30,"") ->  | AK30: =Calc!EP38 ->  | AL30: =IF(AND(Calc!HE38<>"-",Calc!HE38<>"",S30<>""),FLOOR(Calc!HE38*VLOOKUP(S30,Calc!$B$3:$D$7,3,FALSE),0.01)&S30,"") ->  | AM30: =IF(AND(Calc!HF38<>"-",Calc!HF38<>"",S30<>""),FLOOR(Calc!HF38*VLOOKUP(S30,Calc!$B$3:$D$7,3,FALSE),0.01)&S30,"") -> 
A31: =IF(AND(H31<>"", $J31<>""),H31*VLOOKUP($J31,Calc!$B$3:$C$7,2,FALSE),"") ->  | B31: =IF(AND(I31<>"", $J31<>""),I31*VLOOKUP($J31,Calc!$B$3:$C$7,2,FALSE),"") ->  | C31: =Calc!$EF39 ->  | L31: =IF(AND(K31<>"",J31<>""),FLOOR(VLOOKUP(K31,Calc!$C$15:$G$18,2,FALSE)*VLOOKUP(J31,Calc!$B$3:$D$7,3,FALSE),0.01)&J31,"") ->  | M31: =IF(AND(K31<>"",J31<>""),FLOOR(VLOOKUP(K31,Calc!$C$15:$G$18,5,FALSE)*VLOOKUP(J31,Calc!$B$3:$D$7,3,FALSE),0.01)&J31,"") ->  | N31: =IF(R31<>"",Calc!FN39,"") ->  | O31: =IF(R31<>"",Calc!FK39,"") ->  | P31: =IF(R31<>"",Calc!FL39,"") ->  | Q31: =IF(R31<>"",Calc!FM39,"") ->  | R31: =IF(AND(C31<>"", S31<>""),C31*VLOOKUP(S31,Calc!$B$3:$D$7,3,FALSE),"") ->  | T31: =IF(AND(Calc!GD39<>"",S31<>""),FLOOR(Calc!GD39*VLOOKUP(S31,Calc!$B$3:$D$7,3,FALSE),0.01)&S31,"") ->  | U31: =Calc!EG39 ->  | V31: =IF(AND(Calc!GG39<>"-",S31<>""),FLOOR(Calc!GG39*VLOOKUP(S31,Calc!$B$3:$D$7,3,FALSE),0.01)&S31,"") ->  | W31: =Calc!EH39 ->  | X31: =IF(AND(Calc!GH39<>"-",S31<>""),FLOOR(Calc!GH39*VLOOKUP(S31,Calc!$B$3:$D$7,3,FALSE),0.01)&S31,"") ->  | Y31: =Calc!EI39 ->  | Z31: =IF(AND(Calc!GI39<>"-",S31<>""),FLOOR(Calc!GI39*VLOOKUP(S31,Calc!$B$3:$D$7,3,FALSE),0.01)&S31,"") ->  | AA31: =Calc!EJ39 ->  | AB31: =IF(AND(Calc!GJ39<>"-",S31<>""),FLOOR(Calc!GJ39*VLOOKUP(S31,Calc!$B$3:$D$7,3,FALSE),0.01)&S31,"") ->  | AC31: =Calc!EK39 ->  | AD31: =IF(AND(Calc!GK39<>"-",S31<>""),FLOOR(Calc!GK39*VLOOKUP(S31,Calc!$B$3:$D$7,3,FALSE),0.01)&S31,"") ->  | AE31: =Calc!EL39 ->  | AF31: =IF(AND(Calc!GL39<>"-",S31<>""),FLOOR(Calc!GL39*VLOOKUP(S31,Calc!$B$3:$D$7,3,FALSE),0.01)&S31,"") ->  | AG31: =Calc!EM39 ->  | AH31: =IF(AND(Calc!GM39<>"-",S31<>""),FLOOR(Calc!GM39*VLOOKUP(S31,Calc!$B$3:$D$7,3,FALSE),0.01)&S31,"") ->  | AI31: =Calc!EN39 ->  | AJ31: =IF(AND(Calc!GN39<>"-",S31<>""),FLOOR(Calc!GN39*VLOOKUP(S31,Calc!$B$3:$D$7,3,FALSE),0.01)&S31,"") ->  | AK31: =Calc!EP39 ->  | AL31: =IF(AND(Calc!HE39<>"-",Calc!HE39<>"",S31<>""),FLOOR(Calc!HE39*VLOOKUP(S31,Calc!$B$3:$D$7,3,FALSE),0.01)&S31,"") ->  | AM31: =IF(AND(Calc!HF39<>"-",Calc!HF39<>"",S31<>""),FLOOR(Calc!HF39*VLOOKUP(S31,Calc!$B$3:$D$7,3,FALSE),0.01)&S31,"") -> 
A32: =IF(AND(H32<>"", $J32<>""),H32*VLOOKUP($J32,Calc!$B$3:$C$7,2,FALSE),"") ->  | B32: =IF(AND(I32<>"", $J32<>""),I32*VLOOKUP($J32,Calc!$B$3:$C$7,2,FALSE),"") ->  | C32: =Calc!$EF40 ->  | L32: =IF(AND(K32<>"",J32<>""),FLOOR(VLOOKUP(K32,Calc!$C$15:$G$18,2,FALSE)*VLOOKUP(J32,Calc!$B$3:$D$7,3,FALSE),0.01)&J32,"") ->  | M32: =IF(AND(K32<>"",J32<>""),FLOOR(VLOOKUP(K32,Calc!$C$15:$G$18,5,FALSE)*VLOOKUP(J32,Calc!$B$3:$D$7,3,FALSE),0.01)&J32,"") ->  | N32: =IF(R32<>"",Calc!FN40,"") ->  | O32: =IF(R32<>"",Calc!FK40,"") ->  | P32: =IF(R32<>"",Calc!FL40,"") ->  | Q32: =IF(R32<>"",Calc!FM40,"") ->  | R32: =IF(AND(C32<>"", S32<>""),C32*VLOOKUP(S32,Calc!$B$3:$D$7,3,FALSE),"") ->  | T32: =IF(AND(Calc!GD40<>"",S32<>""),FLOOR(Calc!GD40*VLOOKUP(S32,Calc!$B$3:$D$7,3,FALSE),0.01)&S32,"") ->  | U32: =Calc!EG40 ->  | V32: =IF(AND(Calc!GG40<>"-",S32<>""),FLOOR(Calc!GG40*VLOOKUP(S32,Calc!$B$3:$D$7,3,FALSE),0.01)&S32,"") ->  | W32: =Calc!EH40 ->  | X32: =IF(AND(Calc!GH40<>"-",S32<>""),FLOOR(Calc!GH40*VLOOKUP(S32,Calc!$B$3:$D$7,3,FALSE),0.01)&S32,"") ->  | Y32: =Calc!EI40 ->  | Z32: =IF(AND(Calc!GI40<>"-",S32<>""),FLOOR(Calc!GI40*VLOOKUP(S32,Calc!$B$3:$D$7,3,FALSE),0.01)&S32,"") ->  | AA32: =Calc!EJ40 ->  | AB32: =IF(AND(Calc!GJ40<>"-",S32<>""),FLOOR(Calc!GJ40*VLOOKUP(S32,Calc!$B$3:$D$7,3,FALSE),0.01)&S32,"") ->  | AC32: =Calc!EK40 ->  | AD32: =IF(AND(Calc!GK40<>"-",S32<>""),FLOOR(Calc!GK40*VLOOKUP(S32,Calc!$B$3:$D$7,3,FALSE),0.01)&S32,"") ->  | AE32: =Calc!EL40 ->  | AF32: =IF(AND(Calc!GL40<>"-",S32<>""),FLOOR(Calc!GL40*VLOOKUP(S32,Calc!$B$3:$D$7,3,FALSE),0.01)&S32,"") ->  | AG32: =Calc!EM40 ->  | AH32: =IF(AND(Calc!GM40<>"-",S32<>""),FLOOR(Calc!GM40*VLOOKUP(S32,Calc!$B$3:$D$7,3,FALSE),0.01)&S32,"") ->  | AI32: =Calc!EN40 ->  | AJ32: =IF(AND(Calc!GN40<>"-",S32<>""),FLOOR(Calc!GN40*VLOOKUP(S32,Calc!$B$3:$D$7,3,FALSE),0.01)&S32,"") ->  | AK32: =Calc!EP40 ->  | AL32: =IF(AND(Calc!HE40<>"-",Calc!HE40<>"",S32<>""),FLOOR(Calc!HE40*VLOOKUP(S32,Calc!$B$3:$D$7,3,FALSE),0.01)&S32,"") ->  | AM32: =IF(AND(Calc!HF40<>"-",Calc!HF40<>"",S32<>""),FLOOR(Calc!HF40*VLOOKUP(S32,Calc!$B$3:$D$7,3,FALSE),0.01)&S32,"") -> 
A33: =IF(AND(H33<>"", $J33<>""),H33*VLOOKUP($J33,Calc!$B$3:$C$7,2,FALSE),"") ->  | B33: =IF(AND(I33<>"", $J33<>""),I33*VLOOKUP($J33,Calc!$B$3:$C$7,2,FALSE),"") ->  | C33: =Calc!$EF41 ->  | L33: =IF(AND(K33<>"",J33<>""),FLOOR(VLOOKUP(K33,Calc!$C$15:$G$18,2,FALSE)*VLOOKUP(J33,Calc!$B$3:$D$7,3,FALSE),0.01)&J33,"") ->  | M33: =IF(AND(K33<>"",J33<>""),FLOOR(VLOOKUP(K33,Calc!$C$15:$G$18,5,FALSE)*VLOOKUP(J33,Calc!$B$3:$D$7,3,FALSE),0.01)&J33,"") ->  | N33: =IF(R33<>"",Calc!FN41,"") ->  | O33: =IF(R33<>"",Calc!FK41,"") ->  | P33: =IF(R33<>"",Calc!FL41,"") ->  | Q33: =IF(R33<>"",Calc!FM41,"") ->  | R33: =IF(AND(C33<>"", S33<>""),C33*VLOOKUP(S33,Calc!$B$3:$D$7,3,FALSE),"") ->  | T33: =IF(AND(Calc!GD41<>"",S33<>""),FLOOR(Calc!GD41*VLOOKUP(S33,Calc!$B$3:$D$7,3,FALSE),0.01)&S33,"") ->  | U33: =Calc!EG41 ->  | V33: =IF(AND(Calc!GG41<>"-",S33<>""),FLOOR(Calc!GG41*VLOOKUP(S33,Calc!$B$3:$D$7,3,FALSE),0.01)&S33,"") ->  | W33: =Calc!EH41 ->  | X33: =IF(AND(Calc!GH41<>"-",S33<>""),FLOOR(Calc!GH41*VLOOKUP(S33,Calc!$B$3:$D$7,3,FALSE),0.01)&S33,"") ->  | Y33: =Calc!EI41 ->  | Z33: =IF(AND(Calc!GI41<>"-",S33<>""),FLOOR(Calc!GI41*VLOOKUP(S33,Calc!$B$3:$D$7,3,FALSE),0.01)&S33,"") ->  | AA33: =Calc!EJ41 ->  | AB33: =IF(AND(Calc!GJ41<>"-",S33<>""),FLOOR(Calc!GJ41*VLOOKUP(S33,Calc!$B$3:$D$7,3,FALSE),0.01)&S33,"") ->  | AC33: =Calc!EK41 ->  | AD33: =IF(AND(Calc!GK41<>"-",S33<>""),FLOOR(Calc!GK41*VLOOKUP(S33,Calc!$B$3:$D$7,3,FALSE),0.01)&S33,"") ->  | AE33: =Calc!EL41 ->  | AF33: =IF(AND(Calc!GL41<>"-",S33<>""),FLOOR(Calc!GL41*VLOOKUP(S33,Calc!$B$3:$D$7,3,FALSE),0.01)&S33,"") ->  | AG33: =Calc!EM41 ->  | AH33: =IF(AND(Calc!GM41<>"-",S33<>""),FLOOR(Calc!GM41*VLOOKUP(S33,Calc!$B$3:$D$7,3,FALSE),0.01)&S33,"") ->  | AI33: =Calc!EN41 ->  | AJ33: =IF(AND(Calc!GN41<>"-",S33<>""),FLOOR(Calc!GN41*VLOOKUP(S33,Calc!$B$3:$D$7,3,FALSE),0.01)&S33,"") ->  | AK33: =Calc!EP41 ->  | AL33: =IF(AND(Calc!HE41<>"-",Calc!HE41<>"",S33<>""),FLOOR(Calc!HE41*VLOOKUP(S33,Calc!$B$3:$D$7,3,FALSE),0.01)&S33,"") ->  | AM33: =IF(AND(Calc!HF41<>"-",Calc!HF41<>"",S33<>""),FLOOR(Calc!HF41*VLOOKUP(S33,Calc!$B$3:$D$7,3,FALSE),0.01)&S33,"") -> 
A34: =IF(AND(H34<>"", $J34<>""),H34*VLOOKUP($J34,Calc!$B$3:$C$7,2,FALSE),"") ->  | B34: =IF(AND(I34<>"", $J34<>""),I34*VLOOKUP($J34,Calc!$B$3:$C$7,2,FALSE),"") ->  | C34: =Calc!$EF42 ->  | L34: =IF(AND(K34<>"",J34<>""),FLOOR(VLOOKUP(K34,Calc!$C$15:$G$18,2,FALSE)*VLOOKUP(J34,Calc!$B$3:$D$7,3,FALSE),0.01)&J34,"") ->  | M34: =IF(AND(K34<>"",J34<>""),FLOOR(VLOOKUP(K34,Calc!$C$15:$G$18,5,FALSE)*VLOOKUP(J34,Calc!$B$3:$D$7,3,FALSE),0.01)&J34,"") ->  | N34: =IF(R34<>"",Calc!FN42,"") ->  | O34: =IF(R34<>"",Calc!FK42,"") ->  | P34: =IF(R34<>"",Calc!FL42,"") ->  | Q34: =IF(R34<>"",Calc!FM42,"") ->  | R34: =IF(AND(C34<>"", S34<>""),C34*VLOOKUP(S34,Calc!$B$3:$D$7,3,FALSE),"") ->  | T34: =IF(AND(Calc!GD42<>"",S34<>""),FLOOR(Calc!GD42*VLOOKUP(S34,Calc!$B$3:$D$7,3,FALSE),0.01)&S34,"") ->  | U34: =Calc!EG42 ->  | V34: =IF(AND(Calc!GG42<>"-",S34<>""),FLOOR(Calc!GG42*VLOOKUP(S34,Calc!$B$3:$D$7,3,FALSE),0.01)&S34,"") ->  | W34: =Calc!EH42 ->  | X34: =IF(AND(Calc!GH42<>"-",S34<>""),FLOOR(Calc!GH42*VLOOKUP(S34,Calc!$B$3:$D$7,3,FALSE),0.01)&S34,"") ->  | Y34: =Calc!EI42 ->  | Z34: =IF(AND(Calc!GI42<>"-",S34<>""),FLOOR(Calc!GI42*VLOOKUP(S34,Calc!$B$3:$D$7,3,FALSE),0.01)&S34,"") ->  | AA34: =Calc!EJ42 ->  | AB34: =IF(AND(Calc!GJ42<>"-",S34<>""),FLOOR(Calc!GJ42*VLOOKUP(S34,Calc!$B$3:$D$7,3,FALSE),0.01)&S34,"") ->  | AC34: =Calc!EK42 ->  | AD34: =IF(AND(Calc!GK42<>"-",S34<>""),FLOOR(Calc!GK42*VLOOKUP(S34,Calc!$B$3:$D$7,3,FALSE),0.01)&S34,"") ->  | AE34: =Calc!EL42 ->  | AF34: =IF(AND(Calc!GL42<>"-",S34<>""),FLOOR(Calc!GL42*VLOOKUP(S34,Calc!$B$3:$D$7,3,FALSE),0.01)&S34,"") ->  | AG34: =Calc!EM42 ->  | AH34: =IF(AND(Calc!GM42<>"-",S34<>""),FLOOR(Calc!GM42*VLOOKUP(S34,Calc!$B$3:$D$7,3,FALSE),0.01)&S34,"") ->  | AI34: =Calc!EN42 ->  | AJ34: =IF(AND(Calc!GN42<>"-",S34<>""),FLOOR(Calc!GN42*VLOOKUP(S34,Calc!$B$3:$D$7,3,FALSE),0.01)&S34,"") ->  | AK34: =Calc!EP42 ->  | AL34: =IF(AND(Calc!HE42<>"-",Calc!HE42<>"",S34<>""),FLOOR(Calc!HE42*VLOOKUP(S34,Calc!$B$3:$D$7,3,FALSE),0.01)&S34,"") ->  | AM34: =IF(AND(Calc!HF42<>"-",Calc!HF42<>"",S34<>""),FLOOR(Calc!HF42*VLOOKUP(S34,Calc!$B$3:$D$7,3,FALSE),0.01)&S34,"") -> 
A35: =IF(AND(H35<>"", $J35<>""),H35*VLOOKUP($J35,Calc!$B$3:$C$7,2,FALSE),"") ->  | B35: =IF(AND(I35<>"", $J35<>""),I35*VLOOKUP($J35,Calc!$B$3:$C$7,2,FALSE),"") ->  | C35: =Calc!$EF43 ->  | L35: =IF(AND(K35<>"",J35<>""),FLOOR(VLOOKUP(K35,Calc!$C$15:$G$18,2,FALSE)*VLOOKUP(J35,Calc!$B$3:$D$7,3,FALSE),0.01)&J35,"") ->  | M35: =IF(AND(K35<>"",J35<>""),FLOOR(VLOOKUP(K35,Calc!$C$15:$G$18,5,FALSE)*VLOOKUP(J35,Calc!$B$3:$D$7,3,FALSE),0.01)&J35,"") ->  | N35: =IF(R35<>"",Calc!FN43,"") ->  | O35: =IF(R35<>"",Calc!FK43,"") ->  | P35: =IF(R35<>"",Calc!FL43,"") ->  | Q35: =IF(R35<>"",Calc!FM43,"") ->  | R35: =IF(AND(C35<>"", S35<>""),C35*VLOOKUP(S35,Calc!$B$3:$D$7,3,FALSE),"") ->  | T35: =IF(AND(Calc!GD43<>"",S35<>""),FLOOR(Calc!GD43*VLOOKUP(S35,Calc!$B$3:$D$7,3,FALSE),0.01)&S35,"") ->  | U35: =Calc!EG43 ->  | V35: =IF(AND(Calc!GG43<>"-",S35<>""),FLOOR(Calc!GG43*VLOOKUP(S35,Calc!$B$3:$D$7,3,FALSE),0.01)&S35,"") ->  | W35: =Calc!EH43 ->  | X35: =IF(AND(Calc!GH43<>"-",S35<>""),FLOOR(Calc!GH43*VLOOKUP(S35,Calc!$B$3:$D$7,3,FALSE),0.01)&S35,"") ->  | Y35: =Calc!EI43 ->  | Z35: =IF(AND(Calc!GI43<>"-",S35<>""),FLOOR(Calc!GI43*VLOOKUP(S35,Calc!$B$3:$D$7,3,FALSE),0.01)&S35,"") ->  | AA35: =Calc!EJ43 ->  | AB35: =IF(AND(Calc!GJ43<>"-",S35<>""),FLOOR(Calc!GJ43*VLOOKUP(S35,Calc!$B$3:$D$7,3,FALSE),0.01)&S35,"") ->  | AC35: =Calc!EK43 ->  | AD35: =IF(AND(Calc!GK43<>"-",S35<>""),FLOOR(Calc!GK43*VLOOKUP(S35,Calc!$B$3:$D$7,3,FALSE),0.01)&S35,"") ->  | AE35: =Calc!EL43 ->  | AF35: =IF(AND(Calc!GL43<>"-",S35<>""),FLOOR(Calc!GL43*VLOOKUP(S35,Calc!$B$3:$D$7,3,FALSE),0.01)&S35,"") ->  | AG35: =Calc!EM43 ->  | AH35: =IF(AND(Calc!GM43<>"-",S35<>""),FLOOR(Calc!GM43*VLOOKUP(S35,Calc!$B$3:$D$7,3,FALSE),0.01)&S35,"") ->  | AI35: =Calc!EN43 ->  | AJ35: =IF(AND(Calc!GN43<>"-",S35<>""),FLOOR(Calc!GN43*VLOOKUP(S35,Calc!$B$3:$D$7,3,FALSE),0.01)&S35,"") ->  | AK35: =Calc!EP43 ->  | AL35: =IF(AND(Calc!HE43<>"-",Calc!HE43<>"",S35<>""),FLOOR(Calc!HE43*VLOOKUP(S35,Calc!$B$3:$D$7,3,FALSE),0.01)&S35,"") ->  | AM35: =IF(AND(Calc!HF43<>"-",Calc!HF43<>"",S35<>""),FLOOR(Calc!HF43*VLOOKUP(S35,Calc!$B$3:$D$7,3,FALSE),0.01)&S35,"") -> 
A36: =IF(AND(H36<>"", $J36<>""),H36*VLOOKUP($J36,Calc!$B$3:$C$7,2,FALSE),"") ->  | B36: =IF(AND(I36<>"", $J36<>""),I36*VLOOKUP($J36,Calc!$B$3:$C$7,2,FALSE),"") ->  | C36: =Calc!$EF44 ->  | L36: =IF(AND(K36<>"",J36<>""),FLOOR(VLOOKUP(K36,Calc!$C$15:$G$18,2,FALSE)*VLOOKUP(J36,Calc!$B$3:$D$7,3,FALSE),0.01)&J36,"") ->  | M36: =IF(AND(K36<>"",J36<>""),FLOOR(VLOOKUP(K36,Calc!$C$15:$G$18,5,FALSE)*VLOOKUP(J36,Calc!$B$3:$D$7,3,FALSE),0.01)&J36,"") ->  | N36: =IF(R36<>"",Calc!FN44,"") ->  | O36: =IF(R36<>"",Calc!FK44,"") ->  | P36: =IF(R36<>"",Calc!FL44,"") ->  | Q36: =IF(R36<>"",Calc!FM44,"") ->  | R36: =IF(AND(C36<>"", S36<>""),C36*VLOOKUP(S36,Calc!$B$3:$D$7,3,FALSE),"") ->  | T36: =IF(AND(Calc!GD44<>"",S36<>""),FLOOR(Calc!GD44*VLOOKUP(S36,Calc!$B$3:$D$7,3,FALSE),0.01)&S36,"") ->  | U36: =Calc!EG44 ->  | V36: =IF(AND(Calc!GG44<>"-",S36<>""),FLOOR(Calc!GG44*VLOOKUP(S36,Calc!$B$3:$D$7,3,FALSE),0.01)&S36,"") ->  | W36: =Calc!EH44 ->  | X36: =IF(AND(Calc!GH44<>"-",S36<>""),FLOOR(Calc!GH44*VLOOKUP(S36,Calc!$B$3:$D$7,3,FALSE),0.01)&S36,"") ->  | Y36: =Calc!EI44 ->  | Z36: =IF(AND(Calc!GI44<>"-",S36<>""),FLOOR(Calc!GI44*VLOOKUP(S36,Calc!$B$3:$D$7,3,FALSE),0.01)&S36,"") ->  | AA36: =Calc!EJ44 ->  | AB36: =IF(AND(Calc!GJ44<>"-",S36<>""),FLOOR(Calc!GJ44*VLOOKUP(S36,Calc!$B$3:$D$7,3,FALSE),0.01)&S36,"") ->  | AC36: =Calc!EK44 ->  | AD36: =IF(AND(Calc!GK44<>"-",S36<>""),FLOOR(Calc!GK44*VLOOKUP(S36,Calc!$B$3:$D$7,3,FALSE),0.01)&S36,"") ->  | AE36: =Calc!EL44 ->  | AF36: =IF(AND(Calc!GL44<>"-",S36<>""),FLOOR(Calc!GL44*VLOOKUP(S36,Calc!$B$3:$D$7,3,FALSE),0.01)&S36,"") ->  | AG36: =Calc!EM44 ->  | AH36: =IF(AND(Calc!GM44<>"-",S36<>""),FLOOR(Calc!GM44*VLOOKUP(S36,Calc!$B$3:$D$7,3,FALSE),0.01)&S36,"") ->  | AI36: =Calc!EN44 ->  | AJ36: =IF(AND(Calc!GN44<>"-",S36<>""),FLOOR(Calc!GN44*VLOOKUP(S36,Calc!$B$3:$D$7,3,FALSE),0.01)&S36,"") ->  | AK36: =Calc!EP44 ->  | AL36: =IF(AND(Calc!HE44<>"-",Calc!HE44<>"",S36<>""),FLOOR(Calc!HE44*VLOOKUP(S36,Calc!$B$3:$D$7,3,FALSE),0.01)&S36,"") ->  | AM36: =IF(AND(Calc!HF44<>"-",Calc!HF44<>"",S36<>""),FLOOR(Calc!HF44*VLOOKUP(S36,Calc!$B$3:$D$7,3,FALSE),0.01)&S36,"") -> 
A37: =IF(AND(H37<>"", $J37<>""),H37*VLOOKUP($J37,Calc!$B$3:$C$7,2,FALSE),"") ->  | B37: =IF(AND(I37<>"", $J37<>""),I37*VLOOKUP($J37,Calc!$B$3:$C$7,2,FALSE),"") ->  | C37: =Calc!$EF45 ->  | L37: =IF(AND(K37<>"",J37<>""),FLOOR(VLOOKUP(K37,Calc!$C$15:$G$18,2,FALSE)*VLOOKUP(J37,Calc!$B$3:$D$7,3,FALSE),0.01)&J37,"") ->  | M37: =IF(AND(K37<>"",J37<>""),FLOOR(VLOOKUP(K37,Calc!$C$15:$G$18,5,FALSE)*VLOOKUP(J37,Calc!$B$3:$D$7,3,FALSE),0.01)&J37,"") ->  | N37: =IF(R37<>"",Calc!FN45,"") ->  | O37: =IF(R37<>"",Calc!FK45,"") ->  | P37: =IF(R37<>"",Calc!FL45,"") ->  | Q37: =IF(R37<>"",Calc!FM45,"") ->  | R37: =IF(AND(C37<>"", S37<>""),C37*VLOOKUP(S37,Calc!$B$3:$D$7,3,FALSE),"") ->  | T37: =IF(AND(Calc!GD45<>"",S37<>""),FLOOR(Calc!GD45*VLOOKUP(S37,Calc!$B$3:$D$7,3,FALSE),0.01)&S37,"") ->  | U37: =Calc!EG45 ->  | V37: =IF(AND(Calc!GG45<>"-",S37<>""),FLOOR(Calc!GG45*VLOOKUP(S37,Calc!$B$3:$D$7,3,FALSE),0.01)&S37,"") ->  | W37: =Calc!EH45 ->  | X37: =IF(AND(Calc!GH45<>"-",S37<>""),FLOOR(Calc!GH45*VLOOKUP(S37,Calc!$B$3:$D$7,3,FALSE),0.01)&S37,"") ->  | Y37: =Calc!EI45 ->  | Z37: =IF(AND(Calc!GI45<>"-",S37<>""),FLOOR(Calc!GI45*VLOOKUP(S37,Calc!$B$3:$D$7,3,FALSE),0.01)&S37,"") ->  | AA37: =Calc!EJ45 ->  | AB37: =IF(AND(Calc!GJ45<>"-",S37<>""),FLOOR(Calc!GJ45*VLOOKUP(S37,Calc!$B$3:$D$7,3,FALSE),0.01)&S37,"") ->  | AC37: =Calc!EK45 ->  | AD37: =IF(AND(Calc!GK45<>"-",S37<>""),FLOOR(Calc!GK45*VLOOKUP(S37,Calc!$B$3:$D$7,3,FALSE),0.01)&S37,"") ->  | AE37: =Calc!EL45 ->  | AF37: =IF(AND(Calc!GL45<>"-",S37<>""),FLOOR(Calc!GL45*VLOOKUP(S37,Calc!$B$3:$D$7,3,FALSE),0.01)&S37,"") ->  | AG37: =Calc!EM45 ->  | AH37: =IF(AND(Calc!GM45<>"-",S37<>""),FLOOR(Calc!GM45*VLOOKUP(S37,Calc!$B$3:$D$7,3,FALSE),0.01)&S37,"") ->  | AI37: =Calc!EN45 ->  | AJ37: =IF(AND(Calc!GN45<>"-",S37<>""),FLOOR(Calc!GN45*VLOOKUP(S37,Calc!$B$3:$D$7,3,FALSE),0.01)&S37,"") ->  | AK37: =Calc!EP45 ->  | AL37: =IF(AND(Calc!HE45<>"-",Calc!HE45<>"",S37<>""),FLOOR(Calc!HE45*VLOOKUP(S37,Calc!$B$3:$D$7,3,FALSE),0.01)&S37,"") ->  | AM37: =IF(AND(Calc!HF45<>"-",Calc!HF45<>"",S37<>""),FLOOR(Calc!HF45*VLOOKUP(S37,Calc!$B$3:$D$7,3,FALSE),0.01)&S37,"") -> 
A38: =IF(AND(H38<>"", $J38<>""),H38*VLOOKUP($J38,Calc!$B$3:$C$7,2,FALSE),"") ->  | B38: =IF(AND(I38<>"", $J38<>""),I38*VLOOKUP($J38,Calc!$B$3:$C$7,2,FALSE),"") ->  | C38: =Calc!$EF46 ->  | L38: =IF(AND(K38<>"",J38<>""),FLOOR(VLOOKUP(K38,Calc!$C$15:$G$18,2,FALSE)*VLOOKUP(J38,Calc!$B$3:$D$7,3,FALSE),0.01)&J38,"") ->  | M38: =IF(AND(K38<>"",J38<>""),FLOOR(VLOOKUP(K38,Calc!$C$15:$G$18,5,FALSE)*VLOOKUP(J38,Calc!$B$3:$D$7,3,FALSE),0.01)&J38,"") ->  | N38: =IF(R38<>"",Calc!FN46,"") ->  | O38: =IF(R38<>"",Calc!FK46,"") ->  | P38: =IF(R38<>"",Calc!FL46,"") ->  | Q38: =IF(R38<>"",Calc!FM46,"") ->  | R38: =IF(AND(C38<>"", S38<>""),C38*VLOOKUP(S38,Calc!$B$3:$D$7,3,FALSE),"") ->  | T38: =IF(AND(Calc!GD46<>"",S38<>""),FLOOR(Calc!GD46*VLOOKUP(S38,Calc!$B$3:$D$7,3,FALSE),0.01)&S38,"") ->  | U38: =Calc!EG46 ->  | V38: =IF(AND(Calc!GG46<>"-",S38<>""),FLOOR(Calc!GG46*VLOOKUP(S38,Calc!$B$3:$D$7,3,FALSE),0.01)&S38,"") ->  | W38: =Calc!EH46 ->  | X38: =IF(AND(Calc!GH46<>"-",S38<>""),FLOOR(Calc!GH46*VLOOKUP(S38,Calc!$B$3:$D$7,3,FALSE),0.01)&S38,"") ->  | Y38: =Calc!EI46 ->  | Z38: =IF(AND(Calc!GI46<>"-",S38<>""),FLOOR(Calc!GI46*VLOOKUP(S38,Calc!$B$3:$D$7,3,FALSE),0.01)&S38,"") ->  | AA38: =Calc!EJ46 ->  | AB38: =IF(AND(Calc!GJ46<>"-",S38<>""),FLOOR(Calc!GJ46*VLOOKUP(S38,Calc!$B$3:$D$7,3,FALSE),0.01)&S38,"") ->  | AC38: =Calc!EK46 ->  | AD38: =IF(AND(Calc!GK46<>"-",S38<>""),FLOOR(Calc!GK46*VLOOKUP(S38,Calc!$B$3:$D$7,3,FALSE),0.01)&S38,"") ->  | AE38: =Calc!EL46 ->  | AF38: =IF(AND(Calc!GL46<>"-",S38<>""),FLOOR(Calc!GL46*VLOOKUP(S38,Calc!$B$3:$D$7,3,FALSE),0.01)&S38,"") ->  | AG38: =Calc!EM46 ->  | AH38: =IF(AND(Calc!GM46<>"-",S38<>""),FLOOR(Calc!GM46*VLOOKUP(S38,Calc!$B$3:$D$7,3,FALSE),0.01)&S38,"") ->  | AI38: =Calc!EN46 ->  | AJ38: =IF(AND(Calc!GN46<>"-",S38<>""),FLOOR(Calc!GN46*VLOOKUP(S38,Calc!$B$3:$D$7,3,FALSE),0.01)&S38,"") ->  | AK38: =Calc!EP46 ->  | AL38: =IF(AND(Calc!HE46<>"-",Calc!HE46<>"",S38<>""),FLOOR(Calc!HE46*VLOOKUP(S38,Calc!$B$3:$D$7,3,FALSE),0.01)&S38,"") ->  | AM38: =IF(AND(Calc!HF46<>"-",Calc!HF46<>"",S38<>""),FLOOR(Calc!HF46*VLOOKUP(S38,Calc!$B$3:$D$7,3,FALSE),0.01)&S38,"") -> 
A39: =IF(AND(H39<>"", $J39<>""),H39*VLOOKUP($J39,Calc!$B$3:$C$7,2,FALSE),"") ->  | B39: =IF(AND(I39<>"", $J39<>""),I39*VLOOKUP($J39,Calc!$B$3:$C$7,2,FALSE),"") ->  | C39: =Calc!$EF47 ->  | L39: =IF(AND(K39<>"",J39<>""),FLOOR(VLOOKUP(K39,Calc!$C$15:$G$18,2,FALSE)*VLOOKUP(J39,Calc!$B$3:$D$7,3,FALSE),0.01)&J39,"") ->  | M39: =IF(AND(K39<>"",J39<>""),FLOOR(VLOOKUP(K39,Calc!$C$15:$G$18,5,FALSE)*VLOOKUP(J39,Calc!$B$3:$D$7,3,FALSE),0.01)&J39,"") ->  | N39: =IF(R39<>"",Calc!FN47,"") ->  | O39: =IF(R39<>"",Calc!FK47,"") ->  | P39: =IF(R39<>"",Calc!FL47,"") ->  | Q39: =IF(R39<>"",Calc!FM47,"") ->  | R39: =IF(AND(C39<>"", S39<>""),C39*VLOOKUP(S39,Calc!$B$3:$D$7,3,FALSE),"") ->  | T39: =IF(AND(Calc!GD47<>"",S39<>""),FLOOR(Calc!GD47*VLOOKUP(S39,Calc!$B$3:$D$7,3,FALSE),0.01)&S39,"") ->  | U39: =Calc!EG47 ->  | V39: =IF(AND(Calc!GG47<>"-",S39<>""),FLOOR(Calc!GG47*VLOOKUP(S39,Calc!$B$3:$D$7,3,FALSE),0.01)&S39,"") ->  | W39: =Calc!EH47 ->  | X39: =IF(AND(Calc!GH47<>"-",S39<>""),FLOOR(Calc!GH47*VLOOKUP(S39,Calc!$B$3:$D$7,3,FALSE),0.01)&S39,"") ->  | Y39: =Calc!EI47 ->  | Z39: =IF(AND(Calc!GI47<>"-",S39<>""),FLOOR(Calc!GI47*VLOOKUP(S39,Calc!$B$3:$D$7,3,FALSE),0.01)&S39,"") ->  | AA39: =Calc!EJ47 ->  | AB39: =IF(AND(Calc!GJ47<>"-",S39<>""),FLOOR(Calc!GJ47*VLOOKUP(S39,Calc!$B$3:$D$7,3,FALSE),0.01)&S39,"") ->  | AC39: =Calc!EK47 ->  | AD39: =IF(AND(Calc!GK47<>"-",S39<>""),FLOOR(Calc!GK47*VLOOKUP(S39,Calc!$B$3:$D$7,3,FALSE),0.01)&S39,"") ->  | AE39: =Calc!EL47 ->  | AF39: =IF(AND(Calc!GL47<>"-",S39<>""),FLOOR(Calc!GL47*VLOOKUP(S39,Calc!$B$3:$D$7,3,FALSE),0.01)&S39,"") ->  | AG39: =Calc!EM47 ->  | AH39: =IF(AND(Calc!GM47<>"-",S39<>""),FLOOR(Calc!GM47*VLOOKUP(S39,Calc!$B$3:$D$7,3,FALSE),0.01)&S39,"") ->  | AI39: =Calc!EN47 ->  | AJ39: =IF(AND(Calc!GN47<>"-",S39<>""),FLOOR(Calc!GN47*VLOOKUP(S39,Calc!$B$3:$D$7,3,FALSE),0.01)&S39,"") ->  | AK39: =Calc!EP47 ->  | AL39: =IF(AND(Calc!HE47<>"-",Calc!HE47<>"",S39<>""),FLOOR(Calc!HE47*VLOOKUP(S39,Calc!$B$3:$D$7,3,FALSE),0.01)&S39,"") ->  | AM39: =IF(AND(Calc!HF47<>"-",Calc!HF47<>"",S39<>""),FLOOR(Calc!HF47*VLOOKUP(S39,Calc!$B$3:$D$7,3,FALSE),0.01)&S39,"") -> 
A40: =IF(AND(H40<>"", $J40<>""),H40*VLOOKUP($J40,Calc!$B$3:$C$7,2,FALSE),"") ->  | B40: =IF(AND(I40<>"", $J40<>""),I40*VLOOKUP($J40,Calc!$B$3:$C$7,2,FALSE),"") ->  | C40: =Calc!$EF48 ->  | L40: =IF(AND(K40<>"",J40<>""),FLOOR(VLOOKUP(K40,Calc!$C$15:$G$18,2,FALSE)*VLOOKUP(J40,Calc!$B$3:$D$7,3,FALSE),0.01)&J40,"") ->  | M40: =IF(AND(K40<>"",J40<>""),FLOOR(VLOOKUP(K40,Calc!$C$15:$G$18,5,FALSE)*VLOOKUP(J40,Calc!$B$3:$D$7,3,FALSE),0.01)&J40,"") ->  | N40: =IF(R40<>"",Calc!FN48,"") ->  | O40: =IF(R40<>"",Calc!FK48,"") ->  | P40: =IF(R40<>"",Calc!FL48,"") ->  | Q40: =IF(R40<>"",Calc!FM48,"") ->  | R40: =IF(AND(C40<>"", S40<>""),C40*VLOOKUP(S40,Calc!$B$3:$D$7,3,FALSE),"") ->  | T40: =IF(AND(Calc!GD48<>"",S40<>""),FLOOR(Calc!GD48*VLOOKUP(S40,Calc!$B$3:$D$7,3,FALSE),0.01)&S40,"") ->  | U40: =Calc!EG48 ->  | V40: =IF(AND(Calc!GG48<>"-",S40<>""),FLOOR(Calc!GG48*VLOOKUP(S40,Calc!$B$3:$D$7,3,FALSE),0.01)&S40,"") ->  | W40: =Calc!EH48 ->  | X40: =IF(AND(Calc!GH48<>"-",S40<>""),FLOOR(Calc!GH48*VLOOKUP(S40,Calc!$B$3:$D$7,3,FALSE),0.01)&S40,"") ->  | Y40: =Calc!EI48 ->  | Z40: =IF(AND(Calc!GI48<>"-",S40<>""),FLOOR(Calc!GI48*VLOOKUP(S40,Calc!$B$3:$D$7,3,FALSE),0.01)&S40,"") ->  | AA40: =Calc!EJ48 ->  | AB40: =IF(AND(Calc!GJ48<>"-",S40<>""),FLOOR(Calc!GJ48*VLOOKUP(S40,Calc!$B$3:$D$7,3,FALSE),0.01)&S40,"") ->  | AC40: =Calc!EK48 ->  | AD40: =IF(AND(Calc!GK48<>"-",S40<>""),FLOOR(Calc!GK48*VLOOKUP(S40,Calc!$B$3:$D$7,3,FALSE),0.01)&S40,"") ->  | AE40: =Calc!EL48 ->  | AF40: =IF(AND(Calc!GL48<>"-",S40<>""),FLOOR(Calc!GL48*VLOOKUP(S40,Calc!$B$3:$D$7,3,FALSE),0.01)&S40,"") ->  | AG40: =Calc!EM48 ->  | AH40: =IF(AND(Calc!GM48<>"-",S40<>""),FLOOR(Calc!GM48*VLOOKUP(S40,Calc!$B$3:$D$7,3,FALSE),0.01)&S40,"") ->  | AI40: =Calc!EN48 ->  | AJ40: =IF(AND(Calc!GN48<>"-",S40<>""),FLOOR(Calc!GN48*VLOOKUP(S40,Calc!$B$3:$D$7,3,FALSE),0.01)&S40,"") ->  | AK40: =Calc!EP48 ->  | AL40: =IF(AND(Calc!HE48<>"-",Calc!HE48<>"",S40<>""),FLOOR(Calc!HE48*VLOOKUP(S40,Calc!$B$3:$D$7,3,FALSE),0.01)&S40,"") ->  | AM40: =IF(AND(Calc!HF48<>"-",Calc!HF48<>"",S40<>""),FLOOR(Calc!HF48*VLOOKUP(S40,Calc!$B$3:$D$7,3,FALSE),0.01)&S40,"") -> 
A41: =IF(AND(H41<>"", $J41<>""),H41*VLOOKUP($J41,Calc!$B$3:$C$7,2,FALSE),"") ->  | B41: =IF(AND(I41<>"", $J41<>""),I41*VLOOKUP($J41,Calc!$B$3:$C$7,2,FALSE),"") ->  | C41: =Calc!$EF49 ->  | L41: =IF(AND(K41<>"",J41<>""),FLOOR(VLOOKUP(K41,Calc!$C$15:$G$18,2,FALSE)*VLOOKUP(J41,Calc!$B$3:$D$7,3,FALSE),0.01)&J41,"") ->  | M41: =IF(AND(K41<>"",J41<>""),FLOOR(VLOOKUP(K41,Calc!$C$15:$G$18,5,FALSE)*VLOOKUP(J41,Calc!$B$3:$D$7,3,FALSE),0.01)&J41,"") ->  | N41: =IF(R41<>"",Calc!FN49,"") ->  | O41: =IF(R41<>"",Calc!FK49,"") ->  | P41: =IF(R41<>"",Calc!FL49,"") ->  | Q41: =IF(R41<>"",Calc!FM49,"") ->  | R41: =IF(AND(C41<>"", S41<>""),C41*VLOOKUP(S41,Calc!$B$3:$D$7,3,FALSE),"") ->  | T41: =IF(AND(Calc!GD49<>"",S41<>""),FLOOR(Calc!GD49*VLOOKUP(S41,Calc!$B$3:$D$7,3,FALSE),0.01)&S41,"") ->  | U41: =Calc!EG49 ->  | V41: =IF(AND(Calc!GG49<>"-",S41<>""),FLOOR(Calc!GG49*VLOOKUP(S41,Calc!$B$3:$D$7,3,FALSE),0.01)&S41,"") ->  | W41: =Calc!EH49 ->  | X41: =IF(AND(Calc!GH49<>"-",S41<>""),FLOOR(Calc!GH49*VLOOKUP(S41,Calc!$B$3:$D$7,3,FALSE),0.01)&S41,"") ->  | Y41: =Calc!EI49 ->  | Z41: =IF(AND(Calc!GI49<>"-",S41<>""),FLOOR(Calc!GI49*VLOOKUP(S41,Calc!$B$3:$D$7,3,FALSE),0.01)&S41,"") ->  | AA41: =Calc!EJ49 ->  | AB41: =IF(AND(Calc!GJ49<>"-",S41<>""),FLOOR(Calc!GJ49*VLOOKUP(S41,Calc!$B$3:$D$7,3,FALSE),0.01)&S41,"") ->  | AC41: =Calc!EK49 ->  | AD41: =IF(AND(Calc!GK49<>"-",S41<>""),FLOOR(Calc!GK49*VLOOKUP(S41,Calc!$B$3:$D$7,3,FALSE),0.01)&S41,"") ->  | AE41: =Calc!EL49 ->  | AF41: =IF(AND(Calc!GL49<>"-",S41<>""),FLOOR(Calc!GL49*VLOOKUP(S41,Calc!$B$3:$D$7,3,FALSE),0.01)&S41,"") ->  | AG41: =Calc!EM49 ->  | AH41: =IF(AND(Calc!GM49<>"-",S41<>""),FLOOR(Calc!GM49*VLOOKUP(S41,Calc!$B$3:$D$7,3,FALSE),0.01)&S41,"") ->  | AI41: =Calc!EN49 ->  | AJ41: =IF(AND(Calc!GN49<>"-",S41<>""),FLOOR(Calc!GN49*VLOOKUP(S41,Calc!$B$3:$D$7,3,FALSE),0.01)&S41,"") ->  | AK41: =Calc!EP49 ->  | AL41: =IF(AND(Calc!HE49<>"-",Calc!HE49<>"",S41<>""),FLOOR(Calc!HE49*VLOOKUP(S41,Calc!$B$3:$D$7,3,FALSE),0.01)&S41,"") ->  | AM41: =IF(AND(Calc!HF49<>"-",Calc!HF49<>"",S41<>""),FLOOR(Calc!HF49*VLOOKUP(S41,Calc!$B$3:$D$7,3,FALSE),0.01)&S41,"") -> 
A42: =IF(AND(H42<>"", $J42<>""),H42*VLOOKUP($J42,Calc!$B$3:$C$7,2,FALSE),"") ->  | B42: =IF(AND(I42<>"", $J42<>""),I42*VLOOKUP($J42,Calc!$B$3:$C$7,2,FALSE),"") ->  | C42: =Calc!$EF50 ->  | L42: =IF(AND(K42<>"",J42<>""),FLOOR(VLOOKUP(K42,Calc!$C$15:$G$18,2,FALSE)*VLOOKUP(J42,Calc!$B$3:$D$7,3,FALSE),0.01)&J42,"") ->  | M42: =IF(AND(K42<>"",J42<>""),FLOOR(VLOOKUP(K42,Calc!$C$15:$G$18,5,FALSE)*VLOOKUP(J42,Calc!$B$3:$D$7,3,FALSE),0.01)&J42,"") ->  | N42: =IF(R42<>"",Calc!FN50,"") ->  | O42: =IF(R42<>"",Calc!FK50,"") ->  | P42: =IF(R42<>"",Calc!FL50,"") ->  | Q42: =IF(R42<>"",Calc!FM50,"") ->  | R42: =IF(AND(C42<>"", S42<>""),C42*VLOOKUP(S42,Calc!$B$3:$D$7,3,FALSE),"") ->  | T42: =IF(AND(Calc!GD50<>"",S42<>""),FLOOR(Calc!GD50*VLOOKUP(S42,Calc!$B$3:$D$7,3,FALSE),0.01)&S42,"") ->  | U42: =Calc!EG50 ->  | V42: =IF(AND(Calc!GG50<>"-",S42<>""),FLOOR(Calc!GG50*VLOOKUP(S42,Calc!$B$3:$D$7,3,FALSE),0.01)&S42,"") ->  | W42: =Calc!EH50 ->  | X42: =IF(AND(Calc!GH50<>"-",S42<>""),FLOOR(Calc!GH50*VLOOKUP(S42,Calc!$B$3:$D$7,3,FALSE),0.01)&S42,"") ->  | Y42: =Calc!EI50 ->  | Z42: =IF(AND(Calc!GI50<>"-",S42<>""),FLOOR(Calc!GI50*VLOOKUP(S42,Calc!$B$3:$D$7,3,FALSE),0.01)&S42,"") ->  | AA42: =Calc!EJ50 ->  | AB42: =IF(AND(Calc!GJ50<>"-",S42<>""),FLOOR(Calc!GJ50*VLOOKUP(S42,Calc!$B$3:$D$7,3,FALSE),0.01)&S42,"") ->  | AC42: =Calc!EK50 ->  | AD42: =IF(AND(Calc!GK50<>"-",S42<>""),FLOOR(Calc!GK50*VLOOKUP(S42,Calc!$B$3:$D$7,3,FALSE),0.01)&S42,"") ->  | AE42: =Calc!EL50 ->  | AF42: =IF(AND(Calc!GL50<>"-",S42<>""),FLOOR(Calc!GL50*VLOOKUP(S42,Calc!$B$3:$D$7,3,FALSE),0.01)&S42,"") ->  | AG42: =Calc!EM50 ->  | AH42: =IF(AND(Calc!GM50<>"-",S42<>""),FLOOR(Calc!GM50*VLOOKUP(S42,Calc!$B$3:$D$7,3,FALSE),0.01)&S42,"") ->  | AI42: =Calc!EN50 ->  | AJ42: =IF(AND(Calc!GN50<>"-",S42<>""),FLOOR(Calc!GN50*VLOOKUP(S42,Calc!$B$3:$D$7,3,FALSE),0.01)&S42,"") ->  | AK42: =Calc!EP50 ->  | AL42: =IF(AND(Calc!HE50<>"-",Calc!HE50<>"",S42<>""),FLOOR(Calc!HE50*VLOOKUP(S42,Calc!$B$3:$D$7,3,FALSE),0.01)&S42,"") ->  | AM42: =IF(AND(Calc!HF50<>"-",Calc!HF50<>"",S42<>""),FLOOR(Calc!HF50*VLOOKUP(S42,Calc!$B$3:$D$7,3,FALSE),0.01)&S42,"") -> 
A43: =IF(AND(H43<>"", $J43<>""),H43*VLOOKUP($J43,Calc!$B$3:$C$7,2,FALSE),"") ->  | B43: =IF(AND(I43<>"", $J43<>""),I43*VLOOKUP($J43,Calc!$B$3:$C$7,2,FALSE),"") ->  | C43: =Calc!$EF51 ->  | L43: =IF(AND(K43<>"",J43<>""),FLOOR(VLOOKUP(K43,Calc!$C$15:$G$18,2,FALSE)*VLOOKUP(J43,Calc!$B$3:$D$7,3,FALSE),0.01)&J43,"") ->  | M43: =IF(AND(K43<>"",J43<>""),FLOOR(VLOOKUP(K43,Calc!$C$15:$G$18,5,FALSE)*VLOOKUP(J43,Calc!$B$3:$D$7,3,FALSE),0.01)&J43,"") ->  | N43: =IF(R43<>"",Calc!FN51,"") ->  | O43: =IF(R43<>"",Calc!FK51,"") ->  | P43: =IF(R43<>"",Calc!FL51,"") ->  | Q43: =IF(R43<>"",Calc!FM51,"") ->  | R43: =IF(AND(C43<>"", S43<>""),C43*VLOOKUP(S43,Calc!$B$3:$D$7,3,FALSE),"") ->  | T43: =IF(AND(Calc!GD51<>"",S43<>""),FLOOR(Calc!GD51*VLOOKUP(S43,Calc!$B$3:$D$7,3,FALSE),0.01)&S43,"") ->  | U43: =Calc!EG51 ->  | V43: =IF(AND(Calc!GG51<>"-",S43<>""),FLOOR(Calc!GG51*VLOOKUP(S43,Calc!$B$3:$D$7,3,FALSE),0.01)&S43,"") ->  | W43: =Calc!EH51 ->  | X43: =IF(AND(Calc!GH51<>"-",S43<>""),FLOOR(Calc!GH51*VLOOKUP(S43,Calc!$B$3:$D$7,3,FALSE),0.01)&S43,"") ->  | Y43: =Calc!EI51 ->  | Z43: =IF(AND(Calc!GI51<>"-",S43<>""),FLOOR(Calc!GI51*VLOOKUP(S43,Calc!$B$3:$D$7,3,FALSE),0.01)&S43,"") ->  | AA43: =Calc!EJ51 ->  | AB43: =IF(AND(Calc!GJ51<>"-",S43<>""),FLOOR(Calc!GJ51*VLOOKUP(S43,Calc!$B$3:$D$7,3,FALSE),0.01)&S43,"") ->  | AC43: =Calc!EK51 ->  | AD43: =IF(AND(Calc!GK51<>"-",S43<>""),FLOOR(Calc!GK51*VLOOKUP(S43,Calc!$B$3:$D$7,3,FALSE),0.01)&S43,"") ->  | AE43: =Calc!EL51 ->  | AF43: =IF(AND(Calc!GL51<>"-",S43<>""),FLOOR(Calc!GL51*VLOOKUP(S43,Calc!$B$3:$D$7,3,FALSE),0.01)&S43,"") ->  | AG43: =Calc!EM51 ->  | AH43: =IF(AND(Calc!GM51<>"-",S43<>""),FLOOR(Calc!GM51*VLOOKUP(S43,Calc!$B$3:$D$7,3,FALSE),0.01)&S43,"") ->  | AI43: =Calc!EN51 ->  | AJ43: =IF(AND(Calc!GN51<>"-",S43<>""),FLOOR(Calc!GN51*VLOOKUP(S43,Calc!$B$3:$D$7,3,FALSE),0.01)&S43,"") ->  | AK43: =Calc!EP51 ->  | AL43: =IF(AND(Calc!HE51<>"-",Calc!HE51<>"",S43<>""),FLOOR(Calc!HE51*VLOOKUP(S43,Calc!$B$3:$D$7,3,FALSE),0.01)&S43,"") ->  | AM43: =IF(AND(Calc!HF51<>"-",Calc!HF51<>"",S43<>""),FLOOR(Calc!HF51*VLOOKUP(S43,Calc!$B$3:$D$7,3,FALSE),0.01)&S43,"") -> 
A44: =IF(AND(H44<>"", $J44<>""),H44*VLOOKUP($J44,Calc!$B$3:$C$7,2,FALSE),"") ->  | B44: =IF(AND(I44<>"", $J44<>""),I44*VLOOKUP($J44,Calc!$B$3:$C$7,2,FALSE),"") ->  | C44: =Calc!$EF52 ->  | L44: =IF(AND(K44<>"",J44<>""),FLOOR(VLOOKUP(K44,Calc!$C$15:$G$18,2,FALSE)*VLOOKUP(J44,Calc!$B$3:$D$7,3,FALSE),0.01)&J44,"") ->  | M44: =IF(AND(K44<>"",J44<>""),FLOOR(VLOOKUP(K44,Calc!$C$15:$G$18,5,FALSE)*VLOOKUP(J44,Calc!$B$3:$D$7,3,FALSE),0.01)&J44,"") ->  | N44: =IF(R44<>"",Calc!FN52,"") ->  | O44: =IF(R44<>"",Calc!FK52,"") ->  | P44: =IF(R44<>"",Calc!FL52,"") ->  | Q44: =IF(R44<>"",Calc!FM52,"") ->  | R44: =IF(AND(C44<>"", S44<>""),C44*VLOOKUP(S44,Calc!$B$3:$D$7,3,FALSE),"") ->  | T44: =IF(AND(Calc!GD52<>"",S44<>""),FLOOR(Calc!GD52*VLOOKUP(S44,Calc!$B$3:$D$7,3,FALSE),0.01)&S44,"") ->  | U44: =Calc!EG52 ->  | V44: =IF(AND(Calc!GG52<>"-",S44<>""),FLOOR(Calc!GG52*VLOOKUP(S44,Calc!$B$3:$D$7,3,FALSE),0.01)&S44,"") ->  | W44: =Calc!EH52 ->  | X44: =IF(AND(Calc!GH52<>"-",S44<>""),FLOOR(Calc!GH52*VLOOKUP(S44,Calc!$B$3:$D$7,3,FALSE),0.01)&S44,"") ->  | Y44: =Calc!EI52 ->  | Z44: =IF(AND(Calc!GI52<>"-",S44<>""),FLOOR(Calc!GI52*VLOOKUP(S44,Calc!$B$3:$D$7,3,FALSE),0.01)&S44,"") ->  | AA44: =Calc!EJ52 ->  | AB44: =IF(AND(Calc!GJ52<>"-",S44<>""),FLOOR(Calc!GJ52*VLOOKUP(S44,Calc!$B$3:$D$7,3,FALSE),0.01)&S44,"") ->  | AC44: =Calc!EK52 ->  | AD44: =IF(AND(Calc!GK52<>"-",S44<>""),FLOOR(Calc!GK52*VLOOKUP(S44,Calc!$B$3:$D$7,3,FALSE),0.01)&S44,"") ->  | AE44: =Calc!EL52 ->  | AF44: =IF(AND(Calc!GL52<>"-",S44<>""),FLOOR(Calc!GL52*VLOOKUP(S44,Calc!$B$3:$D$7,3,FALSE),0.01)&S44,"") ->  | AG44: =Calc!EM52 ->  | AH44: =IF(AND(Calc!GM52<>"-",S44<>""),FLOOR(Calc!GM52*VLOOKUP(S44,Calc!$B$3:$D$7,3,FALSE),0.01)&S44,"") ->  | AI44: =Calc!EN52 ->  | AJ44: =IF(AND(Calc!GN52<>"-",S44<>""),FLOOR(Calc!GN52*VLOOKUP(S44,Calc!$B$3:$D$7,3,FALSE),0.01)&S44,"") ->  | AK44: =Calc!EP52 ->  | AL44: =IF(AND(Calc!HE52<>"-",Calc!HE52<>"",S44<>""),FLOOR(Calc!HE52*VLOOKUP(S44,Calc!$B$3:$D$7,3,FALSE),0.01)&S44,"") ->  | AM44: =IF(AND(Calc!HF52<>"-",Calc!HF52<>"",S44<>""),FLOOR(Calc!HF52*VLOOKUP(S44,Calc!$B$3:$D$7,3,FALSE),0.01)&S44,"") -> 
A45: =IF(AND(H45<>"", $J45<>""),H45*VLOOKUP($J45,Calc!$B$3:$C$7,2,FALSE),"") ->  | B45: =IF(AND(I45<>"", $J45<>""),I45*VLOOKUP($J45,Calc!$B$3:$C$7,2,FALSE),"") ->  | C45: =Calc!$EF53 ->  | L45: =IF(AND(K45<>"",J45<>""),FLOOR(VLOOKUP(K45,Calc!$C$15:$G$18,2,FALSE)*VLOOKUP(J45,Calc!$B$3:$D$7,3,FALSE),0.01)&J45,"") ->  | M45: =IF(AND(K45<>"",J45<>""),FLOOR(VLOOKUP(K45,Calc!$C$15:$G$18,5,FALSE)*VLOOKUP(J45,Calc!$B$3:$D$7,3,FALSE),0.01)&J45,"") ->  | N45: =IF(R45<>"",Calc!FN53,"") ->  | O45: =IF(R45<>"",Calc!FK53,"") ->  | P45: =IF(R45<>"",Calc!FL53,"") ->  | Q45: =IF(R45<>"",Calc!FM53,"") ->  | R45: =IF(AND(C45<>"", S45<>""),C45*VLOOKUP(S45,Calc!$B$3:$D$7,3,FALSE),"") ->  | T45: =IF(AND(Calc!GD53<>"",S45<>""),FLOOR(Calc!GD53*VLOOKUP(S45,Calc!$B$3:$D$7,3,FALSE),0.01)&S45,"") ->  | U45: =Calc!EG53 ->  | V45: =IF(AND(Calc!GG53<>"-",S45<>""),FLOOR(Calc!GG53*VLOOKUP(S45,Calc!$B$3:$D$7,3,FALSE),0.01)&S45,"") ->  | W45: =Calc!EH53 ->  | X45: =IF(AND(Calc!GH53<>"-",S45<>""),FLOOR(Calc!GH53*VLOOKUP(S45,Calc!$B$3:$D$7,3,FALSE),0.01)&S45,"") ->  | Y45: =Calc!EI53 ->  | Z45: =IF(AND(Calc!GI53<>"-",S45<>""),FLOOR(Calc!GI53*VLOOKUP(S45,Calc!$B$3:$D$7,3,FALSE),0.01)&S45,"") ->  | AA45: =Calc!EJ53 ->  | AB45: =IF(AND(Calc!GJ53<>"-",S45<>""),FLOOR(Calc!GJ53*VLOOKUP(S45,Calc!$B$3:$D$7,3,FALSE),0.01)&S45,"") ->  | AC45: =Calc!EK53 ->  | AD45: =IF(AND(Calc!GK53<>"-",S45<>""),FLOOR(Calc!GK53*VLOOKUP(S45,Calc!$B$3:$D$7,3,FALSE),0.01)&S45,"") ->  | AE45: =Calc!EL53 ->  | AF45: =IF(AND(Calc!GL53<>"-",S45<>""),FLOOR(Calc!GL53*VLOOKUP(S45,Calc!$B$3:$D$7,3,FALSE),0.01)&S45,"") ->  | AG45: =Calc!EM53 ->  | AH45: =IF(AND(Calc!GM53<>"-",S45<>""),FLOOR(Calc!GM53*VLOOKUP(S45,Calc!$B$3:$D$7,3,FALSE),0.01)&S45,"") ->  | AI45: =Calc!EN53 ->  | AJ45: =IF(AND(Calc!GN53<>"-",S45<>""),FLOOR(Calc!GN53*VLOOKUP(S45,Calc!$B$3:$D$7,3,FALSE),0.01)&S45,"") ->  | AK45: =Calc!EP53 ->  | AL45: =IF(AND(Calc!HE53<>"-",Calc!HE53<>"",S45<>""),FLOOR(Calc!HE53*VLOOKUP(S45,Calc!$B$3:$D$7,3,FALSE),0.01)&S45,"") ->  | AM45: =IF(AND(Calc!HF53<>"-",Calc!HF53<>"",S45<>""),FLOOR(Calc!HF53*VLOOKUP(S45,Calc!$B$3:$D$7,3,FALSE),0.01)&S45,"") -> 
A46: =IF(AND(H46<>"", $J46<>""),H46*VLOOKUP($J46,Calc!$B$3:$C$7,2,FALSE),"") ->  | B46: =IF(AND(I46<>"", $J46<>""),I46*VLOOKUP($J46,Calc!$B$3:$C$7,2,FALSE),"") ->  | C46: =Calc!$EF54 ->  | L46: =IF(AND(K46<>"",J46<>""),FLOOR(VLOOKUP(K46,Calc!$C$15:$G$18,2,FALSE)*VLOOKUP(J46,Calc!$B$3:$D$7,3,FALSE),0.01)&J46,"") ->  | M46: =IF(AND(K46<>"",J46<>""),FLOOR(VLOOKUP(K46,Calc!$C$15:$G$18,5,FALSE)*VLOOKUP(J46,Calc!$B$3:$D$7,3,FALSE),0.01)&J46,"") ->  | N46: =IF(R46<>"",Calc!FN54,"") ->  | O46: =IF(R46<>"",Calc!FK54,"") ->  | P46: =IF(R46<>"",Calc!FL54,"") ->  | Q46: =IF(R46<>"",Calc!FM54,"") ->  | R46: =IF(AND(C46<>"", S46<>""),C46*VLOOKUP(S46,Calc!$B$3:$D$7,3,FALSE),"") ->  | T46: =IF(AND(Calc!GD54<>"",S46<>""),FLOOR(Calc!GD54*VLOOKUP(S46,Calc!$B$3:$D$7,3,FALSE),0.01)&S46,"") ->  | U46: =Calc!EG54 ->  | V46: =IF(AND(Calc!GG54<>"-",S46<>""),FLOOR(Calc!GG54*VLOOKUP(S46,Calc!$B$3:$D$7,3,FALSE),0.01)&S46,"") ->  | W46: =Calc!EH54 ->  | X46: =IF(AND(Calc!GH54<>"-",S46<>""),FLOOR(Calc!GH54*VLOOKUP(S46,Calc!$B$3:$D$7,3,FALSE),0.01)&S46,"") ->  | Y46: =Calc!EI54 ->  | Z46: =IF(AND(Calc!GI54<>"-",S46<>""),FLOOR(Calc!GI54*VLOOKUP(S46,Calc!$B$3:$D$7,3,FALSE),0.01)&S46,"") ->  | AA46: =Calc!EJ54 ->  | AB46: =IF(AND(Calc!GJ54<>"-",S46<>""),FLOOR(Calc!GJ54*VLOOKUP(S46,Calc!$B$3:$D$7,3,FALSE),0.01)&S46,"") ->  | AC46: =Calc!EK54 ->  | AD46: =IF(AND(Calc!GK54<>"-",S46<>""),FLOOR(Calc!GK54*VLOOKUP(S46,Calc!$B$3:$D$7,3,FALSE),0.01)&S46,"") ->  | AE46: =Calc!EL54 ->  | AF46: =IF(AND(Calc!GL54<>"-",S46<>""),FLOOR(Calc!GL54*VLOOKUP(S46,Calc!$B$3:$D$7,3,FALSE),0.01)&S46,"") ->  | AG46: =Calc!EM54 ->  | AH46: =IF(AND(Calc!GM54<>"-",S46<>""),FLOOR(Calc!GM54*VLOOKUP(S46,Calc!$B$3:$D$7,3,FALSE),0.01)&S46,"") ->  | AI46: =Calc!EN54 ->  | AJ46: =IF(AND(Calc!GN54<>"-",S46<>""),FLOOR(Calc!GN54*VLOOKUP(S46,Calc!$B$3:$D$7,3,FALSE),0.01)&S46,"") ->  | AK46: =Calc!EP54 ->  | AL46: =IF(AND(Calc!HE54<>"-",Calc!HE54<>"",S46<>""),FLOOR(Calc!HE54*VLOOKUP(S46,Calc!$B$3:$D$7,3,FALSE),0.01)&S46,"") ->  | AM46: =IF(AND(Calc!HF54<>"-",Calc!HF54<>"",S46<>""),FLOOR(Calc!HF54*VLOOKUP(S46,Calc!$B$3:$D$7,3,FALSE),0.01)&S46,"") -> 
A47: =IF(AND(H47<>"", $J47<>""),H47*VLOOKUP($J47,Calc!$B$3:$C$7,2,FALSE),"") ->  | B47: =IF(AND(I47<>"", $J47<>""),I47*VLOOKUP($J47,Calc!$B$3:$C$7,2,FALSE),"") ->  | C47: =Calc!$EF55 ->  | L47: =IF(AND(K47<>"",J47<>""),FLOOR(VLOOKUP(K47,Calc!$C$15:$G$18,2,FALSE)*VLOOKUP(J47,Calc!$B$3:$D$7,3,FALSE),0.01)&J47,"") ->  | M47: =IF(AND(K47<>"",J47<>""),FLOOR(VLOOKUP(K47,Calc!$C$15:$G$18,5,FALSE)*VLOOKUP(J47,Calc!$B$3:$D$7,3,FALSE),0.01)&J47,"") ->  | N47: =IF(R47<>"",Calc!FN55,"") ->  | O47: =IF(R47<>"",Calc!FK55,"") ->  | P47: =IF(R47<>"",Calc!FL55,"") ->  | Q47: =IF(R47<>"",Calc!FM55,"") ->  | R47: =IF(AND(C47<>"", S47<>""),C47*VLOOKUP(S47,Calc!$B$3:$D$7,3,FALSE),"") ->  | T47: =IF(AND(Calc!GD55<>"",S47<>""),FLOOR(Calc!GD55*VLOOKUP(S47,Calc!$B$3:$D$7,3,FALSE),0.01)&S47,"") ->  | U47: =Calc!EG55 ->  | V47: =IF(AND(Calc!GG55<>"-",S47<>""),FLOOR(Calc!GG55*VLOOKUP(S47,Calc!$B$3:$D$7,3,FALSE),0.01)&S47,"") ->  | W47: =Calc!EH55 ->  | X47: =IF(AND(Calc!GH55<>"-",S47<>""),FLOOR(Calc!GH55*VLOOKUP(S47,Calc!$B$3:$D$7,3,FALSE),0.01)&S47,"") ->  | Y47: =Calc!EI55 ->  | Z47: =IF(AND(Calc!GI55<>"-",S47<>""),FLOOR(Calc!GI55*VLOOKUP(S47,Calc!$B$3:$D$7,3,FALSE),0.01)&S47,"") ->  | AA47: =Calc!EJ55 ->  | AB47: =IF(AND(Calc!GJ55<>"-",S47<>""),FLOOR(Calc!GJ55*VLOOKUP(S47,Calc!$B$3:$D$7,3,FALSE),0.01)&S47,"") ->  | AC47: =Calc!EK55 ->  | AD47: =IF(AND(Calc!GK55<>"-",S47<>""),FLOOR(Calc!GK55*VLOOKUP(S47,Calc!$B$3:$D$7,3,FALSE),0.01)&S47,"") ->  | AE47: =Calc!EL55 ->  | AF47: =IF(AND(Calc!GL55<>"-",S47<>""),FLOOR(Calc!GL55*VLOOKUP(S47,Calc!$B$3:$D$7,3,FALSE),0.01)&S47,"") ->  | AG47: =Calc!EM55 ->  | AH47: =IF(AND(Calc!GM55<>"-",S47<>""),FLOOR(Calc!GM55*VLOOKUP(S47,Calc!$B$3:$D$7,3,FALSE),0.01)&S47,"") ->  | AI47: =Calc!EN55 ->  | AJ47: =IF(AND(Calc!GN55<>"-",S47<>""),FLOOR(Calc!GN55*VLOOKUP(S47,Calc!$B$3:$D$7,3,FALSE),0.01)&S47,"") ->  | AK47: =Calc!EP55 ->  | AL47: =IF(AND(Calc!HE55<>"-",Calc!HE55<>"",S47<>""),FLOOR(Calc!HE55*VLOOKUP(S47,Calc!$B$3:$D$7,3,FALSE),0.01)&S47,"") ->  | AM47: =IF(AND(Calc!HF55<>"-",Calc!HF55<>"",S47<>""),FLOOR(Calc!HF55*VLOOKUP(S47,Calc!$B$3:$D$7,3,FALSE),0.01)&S47,"") -> 
A48: =IF(AND(H48<>"", $J48<>""),H48*VLOOKUP($J48,Calc!$B$3:$C$7,2,FALSE),"") ->  | B48: =IF(AND(I48<>"", $J48<>""),I48*VLOOKUP($J48,Calc!$B$3:$C$7,2,FALSE),"") ->  | C48: =Calc!$EF56 ->  | L48: =IF(AND(K48<>"",J48<>""),FLOOR(VLOOKUP(K48,Calc!$C$15:$G$18,2,FALSE)*VLOOKUP(J48,Calc!$B$3:$D$7,3,FALSE),0.01)&J48,"") ->  | M48: =IF(AND(K48<>"",J48<>""),FLOOR(VLOOKUP(K48,Calc!$C$15:$G$18,5,FALSE)*VLOOKUP(J48,Calc!$B$3:$D$7,3,FALSE),0.01)&J48,"") ->  | N48: =IF(R48<>"",Calc!FN56,"") ->  | O48: =IF(R48<>"",Calc!FK56,"") ->  | P48: =IF(R48<>"",Calc!FL56,"") ->  | Q48: =IF(R48<>"",Calc!FM56,"") ->  | R48: =IF(AND(C48<>"", S48<>""),C48*VLOOKUP(S48,Calc!$B$3:$D$7,3,FALSE),"") ->  | T48: =IF(AND(Calc!GD56<>"",S48<>""),FLOOR(Calc!GD56*VLOOKUP(S48,Calc!$B$3:$D$7,3,FALSE),0.01)&S48,"") ->  | U48: =Calc!EG56 ->  | V48: =IF(AND(Calc!GG56<>"-",S48<>""),FLOOR(Calc!GG56*VLOOKUP(S48,Calc!$B$3:$D$7,3,FALSE),0.01)&S48,"") ->  | W48: =Calc!EH56 ->  | X48: =IF(AND(Calc!GH56<>"-",S48<>""),FLOOR(Calc!GH56*VLOOKUP(S48,Calc!$B$3:$D$7,3,FALSE),0.01)&S48,"") ->  | Y48: =Calc!EI56 ->  | Z48: =IF(AND(Calc!GI56<>"-",S48<>""),FLOOR(Calc!GI56*VLOOKUP(S48,Calc!$B$3:$D$7,3,FALSE),0.01)&S48,"") ->  | AA48: =Calc!EJ56 ->  | AB48: =IF(AND(Calc!GJ56<>"-",S48<>""),FLOOR(Calc!GJ56*VLOOKUP(S48,Calc!$B$3:$D$7,3,FALSE),0.01)&S48,"") ->  | AC48: =Calc!EK56 ->  | AD48: =IF(AND(Calc!GK56<>"-",S48<>""),FLOOR(Calc!GK56*VLOOKUP(S48,Calc!$B$3:$D$7,3,FALSE),0.01)&S48,"") ->  | AE48: =Calc!EL56 ->  | AF48: =IF(AND(Calc!GL56<>"-",S48<>""),FLOOR(Calc!GL56*VLOOKUP(S48,Calc!$B$3:$D$7,3,FALSE),0.01)&S48,"") ->  | AG48: =Calc!EM56 ->  | AH48: =IF(AND(Calc!GM56<>"-",S48<>""),FLOOR(Calc!GM56*VLOOKUP(S48,Calc!$B$3:$D$7,3,FALSE),0.01)&S48,"") ->  | AI48: =Calc!EN56 ->  | AJ48: =IF(AND(Calc!GN56<>"-",S48<>""),FLOOR(Calc!GN56*VLOOKUP(S48,Calc!$B$3:$D$7,3,FALSE),0.01)&S48,"") ->  | AK48: =Calc!EP56 ->  | AL48: =IF(AND(Calc!HE56<>"-",Calc!HE56<>"",S48<>""),FLOOR(Calc!HE56*VLOOKUP(S48,Calc!$B$3:$D$7,3,FALSE),0.01)&S48,"") ->  | AM48: =IF(AND(Calc!HF56<>"-",Calc!HF56<>"",S48<>""),FLOOR(Calc!HF56*VLOOKUP(S48,Calc!$B$3:$D$7,3,FALSE),0.01)&S48,"") -> 
A49: =IF(AND(H49<>"", $J49<>""),H49*VLOOKUP($J49,Calc!$B$3:$C$7,2,FALSE),"") ->  | B49: =IF(AND(I49<>"", $J49<>""),I49*VLOOKUP($J49,Calc!$B$3:$C$7,2,FALSE),"") ->  | C49: =Calc!$EF57 ->  | L49: =IF(AND(K49<>"",J49<>""),FLOOR(VLOOKUP(K49,Calc!$C$15:$G$18,2,FALSE)*VLOOKUP(J49,Calc!$B$3:$D$7,3,FALSE),0.01)&J49,"") ->  | M49: =IF(AND(K49<>"",J49<>""),FLOOR(VLOOKUP(K49,Calc!$C$15:$G$18,5,FALSE)*VLOOKUP(J49,Calc!$B$3:$D$7,3,FALSE),0.01)&J49,"") ->  | N49: =IF(R49<>"",Calc!FN57,"") ->  | O49: =IF(R49<>"",Calc!FK57,"") ->  | P49: =IF(R49<>"",Calc!FL57,"") ->  | Q49: =IF(R49<>"",Calc!FM57,"") ->  | R49: =IF(AND(C49<>"", S49<>""),C49*VLOOKUP(S49,Calc!$B$3:$D$7,3,FALSE),"") ->  | T49: =IF(AND(Calc!GD57<>"",S49<>""),FLOOR(Calc!GD57*VLOOKUP(S49,Calc!$B$3:$D$7,3,FALSE),0.01)&S49,"") ->  | U49: =Calc!EG57 ->  | V49: =IF(AND(Calc!GG57<>"-",S49<>""),FLOOR(Calc!GG57*VLOOKUP(S49,Calc!$B$3:$D$7,3,FALSE),0.01)&S49,"") ->  | W49: =Calc!EH57 ->  | X49: =IF(AND(Calc!GH57<>"-",S49<>""),FLOOR(Calc!GH57*VLOOKUP(S49,Calc!$B$3:$D$7,3,FALSE),0.01)&S49,"") ->  | Y49: =Calc!EI57 ->  | Z49: =IF(AND(Calc!GI57<>"-",S49<>""),FLOOR(Calc!GI57*VLOOKUP(S49,Calc!$B$3:$D$7,3,FALSE),0.01)&S49,"") ->  | AA49: =Calc!EJ57 ->  | AB49: =IF(AND(Calc!GJ57<>"-",S49<>""),FLOOR(Calc!GJ57*VLOOKUP(S49,Calc!$B$3:$D$7,3,FALSE),0.01)&S49,"") ->  | AC49: =Calc!EK57 ->  | AD49: =IF(AND(Calc!GK57<>"-",S49<>""),FLOOR(Calc!GK57*VLOOKUP(S49,Calc!$B$3:$D$7,3,FALSE),0.01)&S49,"") ->  | AE49: =Calc!EL57 ->  | AF49: =IF(AND(Calc!GL57<>"-",S49<>""),FLOOR(Calc!GL57*VLOOKUP(S49,Calc!$B$3:$D$7,3,FALSE),0.01)&S49,"") ->  | AG49: =Calc!EM57 ->  | AH49: =IF(AND(Calc!GM57<>"-",S49<>""),FLOOR(Calc!GM57*VLOOKUP(S49,Calc!$B$3:$D$7,3,FALSE),0.01)&S49,"") ->  | AI49: =Calc!EN57 ->  | AJ49: =IF(AND(Calc!GN57<>"-",S49<>""),FLOOR(Calc!GN57*VLOOKUP(S49,Calc!$B$3:$D$7,3,FALSE),0.01)&S49,"") ->  | AK49: =Calc!EP57 ->  | AL49: =IF(AND(Calc!HE57<>"-",Calc!HE57<>"",S49<>""),FLOOR(Calc!HE57*VLOOKUP(S49,Calc!$B$3:$D$7,3,FALSE),0.01)&S49,"") ->  | AM49: =IF(AND(Calc!HF57<>"-",Calc!HF57<>"",S49<>""),FLOOR(Calc!HF57*VLOOKUP(S49,Calc!$B$3:$D$7,3,FALSE),0.01)&S49,"") -> 
A50: =IF(AND(H50<>"", $J50<>""),H50*VLOOKUP($J50,Calc!$B$3:$C$7,2,FALSE),"") ->  | B50: =IF(AND(I50<>"", $J50<>""),I50*VLOOKUP($J50,Calc!$B$3:$C$7,2,FALSE),"") ->  | C50: =Calc!$EF58 ->  | L50: =IF(AND(K50<>"",J50<>""),FLOOR(VLOOKUP(K50,Calc!$C$15:$G$18,2,FALSE)*VLOOKUP(J50,Calc!$B$3:$D$7,3,FALSE),0.01)&J50,"") ->  | M50: =IF(AND(K50<>"",J50<>""),FLOOR(VLOOKUP(K50,Calc!$C$15:$G$18,5,FALSE)*VLOOKUP(J50,Calc!$B$3:$D$7,3,FALSE),0.01)&J50,"") ->  | N50: =IF(R50<>"",Calc!FN58,"") ->  | O50: =IF(R50<>"",Calc!FK58,"") ->  | P50: =IF(R50<>"",Calc!FL58,"") ->  | Q50: =IF(R50<>"",Calc!FM58,"") ->  | R50: =IF(AND(C50<>"", S50<>""),C50*VLOOKUP(S50,Calc!$B$3:$D$7,3,FALSE),"") ->  | T50: =IF(AND(Calc!GD58<>"",S50<>""),FLOOR(Calc!GD58*VLOOKUP(S50,Calc!$B$3:$D$7,3,FALSE),0.01)&S50,"") ->  | U50: =Calc!EG58 ->  | V50: =IF(AND(Calc!GG58<>"-",S50<>""),FLOOR(Calc!GG58*VLOOKUP(S50,Calc!$B$3:$D$7,3,FALSE),0.01)&S50,"") ->  | W50: =Calc!EH58 ->  | X50: =IF(AND(Calc!GH58<>"-",S50<>""),FLOOR(Calc!GH58*VLOOKUP(S50,Calc!$B$3:$D$7,3,FALSE),0.01)&S50,"") ->  | Y50: =Calc!EI58 ->  | Z50: =IF(AND(Calc!GI58<>"-",S50<>""),FLOOR(Calc!GI58*VLOOKUP(S50,Calc!$B$3:$D$7,3,FALSE),0.01)&S50,"") ->  | AA50: =Calc!EJ58 ->  | AB50: =IF(AND(Calc!GJ58<>"-",S50<>""),FLOOR(Calc!GJ58*VLOOKUP(S50,Calc!$B$3:$D$7,3,FALSE),0.01)&S50,"") ->  | AC50: =Calc!EK58 ->  | AD50: =IF(AND(Calc!GK58<>"-",S50<>""),FLOOR(Calc!GK58*VLOOKUP(S50,Calc!$B$3:$D$7,3,FALSE),0.01)&S50,"") ->  | AE50: =Calc!EL58 ->  | AF50: =IF(AND(Calc!GL58<>"-",S50<>""),FLOOR(Calc!GL58*VLOOKUP(S50,Calc!$B$3:$D$7,3,FALSE),0.01)&S50,"") ->  | AG50: =Calc!EM58 ->  | AH50: =IF(AND(Calc!GM58<>"-",S50<>""),FLOOR(Calc!GM58*VLOOKUP(S50,Calc!$B$3:$D$7,3,FALSE),0.01)&S50,"") ->  | AI50: =Calc!EN58 ->  | AJ50: =IF(AND(Calc!GN58<>"-",S50<>""),FLOOR(Calc!GN58*VLOOKUP(S50,Calc!$B$3:$D$7,3,FALSE),0.01)&S50,"") ->  | AK50: =Calc!EP58 ->  | AL50: =IF(AND(Calc!HE58<>"-",Calc!HE58<>"",S50<>""),FLOOR(Calc!HE58*VLOOKUP(S50,Calc!$B$3:$D$7,3,FALSE),0.01)&S50,"") ->  | AM50: =IF(AND(Calc!HF58<>"-",Calc!HF58<>"",S50<>""),FLOOR(Calc!HF58*VLOOKUP(S50,Calc!$B$3:$D$7,3,FALSE),0.01)&S50,"") -> 
